Workbook

Sheet Lisez moi
A1: Calcul d'un cadran solaire de temps moyen
A3: Ce fichier EXCEL contient toutes les fonctions nécessaires au calcul du cadran solaire.
A4: Ce fichier contient 2 feuilles de calcul:
B5: Courbes en 8 calcule pour toutes les heures, la position de l'ombre de l'extrémité du gnomon dans le repère cadran.
B6: Courbes diurnes calcule pour une date donnée la position de l'ombre de l'extrémité du gnomon durant la journée.

Sheet Courbes en 8
B1: Données
B2: latitude du lieu | C2: 47.65055556 | D2: =TRUNC(C2)&"° "&ABS(TRUNC((C2-TRUNC(C2))*60))&"min " -> 47° 39min
B3: Longitude du lieu | C3: -7.444166667 | D3: =TRUNC(C3)&"° "&ABS(TRUNC((C3-TRUNC(C3))*60))&"min " -> -7° 26min
B4: Longueur gnomon | C4: 550
B5: déclinaison du mur | C5: -2.0666914
B6: inclinaison | C6: 90
B7: année | C7: 2010
B8: première heure | C8: 8
B9: Dates | E9: Heures limites calculées | G9: Coordonnées cartésiennes de l'ombre du gnomon en fonctions des heures d'été affichées par le cadran solaire
G10: =($C$8+1)/24 -> 09:00:00 | I10: =($C$8+2)/24 -> 10:00:00 | K10: =($C$8+3)/24 -> 11:00:00 | M10: =($C$8+4)/24 -> 12:00:00 | O10: =($C$8+5)/24 -> 13:00:00 | Q10: =($C$8+6)/24 -> 14:00:00 | S10: =($C$8+7)/24 -> 15:00:00 | U10: =($C$8+8)/24 -> 16:00:00 | W10: =($C$8+9)/24 -> 17:00:00
B11: jour | C11: mois | D11: date | E11: matin | F11: soir | G11: x | H11: y | I11: x | J11: y | K11: x | L11: y | M11: x | N11: y | O11: x | P11: y | Q11: x | R11: y | S11: x | T11: y | U11: x | V11: y | W11: x | X11: y
B12: 11 | C12: 4 | D12: =DATE($C$7,C12,B12) -> 2010-04-11 | E12: =INDEX(heures_limites_cadran($D12,$C$3,$C$2,$C$5),1,1)/24 -> 08:00:00 | F12: =INDEX(heures_limites_cadran($D12,$C$3,$C$2,$C$5),1,2)/24 -> 18:30:00 | G12: =INDEX(coordonnées_cadran_plat($D12,$G$10,$C$3,$C$2,$C$5,$C$6,0,0,$C$4),1,1) -> 931.9953391 | H12: =INDEX(coordonnées_cadran_plat($D12,$G$10,$C$3,$C$2,$C$5,$C$6,0,0,$C$4),1,2) -> -2366.818608 | I12: =INDEX(coordonnées_cadran_plat($D12,I$10,$C$3,$C$2,$C$5,$C$6,0,0,$C$4),1,1) -> 752.641088 | J12: =INDEX(coordonnées_cadran_plat($D12,I$10,$C$3,$C$2,$C$5,$C$6,0,0,$C$4),1,2) -> -1145.765839 | K12: =INDEX(coordonnées_cadran_plat($D12,K$10,$C$3,$C$2,$C$5,$C$6,0,0,$C$4),1,1) -> 695.0149195 | L12: =INDEX(coordonnées_cadran_plat($D12,K$10,$C$3,$C$2,$C$5,$C$6,0,0,$C$4),1,2) -> -646.5252637 | M12: =INDEX(coordonnées_cadran_plat($D12,M$10,$C$3,$C$2,$C$5,$C$6,0,0,$C$4),1,1) -> 673.280297 | N12: =INDEX(coordonnées_cadran_plat($D12,M$10,$C$3,$C$2,$C$5,$C$6,0,0,$C$4),1,2) -> -338.7174138 | O12: =INDEX(coordonnées_cadran_plat($D12,O$10,$C$3,$C$2,$C$5,$C$6,0,0,$C$4),1,1) -> 669.5055074 | P12: =INDEX(coordonnées_cadran_plat($D12,O$10,$C$3,$C$2,$C$5,$C$6,0,0,$C$4),1,2) -> -97.87590138 | Q12: =INDEX(coordonnées_cadran_plat($D12,Q$10,$C$3,$C$2,$C$5,$C$6,0,0,$C$4),1,1) -> 679.5959179 | R12: =INDEX(coordonnées_cadran_plat($D12,Q$10,$C$3,$C$2,$C$5,$C$6,0,0,$C$4),1,2) -> 128.9600371 | S12: =INDEX(coordonnées_cadran_plat($D12,S$10,$C$3,$C$2,$C$5,$C$6,0,0,$C$4),1,1) -> 706.0669423 | T12: =INDEX(coordonnées_cadran_plat($D12,S$10,$C$3,$C$2,$C$5,$C$6,0,0,$C$4),1,2) -> 383.5409257 | U12: =INDEX(coordonnées_cadran_plat($D12,U$10,$C$3,$C$2,$C$5,$C$6,0,0,$C$4),1,1) -> 760.7151962 | V12: =INDEX(coordonnées_cadran_plat($D12,U$10,$C$3,$C$2,$C$5,$C$6,0,0,$C$4),1,2) -> 731.6466084 | W12: =INDEX(coordonnées_cadran_plat($D12,W$10,$C$3,$C$2,$C$5,$C$6,0,0,$C$4),1,1) -> 885.3432569 | X12: =INDEX(coordonnées_cadran_plat($D12,W$10,$C$3,$C$2,$C$5,$C$6,0,0,$C$4),1,2) -> 1358.662931
B13: 12 | C13: 4 | D13: 2010-04-12 | E13: =INDEX(heures_limites_cadran($D13,$C$3,$C$2,$C$5),1,1)/24 -> 08:00:00 | F13: =INDEX(heures_limites_cadran($D13,$C$3,$C$2,$C$5),1,2)/24 -> 18:30:00 | G13: =INDEX(coordonnées_cadran_plat($D13,$G$10,$C$3,$C$2,$C$5,$C$6,0,0,$C$4),1,1) -> 962.7068582 | H13: =INDEX(coordonnées_cadran_plat($D13,$G$10,$C$3,$C$2,$C$5,$C$6,0,0,$C$4),1,2) -> -2407.189709 | I13: =INDEX(coordonnées_cadran_plat($D13,I$10,$C$3,$C$2,$C$5,$C$6,0,0,$C$4),1,1) -> 768.2781344 | J13: =INDEX(coordonnées_cadran_plat($D13,I$10,$C$3,$C$2,$C$5,$C$6,0,0,$C$4),1,2) -> -1156.541861 | K13: =INDEX(coordonnées_cadran_plat($D13,K$10,$C$3,$C$2,$C$5,$C$6,0,0,$C$4),1,1) -> 706.2375583 | L13: =INDEX(coordonnées_cadran_plat($D13,K$10,$C$3,$C$2,$C$5,$C$6,0,0,$C$4),1,2) -> -650.7548564 | M13: =INDEX(coordonnées_cadran_plat($D13,M$10,$C$3,$C$2,$C$5,$C$6,0,0,$C$4),1,1) -> 682.7309523 | N13: =INDEX(coordonnées_cadran_plat($D13,M$10,$C$3,$C$2,$C$5,$C$6,0,0,$C$4),1,2) -> -340.2485249 | O13: =INDEX(coordonnées_cadran_plat($D13,O$10,$C$3,$C$2,$C$5,$C$6,0,0,$C$4),1,1) -> 678.3683727 | P13: =INDEX(coordonnées_cadran_plat($D13,O$10,$C$3,$C$2,$C$5,$C$6,0,0,$C$4),1,2) -> -97.71314359 | Q13: =INDEX(coordonnées_cadran_plat($D13,Q$10,$C$3,$C$2,$C$5,$C$6,0,0,$C$4),1,1) -> 688.7119313 | R13: =INDEX(coordonnées_cadran_plat($D13,Q$10,$C$3,$C$2,$C$5,$C$6,0,0,$C$4),1,2) -> 130.735568 | S13: =INDEX(coordonnées_cadran_plat($D13,S$10,$C$3,$C$2,$C$5,$C$6,0,0,$C$4),1,1) -> 716.4045719 | T13: =INDEX(coordonnées_cadran_plat($D13,S$10,$C$3,$C$2,$C$5,$C$6,0,0,$C$4),1,2) -> 387.6016006 | U13: =INDEX(coordonnées_cadran_plat($D13,U$10,$C$3,$C$2,$C$5,$C$6,0,0,$C$4),1,1) -> 774.0343427 | V13: =INDEX(coordonnées_cadran_plat($D13,U$10,$C$3,$C$2,$C$5,$C$6,0,0,$C$4),1,2) -> 740.3040497 | W13: =INDEX(coordonnées_cadran_plat($D13,W$10,$C$3,$C$2,$C$5,$C$6,0,0,$C$4),1,1) -> 906.6869164 | X13: =INDEX(coordonnées_cadran_plat($D13,W$10,$C$3,$C$2,$C$5,$C$6,0,0,$C$4),1,2) -> 1381.108512
B14: 13 | C14: 4 | D14: 2010-04-13 | E14: =INDEX(heures_limites_cadran($D14,$C$3,$C$2,$C$5),1,1)/24 -> 08:00:00 | F14: =INDEX(heures_limites_cadran($D14,$C$3,$C$2,$C$5),1,2)/24 -> 18:30:00 | G14: =INDEX(coordonnées_cadran_plat($D14,$G$10,$C$3,$C$2,$C$5,$C$6,0,0,$C$4),1,1) -> 994.381755 | H14: =INDEX(coordonnées_cadran_plat($D14,$G$10,$C$3,$C$2,$C$5,$C$6,0,0,$C$4),1,2) -> -2448.945305 | I14: =INDEX(coordonnées_cadran_plat($D14,I$10,$C$3,$C$2,$C$5,$C$6,0,0,$C$4),1,1) -> 784.1666196 | J14: =INDEX(coordonnées_cadran_plat($D14,I$10,$C$3,$C$2,$C$5,$C$6,0,0,$C$4),1,2) -> -1167.532749 | K14: =INDEX(coordonnées_cadran_plat($D14,K$10,$C$3,$C$2,$C$5,$C$6,0,0,$C$4),1,1) -> 717.5860609 | L14: =INDEX(coordonnées_cadran_plat($D14,K$10,$C$3,$C$2,$C$5,$C$6,0,0,$C$4),1,2) -> -655.0555172 | M14: =INDEX(coordonnées_cadran_plat($D14,M$10,$C$3,$C$2,$C$5,$C$6,0,0,$C$4),1,1) -> 692.2700338 | N14: =INDEX(coordonnées_cadran_plat($D14,M$10,$C$3,$C$2,$C$5,$C$6,0,0,$C$4),1,2) -> -341.8112196 | O14: =INDEX(coordonnées_cadran_plat($D14,O$10,$C$3,$C$2,$C$5,$C$6,0,0,$C$4),1,1) -> 687.31086 | P14: =INDEX(coordonnées_cadran_plat($D14,O$10,$C$3,$C$2,$C$5,$C$6,0,0,$C$4),1,2) -> -97.5639713 | Q14: =INDEX(coordonnées_cadran_plat($D14,Q$10,$C$3,$C$2,$C$5,$C$6,0,0,$C$4),1,1) -> 697.9168116 | R14: =INDEX(coordonnées_cadran_plat($D14,Q$10,$C$3,$C$2,$C$5,$C$6,0,0,$C$4),1,2) -> 132.513124 | S14: =INDEX(coordonnées_cadran_plat($D14,S$10,$C$3,$C$2,$C$5,$C$6,0,0,$C$4),1,1) -> 726.8647624 | T14: =INDEX(coordonnées_cadran_plat($D14,S$10,$C$3,$C$2,$C$5,$C$6,0,0,$C$4),1,2) -> 391.6922907 | U14: =INDEX(coordonnées_cadran_plat($D14,U$10,$C$3,$C$2,$C$5,$C$6,0,0,$C$4),1,1) -> 787.5705057 | V14: =INDEX(coordonnées_cadran_plat($D14,U$10,$C$3,$C$2,$C$5,$C$6,0,0,$C$4),1,2) -> 749.0766287 | W14: =INDEX(coordonnées_cadran_plat($D14,W$10,$C$3,$C$2,$C$5,$C$6,0,0,$C$4),1,1) -> 928.5993133 | X14: =INDEX(coordonnées_cadran_plat($D14,W$10,$C$3,$C$2,$C$5,$C$6,0,0,$C$4),1,2) -> 1404.103151
B15: 14 | C15: 4 | D15: 2010-04-14 | E15: =INDEX(heures_limites_cadran($D15,$C$3,$C$2,$C$5),1,1)/24 -> 08:00:00 | F15: =INDEX(heures_limites_cadran($D15,$C$3,$C$2,$C$5),1,2)/24 -> 18:30:00 | G15: =INDEX(coordonnées_cadran_plat($D15,$G$10,$C$3,$C$2,$C$5,$C$6,0,0,$C$4),1,1) -> 1027.06396 | H15: =INDEX(coordonnées_cadran_plat($D15,$G$10,$C$3,$C$2,$C$5,$C$6,0,0,$C$4),1,2) -> -2492.156137 | I15: =INDEX(coordonnées_cadran_plat($D15,I$10,$C$3,$C$2,$C$5,$C$6,0,0,$C$4),1,1) -> 800.310235 | J15: =INDEX(coordonnées_cadran_plat($D15,I$10,$C$3,$C$2,$C$5,$C$6,0,0,$C$4),1,2) -> -1178.744638 | K15: =INDEX(coordonnées_cadran_plat($D15,K$10,$C$3,$C$2,$C$5,$C$6,0,0,$C$4),1,1) -> 729.0603571 | L15: =INDEX(coordonnées_cadran_plat($D15,K$10,$C$3,$C$2,$C$5,$C$6,0,0,$C$4),1,2) -> -659.429083 | M15: =INDEX(coordonnées_cadran_plat($D15,M$10,$C$3,$C$2,$C$5,$C$6,0,0,$C$4),1,1) -> 701.8966728 | N15: =INDEX(coordonnées_cadran_plat($D15,M$10,$C$3,$C$2,$C$5,$C$6,0,0,$C$4),1,2) -> -343.4066681 | O15: =INDEX(coordonnées_cadran_plat($D15,O$10,$C$3,$C$2,$C$5,$C$6,0,0,$C$4),1,1) -> 696.3318568 | P15: =INDEX(coordonnées_cadran_plat($D15,O$10,$C$3,$C$2,$C$5,$C$6,0,0,$C$4),1,2) -> -97.42953848 | Q15: =INDEX(coordonnées_cadran_plat($D15,Q$10,$C$3,$C$2,$C$5,$C$6,0,0,$C$4),1,1) -> 707.2094039 | R15: =INDEX(coordonnées_cadran_plat($D15,Q$10,$C$3,$C$2,$C$5,$C$6,0,0,$C$4),1,2) -> 134.2913116 | S15: =INDEX(coordonnées_cadran_plat($D15,S$10,$C$3,$C$2,$C$5,$C$6,0,0,$C$4),1,1) -> 737.4466478 | T15: =INDEX(coordonnées_cadran_plat($D15,S$10,$C$3,$C$2,$C$5,$C$6,0,0,$C$4),1,2) -> 395.8112113 | U15: =INDEX(coordonnées_cadran_plat($D15,U$10,$C$3,$C$2,$C$5,$C$6,0,0,$C$4),1,1) -> 801.3246312 | V15: =INDEX(coordonnées_cadran_plat($D15,U$10,$C$3,$C$2,$C$5,$C$6,0,0,$C$4),1,2) -> 757.9627149 | W15: =INDEX(coordonnées_cadran_plat($D15,W$10,$C$3,$C$2,$C$5,$C$6,0,0,$C$4),1,1) -> 951.0952014 | X15: =INDEX(coordonnées_cadran_plat($D15,W$10,$C$3,$C$2,$C$5,$C$6,0,0,$C$4),1,2) -> 1427.657316
B16: 15 | C16: 4 | D16: 2010-04-15 | E16: =INDEX(heures_limites_cadran($D16,$C$3,$C$2,$C$5),1,1)/24 -> 08:00:00 | F16: =INDEX(heures_limites_cadran($D16,$C$3,$C$2,$C$5),1,2)/24 -> 18:30:00 | G16: =INDEX(coordonnées_cadran_plat($D16,$G$10,$C$3,$C$2,$C$5,$C$6,0,0,$C$4),1,1) -> 1060.800146 | H16: =INDEX(coordonnées_cadran_plat($D16,$G$10,$C$3,$C$2,$C$5,$C$6,0,0,$C$4),1,2) -> -2536.897258 | I16: =INDEX(coordonnées_cadran_plat($D16,I$10,$C$3,$C$2,$C$5,$C$6,0,0,$C$4),1,1) -> 816.7126554 | J16: =INDEX(coordonnées_cadran_plat($D16,I$10,$C$3,$C$2,$C$5,$C$6,0,0,$C$4),1,2) -> -1190.183718 | K16: =INDEX(coordonnées_cadran_plat($D16,K$10,$C$3,$C$2,$C$5,$C$6,0,0,$C$4),1,1) -> 740.6602582 | L16: =INDEX(coordonnées_cadran_plat($D16,K$10,$C$3,$C$2,$C$5,$C$6,0,0,$C$4),1,2) -> -663.8773588 | M16: =INDEX(coordonnées_cadran_plat($D16,M$10,$C$3,$C$2,$C$5,$C$6,0,0,$C$4),1,1) -> 711.6098741 | N16: =INDEX(coordonnées_cadran_plat($D16,M$10,$C$3,$C$2,$C$5,$C$6,0,0,$C$4),1,2) -> -345.0360223 | O16: =INDEX(coordonnées_cadran_plat($D16,O$10,$C$3,$C$2,$C$5,$C$6,0,0,$C$4),1,1) -> 705.430114 | P16: =INDEX(coordonnées_cadran_plat($D16,O$10,$C$3,$C$2,$C$5,$C$6,0,0,$C$4),1,2) -> -97.31100252 | Q16: =INDEX(coordonnées_cadran_plat($D16,Q$10,$C$3,$C$2,$C$5,$C$6,0,0,$C$4),1,1) -> 716.5883918 | R16: =INDEX(coordonnées_cadran_plat($D16,Q$10,$C$3,$C$2,$C$5,$C$6,0,0,$C$4),1,2) -> 136.0687031 | S16: =INDEX(coordonnées_cadran_plat($D16,S$10,$C$3,$C$2,$C$5,$C$6,0,0,$C$4),1,1) -> 748.1491517 | T16: =INDEX(coordonnées_cadran_plat($D16,S$10,$C$3,$C$2,$C$5,$C$6,0,0,$C$4),1,2) -> 399.9564846 | U16: =INDEX(coordonnées_cadran_plat($D16,U$10,$C$3,$C$2,$C$5,$C$6,0,0,$C$4),1,1) -> 815.2973758 | V16: =INDEX(coordonnées_cadran_plat($D16,U$10,$C$3,$C$2,$C$5,$C$6,0,0,$C$4),1,2) -> 766.9604521 | W16: =INDEX(coordonnées_cadran_plat($D16,W$10,$C$3,$C$2,$C$5,$C$6,0,0,$C$4),1,1) -> 974.1893394 | X16: =INDEX(coordonnées_cadran_plat($D16,W$10,$C$3,$C$2,$C$5,$C$6,0,0,$C$4),1,2) -> 1451.781275
B17: 16 | C17: 4 | D17: 2010-04-16 | E17: =INDEX(heures_limites_cadran($D17,$C$3,$C$2,$C$5),1,1)/24 -> 08:00:00 | F17: =INDEX(heures_limites_cadran($D17,$C$3,$C$2,$C$5),1,2)/24 -> 18:30:00 | G17: =INDEX(coordonnées_cadran_plat($D17,$G$10,$C$3,$C$2,$C$5,$C$6,0,0,$C$4),1,1) -> 1095.639919 | H17: =INDEX(coordonnées_cadran_plat($D17,$G$10,$C$3,$C$2,$C$5,$C$6,0,0,$C$4),1,2) -> -2583.248338 | I17: =INDEX(coordonnées_cadran_plat($D17,I$10,$C$3,$C$2,$C$5,$C$6,0,0,$C$4),1,1) -> 833.3775245 | J17: =INDEX(coordonnées_cadran_plat($D17,I$10,$C$3,$C$2,$C$5,$C$6,0,0,$C$4),1,2) -> -1201.856223 | K17: =INDEX(coordonnées_cadran_plat($D17,K$10,$C$3,$C$2,$C$5,$C$6,0,0,$C$4),1,1) -> 752.3854462 | L17: =INDEX(coordonnées_cadran_plat($D17,K$10,$C$3,$C$2,$C$5,$C$6,0,0,$C$4),1,2) -> -668.4021111 | M17: =INDEX(coordonnées_cadran_plat($D17,M$10,$C$3,$C$2,$C$5,$C$6,0,0,$C$4),1,1) -> 721.4085067 | N17: =INDEX(coordonnées_cadran_plat($D17,M$10,$C$3,$C$2,$C$5,$C$6,0,0,$C$4),1,2) -> -346.7004134 | O17: =INDEX(coordonnées_cadran_plat($D17,O$10,$C$3,$C$2,$C$5,$C$6,0,0,$C$4),1,1) -> 714.6042373 | P17: =INDEX(coordonnées_cadran_plat($D17,O$10,$C$3,$C$2,$C$5,$C$6,0,0,$C$4),1,2) -> -97.20952266 | Q17: =INDEX(coordonnées_cadran_plat($D17,Q$10,$C$3,$C$2,$C$5,$C$6,0,0,$C$4),1,1) -> 726.0522885 | R17: =INDEX(coordonnées_cadran_plat($D17,Q$10,$C$3,$C$2,$C$5,$C$6,0,0,$C$4),1,2) -> 137.8438366 | S17: =INDEX(coordonnées_cadran_plat($D17,S$10,$C$3,$C$2,$C$5,$C$6,0,0,$C$4),1,1) -> 758.9709732 | T17: =INDEX(coordonnées_cadran_plat($D17,S$10,$C$3,$C$2,$C$5,$C$6,0,0,$C$4),1,2) -> 404.1261374 | U17: =INDEX(coordonnées_cadran_plat($D17,U$10,$C$3,$C$2,$C$5,$C$6,0,0,$C$4),1,1) -> 829.4890808 | V17: =INDEX(coordonnées_cadran_plat($D17,U$10,$C$3,$C$2,$C$5,$C$6,0,0,$C$4),1,2) -> 776.0677441 | W17: =INDEX(coordonnées_cadran_plat($D17,W$10,$C$3,$C$2,$C$5,$C$6,0,0,$C$4),1,1) -> 997.8964372 | X17: =INDEX(coordonnées_cadran_plat($D17,W$10,$C$3,$C$2,$C$5,$C$6,0,0,$C$4),1,2) -> 1476.485042
B18: 17 | C18: 4 | D18: 2010-04-17 | E18: =INDEX(heures_limites_cadran($D18,$C$3,$C$2,$C$5),1,1)/24 -> 08:00:00 | F18: =INDEX(heures_limites_cadran($D18,$C$3,$C$2,$C$5),1,2)/24 -> 18:30:00 | G18: =INDEX(coordonnées_cadran_plat($D18,$G$10,$C$3,$C$2,$C$5,$C$6,0,0,$C$4),1,1) -> 1131.636032 | H18: =INDEX(coordonnées_cadran_plat($D18,$G$10,$C$3,$C$2,$C$5,$C$6,0,0,$C$4),1,2) -> -2631.293998 | I18: =INDEX(coordonnées_cadran_plat($D18,I$10,$C$3,$C$2,$C$5,$C$6,0,0,$C$4),1,1) -> 850.3084392 | J18: =INDEX(coordonnées_cadran_plat($D18,I$10,$C$3,$C$2,$C$5,$C$6,0,0,$C$4),1,2) -> -1213.768422 | K18: =INDEX(coordonnées_cadran_plat($D18,K$10,$C$3,$C$2,$C$5,$C$6,0,0,$C$4),1,1) -> 764.2354616 | L18: =INDEX(coordonnées_cadran_plat($D18,K$10,$C$3,$C$2,$C$5,$C$6,0,0,$C$4),1,2) -> -673.0050618 | M18: =INDEX(coordonnées_cadran_plat($D18,M$10,$C$3,$C$2,$C$5,$C$6,0,0,$C$4),1,1) -> 731.291295 | N18: =INDEX(coordonnées_cadran_plat($D18,M$10,$C$3,$C$2,$C$5,$C$6,0,0,$C$4),1,2) -> -348.4009479 | O18: =INDEX(coordonnées_cadran_plat($D18,O$10,$C$3,$C$2,$C$5,$C$6,0,0,$C$4),1,1) -> 723.8526789 | P18: =INDEX(coordonnées_cadran_plat($D18,O$10,$C$3,$C$2,$C$5,$C$6,0,0,$C$4),1,2) -> -97.12625836 | Q18: =INDEX(coordonnées_cadran_plat($D18,Q$10,$C$3,$C$2,$C$5,$C$6,0,0,$C$4),1,1) -> 735.5994265 | R18: =INDEX(coordonnées_cadran_plat($D18,Q$10,$C$3,$C$2,$C$5,$C$6,0,0,$C$4),1,2) -> 139.6152164 | S18: =INDEX(coordonnées_cadran_plat($D18,S$10,$C$3,$C$2,$C$5,$C$6,0,0,$C$4),1,1) -> 769.9105736 | T18: =INDEX(coordonnées_cadran_plat($D18,S$10,$C$3,$C$2,$C$5,$C$6,0,0,$C$4),1,2) -> 408.3180972 | U18: =INDEX(coordonnées_cadran_plat($D18,U$10,$C$3,$C$2,$C$5,$C$6,0,0,$C$4),1,1) -> 843.8997448 | V18: =INDEX(coordonnées_cadran_plat($D18,U$10,$C$3,$C$2,$C$5,$C$6,0,0,$C$4),1,2) -> 785.2822391 | W18: =INDEX(coordonnées_cadran_plat($D18,W$10,$C$3,$C$2,$C$5,$C$6,0,0,$C$4),1,1) -> 1022.231096 | X18: =INDEX(coordonnées_cadran_plat($D18,W$10,$C$3,$C$2,$C$5,$C$6,0,0,$C$4),1,2) -> 1501.778303
B19: 18 | C19: 4 | D19: 2010-04-18 | E19: =INDEX(heures_limites_cadran($D19,$C$3,$C$2,$C$5),1,1)/24 -> 08:00:00 | F19: =INDEX(heures_limites_cadran($D19,$C$3,$C$2,$C$5),1,2)/24 -> 18:30:00 | G19: =INDEX(coordonnées_cadran_plat($D19,$G$10,$C$3,$C$2,$C$5,$C$6,0,0,$C$4),1,1) -> 1168.844611 | H19: =INDEX(coordonnées_cadran_plat($D19,$G$10,$C$3,$C$2,$C$5,$C$6,0,0,$C$4),1,2) -> -2681.124167 | I19: =INDEX(coordonnées_cadran_plat($D19,I$10,$C$3,$C$2,$C$5,$C$6,0,0,$C$4),1,1) -> 867.5089326 | J19: =INDEX(coordonnées_cadran_plat($D19,I$10,$C$3,$C$2,$C$5,$C$6,0,0,$C$4),1,2) -> -1225.926599 | K19: =INDEX(coordonnées_cadran_plat($D19,K$10,$C$3,$C$2,$C$5,$C$6,0,0,$C$4),1,1) -> 776.2096909 | L19: =INDEX(coordonnées_cadran_plat($D19,K$10,$C$3,$C$2,$C$5,$C$6,0,0,$C$4),1,2) -> -677.6878812 | M19: =INDEX(coordonnées_cadran_plat($D19,M$10,$C$3,$C$2,$C$5,$C$6,0,0,$C$4),1,1) -> 741.2568094 | N19: =INDEX(coordonnées_cadran_plat($D19,M$10,$C$3,$C$2,$C$5,$C$6,0,0,$C$4),1,2) -> -350.1387042 | O19: =INDEX(coordonnées_cadran_plat($D19,O$10,$C$3,$C$2,$C$5,$C$6,0,0,$C$4),1,1) -> 733.173729 | P19: =INDEX(coordonnées_cadran_plat($D19,O$10,$C$3,$C$2,$C$5,$C$6,0,0,$C$4),1,2) -> -97.06236751 | Q19: =INDEX(coordonnées_cadran_plat($D19,Q$10,$C$3,$C$2,$C$5,$C$6,0,0,$C$4),1,1) -> 745.2279483 | R19: =INDEX(coordonnées_cadran_plat($D19,Q$10,$C$3,$C$2,$C$5,$C$6,0,0,$C$4),1,2) -> 141.381313 | S19: =INDEX(coordonnées_cadran_plat($D19,S$10,$C$3,$C$2,$C$5,$C$6,0,0,$C$4),1,1) -> 780.9661613 | T19: =INDEX(coordonnées_cadran_plat($D19,S$10,$C$3,$C$2,$C$5,$C$6,0,0,$C$4),1,2) -> 412.5301899 | U19: =INDEX(coordonnées_cadran_plat($D19,U$10,$C$3,$C$2,$C$5,$C$6,0,0,$C$4),1,1) -> 858.5289944 | V19: =INDEX(coordonnées_cadran_plat($D19,U$10,$C$3,$C$2,$C$5,$C$6,0,0,$C$4),1,2) -> 794.6013151 | W19: =INDEX(coordonnées_cadran_plat($D19,W$10,$C$3,$C$2,$C$5,$C$6,0,0,$C$4),1,1) -> 1047.207742 | X19: =INDEX(coordonnées_cadran_plat($D19,W$10,$C$3,$C$2,$C$5,$C$6,0,0,$C$4),1,2) -> 1527.670351
B20: 19 | C20: 4 | D20: 2010-04-19 | E20: =INDEX(heures_limites_cadran($D20,$C$3,$C$2,$C$5),1,1)/24 -> 08:30:00 | F20: =INDEX(heures_limites_cadran($D20,$C$3,$C$2,$C$5),1,2)/24 -> 18:30:00 | G20: =INDEX(coordonnées_cadran_plat($D20,$G$10,$C$3,$C$2,$C$5,$C$6,0,0,$C$4),1,1) -> 1207.325399 | H20: =INDEX(coordonnées_cadran_plat($D20,$G$10,$C$3,$C$2,$C$5,$C$6,0,0,$C$4),1,2) -> -2732.834477 | I20: =INDEX(coordonnées_cadran_plat($D20,I$10,$C$3,$C$2,$C$5,$C$6,0,0,$C$4),1,1) -> 884.9824542 | J20: =INDEX(coordonnées_cadran_plat($D20,I$10,$C$3,$C$2,$C$5,$C$6,0,0,$C$4),1,2) -> -1238.337047 | K20: =INDEX(coordonnées_cadran_plat($D20,K$10,$C$3,$C$2,$C$5,$C$6,0,0,$C$4),1,1) -> 788.307354 | L20: =INDEX(coordonnées_cadran_plat($D20,K$10,$C$3,$C$2,$C$5,$C$6,0,0,$C$4),1,2) -> -682.4521801 | M20: =INDEX(coordonnées_cadran_plat($D20,M$10,$C$3,$C$2,$C$5,$C$6,0,0,$C$4),1,1) -> 751.3034567 | N20: =INDEX(coordonnées_cadran_plat($D20,M$10,$C$3,$C$2,$C$5,$C$6,0,0,$C$4),1,2) -> -351.9147293 | O20: =INDEX(coordonnées_cadran_plat($D20,O$10,$C$3,$C$2,$C$5,$C$6,0,0,$C$4),1,1) -> 742.5655068 | P20: =INDEX(coordonnées_cadran_plat($D20,O$10,$C$3,$C$2,$C$5,$C$6,0,0,$C$4),1,2) -> -97.0190045 | Q20: =INDEX(coordonnées_cadran_plat($D20,Q$10,$C$3,$C$2,$C$5,$C$6,0,0,$C$4),1,1) -> 754.9357964 | R20: =INDEX(coordonnées_cadran_plat($D20,Q$10,$C$3,$C$2,$C$5,$C$6,0,0,$C$4),1,2) -> 143.1405632 | S20: =INDEX(coordonnées_cadran_plat($D20,S$10,$C$3,$C$2,$C$5,$C$6,0,0,$C$4),1,1) -> 792.1356777 | T20: =INDEX(coordonnées_cadran_plat($D20,S$10,$C$3,$C$2,$C$5,$C$6,0,0,$C$4),1,2) -> 416.760136 | U20: =INDEX(coordonnées_cadran_plat($D20,U$10,$C$3,$C$2,$C$5,$C$6,0,0,$C$4),1,1) -> 873.376055 | V20: =INDEX(coordonnées_cadran_plat($D20,U$10,$C$3,$C$2,$C$5,$C$6,0,0,$C$4),1,2) -> 804.0220638 | W20: =INDEX(coordonnées_cadran_plat($D20,W$10,$C$3,$C$2,$C$5,$C$6,0,0,$C$4),1,1) -> 1072.840548 | X20: =INDEX(coordonnées_cadran_plat($D20,W$10,$C$3,$C$2,$C$5,$C$6,0,0,$C$4),1,2) -> 1554.169998
B21: 20 | C21: 4 | D21: 2010-04-20 | E21: =INDEX(heures_limites_cadran($D21,$C$3,$C$2,$C$5),1,1)/24 -> 08:30:00 | F21: =INDEX(heures_limites_cadran($D21,$C$3,$C$2,$C$5),1,2)/24 -> 18:30:00 | G21: =INDEX(coordonnées_cadran_plat($D21,$G$10,$C$3,$C$2,$C$5,$C$6,0,0,$C$4),1,1) -> 1247.142027 | H21: =INDEX(coordonnées_cadran_plat($D21,$G$10,$C$3,$C$2,$C$5,$C$6,0,0,$C$4),1,2) -> -2786.526683 | I21: =INDEX(coordonnées_cadran_plat($D21,I$10,$C$3,$C$2,$C$5,$C$6,0,0,$C$4),1,1) -> 902.7323504 | J21: =INDEX(coordonnées_cadran_plat($D21,I$10,$C$3,$C$2,$C$5,$C$6,0,0,$C$4),1,2) -> -1251.006045 | K21: =INDEX(coordonnées_cadran_plat($D21,K$10,$C$3,$C$2,$C$5,$C$6,0,0,$C$4),1,1) -> 800.5274902 | L21: =INDEX(coordonnées_cadran_plat($D21,K$10,$C$3,$C$2,$C$5,$C$6,0,0,$C$4),1,2) -> -687.2995023 | M21: =INDEX(coordonnées_cadran_plat($D21,M$10,$C$3,$C$2,$C$5,$C$6,0,0,$C$4),1,1) -> 761.4294702 | N21: =INDEX(coordonnées_cadran_plat($D21,M$10,$C$3,$C$2,$C$5,$C$6,0,0,$C$4),1,2) -> -353.7300341 | O21: =INDEX(coordonnées_cadran_plat($D21,O$10,$C$3,$C$2,$C$5,$C$6,0,0,$C$4),1,1) -> 752.025952 | P21: =INDEX(coordonnées_cadran_plat($D21,O$10,$C$3,$C$2,$C$5,$C$6,0,0,$C$4),1,2) -> -96.99731821 | Q21: =INDEX(coordonnées_cadran_plat($D21,Q$10,$C$3,$C$2,$C$5,$C$6,0,0,$C$4),1,1) -> 764.7207032 | R21: =INDEX(coordonnées_cadran_plat($D21,Q$10,$C$3,$C$2,$C$5,$C$6,0,0,$C$4),1,2) -> 144.8913709 | S21: =INDEX(coordonnées_cadran_plat($D21,S$10,$C$3,$C$2,$C$5,$C$6,0,0,$C$4),1,1) -> 803.4167822 | T21: =INDEX(coordonnées_cadran_plat($D21,S$10,$C$3,$C$2,$C$5,$C$6,0,0,$C$4),1,2) -> 421.0055487 | U21: =INDEX(coordonnées_cadran_plat($D21,U$10,$C$3,$C$2,$C$5,$C$6,0,0,$C$4),1,1) -> 888.4397189 | V21: =INDEX(coordonnées_cadran_plat($D21,U$10,$C$3,$C$2,$C$5,$C$6,0,0,$C$4),1,2) -> 813.5412749 | W21: =INDEX(coordonnées_cadran_plat($D21,W$10,$C$3,$C$2,$C$5,$C$6,0,0,$C$4),1,1) -> 1099.143354 | X21: =INDEX(coordonnées_cadran_plat($D21,W$10,$C$3,$C$2,$C$5,$C$6,0,0,$C$4),1,2) -> 1581.285493
B22: 21 | C22: 4 | D22: 2010-04-21 | E22: =INDEX(heures_limites_cadran($D22,$C$3,$C$2,$C$5),1,1)/24 -> 08:30:00 | F22: =INDEX(heures_limites_cadran($D22,$C$3,$C$2,$C$5),1,2)/24 -> 18:30:00 | G22: =INDEX(coordonnées_cadran_plat($D22,$G$10,$C$3,$C$2,$C$5,$C$6,0,0,$C$4),1,1) -> 1288.3623 | H22: =INDEX(coordonnées_cadran_plat($D22,$G$10,$C$3,$C$2,$C$5,$C$6,0,0,$C$4),1,2) -> -2842.309125 | I22: =INDEX(coordonnées_cadran_plat($D22,I$10,$C$3,$C$2,$C$5,$C$6,0,0,$C$4),1,1) -> 920.7618406 | J22: =INDEX(coordonnées_cadran_plat($D22,I$10,$C$3,$C$2,$C$5,$C$6,0,0,$C$4),1,2) -> -1263.939841 | K22: =INDEX(coordonnées_cadran_plat($D22,K$10,$C$3,$C$2,$C$5,$C$6,0,0,$C$4),1,1) -> 812.8689439 | L22: =INDEX(coordonnées_cadran_plat($D22,K$10,$C$3,$C$2,$C$5,$C$6,0,0,$C$4),1,2) -> -692.2313163 | M22: =INDEX(coordonnées_cadran_plat($D22,M$10,$C$3,$C$2,$C$5,$C$6,0,0,$C$4),1,1) -> 771.6328994 | N22: =INDEX(coordonnées_cadran_plat($D22,M$10,$C$3,$C$2,$C$5,$C$6,0,0,$C$4),1,2) -> -355.58559 | O22: =INDEX(coordonnées_cadran_plat($D22,O$10,$C$3,$C$2,$C$5,$C$6,0,0,$C$4),1,1) -> 761.5528158 | P22: =INDEX(coordonnées_cadran_plat($D22,O$10,$C$3,$C$2,$C$5,$C$6,0,0,$C$4),1,2) -> -96.99844985 | Q22: =INDEX(coordonnées_cadran_plat($D22,Q$10,$C$3,$C$2,$C$5,$C$6,0,0,$C$4),1,1) -> 774.5801811 | R22: =INDEX(coordonnées_cadran_plat($D22,Q$10,$C$3,$C$2,$C$5,$C$6,0,0,$C$4),1,2) -> 146.6321077 | S22: =INDEX(coordonnées_cadran_plat($D22,S$10,$C$3,$C$2,$C$5,$C$6,0,0,$C$4),1,1) -> 814.8068368 | T22: =INDEX(coordonnées_cadran_plat($D22,S$10,$C$3,$C$2,$C$5,$C$6,0,0,$C$4),1,2) -> 425.2639307 | U22: =INDEX(coordonnées_cadran_plat($D22,U$10,$C$3,$C$2,$C$5,$C$6,0,0,$C$4),1,1) -> 903.7183136 | V22: =INDEX(coordonnées_cadran_plat($D22,U$10,$C$3,$C$2,$C$5,$C$6,0,0,$C$4),1,2) -> 823.1554196 | W22: =INDEX(coordonnées_cadran_plat($D22,W$10,$C$3,$C$2,$C$5,$C$6,0,0,$C$4),1,1) -> 1126.129572 | X22: =INDEX(coordonnées_cadran_plat($D22,W$10,$C$3,$C$2,$C$5,$C$6,0,0,$C$4),1,2) -> 1609.024422
B23: 22 | C23: 4 | D23: 2010-04-22 | E23: =INDEX(heures_limites_cadran($D23,$C$3,$C$2,$C$5),1,1)/24 -> 08:30:00 | F23: =INDEX(heures_limites_cadran($D23,$C$3,$C$2,$C$5),1,2)/24 -> 18:30:00 | G23: =INDEX(coordonnées_cadran_plat($D23,$G$10,$C$3,$C$2,$C$5,$C$6,0,0,$C$4),1,1) -> 1331.058513 | H23: =INDEX(coordonnées_cadran_plat($D23,$G$10,$C$3,$C$2,$C$5,$C$6,0,0,$C$4),1,2) -> -2900.297228 | I23: =INDEX(coordonnées_cadran_plat($D23,I$10,$C$3,$C$2,$C$5,$C$6,0,0,$C$4),1,1) -> 939.0739936 | J23: =INDEX(coordonnées_cadran_plat($D23,I$10,$C$3,$C$2,$C$5,$C$6,0,0,$C$4),1,2) -> -1277.144636 | K23: =INDEX(coordonnées_cadran_plat($D23,K$10,$C$3,$C$2,$C$5,$C$6,0,0,$C$4),1,1) -> 825.3303498 | L23: =INDEX(coordonnées_cadran_plat($D23,K$10,$C$3,$C$2,$C$5,$C$6,0,0,$C$4),1,2) -> -697.2490064 | M23: =INDEX(coordonnées_cadran_plat($D23,M$10,$C$3,$C$2,$C$5,$C$6,0,0,$C$4),1,1) -> 781.9115999 | N23: =INDEX(coordonnées_cadran_plat($D23,M$10,$C$3,$C$2,$C$5,$C$6,0,0,$C$4),1,2) -> -357.4823243 | O23: =INDEX(coordonnées_cadran_plat($D23,O$10,$C$3,$C$2,$C$5,$C$6,0,0,$C$4),1,1) -> 771.1436515 | P23: =INDEX(coordonnées_cadran_plat($D23,O$10,$C$3,$C$2,$C$5,$C$6,0,0,$C$4),1,2) -> -97.02353067 | Q23: =INDEX(coordonnées_cadran_plat($D23,Q$10,$C$3,$C$2,$C$5,$C$6,0,0,$C$4),1,1) -> 784.5115121 | R23: =INDEX(coordonnées_cadran_plat($D23,Q$10,$C$3,$C$2,$C$5,$C$6,0,0,$C$4),1,2) -> 148.3611133 | S23: =INDEX(coordonnées_cadran_plat($D23,S$10,$C$3,$C$2,$C$5,$C$6,0,0,$C$4),1,1) -> 826.3028914 | T23: =INDEX(coordonnées_cadran_plat($D23,S$10,$C$3,$C$2,$C$5,$C$6,0,0,$C$4),1,2) -> 429.5326718 | U23: =INDEX(coordonnées_cadran_plat($D23,U$10,$C$3,$C$2,$C$5,$C$6,0,0,$C$4),1,1) -> 919.209668 | V23: =INDEX(coordonnées_cadran_plat($D23,U$10,$C$3,$C$2,$C$5,$C$6,0,0,$C$4),1,2) -> 832.8606343 | W23: =INDEX(coordonnées_cadran_plat($D23,W$10,$C$3,$C$2,$C$5,$C$6,0,0,$C$4),1,1) -> 1153.812085 | X23: =INDEX(coordonnées_cadran_plat($D23,W$10,$C$3,$C$2,$C$5,$C$6,0,0,$C$4),1,2) -> 1637.393605
B24: 23 | C24: 4 | D24: 2010-04-23 | E24: =INDEX(heures_limites_cadran($D24,$C$3,$C$2,$C$5),1,1)/24 -> 08:30:00 | F24: =INDEX(heures_limites_cadran($D24,$C$3,$C$2,$C$5),1,2)/24 -> 18:00:00 | G24: =INDEX(coordonnées_cadran_plat($D24,$G$10,$C$3,$C$2,$C$5,$C$6,0,0,$C$4),1,1) -> 1375.30779 | H24: =INDEX(coordonnées_cadran_plat($D24,$G$10,$C$3,$C$2,$C$5,$C$6,0,0,$C$4),1,2) -> -2960.614047 | I24: =INDEX(coordonnées_cadran_plat($D24,I$10,$C$3,$C$2,$C$5,$C$6,0,0,$C$4),1,1) -> 957.6717007 | J24: =INDEX(coordonnées_cadran_plat($D24,I$10,$C$3,$C$2,$C$5,$C$6,0,0,$C$4),1,2) -> -1290.626558 | K24: =INDEX(coordonnées_cadran_plat($D24,K$10,$C$3,$C$2,$C$5,$C$6,0,0,$C$4),1,1) -> 837.9101177 | L24: =INDEX(coordonnées_cadran_plat($D24,K$10,$C$3,$C$2,$C$5,$C$6,0,0,$C$4),1,2) -> -702.3538632 | M24: =INDEX(coordonnées_cadran_plat($D24,M$10,$C$3,$C$2,$C$5,$C$6,0,0,$C$4),1,1) -> 792.2632227 | N24: =INDEX(coordonnées_cadran_plat($D24,M$10,$C$3,$C$2,$C$5,$C$6,0,0,$C$4),1,2) -> -359.4211156 | O24: =INDEX(coordonnées_cadran_plat($D24,O$10,$C$3,$C$2,$C$5,$C$6,0,0,$C$4),1,1) -> 780.7958054 | P24: =INDEX(coordonnées_cadran_plat($D24,O$10,$C$3,$C$2,$C$5,$C$6,0,0,$C$4),1,2) -> -97.07367952 | Q24: =INDEX(coordonnées_cadran_plat($D24,Q$10,$C$3,$C$2,$C$5,$C$6,0,0,$C$4),1,1) -> 794.5117378 | R24: =INDEX(coordonnées_cadran_plat($D24,Q$10,$C$3,$C$2,$C$5,$C$6,0,0,$C$4),1,2) -> 150.0766966 | S24: =INDEX(coordonnées_cadran_plat($D24,S$10,$C$3,$C$2,$C$5,$C$6,0,0,$C$4),1,1) -> 837.9016679 | T24: =INDEX(coordonnées_cadran_plat($D24,S$10,$C$3,$C$2,$C$5,$C$6,0,0,$C$4),1,2) -> 433.8090468 | U24: =INDEX(coordonnées_cadran_plat($D24,U$10,$C$3,$C$2,$C$5,$C$6,0,0,$C$4),1,1) -> 934.9110783 | V24: =INDEX(coordonnées_cadran_plat($D24,U$10,$C$3,$C$2,$C$5,$C$6,0,0,$C$4),1,2) -> 842.652704 | W24: =INDEX(coordonnées_cadran_plat($D24,W$10,$C$3,$C$2,$C$5,$C$6,0,0,$C$4),1,1) -> 1182.203132 | X24: =INDEX(coordonnées_cadran_plat($D24,W$10,$C$3,$C$2,$C$5,$C$6,0,0,$C$4),1,2) -> 1666.398979
B25: 24 | C25: 4 | D25: 2010-04-24 | E25: =INDEX(heures_limites_cadran($D25,$C$3,$C$2,$C$5),1,1)/24 -> 08:30:00 | F25: =INDEX(heures_limites_cadran($D25,$C$3,$C$2,$C$5),1,2)/24 -> 18:00:00 | G25: =INDEX(coordonnées_cadran_plat($D25,$G$10,$C$3,$C$2,$C$5,$C$6,0,0,$C$4),1,1) -> 1421.192457 | H25: =INDEX(coordonnées_cadran_plat($D25,$G$10,$C$3,$C$2,$C$5,$C$6,0,0,$C$4),1,2) -> -3023.390854 | I25: =INDEX(coordonnées_cadran_plat($D25,I$10,$C$3,$C$2,$C$5,$C$6,0,0,$C$4),1,1) -> 976.5576461 | J25: =INDEX(coordonnées_cadran_plat($D25,I$10,$C$3,$C$2,$C$5,$C$6,0,0,$C$4),1,2) -> -1304.391641 | K25: =INDEX(coordonnées_cadran_plat($D25,K$10,$C$3,$C$2,$C$5,$C$6,0,0,$C$4),1,1) -> 850.6064157 | L25: =INDEX(coordonnées_cadran_plat($D25,K$10,$C$3,$C$2,$C$5,$C$6,0,0,$C$4),1,2) -> -707.5470743 | M25: =INDEX(coordonnées_cadran_plat($D25,M$10,$C$3,$C$2,$C$5,$C$6,0,0,$C$4),1,1) -> 802.6852032 | N25: =INDEX(coordonnées_cadran_plat($D25,M$10,$C$3,$C$2,$C$5,$C$6,0,0,$C$4),1,2) -> -361.4027894 | O25: =INDEX(coordonnées_cadran_plat($D25,O$10,$C$3,$C$2,$C$5,$C$6,0,0,$C$4),1,1) -> 790.5064081 | P25: =INDEX(coordonnées_cadran_plat($D25,O$10,$C$3,$C$2,$C$5,$C$6,0,0,$C$4),1,2) -> -97.15000024 | Q25: =INDEX(coordonnées_cadran_plat($D25,Q$10,$C$3,$C$2,$C$5,$C$6,0,0,$C$4),1,1) -> 804.5776492 | R25: =INDEX(coordonnées_cadran_plat($D25,Q$10,$C$3,$C$2,$C$5,$C$6,0,0,$C$4),1,2) -> 151.7771369 | S25: =INDEX(coordonnées_cadran_plat($D25,S$10,$C$3,$C$2,$C$5,$C$6,0,0,$C$4),1,1) -> 849.5995451 | T25: =INDEX(coordonnées_cadran_plat($D25,S$10,$C$3,$C$2,$C$5,$C$6,0,0,$C$4),1,2) -> 438.0902133 | U25: =INDEX(coordonnées_cadran_plat($D25,U$10,$C$3,$C$2,$C$5,$C$6,0,0,$C$4),1,1) -> 950.8192726 | V25: =INDEX(coordonnées_cadran_plat($D25,U$10,$C$3,$C$2,$C$5,$C$6,0,0,$C$4),1,2) -> 852.5270462 | W25: =INDEX(coordonnées_cadran_plat($D25,W$10,$C$3,$C$2,$C$5,$C$6,0,0,$C$4),1,1) -> 1211.314188 | X25: =INDEX(coordonnées_cadran_plat($D25,W$10,$C$3,$C$2,$C$5,$C$6,0,0,$C$4),1,2) -> 1696.045475
B26: 25 | C26: 4 | D26: 2010-04-25 | E26: =INDEX(heures_limites_cadran($D26,$C$3,$C$2,$C$5),1,1)/24 -> 08:30:00 | F26: =INDEX(heures_limites_cadran($D26,$C$3,$C$2,$C$5),1,2)/24 -> 18:00:00 | G26: =INDEX(coordonnées_cadran_plat($D26,$G$10,$C$3,$C$2,$C$5,$C$6,0,0,$C$4),1,1) -> 1468.800442 | H26: =INDEX(coordonnées_cadran_plat($D26,$G$10,$C$3,$C$2,$C$5,$C$6,0,0,$C$4),1,2) -> -3088.767792 | I26: =INDEX(coordonnées_cadran_plat($D26,I$10,$C$3,$C$2,$C$5,$C$6,0,0,$C$4),1,1) -> 995.7342765 | J26: =INDEX(coordonnées_cadran_plat($D26,I$10,$C$3,$C$2,$C$5,$C$6,0,0,$C$4),1,2) -> -1318.445797 | K26: =INDEX(coordonnées_cadran_plat($D26,K$10,$C$3,$C$2,$C$5,$C$6,0,0,$C$4),1,1) -> 863.417154 | L26: =INDEX(coordonnées_cadran_plat($D26,K$10,$C$3,$C$2,$C$5,$C$6,0,0,$C$4),1,2) -> -712.8297138 | M26: =INDEX(coordonnées_cadran_plat($D26,M$10,$C$3,$C$2,$C$5,$C$6,0,0,$C$4),1,1) -> 813.1747508 | N26: =INDEX(coordonnées_cadran_plat($D26,M$10,$C$3,$C$2,$C$5,$C$6,0,0,$C$4),1,2) -> -363.428113 | O26: =INDEX(coordonnées_cadran_plat($D26,O$10,$C$3,$C$2,$C$5,$C$6,0,0,$C$4),1,1) -> 800.2723648 | P26: =INDEX(coordonnées_cadran_plat($D26,O$10,$C$3,$C$2,$C$5,$C$6,0,0,$C$4),1,2) -> -97.253579 | Q26: =INDEX(coordonnées_cadran_plat($D26,Q$10,$C$3,$C$2,$C$5,$C$6,0,0,$C$4),1,1) -> 814.7057768 | R26: =INDEX(coordonnées_cadran_plat($D26,Q$10,$C$3,$C$2,$C$5,$C$6,0,0,$C$4),1,2) -> 153.4606849 | S26: =INDEX(coordonnées_cadran_plat($D26,S$10,$C$3,$C$2,$C$5,$C$6,0,0,$C$4),1,1) -> 861.3925435 | T26: =INDEX(coordonnées_cadran_plat($D26,S$10,$C$3,$C$2,$C$5,$C$6,0,0,$C$4),1,2) -> 442.3732102 | U26: =INDEX(coordonnées_cadran_plat($D26,U$10,$C$3,$C$2,$C$5,$C$6,0,0,$C$4),1,1) -> 966.9303753 | V26: =INDEX(coordonnées_cadran_plat($D26,U$10,$C$3,$C$2,$C$5,$C$6,0,0,$C$4),1,2) -> 862.4786941 | W26: =INDEX(coordonnées_cadran_plat($D26,W$10,$C$3,$C$2,$C$5,$C$6,0,0,$C$4),1,1) -> 1241.155826 | X26: =INDEX(coordonnées_cadran_plat($D26,W$10,$C$3,$C$2,$C$5,$C$6,0,0,$C$4),1,2) -> 1726.336882
B27: 26 | C27: 4 | D27: 2010-04-26 | E27: =INDEX(heures_limites_cadran($D27,$C$3,$C$2,$C$5),1,1)/24 -> 08:30:00 | F27: =INDEX(heures_limites_cadran($D27,$C$3,$C$2,$C$5),1,2)/24 -> 18:00:00 | G27: =INDEX(coordonnées_cadran_plat($D27,$G$10,$C$3,$C$2,$C$5,$C$6,0,0,$C$4),1,1) -> 1518.225715 | H27: =INDEX(coordonnées_cadran_plat($D27,$G$10,$C$3,$C$2,$C$5,$C$6,0,0,$C$4),1,2) -> -3156.894569 | I27: =INDEX(coordonnées_cadran_plat($D27,I$10,$C$3,$C$2,$C$5,$C$6,0,0,$C$4),1,1) -> 1015.203767 | J27: =INDEX(coordonnées_cadran_plat($D27,I$10,$C$3,$C$2,$C$5,$C$6,0,0,$C$4),1,2) -> -1332.794789 | K27: =INDEX(coordonnées_cadran_plat($D27,K$10,$C$3,$C$2,$C$5,$C$6,0,0,$C$4),1,1) -> 876.3399674 | L27: =INDEX(coordonnées_cadran_plat($D27,K$10,$C$3,$C$2,$C$5,$C$6,0,0,$C$4),1,2) -> -718.2027315 | M27: =INDEX(coordonnées_cadran_plat($D27,M$10,$C$3,$C$2,$C$5,$C$6,0,0,$C$4),1,1) -> 823.7288374 | N27: =INDEX(coordonnées_cadran_plat($D27,M$10,$C$3,$C$2,$C$5,$C$6,0,0,$C$4),1,2) -> -365.4977904 | O27: =INDEX(coordonnées_cadran_plat($D27,O$10,$C$3,$C$2,$C$5,$C$6,0,0,$C$4),1,1) -> 810.0903467 | P27: =INDEX(coordonnées_cadran_plat($D27,O$10,$C$3,$C$2,$C$5,$C$6,0,0,$C$4),1,2) -> -97.38548138 | Q27: =INDEX(coordonnées_cadran_plat($D27,Q$10,$C$3,$C$2,$C$5,$C$6,0,0,$C$4),1,1) -> 824.8923807 | R27: =INDEX(coordonnées_cadran_plat($D27,Q$10,$C$3,$C$2,$C$5,$C$6,0,0,$C$4),1,2) -> 155.1255643 | S27: =INDEX(coordonnées_cadran_plat($D27,S$10,$C$3,$C$2,$C$5,$C$6,0,0,$C$4),1,1) -> 873.2763099 | T27: =INDEX(coordonnées_cadran_plat($D27,S$10,$C$3,$C$2,$C$5,$C$6,0,0,$C$4),1,2) -> 446.6549561 | U27: =INDEX(coordonnées_cadran_plat($D27,U$10,$C$3,$C$2,$C$5,$C$6,0,0,$C$4),1,1) -> 983.2398698 | V27: =INDEX(coordonnées_cadran_plat($D27,U$10,$C$3,$C$2,$C$5,$C$6,0,0,$C$4),1,2) -> 872.5022803 | W27: =INDEX(coordonnées_cadran_plat($D27,W$10,$C$3,$C$2,$C$5,$C$6,0,0,$C$4),1,1) -> 1271.73757 | X27: =INDEX(coordonnées_cadran_plat($D27,W$10,$C$3,$C$2,$C$5,$C$6,0,0,$C$4),1,2) -> 1757.275708
B28: 27 | C28: 4 | D28: 2010-04-27 | E28: =INDEX(heures_limites_cadran($D28,$C$3,$C$2,$C$5),1,1)/24 -> 08:30:00 | F28: =INDEX(heures_limites_cadran($D28,$C$3,$C$2,$C$5),1,2)/24 -> 18:00:00 | G28: =INDEX(coordonnées_cadran_plat($D28,$G$10,$C$3,$C$2,$C$5,$C$6,0,0,$C$4),1,1) -> 1569.568768 | H28: =INDEX(coordonnées_cadran_plat($D28,$G$10,$C$3,$C$2,$C$5,$C$6,0,0,$C$4),1,2) -> -3227.931225 | I28: =INDEX(coordonnées_cadran_plat($D28,I$10,$C$3,$C$2,$C$5,$C$6,0,0,$C$4),1,1) -> 1034.967983 | J28: =INDEX(coordonnées_cadran_plat($D28,I$10,$C$3,$C$2,$C$5,$C$6,0,0,$C$4),1,2) -> -1347.4442 | K28: =INDEX(coordonnées_cadran_plat($D28,K$10,$C$3,$C$2,$C$5,$C$6,0,0,$C$4),1,1) -> 889.3721974 | L28: =INDEX(coordonnées_cadran_plat($D28,K$10,$C$3,$C$2,$C$5,$C$6,0,0,$C$4),1,2) -> -723.6669417 | M28: =INDEX(coordonnées_cadran_plat($D28,M$10,$C$3,$C$2,$C$5,$C$6,0,0,$C$4),1,1) -> 834.3441866 | N28: =INDEX(coordonnées_cadran_plat($D28,M$10,$C$3,$C$2,$C$5,$C$6,0,0,$C$4),1,2) -> -367.6124572 | O28: =INDEX(coordonnées_cadran_plat($D28,O$10,$C$3,$C$2,$C$5,$C$6,0,0,$C$4),1,1) -> 819.9567817 | P28: =INDEX(coordonnées_cadran_plat($D28,O$10,$C$3,$C$2,$C$5,$C$6,0,0,$C$4),1,2) -> -97.54674938 | Q28: =INDEX(coordonnées_cadran_plat($D28,Q$10,$C$3,$C$2,$C$5,$C$6,0,0,$C$4),1,1) -> 835.1334409 | R28: =INDEX(coordonnées_cadran_plat($D28,Q$10,$C$3,$C$2,$C$5,$C$6,0,0,$C$4),1,2) -> 156.7699732 | S28: =INDEX(coordonnées_cadran_plat($D28,S$10,$C$3,$C$2,$C$5,$C$6,0,0,$C$4),1,1) -> 885.2461026 | T28: =INDEX(coordonnées_cadran_plat($D28,S$10,$C$3,$C$2,$C$5,$C$6,0,0,$C$4),1,2) -> 450.9322482 | U28: =INDEX(coordonnées_cadran_plat($D28,U$10,$C$3,$C$2,$C$5,$C$6,0,0,$C$4),1,1) -> 999.742562 | V28: =INDEX(coordonnées_cadran_plat($D28,U$10,$C$3,$C$2,$C$5,$C$6,0,0,$C$4),1,2) -> 882.5920218 | W28: =INDEX(coordonnées_cadran_plat($D28,W$10,$C$3,$C$2,$C$5,$C$6,0,0,$C$4),1,1) -> 1303.067737 | X28: =INDEX(coordonnées_cadran_plat($D28,W$10,$C$3,$C$2,$C$5,$C$6,0,0,$C$4),1,2) -> 1788.863017
B29: 28 | C29: 4 | D29: 2010-04-28 | E29: =INDEX(heures_limites_cadran($D29,$C$3,$C$2,$C$5),1,1)/24 -> 08:30:00 | F29: =INDEX(heures_limites_cadran($D29,$C$3,$C$2,$C$5),1,2)/24 -> 18:00:00 | G29: =INDEX(coordonnées_cadran_plat($D29,$G$10,$C$3,$C$2,$C$5,$C$6,0,0,$C$4),1,1) -> 1622.937128 | H29: =INDEX(coordonnées_cadran_plat($D29,$G$10,$C$3,$C$2,$C$5,$C$6,0,0,$C$4),1,2) -> -3302.048973 | I29: =INDEX(coordonnées_cadran_plat($D29,I$10,$C$3,$C$2,$C$5,$C$6,0,0,$C$4),1,1) -> 1055.028445 | J29: =INDEX(coordonnées_cadran_plat($D29,I$10,$C$3,$C$2,$C$5,$C$6,0,0,$C$4),1,2) -> -1362.399401 | K29: =INDEX(coordonnées_cadran_plat($D29,K$10,$C$3,$C$2,$C$5,$C$6,0,0,$C$4),1,1) -> 902.510874 | L29: =INDEX(coordonnées_cadran_plat($D29,K$10,$C$3,$C$2,$C$5,$C$6,0,0,$C$4),1,2) -> -729.2230113 | M29: =INDEX(coordonnées_cadran_plat($D29,M$10,$C$3,$C$2,$C$5,$C$6,0,0,$C$4),1,1) -> 845.0172626 | N29: =INDEX(coordonnées_cadran_plat($D29,M$10,$C$3,$C$2,$C$5,$C$6,0,0,$C$4),1,2) -> -369.772675 | O29: =INDEX(coordonnées_cadran_plat($D29,O$10,$C$3,$C$2,$C$5,$C$6,0,0,$C$4),1,1) -> 829.8678459 | P29: =INDEX(coordonnées_cadran_plat($D29,O$10,$C$3,$C$2,$C$5,$C$6,0,0,$C$4),1,2) -> -97.73839823 | Q29: =INDEX(coordonnées_cadran_plat($D29,Q$10,$C$3,$C$2,$C$5,$C$6,0,0,$C$4),1,1) -> 845.4246478 | R29: =INDEX(coordonnées_cadran_plat($D29,Q$10,$C$3,$C$2,$C$5,$C$6,0,0,$C$4),1,2) -> 158.3920865 | S29: =INDEX(coordonnées_cadran_plat($D29,S$10,$C$3,$C$2,$C$5,$C$6,0,0,$C$4),1,1) -> 897.2967767 | T29: =INDEX(coordonnées_cadran_plat($D29,S$10,$C$3,$C$2,$C$5,$C$6,0,0,$C$4),1,2) -> 455.201762 | U29: =INDEX(coordonnées_cadran_plat($D29,U$10,$C$3,$C$2,$C$5,$C$6,0,0,$C$4),1,1) -> 1016.432543 | V29: =INDEX(coordonnées_cadran_plat($D29,U$10,$C$3,$C$2,$C$5,$C$6,0,0,$C$4),1,2) -> 892.7417039 | W29: =INDEX(coordonnées_cadran_plat($D29,W$10,$C$3,$C$2,$C$5,$C$6,0,0,$C$4),1,1) -> 1335.153263 | X29: =INDEX(coordonnées_cadran_plat($D29,W$10,$C$3,$C$2,$C$5,$C$6,0,0,$C$4),1,2) -> 1821.098266
B30: 29 | C30: 4 | D30: 2010-04-29 | E30: =INDEX(heures_limites_cadran($D30,$C$3,$C$2,$C$5),1,1)/24 -> 08:30:00 | F30: =INDEX(heures_limites_cadran($D30,$C$3,$C$2,$C$5),1,2)/24 -> 18:00:00 | G30: =INDEX(coordonnées_cadran_plat($D30,$G$10,$C$3,$C$2,$C$5,$C$6,0,0,$C$4),1,1) -> 1678.445931 | H30: =INDEX(coordonnées_cadran_plat($D30,$G$10,$C$3,$C$2,$C$5,$C$6,0,0,$C$4),1,2) -> -3379.431105 | I30: =INDEX(coordonnées_cadran_plat($D30,I$10,$C$3,$C$2,$C$5,$C$6,0,0,$C$4),1,1) -> 1075.386282 | J30: =INDEX(coordonnées_cadran_plat($D30,I$10,$C$3,$C$2,$C$5,$C$6,0,0,$C$4),1,2) -> -1377.66551 | K30: =INDEX(coordonnées_cadran_plat($D30,K$10,$C$3,$C$2,$C$5,$C$6,0,0,$C$4),1,1) -> 915.7526965 | L30: =INDEX(coordonnées_cadran_plat($D30,K$10,$C$3,$C$2,$C$5,$C$6,0,0,$C$4),1,2) -> -734.8714478 | M30: =INDEX(coordonnées_cadran_plat($D30,M$10,$C$3,$C$2,$C$5,$C$6,0,0,$C$4),1,1) -> 855.7442589 | N30: =INDEX(coordonnées_cadran_plat($D30,M$10,$C$3,$C$2,$C$5,$C$6,0,0,$C$4),1,2) -> -371.978926 | O30: =INDEX(coordonnées_cadran_plat($D30,O$10,$C$3,$C$2,$C$5,$C$6,0,0,$C$4),1,1) -> 839.8194548 | P30: =INDEX(coordonnées_cadran_plat($D30,O$10,$C$3,$C$2,$C$5,$C$6,0,0,$C$4),1,2) -> -97.96141309 | Q30: =INDEX(coordonnées_cadran_plat($D30,Q$10,$C$3,$C$2,$C$5,$C$6,0,0,$C$4),1,1) -> 855.7613936 | R30: =INDEX(coordonnées_cadran_plat($D30,Q$10,$C$3,$C$2,$C$5,$C$6,0,0,$C$4),1,2) -> 159.9900576 | S30: =INDEX(coordonnées_cadran_plat($D30,S$10,$C$3,$C$2,$C$5,$C$6,0,0,$C$4),1,1) -> 909.4227703 | T30: =INDEX(coordonnées_cadran_plat($D30,S$10,$C$3,$C$2,$C$5,$C$6,0,0,$C$4),1,2) -> 459.4600507 | U30: =INDEX(coordonnées_cadran_plat($D30,U$10,$C$3,$C$2,$C$5,$C$6,0,0,$C$4),1,1) -> 1033.303152 | V30: =INDEX(coordonnées_cadran_plat($D30,U$10,$C$3,$C$2,$C$5,$C$6,0,0,$C$4),1,2) -> 902.9446658 | W30: =INDEX(coordonnées_cadran_plat($D30,W$10,$C$3,$C$2,$C$5,$C$6,0,0,$C$4),1,1) -> 1367.999515 | X30: =INDEX(coordonnées_cadran_plat($D30,W$10,$C$3,$C$2,$C$5,$C$6,0,0,$C$4),1,2) -> 1853.979128
B31: 30 | C31: 4 | D31: 2010-04-30 | E31: =INDEX(heures_limites_cadran($D31,$C$3,$C$2,$C$5),1,1)/24 -> 08:30:00 | F31: =INDEX(heures_limites_cadran($D31,$C$3,$C$2,$C$5),1,2)/24 -> 18:00:00 | G31: =INDEX(coordonnées_cadran_plat($D31,$G$10,$C$3,$C$2,$C$5,$C$6,0,0,$C$4),1,1) -> 1736.218536 | H31: =INDEX(coordonnées_cadran_plat($D31,$G$10,$C$3,$C$2,$C$5,$C$6,0,0,$C$4),1,2) -> -3460.273988 | I31: =INDEX(coordonnées_cadran_plat($D31,I$10,$C$3,$C$2,$C$5,$C$6,0,0,$C$4),1,1) -> 1096.042188 | J31: =INDEX(coordonnées_cadran_plat($D31,I$10,$C$3,$C$2,$C$5,$C$6,0,0,$C$4),1,2) -> -1393.247357 | K31: =INDEX(coordonnées_cadran_plat($D31,K$10,$C$3,$C$2,$C$5,$C$6,0,0,$C$4),1,1) -> 929.0940147 | L31: =INDEX(coordonnées_cadran_plat($D31,K$10,$C$3,$C$2,$C$5,$C$6,0,0,$C$4),1,2) -> -740.6125859 | M31: =INDEX(coordonnées_cadran_plat($D31,M$10,$C$3,$C$2,$C$5,$C$6,0,0,$C$4),1,1) -> 866.5210875 | N31: =INDEX(coordonnées_cadran_plat($D31,M$10,$C$3,$C$2,$C$5,$C$6,0,0,$C$4),1,2) -> -374.2316068 | O31: =INDEX(coordonnées_cadran_plat($D31,O$10,$C$3,$C$2,$C$5,$C$6,0,0,$C$4),1,1) -> 849.8072549 | P31: =INDEX(coordonnées_cadran_plat($D31,O$10,$C$3,$C$2,$C$5,$C$6,0,0,$C$4),1,2) -> -98.2167456 | Q31: =INDEX(coordonnées_cadran_plat($D31,Q$10,$C$3,$C$2,$C$5,$C$6,0,0,$C$4),1,1) -> 866.1387634 | R31: =INDEX(coordonnées_cadran_plat($D31,Q$10,$C$3,$C$2,$C$5,$C$6,0,0,$C$4),1,2) -> 161.5620205 | S31: =INDEX(coordonnées_cadran_plat($D31,S$10,$C$3,$C$2,$C$5,$C$6,0,0,$C$4),1,1) -> 921.6180907 | T31: =INDEX(coordonnées_cadran_plat($D31,S$10,$C$3,$C$2,$C$5,$C$6,0,0,$C$4),1,2) -> 463.7035458 | U31: =INDEX(coordonnées_cadran_plat($D31,U$10,$C$3,$C$2,$C$5,$C$6,0,0,$C$4),1,1) -> 1050.346938 | V31: =INDEX(coordonnées_cadran_plat($D31,U$10,$C$3,$C$2,$C$5,$C$6,0,0,$C$4),1,2) -> 913.1937872 | W31: =INDEX(coordonnées_cadran_plat($D31,W$10,$C$3,$C$2,$C$5,$C$6,0,0,$C$4),1,1) -> 1401.610092 | X31: =INDEX(coordonnées_cadran_plat($D31,W$10,$C$3,$C$2,$C$5,$C$6,0,0,$C$4),1,2) -> 1887.501303
B32: 1 | C32: 5 | D32: 2010-05-01 | E32: =INDEX(heures_limites_cadran($D32,$C$3,$C$2,$C$5),1,1)/24 -> 08:30:00 | F32: =INDEX(heures_limites_cadran($D32,$C$3,$C$2,$C$5),1,2)/24 -> 18:00:00 | G32: =INDEX(coordonnées_cadran_plat($D32,$G$10,$C$3,$C$2,$C$5,$C$6,0,0,$C$4),1,1) -> 1796.387201 | H32: =INDEX(coordonnées_cadran_plat($D32,$G$10,$C$3,$C$2,$C$5,$C$6,0,0,$C$4),1,2) -> -3544.788158 | I32: =INDEX(coordonnées_cadran_plat($D32,I$10,$C$3,$C$2,$C$5,$C$6,0,0,$C$4),1,1) -> 1116.996377 | J32: =INDEX(coordonnées_cadran_plat($D32,I$10,$C$3,$C$2,$C$5,$C$6,0,0,$C$4),1,2) -> -1409.149443 | K32: =INDEX(coordonnées_cadran_plat($D32,K$10,$C$3,$C$2,$C$5,$C$6,0,0,$C$4),1,1) -> 942.5308087 | L32: =INDEX(coordonnées_cadran_plat($D32,K$10,$C$3,$C$2,$C$5,$C$6,0,0,$C$4),1,2) -> -746.4465751 | M32: =INDEX(coordonnées_cadran_plat($D32,M$10,$C$3,$C$2,$C$5,$C$6,0,0,$C$4),1,1) -> 877.3433681 | N32: =INDEX(coordonnées_cadran_plat($D32,M$10,$C$3,$C$2,$C$5,$C$6,0,0,$C$4),1,2) -> -376.5310229 | O32: =INDEX(coordonnées_cadran_plat($D32,O$10,$C$3,$C$2,$C$5,$C$6,0,0,$C$4),1,1) -> 859.8266164 | P32: =INDEX(coordonnées_cadran_plat($D32,O$10,$C$3,$C$2,$C$5,$C$6,0,0,$C$4),1,2) -> -98.50531023 | Q32: =INDEX(coordonnées_cadran_plat($D32,Q$10,$C$3,$C$2,$C$5,$C$6,0,0,$C$4),1,1) -> 876.5515272 | R32: =INDEX(coordonnées_cadran_plat($D32,Q$10,$C$3,$C$2,$C$5,$C$6,0,0,$C$4),1,2) -> 163.1060932 | S32: =INDEX(coordonnées_cadran_plat($D32,S$10,$C$3,$C$2,$C$5,$C$6,0,0,$C$4),1,1) -> 933.8763017 | T32: =INDEX(coordonnées_cadran_plat($D32,S$10,$C$3,$C$2,$C$5,$C$6,0,0,$C$4),1,2) -> 467.9285575 | U32: =INDEX(coordonnées_cadran_plat($D32,U$10,$C$3,$C$2,$C$5,$C$6,0,0,$C$4),1,1) -> 1067.555625 | V32: =INDEX(coordonnées_cadran_plat($D32,U$10,$C$3,$C$2,$C$5,$C$6,0,0,$C$4),1,2) -> 923.4814752 | W32: =INDEX(coordonnées_cadran_plat($D32,W$10,$C$3,$C$2,$C$5,$C$6,0,0,$C$4),1,1) -> 1435.986611 | X32: =INDEX(coordonnées_cadran_plat($D32,W$10,$C$3,$C$2,$C$5,$C$6,0,0,$C$4),1,2) -> 1921.65832
B33: 2 | C33: 5 | D33: 2010-05-02 | E33: =INDEX(heures_limites_cadran($D33,$C$3,$C$2,$C$5),1,1)/24 -> 08:30:00 | F33: =INDEX(heures_limites_cadran($D33,$C$3,$C$2,$C$5),1,2)/24 -> 18:00:00 | G33: =INDEX(coordonnées_cadran_plat($D33,$G$10,$C$3,$C$2,$C$5,$C$6,0,0,$C$4),1,1) -> 1859.093818 | H33: =INDEX(coordonnées_cadran_plat($D33,$G$10,$C$3,$C$2,$C$5,$C$6,0,0,$C$4),1,2) -> -3633.199503 | I33: =INDEX(coordonnées_cadran_plat($D33,I$10,$C$3,$C$2,$C$5,$C$6,0,0,$C$4),1,1) -> 1138.248525 | J33: =INDEX(coordonnées_cadran_plat($D33,I$10,$C$3,$C$2,$C$5,$C$6,0,0,$C$4),1,2) -> -1425.375886 | K33: =INDEX(coordonnées_cadran_plat($D33,K$10,$C$3,$C$2,$C$5,$C$6,0,0,$C$4),1,1) -> 956.0586692 | L33: =INDEX(coordonnées_cadran_plat($D33,K$10,$C$3,$C$2,$C$5,$C$6,0,0,$C$4),1,2) -> -752.3733651 | M33: =INDEX(coordonnées_cadran_plat($D33,M$10,$C$3,$C$2,$C$5,$C$6,0,0,$C$4),1,1) -> 888.2064173 | N33: =INDEX(coordonnées_cadran_plat($D33,M$10,$C$3,$C$2,$C$5,$C$6,0,0,$C$4),1,2) -> -378.8773822 | O33: =INDEX(coordonnées_cadran_plat($D33,O$10,$C$3,$C$2,$C$5,$C$6,0,0,$C$4),1,1) -> 869.8726248 | P33: =INDEX(coordonnées_cadran_plat($D33,O$10,$C$3,$C$2,$C$5,$C$6,0,0,$C$4),1,2) -> -98.82798056 | Q33: =INDEX(coordonnées_cadran_plat($D33,Q$10,$C$3,$C$2,$C$5,$C$6,0,0,$C$4),1,1) -> 886.9941324 | R33: =INDEX(coordonnées_cadran_plat($D33,Q$10,$C$3,$C$2,$C$5,$C$6,0,0,$C$4),1,2) -> 164.6203796 | S33: =INDEX(coordonnées_cadran_plat($D33,S$10,$C$3,$C$2,$C$5,$C$6,0,0,$C$4),1,1) -> 946.1905115 | T33: =INDEX(coordonnées_cadran_plat($D33,S$10,$C$3,$C$2,$C$5,$C$6,0,0,$C$4),1,2) -> 472.1312767 | U33: =INDEX(coordonnées_cadran_plat($D33,U$10,$C$3,$C$2,$C$5,$C$6,0,0,$C$4),1,1) -> 1084.920077 | V33: =INDEX(coordonnées_cadran_plat($D33,U$10,$C$3,$C$2,$C$5,$C$6,0,0,$C$4),1,2) -> 933.7996527 | W33: =INDEX(coordonnées_cadran_plat($D33,W$10,$C$3,$C$2,$C$5,$C$6,0,0,$C$4),1,1) -> 1471.12848 | X33: =INDEX(coordonnées_cadran_plat($D33,W$10,$C$3,$C$2,$C$5,$C$6,0,0,$C$4),1,2) -> 1956.441324
B34: 3 | C34: 5 | D34: 2010-05-03 | E34: =INDEX(heures_limites_cadran($D34,$C$3,$C$2,$C$5),1,1)/24 -> 08:30:00 | F34: =INDEX(heures_limites_cadran($D34,$C$3,$C$2,$C$5),1,2)/24 -> 18:00:00 | G34: =INDEX(coordonnées_cadran_plat($D34,$G$10,$C$3,$C$2,$C$5,$C$6,0,0,$C$4),1,1) -> 1924.49072 | H34: =INDEX(coordonnées_cadran_plat($D34,$G$10,$C$3,$C$2,$C$5,$C$6,0,0,$C$4),1,2) -> -3725.75057 | I34: =INDEX(coordonnées_cadran_plat($D34,I$10,$C$3,$C$2,$C$5,$C$6,0,0,$C$4),1,1) -> 1159.797721 | J34: =INDEX(coordonnées_cadran_plat($D34,I$10,$C$3,$C$2,$C$5,$C$6,0,0,$C$4),1,2) -> -1441.930384 | K34: =INDEX(coordonnées_cadran_plat($D34,K$10,$C$3,$C$2,$C$5,$C$6,0,0,$C$4),1,1) -> 969.6727771 | L34: =INDEX(coordonnées_cadran_plat($D34,K$10,$C$3,$C$2,$C$5,$C$6,0,0,$C$4),1,2) -> -758.392692 | M34: =INDEX(coordonnées_cadran_plat($D34,M$10,$C$3,$C$2,$C$5,$C$6,0,0,$C$4),1,1) -> 899.1052386 | N34: =INDEX(coordonnées_cadran_plat($D34,M$10,$C$3,$C$2,$C$5,$C$6,0,0,$C$4),1,2) -> -381.2707891 | O34: =INDEX(coordonnées_cadran_plat($D34,O$10,$C$3,$C$2,$C$5,$C$6,0,0,$C$4),1,1) -> 879.9400746 | P34: =INDEX(coordonnées_cadran_plat($D34,O$10,$C$3,$C$2,$C$5,$C$6,0,0,$C$4),1,2) -> -99.18558542 | Q34: =INDEX(coordonnées_cadran_plat($D34,Q$10,$C$3,$C$2,$C$5,$C$6,0,0,$C$4),1,1) -> 897.4606972 | R34: =INDEX(coordonnées_cadran_plat($D34,Q$10,$C$3,$C$2,$C$5,$C$6,0,0,$C$4),1,2) -> 166.1029735 | S34: =INDEX(coordonnées_cadran_plat($D34,S$10,$C$3,$C$2,$C$5,$C$6,0,0,$C$4),1,1) -> 958.5533621 | T34: =INDEX(coordonnées_cadran_plat($D34,S$10,$C$3,$C$2,$C$5,$C$6,0,0,$C$4),1,2) -> 476.3077764 | U34: =INDEX(coordonnées_cadran_plat($D34,U$10,$C$3,$C$2,$C$5,$C$6,0,0,$C$4),1,1) -> 1102.430259 | V34: =INDEX(coordonnées_cadran_plat($D34,U$10,$C$3,$C$2,$C$5,$C$6,0,0,$C$4),1,2) -> 944.139749 | W34: =INDEX(coordonnées_cadran_plat($D34,W$10,$C$3,$C$2,$C$5,$C$6,0,0,$C$4),1,1) -> 1507.032652 | X34: =INDEX(coordonnées_cadran_plat($D34,W$10,$C$3,$C$2,$C$5,$C$6,0,0,$C$4),1,2) -> 1991.838861
B35: 4 | C35: 5 | D35: 2010-05-04 | E35: =INDEX(heures_limites_cadran($D35,$C$3,$C$2,$C$5),1,1)/24 -> 08:30:00 | F35: =INDEX(heures_limites_cadran($D35,$C$3,$C$2,$C$5),1,2)/24 -> 18:00:00 | G35: =INDEX(coordonnées_cadran_plat($D35,$G$10,$C$3,$C$2,$C$5,$C$6,0,0,$C$4),1,1) -> 1992.741557 | H35: =INDEX(coordonnées_cadran_plat($D35,$G$10,$C$3,$C$2,$C$5,$C$6,0,0,$C$4),1,2) -> -3822.701983 | I35: =INDEX(coordonnées_cadran_plat($D35,I$10,$C$3,$C$2,$C$5,$C$6,0,0,$C$4),1,1) -> 1181.642407 | J35: =INDEX(coordonnées_cadran_plat($D35,I$10,$C$3,$C$2,$C$5,$C$6,0,0,$C$4),1,2) -> -1458.81615 | K35: =INDEX(coordonnées_cadran_plat($D35,K$10,$C$3,$C$2,$C$5,$C$6,0,0,$C$4),1,1) -> 983.3678834 | L35: =INDEX(coordonnées_cadran_plat($D35,K$10,$C$3,$C$2,$C$5,$C$6,0,0,$C$4),1,2) -> -764.5040636 | M35: =INDEX(coordonnées_cadran_plat($D35,M$10,$C$3,$C$2,$C$5,$C$6,0,0,$C$4),1,1) -> 910.0345119 | N35: =INDEX(coordonnées_cadran_plat($D35,M$10,$C$3,$C$2,$C$5,$C$6,0,0,$C$4),1,2) -> -383.7112379 | O35: =INDEX(coordonnées_cadran_plat($D35,O$10,$C$3,$C$2,$C$5,$C$6,0,0,$C$4),1,1) -> 890.0234624 | P35: =INDEX(coordonnées_cadran_plat($D35,O$10,$C$3,$C$2,$C$5,$C$6,0,0,$C$4),1,2) -> -99.57890482 | Q35: =INDEX(coordonnées_cadran_plat($D35,Q$10,$C$3,$C$2,$C$5,$C$6,0,0,$C$4),1,1) -> 907.9450045 | R35: =INDEX(coordonnées_cadran_plat($D35,Q$10,$C$3,$C$2,$C$5,$C$6,0,0,$C$4),1,2) -> 167.5519613 | S35: =INDEX(coordonnées_cadran_plat($D35,S$10,$C$3,$C$2,$C$5,$C$6,0,0,$C$4),1,1) -> 970.9570192 | T35: =INDEX(coordonnées_cadran_plat($D35,S$10,$C$3,$C$2,$C$5,$C$6,0,0,$C$4),1,2) -> 480.4540147 | U35: =INDEX(coordonnées_cadran_plat($D35,U$10,$C$3,$C$2,$C$5,$C$6,0,0,$C$4),1,1) -> 1120.07521 | V35: =INDEX(coordonnées_cadran_plat($D35,U$10,$C$3,$C$2,$C$5,$C$6,0,0,$C$4),1,2) -> 954.4926905 | W35: =INDEX(coordonnées_cadran_plat($D35,W$10,$C$3,$C$2,$C$5,$C$6,0,0,$C$4),1,1) -> 1543.693377 | X35: =INDEX(coordonnées_cadran_plat($D35,W$10,$C$3,$C$2,$C$5,$C$6,0,0,$C$4),1,2) -> 2027.836645
B36: 5 | C36: 5 | D36: 2010-05-05 | E36: =INDEX(heures_limites_cadran($D36,$C$3,$C$2,$C$5),1,1)/24 -> 08:30:00 | F36: =INDEX(heures_limites_cadran($D36,$C$3,$C$2,$C$5),1,2)/24 -> 18:00:00 | G36: =INDEX(coordonnées_cadran_plat($D36,$G$10,$C$3,$C$2,$C$5,$C$6,0,0,$C$4),1,1) -> 2064.022258 | H36: =INDEX(coordonnées_cadran_plat($D36,$G$10,$C$3,$C$2,$C$5,$C$6,0,0,$C$4),1,2) -> -3924.334008 | I36: =INDEX(coordonnées_cadran_plat($D36,I$10,$C$3,$C$2,$C$5,$C$6,0,0,$C$4),1,1) -> 1203.780314 | J36: =INDEX(coordonnées_cadran_plat($D36,I$10,$C$3,$C$2,$C$5,$C$6,0,0,$C$4),1,2) -> -1476.035866 | K36: =INDEX(coordonnées_cadran_plat($D36,K$10,$C$3,$C$2,$C$5,$C$6,0,0,$C$4),1,1) -> 997.1382886 | L36: =INDEX(coordonnées_cadran_plat($D36,K$10,$C$3,$C$2,$C$5,$C$6,0,0,$C$4),1,2) -> -770.7067444 | M36: =INDEX(coordonnées_cadran_plat($D36,M$10,$C$3,$C$2,$C$5,$C$6,0,0,$C$4),1,1) -> 920.9885846 | N36: =INDEX(coordonnées_cadran_plat($D36,M$10,$C$3,$C$2,$C$5,$C$6,0,0,$C$4),1,2) -> -386.1986066 | O36: =INDEX(coordonnées_cadran_plat($D36,O$10,$C$3,$C$2,$C$5,$C$6,0,0,$C$4),1,1) -> 900.1169814 | P36: =INDEX(coordonnées_cadran_plat($D36,O$10,$C$3,$C$2,$C$5,$C$6,0,0,$C$4),1,2) -> -100.0086659 | Q36: =INDEX(coordonnées_cadran_plat($D36,Q$10,$C$3,$C$2,$C$5,$C$6,0,0,$C$4),1,1) -> 918.4404968 | R36: =INDEX(coordonnées_cadran_plat($D36,Q$10,$C$3,$C$2,$C$5,$C$6,0,0,$C$4),1,2) -> 168.9654261 | S36: =INDEX(coordonnées_cadran_plat($D36,S$10,$C$3,$C$2,$C$5,$C$6,0,0,$C$4),1,1) -> 983.3931641 | T36: =INDEX(coordonnées_cadran_plat($D36,S$10,$C$3,$C$2,$C$5,$C$6,0,0,$C$4),1,2) -> 484.5658382 | U36: =INDEX(coordonnées_cadran_plat($D36,U$10,$C$3,$C$2,$C$5,$C$6,0,0,$C$4),1,1) -> 1137.843008 | V36: =INDEX(coordonnées_cadran_plat($D36,U$10,$C$3,$C$2,$C$5,$C$6,0,0,$C$4),1,2) -> 964.8488952 | W36: =INDEX(coordonnées_cadran_plat($D36,W$10,$C$3,$C$2,$C$5,$C$6,0,0,$C$4),1,1) -> 1581.101929 | X36: =INDEX(coordonnées_cadran_plat($D36,W$10,$C$3,$C$2,$C$5,$C$6,0,0,$C$4),1,2) -> 2064.417327
B37: 6 | C37: 5 | D37: 2010-05-06 | E37: =INDEX(heures_limites_cadran($D37,$C$3,$C$2,$C$5),1,1)/24 -> 08:30:00 | F37: =INDEX(heures_limites_cadran($D37,$C$3,$C$2,$C$5),1,2)/24 -> 18:00:00 | G37: =INDEX(coordonnées_cadran_plat($D37,$G$10,$C$3,$C$2,$C$5,$C$6,0,0,$C$4),1,1) -> 2138.52208 | H37: =INDEX(coordonnées_cadran_plat($D37,$G$10,$C$3,$C$2,$C$5,$C$6,0,0,$C$4),1,2) -> -4030.948255 | I37: =INDEX(coordonnées_cadran_plat($D37,I$10,$C$3,$C$2,$C$5,$C$6,0,0,$C$4),1,1) -> 1226.208402 | J37: =INDEX(coordonnées_cadran_plat($D37,I$10,$C$3,$C$2,$C$5,$C$6,0,0,$C$4),1,2) -> -1493.591614 | K37: =INDEX(coordonnées_cadran_plat($D37,K$10,$C$3,$C$2,$C$5,$C$6,0,0,$C$4),1,1) -> 1010.977822 | L37: =INDEX(coordonnées_cadran_plat($D37,K$10,$C$3,$C$2,$C$5,$C$6,0,0,$C$4),1,2) -> -776.9997403 | M37: =INDEX(coordonnées_cadran_plat($D37,M$10,$C$3,$C$2,$C$5,$C$6,0,0,$C$4),1,1) -> 931.9614623 | N37: =INDEX(coordonnées_cadran_plat($D37,M$10,$C$3,$C$2,$C$5,$C$6,0,0,$C$4),1,2) -> -388.7326503 | O37: =INDEX(coordonnées_cadran_plat($D37,O$10,$C$3,$C$2,$C$5,$C$6,0,0,$C$4),1,1) -> 910.2145162 | P37: =INDEX(coordonnées_cadran_plat($D37,O$10,$C$3,$C$2,$C$5,$C$6,0,0,$C$4),1,2) -> -100.4755386 | Q37: =INDEX(coordonnées_cadran_plat($D37,Q$10,$C$3,$C$2,$C$5,$C$6,0,0,$C$4),1,1) -> 928.9402722 | R37: =INDEX(coordonnées_cadran_plat($D37,Q$10,$C$3,$C$2,$C$5,$C$6,0,0,$C$4),1,2) -> 170.3414515 | S37: =INDEX(coordonnées_cadran_plat($D37,S$10,$C$3,$C$2,$C$5,$C$6,0,0,$C$4),1,1) -> 995.8529863 | T37: =INDEX(coordonnées_cadran_plat($D37,S$10,$C$3,$C$2,$C$5,$C$6,0,0,$C$4),1,2) -> 488.6389861 | U37: =INDEX(coordonnées_cadran_plat($D37,U$10,$C$3,$C$2,$C$5,$C$6,0,0,$C$4),1,1) -> 1155.720743 | V37: =INDEX(coordonnées_cadran_plat($D37,U$10,$C$3,$C$2,$C$5,$C$6,0,0,$C$4),1,2) -> 975.1982679 | W37: =INDEX(coordonnées_cadran_plat($D37,W$10,$C$3,$C$2,$C$5,$C$6,0,0,$C$4),1,1) -> 1619.246332 | X37: =INDEX(coordonnées_cadran_plat($D37,W$10,$C$3,$C$2,$C$5,$C$6,0,0,$C$4),1,2) -> 2101.560249
B38: 7 | C38: 5 | D38: 2010-05-07 | E38: =INDEX(heures_limites_cadran($D38,$C$3,$C$2,$C$5),1,1)/24 -> 08:30:00 | F38: =INDEX(heures_limites_cadran($D38,$C$3,$C$2,$C$5),1,2)/24 -> 18:00:00 | G38: =INDEX(coordonnées_cadran_plat($D38,$G$10,$C$3,$C$2,$C$5,$C$6,0,0,$C$4),1,1) -> 2216.444755 | H38: =INDEX(coordonnées_cadran_plat($D38,$G$10,$C$3,$C$2,$C$5,$C$6,0,0,$C$4),1,2) -> -4142.869548 | I38: =INDEX(coordonnées_cadran_plat($D38,I$10,$C$3,$C$2,$C$5,$C$6,0,0,$C$4),1,1) -> 1248.922785 | J38: =INDEX(coordonnées_cadran_plat($D38,I$10,$C$3,$C$2,$C$5,$C$6,0,0,$C$4),1,2) -> -1511.48482 | K38: =INDEX(coordonnées_cadran_plat($D38,K$10,$C$3,$C$2,$C$5,$C$6,0,0,$C$4),1,1) -> 1024.879823 | L38: =INDEX(coordonnées_cadran_plat($D38,K$10,$C$3,$C$2,$C$5,$C$6,0,0,$C$4),1,2) -> -783.3817826 | M38: =INDEX(coordonnées_cadran_plat($D38,M$10,$C$3,$C$2,$C$5,$C$6,0,0,$C$4),1,1) -> 942.9468006 | N38: =INDEX(coordonnées_cadran_plat($D38,M$10,$C$3,$C$2,$C$5,$C$6,0,0,$C$4),1,2) -> -391.3129945 | O38: =INDEX(coordonnées_cadran_plat($D38,O$10,$C$3,$C$2,$C$5,$C$6,0,0,$C$4),1,1) -> 920.3096384 | P38: =INDEX(coordonnées_cadran_plat($D38,O$10,$C$3,$C$2,$C$5,$C$6,0,0,$C$4),1,2) -> -100.9801313 | Q38: =INDEX(coordonnées_cadran_plat($D38,Q$10,$C$3,$C$2,$C$5,$C$6,0,0,$C$4),1,1) -> 939.4370814 | R38: =INDEX(coordonnées_cadran_plat($D38,Q$10,$C$3,$C$2,$C$5,$C$6,0,0,$C$4),1,2) -> 171.678126 | S38: =INDEX(coordonnées_cadran_plat($D38,S$10,$C$3,$C$2,$C$5,$C$6,0,0,$C$4),1,1) -> 1008.327179 | T38: =INDEX(coordonnées_cadran_plat($D38,S$10,$C$3,$C$2,$C$5,$C$6,0,0,$C$4),1,2) -> 492.6690951 | U38: =INDEX(coordonnées_cadran_plat($D38,U$10,$C$3,$C$2,$C$5,$C$6,0,0,$C$4),1,1) -> 1173.694494 | V38: =INDEX(coordonnées_cadran_plat($D38,U$10,$C$3,$C$2,$C$5,$C$6,0,0,$C$4),1,2) -> 985.5301983 | W38: =INDEX(coordonnées_cadran_plat($D38,W$10,$C$3,$C$2,$C$5,$C$6,0,0,$C$4),1,1) -> 1658.111072 | X38: =INDEX(coordonnées_cadran_plat($D38,W$10,$C$3,$C$2,$C$5,$C$6,0,0,$C$4),1,2) -> 2139.241197
B39: 8 | C39: 5 | D39: 2010-05-08 | E39: =INDEX(heures_limites_cadran($D39,$C$3,$C$2,$C$5),1,1)/24 -> 08:30:00 | F39: =INDEX(heures_limites_cadran($D39,$C$3,$C$2,$C$5),1,2)/24 -> 18:00:00 | G39: =INDEX(coordonnées_cadran_plat($D39,$G$10,$C$3,$C$2,$C$5,$C$6,0,0,$C$4),1,1) -> 2298.009745 | H39: =INDEX(coordonnées_cadran_plat($D39,$G$10,$C$3,$C$2,$C$5,$C$6,0,0,$C$4),1,2) -> -4260.447969 | I39: =INDEX(coordonnées_cadran_plat($D39,I$10,$C$3,$C$2,$C$5,$C$6,0,0,$C$4),1,1) -> 1271.918667 | J39: =INDEX(coordonnées_cadran_plat($D39,I$10,$C$3,$C$2,$C$5,$C$6,0,0,$C$4),1,2) -> -1529.71618 | K39: =INDEX(coordonnées_cadran_plat($D39,K$10,$C$3,$C$2,$C$5,$C$6,0,0,$C$4),1,1) -> 1038.837118 | L39: =INDEX(coordonnées_cadran_plat($D39,K$10,$C$3,$C$2,$C$5,$C$6,0,0,$C$4),1,2) -> -789.8513126 | M39: =INDEX(coordonnées_cadran_plat($D39,M$10,$C$3,$C$2,$C$5,$C$6,0,0,$C$4),1,1) -> 953.9378976 | N39: =INDEX(coordonnées_cadran_plat($D39,M$10,$C$3,$C$2,$C$5,$C$6,0,0,$C$4),1,2) -> -393.9391289 | O39: =INDEX(coordonnées_cadran_plat($D39,O$10,$C$3,$C$2,$C$5,$C$6,0,0,$C$4),1,1) -> 930.395604 | P39: =INDEX(coordonnées_cadran_plat($D39,O$10,$C$3,$C$2,$C$5,$C$6,0,0,$C$4),1,2) -> -101.5229867 | Q39: =INDEX(coordonnées_cadran_plat($D39,Q$10,$C$3,$C$2,$C$5,$C$6,0,0,$C$4),1,1) -> 949.9233259 | R39: =INDEX(coordonnées_cadran_plat($D39,Q$10,$C$3,$C$2,$C$5,$C$6,0,0,$C$4),1,2) -> 172.9735472 | S39: =INDEX(coordonnées_cadran_plat($D39,S$10,$C$3,$C$2,$C$5,$C$6,0,0,$C$4),1,1) -> 1020.805934 | T39: =INDEX(coordonnées_cadran_plat($D39,S$10,$C$3,$C$2,$C$5,$C$6,0,0,$C$4),1,2) -> 496.6517051 | U39: =INDEX(coordonnées_cadran_plat($D39,U$10,$C$3,$C$2,$C$5,$C$6,0,0,$C$4),1,1) -> 1191.7493 | V39: =INDEX(coordonnées_cadran_plat($D39,U$10,$C$3,$C$2,$C$5,$C$6,0,0,$C$4),1,2) -> 995.8335624 | W39: =INDEX(coordonnées_cadran_plat($D39,W$10,$C$3,$C$2,$C$5,$C$6,0,0,$C$4),1,1) -> 1697.676797 | X39: =INDEX(coordonnées_cadran_plat($D39,W$10,$C$3,$C$2,$C$5,$C$6,0,0,$C$4),1,2) -> 2177.432155
B40: 9 | C40: 5 | D40: 2010-05-09 | E40: =INDEX(heures_limites_cadran($D40,$C$3,$C$2,$C$5),1,1)/24 -> 08:30:00 | F40: =INDEX(heures_limites_cadran($D40,$C$3,$C$2,$C$5),1,2)/24 -> 18:00:00 | G40: =INDEX(coordonnées_cadran_plat($D40,$G$10,$C$3,$C$2,$C$5,$C$6,0,0,$C$4),1,1) -> 2383.453612 | H40: =INDEX(coordonnées_cadran_plat($D40,$G$10,$C$3,$C$2,$C$5,$C$6,0,0,$C$4),1,2) -> -4384.061102 | I40: =INDEX(coordonnées_cadran_plat($D40,I$10,$C$3,$C$2,$C$5,$C$6,0,0,$C$4),1,1) -> 1295.190258 | J40: =INDEX(coordonnées_cadran_plat($D40,I$10,$C$3,$C$2,$C$5,$C$6,0,0,$C$4),1,2) -> -1548.28559 | K40: =INDEX(coordonnées_cadran_plat($D40,K$10,$C$3,$C$2,$C$5,$C$6,0,0,$C$4),1,1) -> 1052.842005 | L40: =INDEX(coordonnées_cadran_plat($D40,K$10,$C$3,$C$2,$C$5,$C$6,0,0,$C$4),1,2) -> -796.4064651 | M40: =INDEX(coordonnées_cadran_plat($D40,M$10,$C$3,$C$2,$C$5,$C$6,0,0,$C$4),1,1) -> 964.9276873 | N40: =INDEX(coordonnées_cadran_plat($D40,M$10,$C$3,$C$2,$C$5,$C$6,0,0,$C$4),1,2) -> -396.6104007 | O40: =INDEX(coordonnées_cadran_plat($D40,O$10,$C$3,$C$2,$C$5,$C$6,0,0,$C$4),1,1) -> 940.4653502 | P40: =INDEX(coordonnées_cadran_plat($D40,O$10,$C$3,$C$2,$C$5,$C$6,0,0,$C$4),1,2) -> -102.1045769 | Q40: =INDEX(coordonnées_cadran_plat($D40,Q$10,$C$3,$C$2,$C$5,$C$6,0,0,$C$4),1,1) -> 960.3910576 | R40: =INDEX(coordonnées_cadran_plat($D40,Q$10,$C$3,$C$2,$C$5,$C$6,0,0,$C$4),1,2) -> 174.2258271 | S40: =INDEX(coordonnées_cadran_plat($D40,S$10,$C$3,$C$2,$C$5,$C$6,0,0,$C$4),1,1) -> 1033.278944 | T40: =INDEX(coordonnées_cadran_plat($D40,S$10,$C$3,$C$2,$C$5,$C$6,0,0,$C$4),1,2) -> 500.5822663 | U40: =INDEX(coordonnées_cadran_plat($D40,U$10,$C$3,$C$2,$C$5,$C$6,0,0,$C$4),1,1) -> 1209.869149 | V40: =INDEX(coordonnées_cadran_plat($D40,U$10,$C$3,$C$2,$C$5,$C$6,0,0,$C$4),1,2) -> 1006.096726 | W40: =INDEX(coordonnées_cadran_plat($D40,W$10,$C$3,$C$2,$C$5,$C$6,0,0,$C$4),1,1) -> 1737.920023 | X40: =INDEX(coordonnées_cadran_plat($D40,W$10,$C$3,$C$2,$C$5,$C$6,0,0,$C$4),1,2) -> 2216.101054
B41: 10 | C41: 5 | D41: 2010-05-10 | E41: =INDEX(heures_limites_cadran($D41,$C$3,$C$2,$C$5),1,1)/24 -> 08:30:00 | F41: =INDEX(heures_limites_cadran($D41,$C$3,$C$2,$C$5),1,2)/24 -> 18:00:00 | G41: =INDEX(coordonnées_cadran_plat($D41,$G$10,$C$3,$C$2,$C$5,$C$6,0,0,$C$4),1,1) -> 2473.031519 | H41: =INDEX(coordonnées_cadran_plat($D41,$G$10,$C$3,$C$2,$C$5,$C$6,0,0,$C$4),1,2) -> -4514.116484 | I41: =INDEX(coordonnées_cadran_plat($D41,I$10,$C$3,$C$2,$C$5,$C$6,0,0,$C$4),1,1) -> 1318.730703 | J41: =INDEX(coordonnées_cadran_plat($D41,I$10,$C$3,$C$2,$C$5,$C$6,0,0,$C$4),1,2) -> -1567.192071 | K41: =INDEX(coordonnées_cadran_plat($D41,K$10,$C$3,$C$2,$C$5,$C$6,0,0,$C$4),1,1) -> 1066.886233 | L41: =INDEX(coordonnées_cadran_plat($D41,K$10,$C$3,$C$2,$C$5,$C$6,0,0,$C$4),1,2) -> -803.0450527 | M41: =INDEX(coordonnées_cadran_plat($D41,M$10,$C$3,$C$2,$C$5,$C$6,0,0,$C$4),1,1) -> 975.9087338 | N41: =INDEX(coordonnées_cadran_plat($D41,M$10,$C$3,$C$2,$C$5,$C$6,0,0,$C$4),1,2) -> -399.3260081 | O41: =INDEX(coordonnées_cadran_plat($D41,O$10,$C$3,$C$2,$C$5,$C$6,0,0,$C$4),1,1) -> 950.5114951 | P41: =INDEX(coordonnées_cadran_plat($D41,O$10,$C$3,$C$2,$C$5,$C$6,0,0,$C$4),1,2) -> -102.7252991 | Q41: =INDEX(coordonnées_cadran_plat($D41,Q$10,$C$3,$C$2,$C$5,$C$6,0,0,$C$4),1,1) -> 970.8319796 | R41: =INDEX(coordonnées_cadran_plat($D41,Q$10,$C$3,$C$2,$C$5,$C$6,0,0,$C$4),1,2) -> 175.433097 | S41: =INDEX(coordonnées_cadran_plat($D41,S$10,$C$3,$C$2,$C$5,$C$6,0,0,$C$4),1,1) -> 1045.7354 | T41: =INDEX(coordonnées_cadran_plat($D41,S$10,$C$3,$C$2,$C$5,$C$6,0,0,$C$4),1,2) -> 504.4561461 | U41: =INDEX(coordonnées_cadran_plat($D41,U$10,$C$3,$C$2,$C$5,$C$6,0,0,$C$4),1,1) -> 1228.03696 | V41: =INDEX(coordonnées_cadran_plat($D41,U$10,$C$3,$C$2,$C$5,$C$6,0,0,$C$4),1,2) -> 1016.307552 | W41: =INDEX(coordonnées_cadran_plat($D41,W$10,$C$3,$C$2,$C$5,$C$6,0,0,$C$4),1,1) -> 1778.812826 | X41: =INDEX(coordonnées_cadran_plat($D41,W$10,$C$3,$C$2,$C$5,$C$6,0,0,$C$4),1,2) -> 2255.211525
B42: 11 | C42: 5 | D42: 2010-05-11 | E42: =INDEX(heures_limites_cadran($D42,$C$3,$C$2,$C$5),1,1)/24 -> 08:30:00 | F42: =INDEX(heures_limites_cadran($D42,$C$3,$C$2,$C$5),1,2)/24 -> 18:00:00 | G42: =INDEX(coordonnées_cadran_plat($D42,$G$10,$C$3,$C$2,$C$5,$C$6,0,0,$C$4),1,1) -> 2567.018862 | H42: =INDEX(coordonnées_cadran_plat($D42,$G$10,$C$3,$C$2,$C$5,$C$6,0,0,$C$4),1,2) -> -4651.05429 | I42: =INDEX(coordonnées_cadran_plat($D42,I$10,$C$3,$C$2,$C$5,$C$6,0,0,$C$4),1,1) -> 1342.531996 | J42: =INDEX(coordonnées_cadran_plat($D42,I$10,$C$3,$C$2,$C$5,$C$6,0,0,$C$4),1,2) -> -1586.433687 | K42: =INDEX(coordonnées_cadran_plat($D42,K$10,$C$3,$C$2,$C$5,$C$6,0,0,$C$4),1,1) -> 1080.960984 | L42: =INDEX(coordonnées_cadran_plat($D42,K$10,$C$3,$C$2,$C$5,$C$6,0,0,$C$4),1,2) -> -809.7645493 | M42: =INDEX(coordonnées_cadran_plat($D42,M$10,$C$3,$C$2,$C$5,$C$6,0,0,$C$4),1,1) -> 986.8732271 | N42: =INDEX(coordonnées_cadran_plat($D42,M$10,$C$3,$C$2,$C$5,$C$6,0,0,$C$4),1,2) -> -402.0849941 | O42: =INDEX(coordonnées_cadran_plat($D42,O$10,$C$3,$C$2,$C$5,$C$6,0,0,$C$4),1,1) -> 960.5263374 | P42: =INDEX(coordonnées_cadran_plat($D42,O$10,$C$3,$C$2,$C$5,$C$6,0,0,$C$4),1,2) -> -103.3854711 | Q42: =INDEX(coordonnées_cadran_plat($D42,Q$10,$C$3,$C$2,$C$5,$C$6,0,0,$C$4),1,1) -> 981.2374491 | R42: =INDEX(coordonnées_cadran_plat($D42,Q$10,$C$3,$C$2,$C$5,$C$6,0,0,$C$4),1,2) -> 176.5935127 | S42: =INDEX(coordonnées_cadran_plat($D42,S$10,$C$3,$C$2,$C$5,$C$6,0,0,$C$4),1,1) -> 1058.163993 | T42: =INDEX(coordonnées_cadran_plat($D42,S$10,$C$3,$C$2,$C$5,$C$6,0,0,$C$4),1,2) -> 508.2686383 | U42: =INDEX(coordonnées_cadran_plat($D42,U$10,$C$3,$C$2,$C$5,$C$6,0,0,$C$4),1,1) -> 1246.234576 | V42: =INDEX(coordonnées_cadran_plat($D42,U$10,$C$3,$C$2,$C$5,$C$6,0,0,$C$4),1,2) -> 1026.45341 | W42: =INDEX(coordonnées_cadran_plat($D42,W$10,$C$3,$C$2,$C$5,$C$6,0,0,$C$4),1,1) -> 1820.322542 | X42: =INDEX(coordonnées_cadran_plat($D42,W$10,$C$3,$C$2,$C$5,$C$6,0,0,$C$4),1,2) -> 2294.722665
B43: 12 | C43: 5 | D43: 2010-05-12 | E43: =INDEX(heures_limites_cadran($D43,$C$3,$C$2,$C$5),1,1)/24 -> 08:30:00 | F43: =INDEX(heures_limites_cadran($D43,$C$3,$C$2,$C$5),1,2)/24 -> 18:00:00 | G43: =INDEX(coordonnées_cadran_plat($D43,$G$10,$C$3,$C$2,$C$5,$C$6,0,0,$C$4),1,1) -> 2665.713059 | H43: =INDEX(coordonnées_cadran_plat($D43,$G$10,$C$3,$C$2,$C$5,$C$6,0,0,$C$4),1,2) -> -4795.350269 | I43: =INDEX(coordonnées_cadran_plat($D43,I$10,$C$3,$C$2,$C$5,$C$6,0,0,$C$4),1,1) -> 1366.584895 | J43: =INDEX(coordonnées_cadran_plat($D43,I$10,$C$3,$C$2,$C$5,$C$6,0,0,$C$4),1,2) -> -1606.007464 | K43: =INDEX(coordonnées_cadran_plat($D43,K$10,$C$3,$C$2,$C$5,$C$6,0,0,$C$4),1,1) -> 1095.056857 | L43: =INDEX(coordonnées_cadran_plat($D43,K$10,$C$3,$C$2,$C$5,$C$6,0,0,$C$4),1,2) -> -816.5620743 | M43: =INDEX(coordonnées_cadran_plat($D43,M$10,$C$3,$C$2,$C$5,$C$6,0,0,$C$4),1,1) -> 997.8129793 | N43: =INDEX(coordonnées_cadran_plat($D43,M$10,$C$3,$C$2,$C$5,$C$6,0,0,$C$4),1,2) -> -404.8862405 | O43: =INDEX(coordonnées_cadran_plat($D43,O$10,$C$3,$C$2,$C$5,$C$6,0,0,$C$4),1,1) -> 970.5018579 | P43: =INDEX(coordonnées_cadran_plat($D43,O$10,$C$3,$C$2,$C$5,$C$6,0,0,$C$4),1,2) -> -104.0853268 | Q43: =INDEX(coordonnées_cadran_plat($D43,Q$10,$C$3,$C$2,$C$5,$C$6,0,0,$C$4),1,1) -> 991.5984814 | R43: =INDEX(coordonnées_cadran_plat($D43,Q$10,$C$3,$C$2,$C$5,$C$6,0,0,$C$4),1,2) -> 177.7052607 | S43: =INDEX(coordonnées_cadran_plat($D43,S$10,$C$3,$C$2,$C$5,$C$6,0,0,$C$4),1,1) -> 1070.552928 | T43: =INDEX(coordonnées_cadran_plat($D43,S$10,$C$3,$C$2,$C$5,$C$6,0,0,$C$4),1,2) -> 512.014972 | U43: =INDEX(coordonnées_cadran_plat($D43,U$10,$C$3,$C$2,$C$5,$C$6,0,0,$C$4),1,1) -> 1264.44276 | V43: =INDEX(coordonnées_cadran_plat($D43,U$10,$C$3,$C$2,$C$5,$C$6,0,0,$C$4),1,2) -> 1036.521192 | W43: =INDEX(coordonnées_cadran_plat($D43,W$10,$C$3,$C$2,$C$5,$C$6,0,0,$C$4),1,1) -> 1862.411467 | X43: =INDEX(coordonnées_cadran_plat($D43,W$10,$C$3,$C$2,$C$5,$C$6,0,0,$C$4),1,2) -> 2334.588809
B44: 13 | C44: 5 | D44: 2010-05-13 | E44: =INDEX(heures_limites_cadran($D44,$C$3,$C$2,$C$5),1,1)/24 -> 08:30:00 | F44: =INDEX(heures_limites_cadran($D44,$C$3,$C$2,$C$5),1,2)/24 -> 18:00:00 | G44: =INDEX(coordonnées_cadran_plat($D44,$G$10,$C$3,$C$2,$C$5,$C$6,0,0,$C$4),1,1) -> 2769.435495 | H44: =INDEX(coordonnées_cadran_plat($D44,$G$10,$C$3,$C$2,$C$5,$C$6,0,0,$C$4),1,2) -> -4947.518954 | I44: =INDEX(coordonnées_cadran_plat($D44,I$10,$C$3,$C$2,$C$5,$C$6,0,0,$C$4),1,1) -> 1390.878841 | J44: =INDEX(coordonnées_cadran_plat($D44,I$10,$C$3,$C$2,$C$5,$C$6,0,0,$C$4),1,2) -> -1625.909301 | K44: =INDEX(coordonnées_cadran_plat($D44,K$10,$C$3,$C$2,$C$5,$C$6,0,0,$C$4),1,1) -> 1109.163851 | L44: =INDEX(coordonnées_cadran_plat($D44,K$10,$C$3,$C$2,$C$5,$C$6,0,0,$C$4),1,2) -> -823.4343767 | M44: =INDEX(coordonnées_cadran_plat($D44,M$10,$C$3,$C$2,$C$5,$C$6,0,0,$C$4),1,1) -> 1008.719423 | N44: =INDEX(coordonnées_cadran_plat($D44,M$10,$C$3,$C$2,$C$5,$C$6,0,0,$C$4),1,2) -> -407.7284613 | O44: =INDEX(coordonnées_cadran_plat($D44,O$10,$C$3,$C$2,$C$5,$C$6,0,0,$C$4),1,1) -> 980.4297222 | P44: =INDEX(coordonnées_cadran_plat($D44,O$10,$C$3,$C$2,$C$5,$C$6,0,0,$C$4),1,2) -> -104.8250111 | Q44: =INDEX(coordonnées_cadran_plat($D44,Q$10,$C$3,$C$2,$C$5,$C$6,0,0,$C$4),1,1) -> 1001.905756 | R44: =INDEX(coordonnées_cadran_plat($D44,Q$10,$C$3,$C$2,$C$5,$C$6,0,0,$C$4),1,2) -> 178.7665635 | S44: =INDEX(coordonnées_cadran_plat($D44,S$10,$C$3,$C$2,$C$5,$C$6,0,0,$C$4),1,1) -> 1082.889923 | T44: =INDEX(coordonnées_cadran_plat($D44,S$10,$C$3,$C$2,$C$5,$C$6,0,0,$C$4),1,2) -> 515.6903222 | U44: =INDEX(coordonnées_cadran_plat($D44,U$10,$C$3,$C$2,$C$5,$C$6,0,0,$C$4),1,1) -> 1282.641198 | V44: =INDEX(coordonnées_cadran_plat($D44,U$10,$C$3,$C$2,$C$5,$C$6,0,0,$C$4),1,2) -> 1046.497332 | W44: =INDEX(coordonnées_cadran_plat($D44,W$10,$C$3,$C$2,$C$5,$C$6,0,0,$C$4),1,1) -> 1905.036573 | X44: =INDEX(coordonnées_cadran_plat($D44,W$10,$C$3,$C$2,$C$5,$C$6,0,0,$C$4),1,2) -> 2374.759317
B45: 14 | C45: 5 | D45: =DATE($C$7,C45,B45) -> 2010-05-14 | E45: =INDEX(heures_limites_cadran($D45,$C$3,$C$2,$C$5),1,1)/24 -> 08:30:00 | F45: =INDEX(heures_limites_cadran($D45,$C$3,$C$2,$C$5),1,2)/24 -> 18:00:00 | G45: =INDEX(coordonnées_cadran_plat($D45,$G$10,$C$3,$C$2,$C$5,$C$6,0,0,$C$4),1,1) -> 2878.533644 | H45: =INDEX(coordonnées_cadran_plat($D45,$G$10,$C$3,$C$2,$C$5,$C$6,0,0,$C$4),1,2) -> -5108.117167 | I45: =INDEX(coordonnées_cadran_plat($D45,I$10,$C$3,$C$2,$C$5,$C$6,0,0,$C$4),1,1) -> 1415.401862 | J45: =INDEX(coordonnées_cadran_plat($D45,I$10,$C$3,$C$2,$C$5,$C$6,0,0,$C$4),1,2) -> -1646.133878 | K45: =INDEX(coordonnées_cadran_plat($D45,K$10,$C$3,$C$2,$C$5,$C$6,0,0,$C$4),1,1) -> 1123.271354 | L45: =INDEX(coordonnées_cadran_plat($D45,K$10,$C$3,$C$2,$C$5,$C$6,0,0,$C$4),1,2) -> -830.3778198 | M45: =INDEX(coordonnées_cadran_plat($D45,M$10,$C$3,$C$2,$C$5,$C$6,0,0,$C$4),1,1) -> 1019.583611 | N45: =INDEX(coordonnées_cadran_plat($D45,M$10,$C$3,$C$2,$C$5,$C$6,0,0,$C$4),1,2) -> -410.6101979 | O45: =INDEX(coordonnées_cadran_plat($D45,O$10,$C$3,$C$2,$C$5,$C$6,0,0,$C$4),1,1) -> 990.3012856 | P45: =INDEX(coordonnées_cadran_plat($D45,O$10,$C$3,$C$2,$C$5,$C$6,0,0,$C$4),1,2) -> -105.6045762 | Q45: =INDEX(coordonnées_cadran_plat($D45,Q$10,$C$3,$C$2,$C$5,$C$6,0,0,$C$4),1,1) -> 1012.149623 | R45: =INDEX(coordonnées_cadran_plat($D45,Q$10,$C$3,$C$2,$C$5,$C$6,0,0,$C$4),1,2) -> 179.7756863 | S45: =INDEX(coordonnées_cadran_plat($D45,S$10,$C$3,$C$2,$C$5,$C$6,0,0,$C$4),1,1) -> 1095.162226 | T45: =INDEX(coordonnées_cadran_plat($D45,S$10,$C$3,$C$2,$C$5,$C$6,0,0,$C$4),1,2) -> 519.2898216 | U45: =INDEX(coordonnées_cadran_plat($D45,U$10,$C$3,$C$2,$C$5,$C$6,0,0,$C$4),1,1) -> 1300.808508 | V45: =INDEX(coordonnées_cadran_plat($D45,U$10,$C$3,$C$2,$C$5,$C$6,0,0,$C$4),1,2) -> 1056.367823 | W45: =INDEX(coordonnées_cadran_plat($D45,W$10,$C$3,$C$2,$C$5,$C$6,0,0,$C$4),1,1) -> 1948.149234 | X45: =INDEX(coordonnées_cadran_plat($D45,W$10,$C$3,$C$2,$C$5,$C$6,0,0,$C$4),1,2) -> 2415.178387
B46: 15 | C46: 5 | D46: 2010-05-15 | E46: =INDEX(heures_limites_cadran($D46,$C$3,$C$2,$C$5),1,1)/24 -> 08:30:00 | F46: =INDEX(heures_limites_cadran($D46,$C$3,$C$2,$C$5),1,2)/24 -> 18:00:00 | G46: =INDEX(coordonnées_cadran_plat($D46,$G$10,$C$3,$C$2,$C$5,$C$6,0,0,$C$4),1,1) -> 2993.383372 | H46: =INDEX(coordonnées_cadran_plat($D46,$G$10,$C$3,$C$2,$C$5,$C$6,0,0,$C$4),1,2) -> -5277.747836 | I46: =INDEX(coordonnées_cadran_plat($D46,I$10,$C$3,$C$2,$C$5,$C$6,0,0,$C$4),1,1) -> 1440.140486 | J46: =INDEX(coordonnées_cadran_plat($D46,I$10,$C$3,$C$2,$C$5,$C$6,0,0,$C$4),1,2) -> -1666.674565 | K46: =INDEX(coordonnées_cadran_plat($D46,K$10,$C$3,$C$2,$C$5,$C$6,0,0,$C$4),1,1) -> 1137.368128 | L46: =INDEX(coordonnées_cadran_plat($D46,K$10,$C$3,$C$2,$C$5,$C$6,0,0,$C$4),1,2) -> -837.3883659 | M46: =INDEX(coordonnées_cadran_plat($D46,M$10,$C$3,$C$2,$C$5,$C$6,0,0,$C$4),1,1) -> 1030.396216 | N46: =INDEX(coordonnées_cadran_plat($D46,M$10,$C$3,$C$2,$C$5,$C$6,0,0,$C$4),1,2) -> -413.5298127 | O46: =INDEX(coordonnées_cadran_plat($D46,O$10,$C$3,$C$2,$C$5,$C$6,0,0,$C$4),1,1) -> 1000.107598 | P46: =INDEX(coordonnées_cadran_plat($D46,O$10,$C$3,$C$2,$C$5,$C$6,0,0,$C$4),1,2) -> -106.4239767 | Q46: =INDEX(coordonnées_cadran_plat($D46,Q$10,$C$3,$C$2,$C$5,$C$6,0,0,$C$4),1,1) -> 1022.320116 | R46: =INDEX(coordonnées_cadran_plat($D46,Q$10,$C$3,$C$2,$C$5,$C$6,0,0,$C$4),1,2) -> 180.7309431 | S46: =INDEX(coordonnées_cadran_plat($D46,S$10,$C$3,$C$2,$C$5,$C$6,0,0,$C$4),1,1) -> 1107.35663 | T46: =INDEX(coordonnées_cadran_plat($D46,S$10,$C$3,$C$2,$C$5,$C$6,0,0,$C$4),1,2) -> 522.8085723 | U46: =INDEX(coordonnées_cadran_plat($D46,U$10,$C$3,$C$2,$C$5,$C$6,0,0,$C$4),1,1) -> 1318.922259 | V46: =INDEX(coordonnées_cadran_plat($D46,U$10,$C$3,$C$2,$C$5,$C$6,0,0,$C$4),1,2) -> 1066.118252 | W46: =INDEX(coordonnées_cadran_plat($D46,W$10,$C$3,$C$2,$C$5,$C$6,0,0,$C$4),1,1) -> 1991.694973 | X46: =INDEX(coordonnées_cadran_plat($D46,W$10,$C$3,$C$2,$C$5,$C$6,0,0,$C$4),1,2) -> 2455.784893
B47: 16 | C47: 5 | D47: 2010-05-16 | E47: =INDEX(heures_limites_cadran($D47,$C$3,$C$2,$C$5),1,1)/24 -> 08:30:00 | F47: =INDEX(heures_limites_cadran($D47,$C$3,$C$2,$C$5),1,2)/24 -> 18:00:00 | G47: =INDEX(coordonnées_cadran_plat($D47,$G$10,$C$3,$C$2,$C$5,$C$6,0,0,$C$4),1,1) -> 3114.391438 | H47: =INDEX(coordonnées_cadran_plat($D47,$G$10,$C$3,$C$2,$C$5,$C$6,0,0,$C$4),1,2) -> -5457.064156 | I47: =INDEX(coordonnées_cadran_plat($D47,I$10,$C$3,$C$2,$C$5,$C$6,0,0,$C$4),1,1) -> 1465.079648 | J47: =INDEX(coordonnées_cadran_plat($D47,I$10,$C$3,$C$2,$C$5,$C$6,0,0,$C$4),1,2) -> -1687.523324 | K47: =INDEX(coordonnées_cadran_plat($D47,K$10,$C$3,$C$2,$C$5,$C$6,0,0,$C$4),1,1) -> 1151.442299 | L47: =INDEX(coordonnées_cadran_plat($D47,K$10,$C$3,$C$2,$C$5,$C$6,0,0,$C$4),1,2) -> -844.4615625 | M47: =INDEX(coordonnées_cadran_plat($D47,M$10,$C$3,$C$2,$C$5,$C$6,0,0,$C$4),1,1) -> 1041.147537 | N47: =INDEX(coordonnées_cadran_plat($D47,M$10,$C$3,$C$2,$C$5,$C$6,0,0,$C$4),1,2) -> -416.485485 | O47: =INDEX(coordonnées_cadran_plat($D47,O$10,$C$3,$C$2,$C$5,$C$6,0,0,$C$4),1,1) -> 1009.839414 | P47: =INDEX(coordonnées_cadran_plat($D47,O$10,$C$3,$C$2,$C$5,$C$6,0,0,$C$4),1,2) -> -107.2830656 | Q47: =INDEX(coordonnées_cadran_plat($D47,Q$10,$C$3,$C$2,$C$5,$C$6,0,0,$C$4),1,1) -> 1032.406961 | R47: =INDEX(coordonnées_cadran_plat($D47,Q$10,$C$3,$C$2,$C$5,$C$6,0,0,$C$4),1,2) -> 181.6307033 | S47: =INDEX(coordonnées_cadran_plat($D47,S$10,$C$3,$C$2,$C$5,$C$6,0,0,$C$4),1,1) -> 1119.459488 | T47: =INDEX(coordonnées_cadran_plat($D47,S$10,$C$3,$C$2,$C$5,$C$6,0,0,$C$4),1,2) -> 526.2416598 | U47: =INDEX(coordonnées_cadran_plat($D47,U$10,$C$3,$C$2,$C$5,$C$6,0,0,$C$4),1,1) -> 1336.958992 | V47: =INDEX(coordonnées_cadran_plat($D47,U$10,$C$3,$C$2,$C$5,$C$6,0,0,$C$4),1,2) -> 1075.733824 | W47: =INDEX(coordonnées_cadran_plat($D47,W$10,$C$3,$C$2,$C$5,$C$6,0,0,$C$4),1,1) -> 2035.613237 | X47: =INDEX(coordonnées_cadran_plat($D47,W$10,$C$3,$C$2,$C$5,$C$6,0,0,$C$4),1,2) -> 2496.512252
B48: 17 | C48: 5 | D48: 2010-05-17 | E48: =INDEX(heures_limites_cadran($D48,$C$3,$C$2,$C$5),1,1)/24 -> 09:00:00 | F48: =INDEX(heures_limites_cadran($D48,$C$3,$C$2,$C$5),1,2)/24 -> 18:00:00 | G48: =INDEX(coordonnées_cadran_plat($D48,$G$10,$C$3,$C$2,$C$5,$C$6,0,0,$C$4),1,1) -> 3241.998202 | H48: =INDEX(coordonnées_cadran_plat($D48,$G$10,$C$3,$C$2,$C$5,$C$6,0,0,$C$4),1,2) -> -5646.774101 | I48: =INDEX(coordonnées_cadran_plat($D48,I$10,$C$3,$C$2,$C$5,$C$6,0,0,$C$4),1,1) -> 1490.202601 | J48: =INDEX(coordonnées_cadran_plat($D48,I$10,$C$3,$C$2,$C$5,$C$6,0,0,$C$4),1,2) -> -1708.670608 | K48: =INDEX(coordonnées_cadran_plat($D48,K$10,$C$3,$C$2,$C$5,$C$6,0,0,$C$4),1,1) -> 1165.48135 | L48: =INDEX(coordonnées_cadran_plat($D48,K$10,$C$3,$C$2,$C$5,$C$6,0,0,$C$4),1,2) -> -851.5925283 | M48: =INDEX(coordonnées_cadran_plat($D48,M$10,$C$3,$C$2,$C$5,$C$6,0,0,$C$4),1,1) -> 1051.827501 | N48: =INDEX(coordonnées_cadran_plat($D48,M$10,$C$3,$C$2,$C$5,$C$6,0,0,$C$4),1,2) -> -419.4752057 | O48: =INDEX(coordonnées_cadran_plat($D48,O$10,$C$3,$C$2,$C$5,$C$6,0,0,$C$4),1,1) -> 1019.4872 | P48: =INDEX(coordonnées_cadran_plat($D48,O$10,$C$3,$C$2,$C$5,$C$6,0,0,$C$4),1,2) -> -108.1815896 | Q48: =INDEX(coordonnées_cadran_plat($D48,Q$10,$C$3,$C$2,$C$5,$C$6,0,0,$C$4),1,1) -> 1042.399592 | R48: =INDEX(coordonnées_cadran_plat($D48,Q$10,$C$3,$C$2,$C$5,$C$6,0,0,$C$4),1,2) -> 182.4733986 | S48: =INDEX(coordonnées_cadran_plat($D48,S$10,$C$3,$C$2,$C$5,$C$6,0,0,$C$4),1,1) -> 1131.456735 | T48: =INDEX(coordonnées_cadran_plat($D48,S$10,$C$3,$C$2,$C$5,$C$6,0,0,$C$4),1,2) -> 529.5841669 | U48: =INDEX(coordonnées_cadran_plat($D48,U$10,$C$3,$C$2,$C$5,$C$6,0,0,$C$4),1,1) -> 1354.894258 | V48: =INDEX(coordonnées_cadran_plat($D48,U$10,$C$3,$C$2,$C$5,$C$6,0,0,$C$4),1,2) -> 1085.199403 | W48: =INDEX(coordonnées_cadran_plat($D48,W$10,$C$3,$C$2,$C$5,$C$6,0,0,$C$4),1,1) -> 2079.83721 | X48: =INDEX(coordonnées_cadran_plat($D48,W$10,$C$3,$C$2,$C$5,$C$6,0,0,$C$4),1,2) -> 2537.288336
B49: 18 | C49: 5 | D49: 2010-05-18 | E49: =INDEX(heures_limites_cadran($D49,$C$3,$C$2,$C$5),1,1)/24 -> 09:00:00 | F49: =INDEX(heures_limites_cadran($D49,$C$3,$C$2,$C$5),1,2)/24 -> 17:30:00 | G49: =INDEX(coordonnées_cadran_plat($D49,$G$10,$C$3,$C$2,$C$5,$C$6,0,0,$C$4),1,1) -> 3376.680538 | H49: =INDEX(coordonnées_cadran_plat($D49,$G$10,$C$3,$C$2,$C$5,$C$6,0,0,$C$4),1,2) -> -5847.645309 | I49: =INDEX(coordonnées_cadran_plat($D49,I$10,$C$3,$C$2,$C$5,$C$6,0,0,$C$4),1,1) -> 1515.49082 | J49: =INDEX(coordonnées_cadran_plat($D49,I$10,$C$3,$C$2,$C$5,$C$6,0,0,$C$4),1,2) -> -1730.105265 | K49: =INDEX(coordonnées_cadran_plat($D49,K$10,$C$3,$C$2,$C$5,$C$6,0,0,$C$4),1,1) -> 1179.472116 | L49: =INDEX(coordonnées_cadran_plat($D49,K$10,$C$3,$C$2,$C$5,$C$6,0,0,$C$4),1,2) -> -858.775941 | M49: =INDEX(coordonnées_cadran_plat($D49,M$10,$C$3,$C$2,$C$5,$C$6,0,0,$C$4),1,1) -> 1062.425669 | N49: =INDEX(coordonnées_cadran_plat($D49,M$10,$C$3,$C$2,$C$5,$C$6,0,0,$C$4),1,2) -> -422.4967735 | O49: =INDEX(coordonnées_cadran_plat($D49,O$10,$C$3,$C$2,$C$5,$C$6,0,0,$C$4),1,1) -> 1029.041144 | P49: =INDEX(coordonnées_cadran_plat($D49,O$10,$C$3,$C$2,$C$5,$C$6,0,0,$C$4),1,2) -> -109.1191858 | Q49: =INDEX(coordonnées_cadran_plat($D49,Q$10,$C$3,$C$2,$C$5,$C$6,0,0,$C$4),1,1) -> 1052.287165 | R49: =INDEX(coordonnées_cadran_plat($D49,Q$10,$C$3,$C$2,$C$5,$C$6,0,0,$C$4),1,2) -> 183.2575301 | S49: =INDEX(coordonnées_cadran_plat($D49,S$10,$C$3,$C$2,$C$5,$C$6,0,0,$C$4),1,1) -> 1143.333916 | T49: =INDEX(coordonnées_cadran_plat($D49,S$10,$C$3,$C$2,$C$5,$C$6,0,0,$C$4),1,2) -> 532.8311893 | U49: =INDEX(coordonnées_cadran_plat($D49,U$10,$C$3,$C$2,$C$5,$C$6,0,0,$C$4),1,1) -> 1372.702653 | V49: =INDEX(coordonnées_cadran_plat($D49,U$10,$C$3,$C$2,$C$5,$C$6,0,0,$C$4),1,2) -> 1094.499554 | W49: =INDEX(coordonnées_cadran_plat($D49,W$10,$C$3,$C$2,$C$5,$C$6,0,0,$C$4),1,1) -> 2124.293662 | X49: =INDEX(coordonnées_cadran_plat($D49,W$10,$C$3,$C$2,$C$5,$C$6,0,0,$C$4),1,2) -> 2578.035429
B50: 19 | C50: 5 | D50: 2010-05-19 | E50: =INDEX(heures_limites_cadran($D50,$C$3,$C$2,$C$5),1,1)/24 -> 09:00:00 | F50: =INDEX(heures_limites_cadran($D50,$C$3,$C$2,$C$5),1,2)/24 -> 17:30:00 | G50: =INDEX(coordonnées_cadran_plat($D50,$G$10,$C$3,$C$2,$C$5,$C$6,0,0,$C$4),1,1) -> 3518.954971 | H50: =INDEX(coordonnées_cadran_plat($D50,$G$10,$C$3,$C$2,$C$5,$C$6,0,0,$C$4),1,2) -> -6060.510351 | I50: =INDEX(coordonnées_cadran_plat($D50,I$10,$C$3,$C$2,$C$5,$C$6,0,0,$C$4),1,1) -> 1540.923915 | J50: =INDEX(coordonnées_cadran_plat($D50,I$10,$C$3,$C$2,$C$5,$C$6,0,0,$C$4),1,2) -> -1751.814434 | K50: =INDEX(coordonnées_cadran_plat($D50,K$10,$C$3,$C$2,$C$5,$C$6,0,0,$C$4),1,1) -> 1193.400782 | L50: =INDEX(coordonnées_cadran_plat($D50,K$10,$C$3,$C$2,$C$5,$C$6,0,0,$C$4),1,2) -> -866.0060255 | M50: =INDEX(coordonnées_cadran_plat($D50,M$10,$C$3,$C$2,$C$5,$C$6,0,0,$C$4),1,1) -> 1072.931249 | N50: =INDEX(coordonnées_cadran_plat($D50,M$10,$C$3,$C$2,$C$5,$C$6,0,0,$C$4),1,2) -> -425.5477916 | O50: =INDEX(coordonnées_cadran_plat($D50,O$10,$C$3,$C$2,$C$5,$C$6,0,0,$C$4),1,1) -> 1038.491175 | P50: =INDEX(coordonnées_cadran_plat($D50,O$10,$C$3,$C$2,$C$5,$C$6,0,0,$C$4),1,2) -> -110.0953776 | Q50: =INDEX(coordonnées_cadran_plat($D50,Q$10,$C$3,$C$2,$C$5,$C$6,0,0,$C$4),1,1) -> 1062.05858 | R50: =INDEX(coordonnées_cadran_plat($D50,Q$10,$C$3,$C$2,$C$5,$C$6,0,0,$C$4),1,2) -> 183.9816749 | S50: =INDEX(coordonnées_cadran_plat($D50,S$10,$C$3,$C$2,$C$5,$C$6,0,0,$C$4),1,1) -> 1155.076209 | T50: =INDEX(coordonnées_cadran_plat($D50,S$10,$C$3,$C$2,$C$5,$C$6,0,0,$C$4),1,2) -> 535.9778515 | U50: =INDEX(coordonnées_cadran_plat($D50,U$10,$C$3,$C$2,$C$5,$C$6,0,0,$C$4),1,1) -> 1390.357873 | V50: =INDEX(coordonnées_cadran_plat($D50,U$10,$C$3,$C$2,$C$5,$C$6,0,0,$C$4),1,2) -> 1103.618584 | W50: =INDEX(coordonnées_cadran_plat($D50,W$10,$C$3,$C$2,$C$5,$C$6,0,0,$C$4),1,1) -> 2168.90285 | X50: =INDEX(coordonnées_cadran_plat($D50,W$10,$C$3,$C$2,$C$5,$C$6,0,0,$C$4),1,2) -> 2618.670233
B51: 20 | C51: 5 | D51: 2010-05-20 | E51: =INDEX(heures_limites_cadran($D51,$C$3,$C$2,$C$5),1,1)/24 -> 09:00:00 | F51: =INDEX(heures_limites_cadran($D51,$C$3,$C$2,$C$5),1,2)/24 -> 17:30:00 | G51: =INDEX(coordonnées_cadran_plat($D51,$G$10,$C$3,$C$2,$C$5,$C$6,0,0,$C$4),1,1) -> 3669.381016 | H51: =INDEX(coordonnées_cadran_plat($D51,$G$10,$C$3,$C$2,$C$5,$C$6,0,0,$C$4),1,2) -> -6286.272388 | I51: =INDEX(coordonnées_cadran_plat($D51,I$10,$C$3,$C$2,$C$5,$C$6,0,0,$C$4),1,1) -> 1566.47954 | J51: =INDEX(coordonnées_cadran_plat($D51,I$10,$C$3,$C$2,$C$5,$C$6,0,0,$C$4),1,2) -> -1773.78344 | K51: =INDEX(coordonnées_cadran_plat($D51,K$10,$C$3,$C$2,$C$5,$C$6,0,0,$C$4),1,1) -> 1207.252881 | L51: =INDEX(coordonnées_cadran_plat($D51,K$10,$C$3,$C$2,$C$5,$C$6,0,0,$C$4),1,2) -> -873.2765441 | M51: =INDEX(coordonnées_cadran_plat($D51,M$10,$C$3,$C$2,$C$5,$C$6,0,0,$C$4),1,1) -> 1083.333105 | N51: =INDEX(coordonnées_cadran_plat($D51,M$10,$C$3,$C$2,$C$5,$C$6,0,0,$C$4),1,2) -> -428.625664 | O51: =INDEX(coordonnées_cadran_plat($D51,O$10,$C$3,$C$2,$C$5,$C$6,0,0,$C$4),1,1) -> 1047.826974 | P51: =INDEX(coordonnées_cadran_plat($D51,O$10,$C$3,$C$2,$C$5,$C$6,0,0,$C$4),1,2) -> -111.1095712 | Q51: =INDEX(coordonnées_cadran_plat($D51,Q$10,$C$3,$C$2,$C$5,$C$6,0,0,$C$4),1,1) -> 1071.702497 | R51: =INDEX(coordonnées_cadran_plat($D51,Q$10,$C$3,$C$2,$C$5,$C$6,0,0,$C$4),1,2) -> 184.6444933 | S51: =INDEX(coordonnées_cadran_plat($D51,S$10,$C$3,$C$2,$C$5,$C$6,0,0,$C$4),1,1) -> 1166.668461 | T51: =INDEX(coordonnées_cadran_plat($D51,S$10,$C$3,$C$2,$C$5,$C$6,0,0,$C$4),1,2) -> 539.0193237 | U51: =INDEX(coordonnées_cadran_plat($D51,U$10,$C$3,$C$2,$C$5,$C$6,0,0,$C$4),1,1) -> 1407.832772 | V51: =INDEX(coordonnées_cadran_plat($D51,U$10,$C$3,$C$2,$C$5,$C$6,0,0,$C$4),1,2) -> 1112.540596 | W51: =INDEX(coordonnées_cadran_plat($D51,W$10,$C$3,$C$2,$C$5,$C$6,0,0,$C$4),1,1) -> 2213.578481 | X51: =INDEX(coordonnées_cadran_plat($D51,W$10,$C$3,$C$2,$C$5,$C$6,0,0,$C$4),1,2) -> 2659.103942
B52: 21 | C52: 5 | D52: 2010-05-21 | E52: =INDEX(heures_limites_cadran($D52,$C$3,$C$2,$C$5),1,1)/24 -> 09:00:00 | F52: =INDEX(heures_limites_cadran($D52,$C$3,$C$2,$C$5),1,2)/24 -> 17:30:00 | G52: =INDEX(coordonnées_cadran_plat($D52,$G$10,$C$3,$C$2,$C$5,$C$6,0,0,$C$4),1,1) -> 3828.564728 | H52: =INDEX(coordonnées_cadran_plat($D52,$G$10,$C$3,$C$2,$C$5,$C$6,0,0,$C$4),1,2) -> -6525.911197 | I52: =INDEX(coordonnées_cadran_plat($D52,I$10,$C$3,$C$2,$C$5,$C$6,0,0,$C$4),1,1) -> 1592.133312 | J52: =INDEX(coordonnées_cadran_plat($D52,I$10,$C$3,$C$2,$C$5,$C$6,0,0,$C$4),1,2) -> -1795.995702 | K52: =INDEX(coordonnées_cadran_plat($D52,K$10,$C$3,$C$2,$C$5,$C$6,0,0,$C$4),1,1) -> 1221.013299 | L52: =INDEX(coordonnées_cadran_plat($D52,K$10,$C$3,$C$2,$C$5,$C$6,0,0,$C$4),1,2) -> -880.5807881 | M52: =INDEX(coordonnées_cadran_plat($D52,M$10,$C$3,$C$2,$C$5,$C$6,0,0,$C$4),1,1) -> 1093.61977 | N52: =INDEX(coordonnées_cadran_plat($D52,M$10,$C$3,$C$2,$C$5,$C$6,0,0,$C$4),1,2) -> -431.7275942 | O52: =INDEX(coordonnées_cadran_plat($D52,O$10,$C$3,$C$2,$C$5,$C$6,0,0,$C$4),1,1) -> 1057.03799 | P52: =INDEX(coordonnées_cadran_plat($D52,O$10,$C$3,$C$2,$C$5,$C$6,0,0,$C$4),1,2) -> -112.1610523 | Q52: =INDEX(coordonnées_cadran_plat($D52,Q$10,$C$3,$C$2,$C$5,$C$6,0,0,$C$4),1,1) -> 1081.207364 | R52: =INDEX(coordonnées_cadran_plat($D52,Q$10,$C$3,$C$2,$C$5,$C$6,0,0,$C$4),1,2) -> 185.2447364 | S52: =INDEX(coordonnées_cadran_plat($D52,S$10,$C$3,$C$2,$C$5,$C$6,0,0,$C$4),1,1) -> 1178.095221 | T52: =INDEX(coordonnées_cadran_plat($D52,S$10,$C$3,$C$2,$C$5,$C$6,0,0,$C$4),1,2) -> 541.9508399 | U52: =INDEX(coordonnées_cadran_plat($D52,U$10,$C$3,$C$2,$C$5,$C$6,0,0,$C$4),1,1) -> 1425.099433 | V52: =INDEX(coordonnées_cadran_plat($D52,U$10,$C$3,$C$2,$C$5,$C$6,0,0,$C$4),1,2) -> 1121.249547 | W52: =INDEX(coordonnées_cadran_plat($D52,W$10,$C$3,$C$2,$C$5,$C$6,0,0,$C$4),1,1) -> 2258.227732 | X52: =INDEX(coordonnées_cadran_plat($D52,W$10,$C$3,$C$2,$C$5,$C$6,0,0,$C$4),1,2) -> 2699.242372
B53: 22 | C53: 5 | D53: 2010-05-22 | E53: =INDEX(heures_limites_cadran($D53,$C$3,$C$2,$C$5),1,1)/24 -> 09:00:00 | F53: =INDEX(heures_limites_cadran($D53,$C$3,$C$2,$C$5),1,2)/24 -> 17:30:00 | G53: =INDEX(coordonnées_cadran_plat($D53,$G$10,$C$3,$C$2,$C$5,$C$6,0,0,$C$4),1,1) -> 3997.162428 | H53: =INDEX(coordonnées_cadran_plat($D53,$G$10,$C$3,$C$2,$C$5,$C$6,0,0,$C$4),1,2) -> -6780.489566 | I53: =INDEX(coordonnées_cadran_plat($D53,I$10,$C$3,$C$2,$C$5,$C$6,0,0,$C$4),1,1) -> 1617.858729 | J53: =INDEX(coordonnées_cadran_plat($D53,I$10,$C$3,$C$2,$C$5,$C$6,0,0,$C$4),1,2) -> -1818.432626 | K53: =INDEX(coordonnées_cadran_plat($D53,K$10,$C$3,$C$2,$C$5,$C$6,0,0,$C$4),1,1) -> 1234.666286 | L53: =INDEX(coordonnées_cadran_plat($D53,K$10,$C$3,$C$2,$C$5,$C$6,0,0,$C$4),1,2) -> -887.9115705 | M53: =INDEX(coordonnées_cadran_plat($D53,M$10,$C$3,$C$2,$C$5,$C$6,0,0,$C$4),1,1) -> 1103.779464 | N53: =INDEX(coordonnées_cadran_plat($D53,M$10,$C$3,$C$2,$C$5,$C$6,0,0,$C$4),1,2) -> -434.8505833 | O53: =INDEX(coordonnées_cadran_plat($D53,O$10,$C$3,$C$2,$C$5,$C$6,0,0,$C$4),1,1) -> 1066.113463 | P53: =INDEX(coordonnées_cadran_plat($D53,O$10,$C$3,$C$2,$C$5,$C$6,0,0,$C$4),1,2) -> -113.2489836 | Q53: =INDEX(coordonnées_cadran_plat($D53,Q$10,$C$3,$C$2,$C$5,$C$6,0,0,$C$4),1,1) -> 1090.561437 | R53: =INDEX(coordonnées_cadran_plat($D53,Q$10,$C$3,$C$2,$C$5,$C$6,0,0,$C$4),1,2) -> 185.7812528 | S53: =INDEX(coordonnées_cadran_plat($D53,S$10,$C$3,$C$2,$C$5,$C$6,0,0,$C$4),1,1) -> 1189.340779 | T53: =INDEX(coordonnées_cadran_plat($D53,S$10,$C$3,$C$2,$C$5,$C$6,0,0,$C$4),1,2) -> 544.7677162 | U53: =INDEX(coordonnées_cadran_plat($D53,U$10,$C$3,$C$2,$C$5,$C$6,0,0,$C$4),1,1) -> 1442.129244 | V53: =INDEX(coordonnées_cadran_plat($D53,U$10,$C$3,$C$2,$C$5,$C$6,0,0,$C$4),1,2) -> 1129.729305 | W53: =INDEX(coordonnées_cadran_plat($D53,W$10,$C$3,$C$2,$C$5,$C$6,0,0,$C$4),1,1) -> 2302.751356 | X53: =INDEX(coordonnées_cadran_plat($D53,W$10,$C$3,$C$2,$C$5,$C$6,0,0,$C$4),1,2) -> 2738.98618
B54: 23 | C54: 5 | D54: 2010-05-23 | E54: =INDEX(heures_limites_cadran($D54,$C$3,$C$2,$C$5),1,1)/24 -> 09:00:00 | F54: =INDEX(heures_limites_cadran($D54,$C$3,$C$2,$C$5),1,2)/24 -> 17:30:00 | G54: =INDEX(coordonnées_cadran_plat($D54,$G$10,$C$3,$C$2,$C$5,$C$6,0,0,$C$4),1,1) -> 4175.884577 | H54: =INDEX(coordonnées_cadran_plat($D54,$G$10,$C$3,$C$2,$C$5,$C$6,0,0,$C$4),1,2) -> -7051.159978 | I54: =INDEX(coordonnées_cadran_plat($D54,I$10,$C$3,$C$2,$C$5,$C$6,0,0,$C$4),1,1) -> 1643.627099 | J54: =INDEX(coordonnées_cadran_plat($D54,I$10,$C$3,$C$2,$C$5,$C$6,0,0,$C$4),1,2) -> -1841.073511 | K54: =INDEX(coordonnées_cadran_plat($D54,K$10,$C$3,$C$2,$C$5,$C$6,0,0,$C$4),1,1) -> 1248.195464 | L54: =INDEX(coordonnées_cadran_plat($D54,K$10,$C$3,$C$2,$C$5,$C$6,0,0,$C$4),1,2) -> -895.2612218 | M54: =INDEX(coordonnées_cadran_plat($D54,M$10,$C$3,$C$2,$C$5,$C$6,0,0,$C$4),1,1) -> 1113.800111 | N54: =INDEX(coordonnées_cadran_plat($D54,M$10,$C$3,$C$2,$C$5,$C$6,0,0,$C$4),1,2) -> -437.9914292 | O54: =INDEX(coordonnées_cadran_plat($D54,O$10,$C$3,$C$2,$C$5,$C$6,0,0,$C$4),1,1) -> 1075.042445 | P54: =INDEX(coordonnées_cadran_plat($D54,O$10,$C$3,$C$2,$C$5,$C$6,0,0,$C$4),1,2) -> -114.3724019 | Q54: =INDEX(coordonnées_cadran_plat($D54,Q$10,$C$3,$C$2,$C$5,$C$6,0,0,$C$4),1,1) -> 1099.752813 | R54: =INDEX(coordonnées_cadran_plat($D54,Q$10,$C$3,$C$2,$C$5,$C$6,0,0,$C$4),1,2) -> 186.2529958 | S54: =INDEX(coordonnées_cadran_plat($D54,S$10,$C$3,$C$2,$C$5,$C$6,0,0,$C$4),1,1) -> 1200.389213 | T54: =INDEX(coordonnées_cadran_plat($D54,S$10,$C$3,$C$2,$C$5,$C$6,0,0,$C$4),1,2) -> 547.4653694 | U54: =INDEX(coordonnées_cadran_plat($D54,U$10,$C$3,$C$2,$C$5,$C$6,0,0,$C$4),1,1) -> 1458.892989 | V54: =INDEX(coordonnées_cadran_plat($D54,U$10,$C$3,$C$2,$C$5,$C$6,0,0,$C$4),1,2) -> 1137.963713 | W54: =INDEX(coordonnées_cadran_plat($D54,W$10,$C$3,$C$2,$C$5,$C$6,0,0,$C$4),1,1) -> 2347.04386 | X54: =INDEX(coordonnées_cadran_plat($D54,W$10,$C$3,$C$2,$C$5,$C$6,0,0,$C$4),1,2) -> 2778.231148
B55: 24 | C55: 5 | D55: 2010-05-24 | E55: =INDEX(heures_limites_cadran($D55,$C$3,$C$2,$C$5),1,1)/24 -> 09:00:00 | F55: =INDEX(heures_limites_cadran($D55,$C$3,$C$2,$C$5),1,2)/24 -> 17:30:00 | G55: =INDEX(coordonnées_cadran_plat($D55,$G$10,$C$3,$C$2,$C$5,$C$6,0,0,$C$4),1,1) -> 4365.499735 | H55: =INDEX(coordonnées_cadran_plat($D55,$G$10,$C$3,$C$2,$C$5,$C$6,0,0,$C$4),1,2) -> -7339.171535 | I55: =INDEX(coordonnées_cadran_plat($D55,I$10,$C$3,$C$2,$C$5,$C$6,0,0,$C$4),1,1) -> 1669.407468 | J55: =INDEX(coordonnées_cadran_plat($D55,I$10,$C$3,$C$2,$C$5,$C$6,0,0,$C$4),1,2) -> -1863.895462 | K55: =INDEX(coordonnées_cadran_plat($D55,K$10,$C$3,$C$2,$C$5,$C$6,0,0,$C$4),1,1) -> 1261.583846 | L55: =INDEX(coordonnées_cadran_plat($D55,K$10,$C$3,$C$2,$C$5,$C$6,0,0,$C$4),1,2) -> -902.6215871 | M55: =INDEX(coordonnées_cadran_plat($D55,M$10,$C$3,$C$2,$C$5,$C$6,0,0,$C$4),1,1) -> 1123.66936 | N55: =INDEX(coordonnées_cadran_plat($D55,M$10,$C$3,$C$2,$C$5,$C$6,0,0,$C$4),1,2) -> -441.1467275 | O55: =INDEX(coordonnées_cadran_plat($D55,O$10,$C$3,$C$2,$C$5,$C$6,0,0,$C$4),1,1) -> 1083.813822 | P55: =INDEX(coordonnées_cadran_plat($D55,O$10,$C$3,$C$2,$C$5,$C$6,0,0,$C$4),1,2) -> -115.5302164 | Q55: =INDEX(coordonnées_cadran_plat($D55,Q$10,$C$3,$C$2,$C$5,$C$6,0,0,$C$4),1,1) -> 1108.769455 | R55: =INDEX(coordonnées_cadran_plat($D55,Q$10,$C$3,$C$2,$C$5,$C$6,0,0,$C$4),1,2) -> 186.6590304 | S55: =INDEX(coordonnées_cadran_plat($D55,S$10,$C$3,$C$2,$C$5,$C$6,0,0,$C$4),1,1) -> 1211.224425 | T55: =INDEX(coordonnées_cadran_plat($D55,S$10,$C$3,$C$2,$C$5,$C$6,0,0,$C$4),1,2) -> 550.0393374 | U55: =INDEX(coordonnées_cadran_plat($D55,U$10,$C$3,$C$2,$C$5,$C$6,0,0,$C$4),1,1) -> 1475.360946 | V55: =INDEX(coordonnées_cadran_plat($D55,U$10,$C$3,$C$2,$C$5,$C$6,0,0,$C$4),1,2) -> 1145.936662 | W55: =INDEX(coordonnées_cadran_plat($D55,W$10,$C$3,$C$2,$C$5,$C$6,0,0,$C$4),1,1) -> 2390.993779 | X55: =INDEX(coordonnées_cadran_plat($D55,W$10,$C$3,$C$2,$C$5,$C$6,0,0,$C$4),1,2) -> 2816.86856
B56: 25 | C56: 5 | D56: 2010-05-25 | E56: =INDEX(heures_limites_cadran($D56,$C$3,$C$2,$C$5),1,1)/24 -> 09:00:00 | F56: =INDEX(heures_limites_cadran($D56,$C$3,$C$2,$C$5),1,2)/24 -> 17:30:00 | G56: =INDEX(coordonnées_cadran_plat($D56,$G$10,$C$3,$C$2,$C$5,$C$6,0,0,$C$4),1,1) -> 4566.838526 | H56: =INDEX(coordonnées_cadran_plat($D56,$G$10,$C$3,$C$2,$C$5,$C$6,0,0,$C$4),1,2) -> -7645.876989 | I56: =INDEX(coordonnées_cadran_plat($D56,I$10,$C$3,$C$2,$C$5,$C$6,0,0,$C$4),1,1) -> 1695.166574 | J56: =INDEX(coordonnées_cadran_plat($D56,I$10,$C$3,$C$2,$C$5,$C$6,0,0,$C$4),1,2) -> -1886.873302 | K56: =INDEX(coordonnées_cadran_plat($D56,K$10,$C$3,$C$2,$C$5,$C$6,0,0,$C$4),1,1) -> 1274.813854 | L56: =INDEX(coordonnées_cadran_plat($D56,K$10,$C$3,$C$2,$C$5,$C$6,0,0,$C$4),1,2) -> -909.9840256 | M56: =INDEX(coordonnées_cadran_plat($D56,M$10,$C$3,$C$2,$C$5,$C$6,0,0,$C$4),1,1) -> 1133.374614 | N56: =INDEX(coordonnées_cadran_plat($D56,M$10,$C$3,$C$2,$C$5,$C$6,0,0,$C$4),1,2) -> -444.3128723 | O56: =INDEX(coordonnées_cadran_plat($D56,O$10,$C$3,$C$2,$C$5,$C$6,0,0,$C$4),1,1) -> 1092.416341 | P56: =INDEX(coordonnées_cadran_plat($D56,O$10,$C$3,$C$2,$C$5,$C$6,0,0,$C$4),1,2) -> -116.7212066 | Q56: =INDEX(coordonnées_cadran_plat($D56,Q$10,$C$3,$C$2,$C$5,$C$6,0,0,$C$4),1,1) -> 1117.599227 | R56: =INDEX(coordonnées_cadran_plat($D56,Q$10,$C$3,$C$2,$C$5,$C$6,0,0,$C$4),1,2) -> 186.9985401 | S56: =INDEX(coordonnées_cadran_plat($D56,S$10,$C$3,$C$2,$C$5,$C$6,0,0,$C$4),1,1) -> 1221.830203 | T56: =INDEX(coordonnées_cadran_plat($D56,S$10,$C$3,$C$2,$C$5,$C$6,0,0,$C$4),1,2) -> 552.4852984 | U56: =INDEX(coordonnées_cadran_plat($D56,U$10,$C$3,$C$2,$C$5,$C$6,0,0,$C$4),1,1) -> 1491.502992 | V56: =INDEX(coordonnées_cadran_plat($D56,U$10,$C$3,$C$2,$C$5,$C$6,0,0,$C$4),1,2) -> 1153.632162 | W56: =INDEX(coordonnées_cadran_plat($D56,W$10,$C$3,$C$2,$C$5,$C$6,0,0,$C$4),1,1) -> 2434.484044 | X56: =INDEX(coordonnées_cadran_plat($D56,W$10,$C$3,$C$2,$C$5,$C$6,0,0,$C$4),1,2) -> 2854.785668
B57: 26 | C57: 5 | D57: 2010-05-26 | E57: =INDEX(heures_limites_cadran($D57,$C$3,$C$2,$C$5),1,1)/24 -> 09:00:00 | F57: =INDEX(heures_limites_cadran($D57,$C$3,$C$2,$C$5),1,2)/24 -> 17:30:00 | G57: =INDEX(coordonnées_cadran_plat($D57,$G$10,$C$3,$C$2,$C$5,$C$6,0,0,$C$4),1,1) -> 4780.797489 | H57: =INDEX(coordonnées_cadran_plat($D57,$G$10,$C$3,$C$2,$C$5,$C$6,0,0,$C$4),1,2) -> -7972.739708 | I57: =INDEX(coordonnées_cadran_plat($D57,I$10,$C$3,$C$2,$C$5,$C$6,0,0,$C$4),1,1) -> 1720.868792 | J57: =INDEX(coordonnées_cadran_plat($D57,I$10,$C$3,$C$2,$C$5,$C$6,0,0,$C$4),1,2) -> -1909.979493 | K57: =INDEX(coordonnées_cadran_plat($D57,K$10,$C$3,$C$2,$C$5,$C$6,0,0,$C$4),1,1) -> 1287.86735 | L57: =INDEX(coordonnées_cadran_plat($D57,K$10,$C$3,$C$2,$C$5,$C$6,0,0,$C$4),1,2) -> -917.3394139 | M57: =INDEX(coordonnées_cadran_plat($D57,M$10,$C$3,$C$2,$C$5,$C$6,0,0,$C$4),1,1) -> 1142.903048 | N57: =INDEX(coordonnées_cadran_plat($D57,M$10,$C$3,$C$2,$C$5,$C$6,0,0,$C$4),1,2) -> -447.4860585 | O57: =INDEX(coordonnées_cadran_plat($D57,O$10,$C$3,$C$2,$C$5,$C$6,0,0,$C$4),1,1) -> 1100.838638 | P57: =INDEX(coordonnées_cadran_plat($D57,O$10,$C$3,$C$2,$C$5,$C$6,0,0,$C$4),1,2) -> -117.9440218 | Q57: =INDEX(coordonnées_cadran_plat($D57,Q$10,$C$3,$C$2,$C$5,$C$6,0,0,$C$4),1,1) -> 1126.229927 | R57: =INDEX(coordonnées_cadran_plat($D57,Q$10,$C$3,$C$2,$C$5,$C$6,0,0,$C$4),1,2) -> 187.2708337 | S57: =INDEX(coordonnées_cadran_plat($D57,S$10,$C$3,$C$2,$C$5,$C$6,0,0,$C$4),1,1) -> 1232.190262 | T57: =INDEX(coordonnées_cadran_plat($D57,S$10,$C$3,$C$2,$C$5,$C$6,0,0,$C$4),1,2) -> 554.7990915 | U57: =INDEX(coordonnées_cadran_plat($D57,U$10,$C$3,$C$2,$C$5,$C$6,0,0,$C$4),1,1) -> 1507.288724 | V57: =INDEX(coordonnées_cadran_plat($D57,U$10,$C$3,$C$2,$C$5,$C$6,0,0,$C$4),1,2) -> 1161.034417 | W57: =INDEX(coordonnées_cadran_plat($D57,W$10,$C$3,$C$2,$C$5,$C$6,0,0,$C$4),1,1) -> 2477.392445 | X57: =INDEX(coordonnées_cadran_plat($D57,W$10,$C$3,$C$2,$C$5,$C$6,0,0,$C$4),1,2) -> 2891.866246
B58: 27 | C58: 5 | D58: 2010-05-27 | E58: =INDEX(heures_limites_cadran($D58,$C$3,$C$2,$C$5),1,1)/24 -> 09:00:00 | F58: =INDEX(heures_limites_cadran($D58,$C$3,$C$2,$C$5),1,2)/24 -> 17:30:00 | G58: =INDEX(coordonnées_cadran_plat($D58,$G$10,$C$3,$C$2,$C$5,$C$6,0,0,$C$4),1,1) -> 5008.342648 | H58: =INDEX(coordonnées_cadran_plat($D58,$G$10,$C$3,$C$2,$C$5,$C$6,0,0,$C$4),1,2) -> -8321.340324 | I58: =INDEX(coordonnées_cadran_plat($D58,I$10,$C$3,$C$2,$C$5,$C$6,0,0,$C$4),1,1) -> 1746.47611 | J58: =INDEX(coordonnées_cadran_plat($D58,I$10,$C$3,$C$2,$C$5,$C$6,0,0,$C$4),1,2) -> -1933.184074 | K58: =INDEX(coordonnées_cadran_plat($D58,K$10,$C$3,$C$2,$C$5,$C$6,0,0,$C$4),1,1) -> 1300.725661 | L58: =INDEX(coordonnées_cadran_plat($D58,K$10,$C$3,$C$2,$C$5,$C$6,0,0,$C$4),1,2) -> -924.6781503 | M58: =INDEX(coordonnées_cadran_plat($D58,M$10,$C$3,$C$2,$C$5,$C$6,0,0,$C$4),1,1) -> 1152.241647 | N58: =INDEX(coordonnées_cadran_plat($D58,M$10,$C$3,$C$2,$C$5,$C$6,0,0,$C$4),1,2) -> -450.6622856 | O58: =INDEX(coordonnées_cadran_plat($D58,O$10,$C$3,$C$2,$C$5,$C$6,0,0,$C$4),1,1) -> 1109.069268 | P58: =INDEX(coordonnées_cadran_plat($D58,O$10,$C$3,$C$2,$C$5,$C$6,0,0,$C$4),1,2) -> -119.1971801 | Q58: =INDEX(coordonnées_cadran_plat($D58,Q$10,$C$3,$C$2,$C$5,$C$6,0,0,$C$4),1,1) -> 1134.649323 | R58: =INDEX(coordonnées_cadran_plat($D58,Q$10,$C$3,$C$2,$C$5,$C$6,0,0,$C$4),1,2) -> 187.4753514 | S58: =INDEX(coordonnées_cadran_plat($D58,S$10,$C$3,$C$2,$C$5,$C$6,0,0,$C$4),1,1) -> 1242.288307 | T58: =INDEX(coordonnées_cadran_plat($D58,S$10,$C$3,$C$2,$C$5,$C$6,0,0,$C$4),1,2) -> 556.976737 | U58: =INDEX(coordonnées_cadran_plat($D58,U$10,$C$3,$C$2,$C$5,$C$6,0,0,$C$4),1,1) -> 1522.68758 | V58: =INDEX(coordonnées_cadran_plat($D58,U$10,$C$3,$C$2,$C$5,$C$6,0,0,$C$4),1,2) -> 1168.127906 | W58: =INDEX(coordonnées_cadran_plat($D58,W$10,$C$3,$C$2,$C$5,$C$6,0,0,$C$4),1,1) -> 2519.59221 | X58: =INDEX(coordonnées_cadran_plat($D58,W$10,$C$3,$C$2,$C$5,$C$6,0,0,$C$4),1,2) -> 2927.99124
B59: 28 | C59: 5 | D59: 2010-05-28 | E59: =INDEX(heures_limites_cadran($D59,$C$3,$C$2,$C$5),1,1)/24 -> 09:00:00 | F59: =INDEX(heures_limites_cadran($D59,$C$3,$C$2,$C$5),1,2)/24 -> 17:30:00 | G59: =INDEX(coordonnées_cadran_plat($D59,$G$10,$C$3,$C$2,$C$5,$C$6,0,0,$C$4),1,1) -> 5250.512561 | H59: =INDEX(coordonnées_cadran_plat($D59,$G$10,$C$3,$C$2,$C$5,$C$6,0,0,$C$4),1,2) -> -8693.382728 | I59: =INDEX(coordonnées_cadran_plat($D59,I$10,$C$3,$C$2,$C$5,$C$6,0,0,$C$4),1,1) -> 1771.94811 | J59: =INDEX(coordonnées_cadran_plat($D59,I$10,$C$3,$C$2,$C$5,$C$6,0,0,$C$4),1,2) -> -1956.454599 | K59: =INDEX(coordonnées_cadran_plat($D59,K$10,$C$3,$C$2,$C$5,$C$6,0,0,$C$4),1,1) -> 1313.369619 | L59: =INDEX(coordonnées_cadran_plat($D59,K$10,$C$3,$C$2,$C$5,$C$6,0,0,$C$4),1,2) -> -931.9901637 | M59: =INDEX(coordonnées_cadran_plat($D59,M$10,$C$3,$C$2,$C$5,$C$6,0,0,$C$4),1,1) -> 1161.377235 | N59: =INDEX(coordonnées_cadran_plat($D59,M$10,$C$3,$C$2,$C$5,$C$6,0,0,$C$4),1,2) -> -453.8373618 | O59: =INDEX(coordonnées_cadran_plat($D59,O$10,$C$3,$C$2,$C$5,$C$6,0,0,$C$4),1,1) -> 1117.096737 | P59: =INDEX(coordonnées_cadran_plat($D59,O$10,$C$3,$C$2,$C$5,$C$6,0,0,$C$4),1,2) -> -120.4790684 | Q59: =INDEX(coordonnées_cadran_plat($D59,Q$10,$C$3,$C$2,$C$5,$C$6,0,0,$C$4),1,1) -> 1142.845191 | R59: =INDEX(coordonnées_cadran_plat($D59,Q$10,$C$3,$C$2,$C$5,$C$6,0,0,$C$4),1,2) -> 187.6116707 | S59: =INDEX(coordonnées_cadran_plat($D59,S$10,$C$3,$C$2,$C$5,$C$6,0,0,$C$4),1,1) -> 1252.108086 | T59: =INDEX(coordonnées_cadran_plat($D59,S$10,$C$3,$C$2,$C$5,$C$6,0,0,$C$4),1,2) -> 559.0144564 | U59: =INDEX(coordonnées_cadran_plat($D59,U$10,$C$3,$C$2,$C$5,$C$6,0,0,$C$4),1,1) -> 1537.668973 | V59: =INDEX(coordonnées_cadran_plat($D59,U$10,$C$3,$C$2,$C$5,$C$6,0,0,$C$4),1,2) -> 1174.897467 | W59: =INDEX(coordonnées_cadran_plat($D59,W$10,$C$3,$C$2,$C$5,$C$6,0,0,$C$4),1,1) -> 2560.95268 | X59: =INDEX(coordonnées_cadran_plat($D59,W$10,$C$3,$C$2,$C$5,$C$6,0,0,$C$4),1,2) -> 2963.039507
B60: 29 | C60: 5 | D60: 2010-05-29 | E60: =INDEX(heures_limites_cadran($D60,$C$3,$C$2,$C$5),1,1)/24 -> 09:00:00 | F60: =INDEX(heures_limites_cadran($D60,$C$3,$C$2,$C$5),1,2)/24 -> 17:30:00 | G60: =INDEX(coordonnées_cadran_plat($D60,$G$10,$C$3,$C$2,$C$5,$C$6,0,0,$C$4),1,1) -> 5508.42056 | H60: =INDEX(coordonnées_cadran_plat($D60,$G$10,$C$3,$C$2,$C$5,$C$6,0,0,$C$4),1,2) -> -9090.698927 | I60: =INDEX(coordonnées_cadran_plat($D60,I$10,$C$3,$C$2,$C$5,$C$6,0,0,$C$4),1,1) -> 1797.241966 | J60: =INDEX(coordonnées_cadran_plat($D60,I$10,$C$3,$C$2,$C$5,$C$6,0,0,$C$4),1,2) -> -1979.756098 | K60: =INDEX(coordonnées_cadran_plat($D60,K$10,$C$3,$C$2,$C$5,$C$6,0,0,$C$4),1,1) -> 1325.779601 | L60: =INDEX(coordonnées_cadran_plat($D60,K$10,$C$3,$C$2,$C$5,$C$6,0,0,$C$4),1,2) -> -939.2649253 | M60: =INDEX(coordonnées_cadran_plat($D60,M$10,$C$3,$C$2,$C$5,$C$6,0,0,$C$4),1,1) -> 1170.296509 | N60: =INDEX(coordonnées_cadran_plat($D60,M$10,$C$3,$C$2,$C$5,$C$6,0,0,$C$4),1,2) -> -457.0069102 | O60: =INDEX(coordonnées_cadran_plat($D60,O$10,$C$3,$C$2,$C$5,$C$6,0,0,$C$4),1,1) -> 1124.909535 | P60: =INDEX(coordonnées_cadran_plat($D60,O$10,$C$3,$C$2,$C$5,$C$6,0,0,$C$4),1,2) -> -121.7879436 | Q60: =INDEX(coordonnées_cadran_plat($D60,Q$10,$C$3,$C$2,$C$5,$C$6,0,0,$C$4),1,1) -> 1150.805357 | R60: =INDEX(coordonnées_cadran_plat($D60,Q$10,$C$3,$C$2,$C$5,$C$6,0,0,$C$4),1,2) -> 187.6795126 | S60: =INDEX(coordonnées_cadran_plat($D60,S$10,$C$3,$C$2,$C$5,$C$6,0,0,$C$4),1,1) -> 1261.633456 | T60: =INDEX(coordonnées_cadran_plat($D60,S$10,$C$3,$C$2,$C$5,$C$6,0,0,$C$4),1,2) -> 560.9086931 | U60: =INDEX(coordonnées_cadran_plat($D60,U$10,$C$3,$C$2,$C$5,$C$6,0,0,$C$4),1,1) -> 1552.202431 | V60: =INDEX(coordonnées_cadran_plat($D60,U$10,$C$3,$C$2,$C$5,$C$6,0,0,$C$4),1,2) -> 1181.328373 | W60: =INDEX(coordonnées_cadran_plat($D60,W$10,$C$3,$C$2,$C$5,$C$6,0,0,$C$4),1,1) -> 2601.340089 | X60: =INDEX(coordonnées_cadran_plat($D60,W$10,$C$3,$C$2,$C$5,$C$6,0,0,$C$4),1,2) -> 2996.888648
B61: 30 | C61: 5 | D61: 2010-05-30 | E61: =INDEX(heures_limites_cadran($D61,$C$3,$C$2,$C$5),1,1)/24 -> 09:00:00 | F61: =INDEX(heures_limites_cadran($D61,$C$3,$C$2,$C$5),1,2)/24 -> 17:30:00 | G61: =INDEX(coordonnées_cadran_plat($D61,$G$10,$C$3,$C$2,$C$5,$C$6,0,0,$C$4),1,1) -> 5783.255743 | H61: =INDEX(coordonnées_cadran_plat($D61,$G$10,$C$3,$C$2,$C$5,$C$6,0,0,$C$4),1,2) -> -9515.252136 | I61: =INDEX(coordonnées_cadran_plat($D61,I$10,$C$3,$C$2,$C$5,$C$6,0,0,$C$4),1,1) -> 1822.312472 | J61: =INDEX(coordonnées_cadran_plat($D61,I$10,$C$3,$C$2,$C$5,$C$6,0,0,$C$4),1,2) -> -2003.051052 | K61: =INDEX(coordonnées_cadran_plat($D61,K$10,$C$3,$C$2,$C$5,$C$6,0,0,$C$4),1,1) -> 1337.93558 | L61: =INDEX(coordonnées_cadran_plat($D61,K$10,$C$3,$C$2,$C$5,$C$6,0,0,$C$4),1,2) -> -946.4914629 | M61: =INDEX(coordonnées_cadran_plat($D61,M$10,$C$3,$C$2,$C$5,$C$6,0,0,$C$4),1,1) -> 1178.986077 | N61: =INDEX(coordonnées_cadran_plat($D61,M$10,$C$3,$C$2,$C$5,$C$6,0,0,$C$4),1,2) -> -460.1663755 | O61: =INDEX(coordonnées_cadran_plat($D61,O$10,$C$3,$C$2,$C$5,$C$6,0,0,$C$4),1,1) -> 1132.496173 | P61: =INDEX(coordonnées_cadran_plat($D61,O$10,$C$3,$C$2,$C$5,$C$6,0,0,$C$4),1,2) -> -123.121933 | Q61: =INDEX(coordonnées_cadran_plat($D61,Q$10,$C$3,$C$2,$C$5,$C$6,0,0,$C$4),1,1) -> 1158.517734 | R61: =INDEX(coordonnées_cadran_plat($D61,Q$10,$C$3,$C$2,$C$5,$C$6,0,0,$C$4),1,2) -> 187.6787463 | S61: =INDEX(coordonnées_cadran_plat($D61,S$10,$C$3,$C$2,$C$5,$C$6,0,0,$C$4),1,1) -> 1270.84844 | T61: =INDEX(coordonnées_cadran_plat($D61,S$10,$C$3,$C$2,$C$5,$C$6,0,0,$C$4),1,2) -> 562.6561316 | U61: =INDEX(coordonnées_cadran_plat($D61,U$10,$C$3,$C$2,$C$5,$C$6,0,0,$C$4),1,1) -> 1566.257743 | V61: =INDEX(coordonnées_cadran_plat($D61,U$10,$C$3,$C$2,$C$5,$C$6,0,0,$C$4),1,2) -> 1187.406425 | W61: =INDEX(coordonnées_cadran_plat($D61,W$10,$C$3,$C$2,$C$5,$C$6,0,0,$C$4),1,1) -> 2640.618456 | X61: =INDEX(coordonnées_cadran_plat($D61,W$10,$C$3,$C$2,$C$5,$C$6,0,0,$C$4),1,2) -> 3029.415916
B62: 31 | C62: 5 | D62: 2010-05-31 | E62: =INDEX(heures_limites_cadran($D62,$C$3,$C$2,$C$5),1,1)/24 -> 09:00:00 | F62: =INDEX(heures_limites_cadran($D62,$C$3,$C$2,$C$5),1,2)/24 -> 17:30:00 | G62: =INDEX(coordonnées_cadran_plat($D62,$G$10,$C$3,$C$2,$C$5,$C$6,0,0,$C$4),1,1) -> 6076.282189 | H62: =INDEX(coordonnées_cadran_plat($D62,$G$10,$C$3,$C$2,$C$5,$C$6,0,0,$C$4),1,2) -> -9969.137246 | I62: =INDEX(coordonnées_cadran_plat($D62,I$10,$C$3,$C$2,$C$5,$C$6,0,0,$C$4),1,1) -> 1847.112076 | J62: =INDEX(coordonnées_cadran_plat($D62,I$10,$C$3,$C$2,$C$5,$C$6,0,0,$C$4),1,2) -> -2026.299379 | K62: =INDEX(coordonnées_cadran_plat($D62,K$10,$C$3,$C$2,$C$5,$C$6,0,0,$C$4),1,1) -> 1349.817172 | L62: =INDEX(coordonnées_cadran_plat($D62,K$10,$C$3,$C$2,$C$5,$C$6,0,0,$C$4),1,2) -> -953.6583806 | M62: =INDEX(coordonnées_cadran_plat($D62,M$10,$C$3,$C$2,$C$5,$C$6,0,0,$C$4),1,1) -> 1187.432501 | N62: =INDEX(coordonnées_cadran_plat($D62,M$10,$C$3,$C$2,$C$5,$C$6,0,0,$C$4),1,2) -> -463.3110324 | O62: =INDEX(coordonnées_cadran_plat($D62,O$10,$C$3,$C$2,$C$5,$C$6,0,0,$C$4),1,1) -> 1139.845218 | P62: =INDEX(coordonnées_cadran_plat($D62,O$10,$C$3,$C$2,$C$5,$C$6,0,0,$C$4),1,2) -> -124.4790368 | Q62: =INDEX(coordonnées_cadran_plat($D62,Q$10,$C$3,$C$2,$C$5,$C$6,0,0,$C$4),1,1) -> 1165.970368 | R62: =INDEX(coordonnées_cadran_plat($D62,Q$10,$C$3,$C$2,$C$5,$C$6,0,0,$C$4),1,2) -> 187.6093937 | S62: =INDEX(coordonnées_cadran_plat($D62,S$10,$C$3,$C$2,$C$5,$C$6,0,0,$C$4),1,1) -> 1279.737292 | T62: =INDEX(coordonnées_cadran_plat($D62,S$10,$C$3,$C$2,$C$5,$C$6,0,0,$C$4),1,2) -> 564.2537172 | U62: =INDEX(coordonnées_cadran_plat($D62,U$10,$C$3,$C$2,$C$5,$C$6,0,0,$C$4),1,1) -> 1579.805107 | V62: =INDEX(coordonnées_cadran_plat($D62,U$10,$C$3,$C$2,$C$5,$C$6,0,0,$C$4),1,2) -> 1193.118031 | W62: =INDEX(coordonnées_cadran_plat($D62,W$10,$C$3,$C$2,$C$5,$C$6,0,0,$C$4),1,1) -> 2678.650558 | X62: =INDEX(coordonnées_cadran_plat($D62,W$10,$C$3,$C$2,$C$5,$C$6,0,0,$C$4),1,2) -> 3060.499206
B63: 1 | C63: 6 | D63: 2010-06-01 | E63: =INDEX(heures_limites_cadran($D63,$C$3,$C$2,$C$5),1,1)/24 -> 09:00:00 | F63: =INDEX(heures_limites_cadran($D63,$C$3,$C$2,$C$5),1,2)/24 -> 17:30:00 | G63: =INDEX(coordonnées_cadran_plat($D63,$G$10,$C$3,$C$2,$C$5,$C$6,0,0,$C$4),1,1) -> 6388.835673 | H63: =INDEX(coordonnées_cadran_plat($D63,$G$10,$C$3,$C$2,$C$5,$C$6,0,0,$C$4),1,2) -> -10454.57757 | I63: =INDEX(coordonnées_cadran_plat($D63,I$10,$C$3,$C$2,$C$5,$C$6,0,0,$C$4),1,1) -> 1871.590953 | J63: =INDEX(coordonnées_cadran_plat($D63,I$10,$C$3,$C$2,$C$5,$C$6,0,0,$C$4),1,2) -> -2049.458451 | K63: =INDEX(coordonnées_cadran_plat($D63,K$10,$C$3,$C$2,$C$5,$C$6,0,0,$C$4),1,1) -> 1361.403703 | L63: =INDEX(coordonnées_cadran_plat($D63,K$10,$C$3,$C$2,$C$5,$C$6,0,0,$C$4),1,2) -> -960.7538801 | M63: =INDEX(coordonnées_cadran_plat($D63,M$10,$C$3,$C$2,$C$5,$C$6,0,0,$C$4),1,1) -> 1195.622336 | N63: =INDEX(coordonnées_cadran_plat($D63,M$10,$C$3,$C$2,$C$5,$C$6,0,0,$C$4),1,2) -> -466.435995 | O63: =INDEX(coordonnées_cadran_plat($D63,O$10,$C$3,$C$2,$C$5,$C$6,0,0,$C$4),1,1) -> 1146.945335 | P63: =INDEX(coordonnées_cadran_plat($D63,O$10,$C$3,$C$2,$C$5,$C$6,0,0,$C$4),1,2) -> -125.8571308 | Q63: =INDEX(coordonnées_cadran_plat($D63,Q$10,$C$3,$C$2,$C$5,$C$6,0,0,$C$4),1,1) -> 1173.151482 | R63: =INDEX(coordonnées_cadran_plat($D63,Q$10,$C$3,$C$2,$C$5,$C$6,0,0,$C$4),1,2) -> 187.4716341 | S63: =INDEX(coordonnées_cadran_plat($D63,S$10,$C$3,$C$2,$C$5,$C$6,0,0,$C$4),1,1) -> 1288.284568 | T63: =INDEX(coordonnées_cadran_plat($D63,S$10,$C$3,$C$2,$C$5,$C$6,0,0,$C$4),1,2) -> 565.6986743 | U63: =INDEX(coordonnées_cadran_plat($D63,U$10,$C$3,$C$2,$C$5,$C$6,0,0,$C$4),1,1) -> 1592.815288 | V63: =INDEX(coordonnées_cadran_plat($D63,U$10,$C$3,$C$2,$C$5,$C$6,0,0,$C$4),1,2) -> 1198.450293 | W63: =INDEX(coordonnées_cadran_plat($D63,W$10,$C$3,$C$2,$C$5,$C$6,0,0,$C$4),1,1) -> 2715.299008 | X63: =INDEX(coordonnées_cadran_plat($D63,W$10,$C$3,$C$2,$C$5,$C$6,0,0,$C$4),1,2) -> 3090.018107
B64: 2 | C64: 6 | D64: 2010-06-02 | E64: =INDEX(heures_limites_cadran($D64,$C$3,$C$2,$C$5),1,1)/24 -> 09:00:00 | F64: =INDEX(heures_limites_cadran($D64,$C$3,$C$2,$C$5),1,2)/24 -> 17:30:00 | G64: =INDEX(coordonnées_cadran_plat($D64,$G$10,$C$3,$C$2,$C$5,$C$6,0,0,$C$4),1,1) -> 6722.316958 | H64: =INDEX(coordonnées_cadran_plat($D64,$G$10,$C$3,$C$2,$C$5,$C$6,0,0,$C$4),1,2) -> -10973.91638 | I64: =INDEX(coordonnées_cadran_plat($D64,I$10,$C$3,$C$2,$C$5,$C$6,0,0,$C$4),1,1) -> 1895.697092 | J64: =INDEX(coordonnées_cadran_plat($D64,I$10,$C$3,$C$2,$C$5,$C$6,0,0,$C$4),1,2) -> -2072.483127 | K64: =INDEX(coordonnées_cadran_plat($D64,K$10,$C$3,$C$2,$C$5,$C$6,0,0,$C$4),1,1) -> 1372.674264 | L64: =INDEX(coordonnées_cadran_plat($D64,K$10,$C$3,$C$2,$C$5,$C$6,0,0,$C$4),1,2) -> -967.7657878 | M64: =INDEX(coordonnées_cadran_plat($D64,M$10,$C$3,$C$2,$C$5,$C$6,0,0,$C$4),1,1) -> 1203.542178 | N64: =INDEX(coordonnées_cadran_plat($D64,M$10,$C$3,$C$2,$C$5,$C$6,0,0,$C$4),1,2) -> -469.5362279 | O64: =INDEX(coordonnées_cadran_plat($D64,O$10,$C$3,$C$2,$C$5,$C$6,0,0,$C$4),1,1) -> 1153.785323 | P64: =INDEX(coordonnées_cadran_plat($D64,O$10,$C$3,$C$2,$C$5,$C$6,0,0,$C$4),1,2) -> -127.2539693 | Q64: =INDEX(coordonnées_cadran_plat($D64,Q$10,$C$3,$C$2,$C$5,$C$6,0,0,$C$4),1,1) -> 1180.049518 | R64: =INDEX(coordonnées_cadran_plat($D64,Q$10,$C$3,$C$2,$C$5,$C$6,0,0,$C$4),1,2) -> 187.2658074 | S64: =INDEX(coordonnées_cadran_plat($D64,S$10,$C$3,$C$2,$C$5,$C$6,0,0,$C$4),1,1) -> 1296.475184 | T64: =INDEX(coordonnées_cadran_plat($D64,S$10,$C$3,$C$2,$C$5,$C$6,0,0,$C$4),1,2) -> 566.9885245 | U64: =INDEX(coordonnées_cadran_plat($D64,U$10,$C$3,$C$2,$C$5,$C$6,0,0,$C$4),1,1) -> 1605.259774 | V64: =INDEX(coordonnées_cadran_plat($D64,U$10,$C$3,$C$2,$C$5,$C$6,0,0,$C$4),1,2) -> 1203.391086 | W64: =INDEX(coordonnées_cadran_plat($D64,W$10,$C$3,$C$2,$C$5,$C$6,0,0,$C$4),1,1) -> 2750.427392 | X64: =INDEX(coordonnées_cadran_plat($D64,W$10,$C$3,$C$2,$C$5,$C$6,0,0,$C$4),1,2) -> 3117.855006
B65: 3 | C65: 6 | D65: 2010-06-03 | E65: =INDEX(heures_limites_cadran($D65,$C$3,$C$2,$C$5),1,1)/24 -> 09:00:00 | F65: =INDEX(heures_limites_cadran($D65,$C$3,$C$2,$C$5),1,2)/24 -> 17:30:00 | G65: =INDEX(coordonnées_cadran_plat($D65,$G$10,$C$3,$C$2,$C$5,$C$6,0,0,$C$4),1,1) -> 7078.180494 | H65: =INDEX(coordonnées_cadran_plat($D65,$G$10,$C$3,$C$2,$C$5,$C$6,0,0,$C$4),1,2) -> -11529.60145 | I65: =INDEX(coordonnées_cadran_plat($D65,I$10,$C$3,$C$2,$C$5,$C$6,0,0,$C$4),1,1) -> 1919.37642 | J65: =INDEX(coordonnées_cadran_plat($D65,I$10,$C$3,$C$2,$C$5,$C$6,0,0,$C$4),1,2) -> -2095.325812 | K65: =INDEX(coordonnées_cadran_plat($D65,K$10,$C$3,$C$2,$C$5,$C$6,0,0,$C$4),1,1) -> 1383.60779 | L65: =INDEX(coordonnées_cadran_plat($D65,K$10,$C$3,$C$2,$C$5,$C$6,0,0,$C$4),1,2) -> -974.6815841 | M65: =INDEX(coordonnées_cadran_plat($D65,M$10,$C$3,$C$2,$C$5,$C$6,0,0,$C$4),1,1) -> 1211.178709 | N65: =INDEX(coordonnées_cadran_plat($D65,M$10,$C$3,$C$2,$C$5,$C$6,0,0,$C$4),1,2) -> -472.6065583 | O65: =INDEX(coordonnées_cadran_plat($D65,O$10,$C$3,$C$2,$C$5,$C$6,0,0,$C$4),1,1) -> 1160.354159 | P65: =INDEX(coordonnées_cadran_plat($D65,O$10,$C$3,$C$2,$C$5,$C$6,0,0,$C$4),1,2) -> -128.6671898 | Q65: =INDEX(coordonnées_cadran_plat($D65,Q$10,$C$3,$C$2,$C$5,$C$6,0,0,$C$4),1,1) -> 1186.653183 | R65: =INDEX(coordonnées_cadran_plat($D65,Q$10,$C$3,$C$2,$C$5,$C$6,0,0,$C$4),1,2) -> 186.9924168 | S65: =INDEX(coordonnées_cadran_plat($D65,S$10,$C$3,$C$2,$C$5,$C$6,0,0,$C$4),1,1) -> 1304.294489 | T65: =INDEX(coordonnées_cadran_plat($D65,S$10,$C$3,$C$2,$C$5,$C$6,0,0,$C$4),1,2) -> 568.1211028 | U65: =INDEX(coordonnées_cadran_plat($D65,U$10,$C$3,$C$2,$C$5,$C$6,0,0,$C$4),1,1) -> 1617.110929 | V65: =INDEX(coordonnées_cadran_plat($D65,U$10,$C$3,$C$2,$C$5,$C$6,0,0,$C$4),1,2) -> 1207.929143 | W65: =INDEX(coordonnées_cadran_plat($D65,W$10,$C$3,$C$2,$C$5,$C$6,0,0,$C$4),1,1) -> 2783.90148 | X65: =INDEX(coordonnées_cadran_plat($D65,W$10,$C$3,$C$2,$C$5,$C$6,0,0,$C$4),1,2) -> 3143.896228
B66: 4 | C66: 6 | D66: 2010-06-04 | E66: =INDEX(heures_limites_cadran($D66,$C$3,$C$2,$C$5),1,1)/24 -> 09:00:00 | F66: =INDEX(heures_limites_cadran($D66,$C$3,$C$2,$C$5),1,2)/24 -> 17:30:00 | G66: =INDEX(coordonnées_cadran_plat($D66,$G$10,$C$3,$C$2,$C$5,$C$6,0,0,$C$4),1,1) -> 7457.917019 | H66: =INDEX(coordonnées_cadran_plat($D66,$G$10,$C$3,$C$2,$C$5,$C$6,0,0,$C$4),1,2) -> -12124.16008 | I66: =INDEX(coordonnées_cadran_plat($D66,I$10,$C$3,$C$2,$C$5,$C$6,0,0,$C$4),1,1) -> 1942.572946 | J66: =INDEX(coordonnées_cadran_plat($D66,I$10,$C$3,$C$2,$C$5,$C$6,0,0,$C$4),1,2) -> -2117.93654 | K66: =INDEX(coordonnées_cadran_plat($D66,K$10,$C$3,$C$2,$C$5,$C$6,0,0,$C$4),1,1) -> 1394.183131 | L66: =INDEX(coordonnées_cadran_plat($D66,K$10,$C$3,$C$2,$C$5,$C$6,0,0,$C$4),1,2) -> -981.4884384 | M66: =INDEX(coordonnées_cadran_plat($D66,M$10,$C$3,$C$2,$C$5,$C$6,0,0,$C$4),1,1) -> 1218.518748 | N66: =INDEX(coordonnées_cadran_plat($D66,M$10,$C$3,$C$2,$C$5,$C$6,0,0,$C$4),1,2) -> -475.6416894 | O66: =INDEX(coordonnées_cadran_plat($D66,O$10,$C$3,$C$2,$C$5,$C$6,0,0,$C$4),1,1) -> 1166.641037 | P66: =INDEX(coordonnées_cadran_plat($D66,O$10,$C$3,$C$2,$C$5,$C$6,0,0,$C$4),1,2) -> -130.0943171 | Q66: =INDEX(coordonnées_cadran_plat($D66,Q$10,$C$3,$C$2,$C$5,$C$6,0,0,$C$4),1,1) -> 1192.951496 | R66: =INDEX(coordonnées_cadran_plat($D66,Q$10,$C$3,$C$2,$C$5,$C$6,0,0,$C$4),1,2) -> 186.6521309 | S66: =INDEX(coordonnées_cadran_plat($D66,S$10,$C$3,$C$2,$C$5,$C$6,0,0,$C$4),1,1) -> 1311.728326 | T66: =INDEX(coordonnées_cadran_plat($D66,S$10,$C$3,$C$2,$C$5,$C$6,0,0,$C$4),1,2) -> 569.0945734 | U66: =INDEX(coordonnées_cadran_plat($D66,U$10,$C$3,$C$2,$C$5,$C$6,0,0,$C$4),1,1) -> 1628.342158 | V66: =INDEX(coordonnées_cadran_plat($D66,U$10,$C$3,$C$2,$C$5,$C$6,0,0,$C$4),1,2) -> 1212.054127 | W66: =INDEX(coordonnées_cadran_plat($D66,W$10,$C$3,$C$2,$C$5,$C$6,0,0,$C$4),1,1) -> 2815.590478 | X66: =INDEX(coordonnées_cadran_plat($D66,W$10,$C$3,$C$2,$C$5,$C$6,0,0,$C$4),1,2) -> 3168.033191
B67: 5 | C67: 6 | D67: 2010-06-05 | E67: =INDEX(heures_limites_cadran($D67,$C$3,$C$2,$C$5),1,1)/24 -> 09:00:00 | F67: =INDEX(heures_limites_cadran($D67,$C$3,$C$2,$C$5),1,2)/24 -> 17:30:00 | G67: =INDEX(coordonnées_cadran_plat($D67,$G$10,$C$3,$C$2,$C$5,$C$6,0,0,$C$4),1,1) -> 7863.028219 | H67: =INDEX(coordonnées_cadran_plat($D67,$G$10,$C$3,$C$2,$C$5,$C$6,0,0,$C$4),1,2) -> -12760.1618 | I67: =INDEX(coordonnées_cadran_plat($D67,I$10,$C$3,$C$2,$C$5,$C$6,0,0,$C$4),1,1) -> 1965.228944 | J67: =INDEX(coordonnées_cadran_plat($D67,I$10,$C$3,$C$2,$C$5,$C$6,0,0,$C$4),1,2) -> -2140.263094 | K67: =INDEX(coordonnées_cadran_plat($D67,K$10,$C$3,$C$2,$C$5,$C$6,0,0,$C$4),1,1) -> 1404.379135 | L67: =INDEX(coordonnées_cadran_plat($D67,K$10,$C$3,$C$2,$C$5,$C$6,0,0,$C$4),1,2) -> -988.1732461 | M67: =INDEX(coordonnées_cadran_plat($D67,M$10,$C$3,$C$2,$C$5,$C$6,0,0,$C$4),1,1) -> 1225.549299 | N67: =INDEX(coordonnées_cadran_plat($D67,M$10,$C$3,$C$2,$C$5,$C$6,0,0,$C$4),1,2) -> -478.6362154 | O67: =INDEX(coordonnées_cadran_plat($D67,O$10,$C$3,$C$2,$C$5,$C$6,0,0,$C$4),1,1) -> 1172.635413 | P67: =INDEX(coordonnées_cadran_plat($D67,O$10,$C$3,$C$2,$C$5,$C$6,0,0,$C$4),1,2) -> -131.5327693 | Q67: =INDEX(coordonnées_cadran_plat($D67,Q$10,$C$3,$C$2,$C$5,$C$6,0,0,$C$4),1,1) -> 1198.933832 | R67: =INDEX(coordonnées_cadran_plat($D67,Q$10,$C$3,$C$2,$C$5,$C$6,0,0,$C$4),1,2) -> 186.2457852 | S67: =INDEX(coordonnées_cadran_plat($D67,S$10,$C$3,$C$2,$C$5,$C$6,0,0,$C$4),1,1) -> 1318.763102 | T67: =INDEX(coordonnées_cadran_plat($D67,S$10,$C$3,$C$2,$C$5,$C$6,0,0,$C$4),1,2) -> 569.9074439 | U67: =INDEX(coordonnées_cadran_plat($D67,U$10,$C$3,$C$2,$C$5,$C$6,0,0,$C$4),1,1) -> 1638.928052 | V67: =INDEX(coordonnées_cadran_plat($D67,U$10,$C$3,$C$2,$C$5,$C$6,0,0,$C$4),1,2) -> 1215.75671 | W67: =INDEX(coordonnées_cadran_plat($D67,W$10,$C$3,$C$2,$C$5,$C$6,0,0,$C$4),1,1) -> 2845.368302 | X67: =INDEX(coordonnées_cadran_plat($D67,W$10,$C$3,$C$2,$C$5,$C$6,0,0,$C$4),1,2) -> 3190.163563
B68: 6 | C68: 6 | D68: 2010-06-06 | E68: =INDEX(heures_limites_cadran($D68,$C$3,$C$2,$C$5),1,1)/24 -> 09:00:00 | F68: =INDEX(heures_limites_cadran($D68,$C$3,$C$2,$C$5),1,2)/24 -> 17:30:00 | G68: =INDEX(coordonnées_cadran_plat($D68,$G$10,$C$3,$C$2,$C$5,$C$6,0,0,$C$4),1,1) -> 8294.991169 | H68: =INDEX(coordonnées_cadran_plat($D68,$G$10,$C$3,$C$2,$C$5,$C$6,0,0,$C$4),1,2) -> -13440.16501 | I68: =INDEX(coordonnées_cadran_plat($D68,I$10,$C$3,$C$2,$C$5,$C$6,0,0,$C$4),1,1) -> 1987.285166 | J68: =INDEX(coordonnées_cadran_plat($D68,I$10,$C$3,$C$2,$C$5,$C$6,0,0,$C$4),1,2) -> -2162.251146 | K68: =INDEX(coordonnées_cadran_plat($D68,K$10,$C$3,$C$2,$C$5,$C$6,0,0,$C$4),1,1) -> 1414.17473 | L68: =INDEX(coordonnées_cadran_plat($D68,K$10,$C$3,$C$2,$C$5,$C$6,0,0,$C$4),1,2) -> -994.7226717 | M68: =INDEX(coordonnées_cadran_plat($D68,M$10,$C$3,$C$2,$C$5,$C$6,0,0,$C$4),1,1) -> 1232.257605 | N68: =INDEX(coordonnées_cadran_plat($D68,M$10,$C$3,$C$2,$C$5,$C$6,0,0,$C$4),1,2) -> -481.584637 | O68: =INDEX(coordonnées_cadran_plat($D68,O$10,$C$3,$C$2,$C$5,$C$6,0,0,$C$4),1,1) -> 1178.327047 | P68: =INDEX(coordonnées_cadran_plat($D68,O$10,$C$3,$C$2,$C$5,$C$6,0,0,$C$4),1,2) -> -132.9798643 | Q68: =INDEX(coordonnées_cadran_plat($D68,Q$10,$C$3,$C$2,$C$5,$C$6,0,0,$C$4),1,1) -> 1204.589966 | R68: =INDEX(coordonnées_cadran_plat($D68,Q$10,$C$3,$C$2,$C$5,$C$6,0,0,$C$4),1,2) -> 185.7743828 | S68: =INDEX(coordonnées_cadran_plat($D68,S$10,$C$3,$C$2,$C$5,$C$6,0,0,$C$4),1,1) -> 1325.385851 | T68: =INDEX(coordonnées_cadran_plat($D68,S$10,$C$3,$C$2,$C$5,$C$6,0,0,$C$4),1,2) -> 570.5585774 | U68: =INDEX(coordonnées_cadran_plat($D68,U$10,$C$3,$C$2,$C$5,$C$6,0,0,$C$4),1,1) -> 1648.844547 | V68: =INDEX(coordonnées_cadran_plat($D68,U$10,$C$3,$C$2,$C$5,$C$6,0,0,$C$4),1,2) -> 1219.028633 | W68: =INDEX(coordonnées_cadran_plat($D68,W$10,$C$3,$C$2,$C$5,$C$6,0,0,$C$4),1,1) -> 2873.114857 | X68: =INDEX(coordonnées_cadran_plat($D68,W$10,$C$3,$C$2,$C$5,$C$6,0,0,$C$4),1,2) -> 3210.192395
B69: 7 | C69: 6 | D69: 2010-06-07 | E69: =INDEX(heures_limites_cadran($D69,$C$3,$C$2,$C$5),1,1)/24 -> 09:00:00 | F69: =INDEX(heures_limites_cadran($D69,$C$3,$C$2,$C$5),1,2)/24 -> 17:30:00 | G69: =INDEX(coordonnées_cadran_plat($D69,$G$10,$C$3,$C$2,$C$5,$C$6,0,0,$C$4),1,1) -> 8755.209829 | H69: =INDEX(coordonnées_cadran_plat($D69,$G$10,$C$3,$C$2,$C$5,$C$6,0,0,$C$4),1,2) -> -14166.64302 | I69: =INDEX(coordonnées_cadran_plat($D69,I$10,$C$3,$C$2,$C$5,$C$6,0,0,$C$4),1,1) -> 2008.681082 | J69: =INDEX(coordonnées_cadran_plat($D69,I$10,$C$3,$C$2,$C$5,$C$6,0,0,$C$4),1,2) -> -2183.844439 | K69: =INDEX(coordonnées_cadran_plat($D69,K$10,$C$3,$C$2,$C$5,$C$6,0,0,$C$4),1,1) -> 1423.54902 | L69: =INDEX(coordonnées_cadran_plat($D69,K$10,$C$3,$C$2,$C$5,$C$6,0,0,$C$4),1,2) -> -1001.123194 | M69: =INDEX(coordonnées_cadran_plat($D69,M$10,$C$3,$C$2,$C$5,$C$6,0,0,$C$4),1,1) -> 1238.631202 | N69: =INDEX(coordonnées_cadran_plat($D69,M$10,$C$3,$C$2,$C$5,$C$6,0,0,$C$4),1,2) -> -484.4813791 | O69: =INDEX(coordonnées_cadran_plat($D69,O$10,$C$3,$C$2,$C$5,$C$6,0,0,$C$4),1,1) -> 1183.706042 | P69: =INDEX(coordonnées_cadran_plat($D69,O$10,$C$3,$C$2,$C$5,$C$6,0,0,$C$4),1,2) -> -134.4328259 | Q69: =INDEX(coordonnées_cadran_plat($D69,Q$10,$C$3,$C$2,$C$5,$C$6,0,0,$C$4),1,1) -> 1209.91012 | R69: =INDEX(coordonnées_cadran_plat($D69,Q$10,$C$3,$C$2,$C$5,$C$6,0,0,$C$4),1,2) -> 185.2390934 | S69: =INDEX(coordonnées_cadran_plat($D69,S$10,$C$3,$C$2,$C$5,$C$6,0,0,$C$4),1,1) -> 1331.584294 | T69: =INDEX(coordonnées_cadran_plat($D69,S$10,$C$3,$C$2,$C$5,$C$6,0,0,$C$4),1,2) -> 571.0472037 | U69: =INDEX(coordonnées_cadran_plat($D69,U$10,$C$3,$C$2,$C$5,$C$6,0,0,$C$4),1,1) -> 1658.069065 | V69: =INDEX(coordonnées_cadran_plat($D69,U$10,$C$3,$C$2,$C$5,$C$6,0,0,$C$4),1,2) -> 1221.862773 | W69: =INDEX(coordonnées_cadran_plat($D69,W$10,$C$3,$C$2,$C$5,$C$6,0,0,$C$4),1,1) -> 2898.717297 | X69: =INDEX(coordonnées_cadran_plat($D69,W$10,$C$3,$C$2,$C$5,$C$6,0,0,$C$4),1,2) -> 3228.033208
B70: 8 | C70: 6 | D70: 2010-06-08 | E70: =INDEX(heures_limites_cadran($D70,$C$3,$C$2,$C$5),1,1)/24 -> 09:00:00 | F70: =INDEX(heures_limites_cadran($D70,$C$3,$C$2,$C$5),1,2)/24 -> 17:30:00 | G70: =INDEX(coordonnées_cadran_plat($D70,$G$10,$C$3,$C$2,$C$5,$C$6,0,0,$C$4),1,1) -> 9244.950427 | H70: =INDEX(coordonnées_cadran_plat($D70,$G$10,$C$3,$C$2,$C$5,$C$6,0,0,$C$4),1,2) -> -14941.88455 | I70: =INDEX(coordonnées_cadran_plat($D70,I$10,$C$3,$C$2,$C$5,$C$6,0,0,$C$4),1,1) -> 2029.355159 | J70: =INDEX(coordonnées_cadran_plat($D70,I$10,$C$3,$C$2,$C$5,$C$6,0,0,$C$4),1,2) -> -2204.984991 | K70: =INDEX(coordonnées_cadran_plat($D70,K$10,$C$3,$C$2,$C$5,$C$6,0,0,$C$4),1,1) -> 1432.481374 | L70: =INDEX(coordonnées_cadran_plat($D70,K$10,$C$3,$C$2,$C$5,$C$6,0,0,$C$4),1,2) -> -1007.361154 | M70: =INDEX(coordonnées_cadran_plat($D70,M$10,$C$3,$C$2,$C$5,$C$6,0,0,$C$4),1,1) -> 1244.657968 | N70: =INDEX(coordonnées_cadran_plat($D70,M$10,$C$3,$C$2,$C$5,$C$6,0,0,$C$4),1,2) -> -487.3208088 | O70: =INDEX(coordonnées_cadran_plat($D70,O$10,$C$3,$C$2,$C$5,$C$6,0,0,$C$4),1,1) -> 1188.762893 | P70: =INDEX(coordonnées_cadran_plat($D70,O$10,$C$3,$C$2,$C$5,$C$6,0,0,$C$4),1,2) -> -135.8887927 | Q70: =INDEX(coordonnées_cadran_plat($D70,Q$10,$C$3,$C$2,$C$5,$C$6,0,0,$C$4),1,1) -> 1214.885005 | R70: =INDEX(coordonnées_cadran_plat($D70,Q$10,$C$3,$C$2,$C$5,$C$6,0,0,$C$4),1,2) -> 184.641253 | S70: =INDEX(coordonnées_cadran_plat($D70,S$10,$C$3,$C$2,$C$5,$C$6,0,0,$C$4),1,1) -> 1337.346902 | T70: =INDEX(coordonnées_cadran_plat($D70,S$10,$C$3,$C$2,$C$5,$C$6,0,0,$C$4),1,2) -> 571.3729283 | U70: =INDEX(coordonnées_cadran_plat($D70,U$10,$C$3,$C$2,$C$5,$C$6,0,0,$C$4),1,1) -> 1666.580652 | V70: =INDEX(coordonnées_cadran_plat($D70,U$10,$C$3,$C$2,$C$5,$C$6,0,0,$C$4),1,2) -> 1224.253196 | W70: =INDEX(coordonnées_cadran_plat($D70,W$10,$C$3,$C$2,$C$5,$C$6,0,0,$C$4),1,1) -> 2922.071242 | X70: =INDEX(coordonnées_cadran_plat($D70,W$10,$C$3,$C$2,$C$5,$C$6,0,0,$C$4),1,2) -> 3243.609012
B71: 9 | C71: 6 | D71: 2010-06-09 | E71: =INDEX(heures_limites_cadran($D71,$C$3,$C$2,$C$5),1,1)/24 -> 09:00:00 | F71: =INDEX(heures_limites_cadran($D71,$C$3,$C$2,$C$5),1,2)/24 -> 17:30:00 | G71: =INDEX(coordonnées_cadran_plat($D71,$G$10,$C$3,$C$2,$C$5,$C$6,0,0,$C$4),1,1) -> 9765.257134 | H71: =INDEX(coordonnées_cadran_plat($D71,$G$10,$C$3,$C$2,$C$5,$C$6,0,0,$C$4),1,2) -> -15767.86239 | I71: =INDEX(coordonnées_cadran_plat($D71,I$10,$C$3,$C$2,$C$5,$C$6,0,0,$C$4),1,1) -> 2049.245172 | J71: =INDEX(coordonnées_cadran_plat($D71,I$10,$C$3,$C$2,$C$5,$C$6,0,0,$C$4),1,2) -> -2225.613343 | K71: =INDEX(coordonnées_cadran_plat($D71,K$10,$C$3,$C$2,$C$5,$C$6,0,0,$C$4),1,1) -> 1440.951527 | L71: =INDEX(coordonnées_cadran_plat($D71,K$10,$C$3,$C$2,$C$5,$C$6,0,0,$C$4),1,2) -> -1013.422812 | M71: =INDEX(coordonnées_cadran_plat($D71,M$10,$C$3,$C$2,$C$5,$C$6,0,0,$C$4),1,1) -> 1250.326183 | N71: =INDEX(coordonnées_cadran_plat($D71,M$10,$C$3,$C$2,$C$5,$C$6,0,0,$C$4),1,2) -> -490.0972545 | O71: =INDEX(coordonnées_cadran_plat($D71,O$10,$C$3,$C$2,$C$5,$C$6,0,0,$C$4),1,1) -> 1193.488522 | P71: =INDEX(coordonnées_cadran_plat($D71,O$10,$C$3,$C$2,$C$5,$C$6,0,0,$C$4),1,2) -> -137.3448254 | Q71: =INDEX(coordonnées_cadran_plat($D71,Q$10,$C$3,$C$2,$C$5,$C$6,0,0,$C$4),1,1) -> 1219.505861 | R71: =INDEX(coordonnées_cadran_plat($D71,Q$10,$C$3,$C$2,$C$5,$C$6,0,0,$C$4),1,2) -> 183.9823611 | S71: =INDEX(coordonnées_cadran_plat($D71,S$10,$C$3,$C$2,$C$5,$C$6,0,0,$C$4),1,1) -> 1342.662949 | T71: =INDEX(coordonnées_cadran_plat($D71,S$10,$C$3,$C$2,$C$5,$C$6,0,0,$C$4),1,2) -> 571.5357394 | U71: =INDEX(coordonnées_cadran_plat($D71,U$10,$C$3,$C$2,$C$5,$C$6,0,0,$C$4),1,1) -> 1674.360108 | V71: =INDEX(coordonnées_cadran_plat($D71,U$10,$C$3,$C$2,$C$5,$C$6,0,0,$C$4),1,2) -> 1226.195207 | W71: =INDEX(coordonnées_cadran_plat($D71,W$10,$C$3,$C$2,$C$5,$C$6,0,0,$C$4),1,1) -> 2943.081921 | X71: =INDEX(coordonnées_cadran_plat($D71,W$10,$C$3,$C$2,$C$5,$C$6,0,0,$C$4),1,2) -> 3256.853241
B72: 10 | C72: 6 | D72: 2010-06-10 | E72: =INDEX(heures_limites_cadran($D72,$C$3,$C$2,$C$5),1,1)/24 -> 09:00:00 | F72: =INDEX(heures_limites_cadran($D72,$C$3,$C$2,$C$5),1,2)/24 -> 17:30:00 | G72: =INDEX(coordonnées_cadran_plat($D72,$G$10,$C$3,$C$2,$C$5,$C$6,0,0,$C$4),1,1) -> 10316.84423 | H72: =INDEX(coordonnées_cadran_plat($D72,$G$10,$C$3,$C$2,$C$5,$C$6,0,0,$C$4),1,2) -> -16646.06421 | I72: =INDEX(coordonnées_cadran_plat($D72,I$10,$C$3,$C$2,$C$5,$C$6,0,0,$C$4),1,1) -> 2068.288542 | J72: =INDEX(coordonnées_cadran_plat($D72,I$10,$C$3,$C$2,$C$5,$C$6,0,0,$C$4),1,2) -> -2245.668833 | K72: =INDEX(coordonnées_cadran_plat($D72,K$10,$C$3,$C$2,$C$5,$C$6,0,0,$C$4),1,1) -> 1448.939676 | L72: =INDEX(coordonnées_cadran_plat($D72,K$10,$C$3,$C$2,$C$5,$C$6,0,0,$C$4),1,2) -> -1019.2944 | M72: =INDEX(coordonnées_cadran_plat($D72,M$10,$C$3,$C$2,$C$5,$C$6,0,0,$C$4),1,1) -> 1255.624579 | N72: =INDEX(coordonnées_cadran_plat($D72,M$10,$C$3,$C$2,$C$5,$C$6,0,0,$C$4),1,2) -> -492.8050266 | O72: =INDEX(coordonnées_cadran_plat($D72,O$10,$C$3,$C$2,$C$5,$C$6,0,0,$C$4),1,1) -> 1197.874323 | P72: =INDEX(coordonnées_cadran_plat($D72,O$10,$C$3,$C$2,$C$5,$C$6,0,0,$C$4),1,2) -> -138.7979164 | Q72: =INDEX(coordonnées_cadran_plat($D72,Q$10,$C$3,$C$2,$C$5,$C$6,0,0,$C$4),1,1) -> 1223.764501 | R72: =INDEX(coordonnées_cadran_plat($D72,Q$10,$C$3,$C$2,$C$5,$C$6,0,0,$C$4),1,2) -> 183.2640783 | S72: =INDEX(coordonnées_cadran_plat($D72,S$10,$C$3,$C$2,$C$5,$C$6,0,0,$C$4),1,1) -> 1347.522572 | T72: =INDEX(coordonnées_cadran_plat($D72,S$10,$C$3,$C$2,$C$5,$C$6,0,0,$C$4),1,2) -> 571.5360128 | U72: =INDEX(coordonnées_cadran_plat($D72,U$10,$C$3,$C$2,$C$5,$C$6,0,0,$C$4),1,1) -> 1681.390105 | V72: =INDEX(coordonnées_cadran_plat($D72,U$10,$C$3,$C$2,$C$5,$C$6,0,0,$C$4),1,2) -> 1227.685385 | W72: =INDEX(coordonnées_cadran_plat($D72,W$10,$C$3,$C$2,$C$5,$C$6,0,0,$C$4),1,1) -> 2961.665228 | X72: =INDEX(coordonnées_cadran_plat($D72,W$10,$C$3,$C$2,$C$5,$C$6,0,0,$C$4),1,2) -> 3267.71057
B73: 11 | C73: 6 | D73: 2010-06-11 | E73: =INDEX(heures_limites_cadran($D73,$C$3,$C$2,$C$5),1,1)/24 -> 09:00:00 | F73: =INDEX(heures_limites_cadran($D73,$C$3,$C$2,$C$5),1,2)/24 -> 17:30:00 | G73: =INDEX(coordonnées_cadran_plat($D73,$G$10,$C$3,$C$2,$C$5,$C$6,0,0,$C$4),1,1) -> 10899.96106 | H73: =INDEX(coordonnées_cadran_plat($D73,$G$10,$C$3,$C$2,$C$5,$C$6,0,0,$C$4),1,2) -> -17577.27875 | I73: =INDEX(coordonnées_cadran_plat($D73,I$10,$C$3,$C$2,$C$5,$C$6,0,0,$C$4),1,1) -> 2086.42271 | J73: =INDEX(coordonnées_cadran_plat($D73,I$10,$C$3,$C$2,$C$5,$C$6,0,0,$C$4),1,2) -> -2265.089905 | K73: =INDEX(coordonnées_cadran_plat($D73,K$10,$C$3,$C$2,$C$5,$C$6,0,0,$C$4),1,1) -> 1456.426587 | L73: =INDEX(coordonnées_cadran_plat($D73,K$10,$C$3,$C$2,$C$5,$C$6,0,0,$C$4),1,2) -> -1024.96218 | M73: =INDEX(coordonnées_cadran_plat($D73,M$10,$C$3,$C$2,$C$5,$C$6,0,0,$C$4),1,1) -> 1260.542395 | N73: =INDEX(coordonnées_cadran_plat($D73,M$10,$C$3,$C$2,$C$5,$C$6,0,0,$C$4),1,2) -> -495.438438 | O73: =INDEX(coordonnées_cadran_plat($D73,O$10,$C$3,$C$2,$C$5,$C$6,0,0,$C$4),1,1) -> 1201.912199 | P73: =INDEX(coordonnées_cadran_plat($D73,O$10,$C$3,$C$2,$C$5,$C$6,0,0,$C$4),1,2) -> -140.2449992 | Q73: =INDEX(coordonnées_cadran_plat($D73,Q$10,$C$3,$C$2,$C$5,$C$6,0,0,$C$4),1,1) -> 1227.653345 | R73: =INDEX(coordonnées_cadran_plat($D73,Q$10,$C$3,$C$2,$C$5,$C$6,0,0,$C$4),1,2) -> 182.4882221 | S73: =INDEX(coordonnées_cadran_plat($D73,S$10,$C$3,$C$2,$C$5,$C$6,0,0,$C$4),1,1) -> 1351.916814 | T73: =INDEX(coordonnées_cadran_plat($D73,S$10,$C$3,$C$2,$C$5,$C$6,0,0,$C$4),1,2) -> 571.3745148 | U73: =INDEX(coordonnées_cadran_plat($D73,U$10,$C$3,$C$2,$C$5,$C$6,0,0,$C$4),1,1) -> 1687.655294 | V73: =INDEX(coordonnées_cadran_plat($D73,U$10,$C$3,$C$2,$C$5,$C$6,0,0,$C$4),1,2) -> 1228.721617 | W73: =INDEX(coordonnées_cadran_plat($D73,W$10,$C$3,$C$2,$C$5,$C$6,0,0,$C$4),1,1) -> 2977.748662 | X73: =INDEX(coordonnées_cadran_plat($D73,W$10,$C$3,$C$2,$C$5,$C$6,0,0,$C$4),1,2) -> 3276.137612
B74: 12 | C74: 6 | D74: 2010-06-12 | E74: =INDEX(heures_limites_cadran($D74,$C$3,$C$2,$C$5),1,1)/24 -> 09:00:00 | F74: =INDEX(heures_limites_cadran($D74,$C$3,$C$2,$C$5),1,2)/24 -> 17:30:00 | G74: =INDEX(coordonnées_cadran_plat($D74,$G$10,$C$3,$C$2,$C$5,$C$6,0,0,$C$4),1,1) -> 11514.2266 | H74: =INDEX(coordonnées_cadran_plat($D74,$G$10,$C$3,$C$2,$C$5,$C$6,0,0,$C$4),1,2) -> -18561.33206 | I74: =INDEX(coordonnées_cadran_plat($D74,I$10,$C$3,$C$2,$C$5,$C$6,0,0,$C$4),1,1) -> 2103.585534 | J74: =INDEX(coordonnées_cadran_plat($D74,I$10,$C$3,$C$2,$C$5,$C$6,0,0,$C$4),1,2) -> -2283.814453 | K74: =INDEX(coordonnées_cadran_plat($D74,K$10,$C$3,$C$2,$C$5,$C$6,0,0,$C$4),1,1) -> 1463.393697 | L74: =INDEX(coordonnées_cadran_plat($D74,K$10,$C$3,$C$2,$C$5,$C$6,0,0,$C$4),1,2) -> -1030.412511 | M74: =INDEX(coordonnées_cadran_plat($D74,M$10,$C$3,$C$2,$C$5,$C$6,0,0,$C$4),1,1) -> 1265.069428 | N74: =INDEX(coordonnées_cadran_plat($D74,M$10,$C$3,$C$2,$C$5,$C$6,0,0,$C$4),1,2) -> -497.9918265 | O74: =INDEX(coordonnées_cadran_plat($D74,O$10,$C$3,$C$2,$C$5,$C$6,0,0,$C$4),1,1) -> 1205.594603 | P74: =INDEX(coordonnées_cadran_plat($D74,O$10,$C$3,$C$2,$C$5,$C$6,0,0,$C$4),1,2) -> -141.6829586 | Q74: =INDEX(coordonnées_cadran_plat($D74,Q$10,$C$3,$C$2,$C$5,$C$6,0,0,$C$4),1,1) -> 1231.165458 | R74: =INDEX(coordonnées_cadran_plat($D74,Q$10,$C$3,$C$2,$C$5,$C$6,0,0,$C$4),1,2) -> 181.6567622 | S74: =INDEX(coordonnées_cadran_plat($D74,S$10,$C$3,$C$2,$C$5,$C$6,0,0,$C$4),1,1) -> 1355.837672 | T74: =INDEX(coordonnées_cadran_plat($D74,S$10,$C$3,$C$2,$C$5,$C$6,0,0,$C$4),1,2) -> 571.052403 | U74: =INDEX(coordonnées_cadran_plat($D74,U$10,$C$3,$C$2,$C$5,$C$6,0,0,$C$4),1,1) -> 1693.1424 | V74: =INDEX(coordonnées_cadran_plat($D74,U$10,$C$3,$C$2,$C$5,$C$6,0,0,$C$4),1,2) -> 1229.303119 | W74: =INDEX(coordonnées_cadran_plat($D74,W$10,$C$3,$C$2,$C$5,$C$6,0,0,$C$4),1,1) -> 2991.272128 | X74: =INDEX(coordonnées_cadran_plat($D74,W$10,$C$3,$C$2,$C$5,$C$6,0,0,$C$4),1,2) -> 3282.103464
B75: 13 | C75: 6 | D75: 2010-06-13 | E75: =INDEX(heures_limites_cadran($D75,$C$3,$C$2,$C$5),1,1)/24 -> 09:00:00 | F75: =INDEX(heures_limites_cadran($D75,$C$3,$C$2,$C$5),1,2)/24 -> 17:30:00 | G75: =INDEX(coordonnées_cadran_plat($D75,$G$10,$C$3,$C$2,$C$5,$C$6,0,0,$C$4),1,1) -> 12158.43216 | H75: =INDEX(coordonnées_cadran_plat($D75,$G$10,$C$3,$C$2,$C$5,$C$6,0,0,$C$4),1,2) -> -19596.7703 | I75: =INDEX(coordonnées_cadran_plat($D75,I$10,$C$3,$C$2,$C$5,$C$6,0,0,$C$4),1,1) -> 2119.715712 | J75: =INDEX(coordonnées_cadran_plat($D75,I$10,$C$3,$C$2,$C$5,$C$6,0,0,$C$4),1,2) -> -2301.780187 | K75: =INDEX(coordonnées_cadran_plat($D75,K$10,$C$3,$C$2,$C$5,$C$6,0,0,$C$4),1,1) -> 1469.823213 | L75: =INDEX(coordonnées_cadran_plat($D75,K$10,$C$3,$C$2,$C$5,$C$6,0,0,$C$4),1,2) -> -1035.631906 | M75: =INDEX(coordonnées_cadran_plat($D75,M$10,$C$3,$C$2,$C$5,$C$6,0,0,$C$4),1,1) -> 1269.196087 | N75: =INDEX(coordonnées_cadran_plat($D75,M$10,$C$3,$C$2,$C$5,$C$6,0,0,$C$4),1,2) -> -500.4595763 | O75: =INDEX(coordonnées_cadran_plat($D75,O$10,$C$3,$C$2,$C$5,$C$6,0,0,$C$4),1,1) -> 1208.914568 | P75: =INDEX(coordonnées_cadran_plat($D75,O$10,$C$3,$C$2,$C$5,$C$6,0,0,$C$4),1,2) -> -143.1086412 | Q75: =INDEX(coordonnées_cadran_plat($D75,Q$10,$C$3,$C$2,$C$5,$C$6,0,0,$C$4),1,1) -> 1234.294584 | R75: =INDEX(coordonnées_cadran_plat($D75,Q$10,$C$3,$C$2,$C$5,$C$6,0,0,$C$4),1,2) -> 180.7718152 | S75: =INDEX(coordonnées_cadran_plat($D75,S$10,$C$3,$C$2,$C$5,$C$6,0,0,$C$4),1,1) -> 1359.278137 | T75: =INDEX(coordonnées_cadran_plat($D75,S$10,$C$3,$C$2,$C$5,$C$6,0,0,$C$4),1,2) -> 570.5712247 | U75: =INDEX(coordonnées_cadran_plat($D75,U$10,$C$3,$C$2,$C$5,$C$6,0,0,$C$4),1,1) -> 1697.840299 | V75: =INDEX(coordonnées_cadran_plat($D75,U$10,$C$3,$C$2,$C$5,$C$6,0,0,$C$4),1,2) -> 1229.430447 | W75: =INDEX(coordonnées_cadran_plat($D75,W$10,$C$3,$C$2,$C$5,$C$6,0,0,$C$4),1,1) -> 3002.188593 | X75: =INDEX(coordonnées_cadran_plat($D75,W$10,$C$3,$C$2,$C$5,$C$6,0,0,$C$4),1,2) -> 3285.590098
B76: 14 | C76: 6 | D76: 2010-06-14 | E76: =INDEX(heures_limites_cadran($D76,$C$3,$C$2,$C$5),1,1)/24 -> 09:00:00 | F76: =INDEX(heures_limites_cadran($D76,$C$3,$C$2,$C$5),1,2)/24 -> 17:30:00 | G76: =INDEX(coordonnées_cadran_plat($D76,$G$10,$C$3,$C$2,$C$5,$C$6,0,0,$C$4),1,1) -> 12830.31325 | H76: =INDEX(coordonnées_cadran_plat($D76,$G$10,$C$3,$C$2,$C$5,$C$6,0,0,$C$4),1,2) -> -20680.48993 | I76: =INDEX(coordonnées_cadran_plat($D76,I$10,$C$3,$C$2,$C$5,$C$6,0,0,$C$4),1,1) -> 2134.753229 | J76: =INDEX(coordonnées_cadran_plat($D76,I$10,$C$3,$C$2,$C$5,$C$6,0,0,$C$4),1,2) -> -2318.925036 | K76: =INDEX(coordonnées_cadran_plat($D76,K$10,$C$3,$C$2,$C$5,$C$6,0,0,$C$4),1,1) -> 1475.698224 | L76: =INDEX(coordonnées_cadran_plat($D76,K$10,$C$3,$C$2,$C$5,$C$6,0,0,$C$4),1,2) -> -1040.607101 | M76: =INDEX(coordonnées_cadran_plat($D76,M$10,$C$3,$C$2,$C$5,$C$6,0,0,$C$4),1,1) -> 1272.91344 | N76: =INDEX(coordonnées_cadran_plat($D76,M$10,$C$3,$C$2,$C$5,$C$6,0,0,$C$4),1,2) -> -502.8361411 | O76: =INDEX(coordonnées_cadran_plat($D76,O$10,$C$3,$C$2,$C$5,$C$6,0,0,$C$4),1,1) -> 1211.865751 | P76: =INDEX(coordonnées_cadran_plat($D76,O$10,$C$3,$C$2,$C$5,$C$6,0,0,$C$4),1,2) -> -144.5188667 | Q76: =INDEX(coordonnées_cadran_plat($D76,Q$10,$C$3,$C$2,$C$5,$C$6,0,0,$C$4),1,1) -> 1237.035173 | R76: =INDEX(coordonnées_cadran_plat($D76,Q$10,$C$3,$C$2,$C$5,$C$6,0,0,$C$4),1,2) -> 179.8356376 | S76: =INDEX(coordonnées_cadran_plat($D76,S$10,$C$3,$C$2,$C$5,$C$6,0,0,$C$4),1,1) -> 1362.23223 | T76: =INDEX(coordonnées_cadran_plat($D76,S$10,$C$3,$C$2,$C$5,$C$6,0,0,$C$4),1,2) -> 569.9329126 | U76: =INDEX(coordonnées_cadran_plat($D76,U$10,$C$3,$C$2,$C$5,$C$6,0,0,$C$4),1,1) -> 1701.740085 | V76: =INDEX(coordonnées_cadran_plat($D76,U$10,$C$3,$C$2,$C$5,$C$6,0,0,$C$4),1,2) -> 1229.105499 | W76: =INDEX(coordonnées_cadran_plat($D76,W$10,$C$3,$C$2,$C$5,$C$6,0,0,$C$4),1,1) -> 3010.464564 | X76: =INDEX(coordonnées_cadran_plat($D76,W$10,$C$3,$C$2,$C$5,$C$6,0,0,$C$4),1,2) -> 3286.592589
B77: 15 | C77: 6 | D77: 2010-06-15 | E77: =INDEX(heures_limites_cadran($D77,$C$3,$C$2,$C$5),1,1)/24 -> 09:00:00 | F77: =INDEX(heures_limites_cadran($D77,$C$3,$C$2,$C$5),1,2)/24 -> 17:30:00 | G77: =INDEX(coordonnées_cadran_plat($D77,$G$10,$C$3,$C$2,$C$5,$C$6,0,0,$C$4),1,1) -> 13526.29626 | H77: =INDEX(coordonnées_cadran_plat($D77,$G$10,$C$3,$C$2,$C$5,$C$6,0,0,$C$4),1,2) -> -21807.32296 | I77: =INDEX(coordonnées_cadran_plat($D77,I$10,$C$3,$C$2,$C$5,$C$6,0,0,$C$4),1,1) -> 2148.639814 | J77: =INDEX(coordonnées_cadran_plat($D77,I$10,$C$3,$C$2,$C$5,$C$6,0,0,$C$4),1,2) -> -2335.187566 | K77: =INDEX(coordonnées_cadran_plat($D77,K$10,$C$3,$C$2,$C$5,$C$6,0,0,$C$4),1,1) -> 1481.002792 | L77: =INDEX(coordonnées_cadran_plat($D77,K$10,$C$3,$C$2,$C$5,$C$6,0,0,$C$4),1,2) -> -1045.325123 | M77: =INDEX(coordonnées_cadran_plat($D77,M$10,$C$3,$C$2,$C$5,$C$6,0,0,$C$4),1,1) -> 1276.213261 | N77: =INDEX(coordonnées_cadran_plat($D77,M$10,$C$3,$C$2,$C$5,$C$6,0,0,$C$4),1,2) -> -505.1160671 | O77: =INDEX(coordonnées_cadran_plat($D77,O$10,$C$3,$C$2,$C$5,$C$6,0,0,$C$4),1,1) -> 1214.442452 | P77: =INDEX(coordonnées_cadran_plat($D77,O$10,$C$3,$C$2,$C$5,$C$6,0,0,$C$4),1,2) -> -145.9104388 | Q77: =INDEX(coordonnées_cadran_plat($D77,Q$10,$C$3,$C$2,$C$5,$C$6,0,0,$C$4),1,1) -> 1239.382409 | R77: =INDEX(coordonnées_cadran_plat($D77,Q$10,$C$3,$C$2,$C$5,$C$6,0,0,$C$4),1,2) -> 178.8506192 | S77: =INDEX(coordonnées_cadran_plat($D77,S$10,$C$3,$C$2,$C$5,$C$6,0,0,$C$4),1,1) -> 1364.695028 | T77: =INDEX(coordonnées_cadran_plat($D77,S$10,$C$3,$C$2,$C$5,$C$6,0,0,$C$4),1,2) -> 569.1397792 | U77: =INDEX(coordonnées_cadran_plat($D77,U$10,$C$3,$C$2,$C$5,$C$6,0,0,$C$4),1,1) -> 1704.835118 | V77: =INDEX(coordonnées_cadran_plat($D77,U$10,$C$3,$C$2,$C$5,$C$6,0,0,$C$4),1,2) -> 1228.331508 | W77: =INDEX(coordonnées_cadran_plat($D77,W$10,$C$3,$C$2,$C$5,$C$6,0,0,$C$4),1,1) -> 3016.0804 | X77: =INDEX(coordonnées_cadran_plat($D77,W$10,$C$3,$C$2,$C$5,$C$6,0,0,$C$4),1,2) -> 3285.119161
B78: 16 | C78: 6 | D78: 2010-06-16 | E78: =INDEX(heures_limites_cadran($D78,$C$3,$C$2,$C$5),1,1)/24 -> 09:00:00 | F78: =INDEX(heures_limites_cadran($D78,$C$3,$C$2,$C$5),1,2)/24 -> 17:30:00 | G78: =INDEX(coordonnées_cadran_plat($D78,$G$10,$C$3,$C$2,$C$5,$C$6,0,0,$C$4),1,1) -> 14241.23198 | H78: =INDEX(coordonnées_cadran_plat($D78,$G$10,$C$3,$C$2,$C$5,$C$6,0,0,$C$4),1,2) -> -22969.59525 | I78: =INDEX(coordonnées_cadran_plat($D78,I$10,$C$3,$C$2,$C$5,$C$6,0,0,$C$4),1,1) -> 2161.319414 | J78: =INDEX(coordonnées_cadran_plat($D78,I$10,$C$3,$C$2,$C$5,$C$6,0,0,$C$4),1,2) -> -2350.507423 | K78: =INDEX(coordonnées_cadran_plat($D78,K$10,$C$3,$C$2,$C$5,$C$6,0,0,$C$4),1,1) -> 1485.722059 | L78: =INDEX(coordonnées_cadran_plat($D78,K$10,$C$3,$C$2,$C$5,$C$6,0,0,$C$4),1,2) -> -1049.773351 | M78: =INDEX(coordonnées_cadran_plat($D78,M$10,$C$3,$C$2,$C$5,$C$6,0,0,$C$4),1,1) -> 1279.088077 | N78: =INDEX(coordonnées_cadran_plat($D78,M$10,$C$3,$C$2,$C$5,$C$6,0,0,$C$4),1,2) -> -507.2940158 | O78: =INDEX(coordonnées_cadran_plat($D78,O$10,$C$3,$C$2,$C$5,$C$6,0,0,$C$4),1,1) -> 1216.639654 | P78: =INDEX(coordonnées_cadran_plat($D78,O$10,$C$3,$C$2,$C$5,$C$6,0,0,$C$4),1,2) -> -147.2801576 | Q78: =INDEX(coordonnées_cadran_plat($D78,Q$10,$C$3,$C$2,$C$5,$C$6,0,0,$C$4),1,1) -> 1241.332234 | R78: =INDEX(coordonnées_cadran_plat($D78,Q$10,$C$3,$C$2,$C$5,$C$6,0,0,$C$4),1,2) -> 177.8192742 | S78: =INDEX(coordonnées_cadran_plat($D78,S$10,$C$3,$C$2,$C$5,$C$6,0,0,$C$4),1,1) -> 1366.662689 | T78: =INDEX(coordonnées_cadran_plat($D78,S$10,$C$3,$C$2,$C$5,$C$6,0,0,$C$4),1,2) -> 568.1945079 | U78: =INDEX(coordonnées_cadran_plat($D78,U$10,$C$3,$C$2,$C$5,$C$6,0,0,$C$4),1,1) -> 1707.121052 | V78: =INDEX(coordonnées_cadran_plat($D78,U$10,$C$3,$C$2,$C$5,$C$6,0,0,$C$4),1,2) -> 1227.113026 | W78: =INDEX(coordonnées_cadran_plat($D78,W$10,$C$3,$C$2,$C$5,$C$6,0,0,$C$4),1,1) -> 3019.030431 | X78: =INDEX(coordonnées_cadran_plat($D78,W$10,$C$3,$C$2,$C$5,$C$6,0,0,$C$4),1,2) -> 3281.191068
B79: 17 | C79: 6 | D79: 2010-06-17 | E79: =INDEX(heures_limites_cadran($D79,$C$3,$C$2,$C$5),1,1)/24 -> 09:00:00 | F79: =INDEX(heures_limites_cadran($D79,$C$3,$C$2,$C$5),1,2)/24 -> 17:30:00 | G79: =INDEX(coordonnées_cadran_plat($D79,$G$10,$C$3,$C$2,$C$5,$C$6,0,0,$C$4),1,1) -> 14968.13677 | H79: =INDEX(coordonnées_cadran_plat($D79,$G$10,$C$3,$C$2,$C$5,$C$6,0,0,$C$4),1,2) -> -24156.68979 | I79: =INDEX(coordonnées_cadran_plat($D79,I$10,$C$3,$C$2,$C$5,$C$6,0,0,$C$4),1,1) -> 2172.738673 | J79: =INDEX(coordonnées_cadran_plat($D79,I$10,$C$3,$C$2,$C$5,$C$6,0,0,$C$4),1,2) -> -2364.825789 | K79: =INDEX(coordonnées_cadran_plat($D79,K$10,$C$3,$C$2,$C$5,$C$6,0,0,$C$4),1,1) -> 1489.842338 | L79: =INDEX(coordonnées_cadran_plat($D79,K$10,$C$3,$C$2,$C$5,$C$6,0,0,$C$4),1,2) -> -1053.93959 | M79: =INDEX(coordonnées_cadran_plat($D79,M$10,$C$3,$C$2,$C$5,$C$6,0,0,$C$4),1,1) -> 1281.531207 | N79: =INDEX(coordonnées_cadran_plat($D79,M$10,$C$3,$C$2,$C$5,$C$6,0,0,$C$4),1,2) -> -509.3647869 | O79: =INDEX(coordonnées_cadran_plat($D79,O$10,$C$3,$C$2,$C$5,$C$6,0,0,$C$4),1,1) -> 1218.453039 | P79: =INDEX(coordonnées_cadran_plat($D79,O$10,$C$3,$C$2,$C$5,$C$6,0,0,$C$4),1,2) -> -148.6248306 | Q79: =INDEX(coordonnées_cadran_plat($D79,Q$10,$C$3,$C$2,$C$5,$C$6,0,0,$C$4),1,1) -> 1242.881367 | R79: =INDEX(coordonnées_cadran_plat($D79,Q$10,$C$3,$C$2,$C$5,$C$6,0,0,$C$4),1,2) -> 176.7442331 | S79: =INDEX(coordonnées_cadran_plat($D79,S$10,$C$3,$C$2,$C$5,$C$6,0,0,$C$4),1,1) -> 1368.132471 | T79: =INDEX(coordonnées_cadran_plat($D79,S$10,$C$3,$C$2,$C$5,$C$6,0,0,$C$4),1,2) -> 567.1001427 | U79: =INDEX(coordonnées_cadran_plat($D79,U$10,$C$3,$C$2,$C$5,$C$6,0,0,$C$4),1,1) -> 1708.595859 | V79: =INDEX(coordonnées_cadran_plat($D79,U$10,$C$3,$C$2,$C$5,$C$6,0,0,$C$4),1,2) -> 1225.455894 | W79: =INDEX(coordonnées_cadran_plat($D79,W$10,$C$3,$C$2,$C$5,$C$6,0,0,$C$4),1,1) -> 3019.322903 | X79: =INDEX(coordonnées_cadran_plat($D79,W$10,$C$3,$C$2,$C$5,$C$6,0,0,$C$4),1,2) -> 3274.842299
B80: 18 | C80: 6 | D80: 2010-06-18 | E80: =INDEX(heures_limites_cadran($D80,$C$3,$C$2,$C$5),1,1)/24 -> 09:00:00 | F80: =INDEX(heures_limites_cadran($D80,$C$3,$C$2,$C$5),1,2)/24 -> 17:30:00 | G80: =INDEX(coordonnées_cadran_plat($D80,$G$10,$C$3,$C$2,$C$5,$C$6,0,0,$C$4),1,1) -> 15697.9729 | H80: =INDEX(coordonnées_cadran_plat($D80,$G$10,$C$3,$C$2,$C$5,$C$6,0,0,$C$4),1,2) -> -25354.66433 | I80: =INDEX(coordonnées_cadran_plat($D80,I$10,$C$3,$C$2,$C$5,$C$6,0,0,$C$4),1,1) -> 2182.847406 | J80: =INDEX(coordonnées_cadran_plat($D80,I$10,$C$3,$C$2,$C$5,$C$6,0,0,$C$4),1,2) -> -2378.08585 | K80: =INDEX(coordonnées_cadran_plat($D80,K$10,$C$3,$C$2,$C$5,$C$6,0,0,$C$4),1,1) -> 1493.351205 | L80: =INDEX(coordonnées_cadran_plat($D80,K$10,$C$3,$C$2,$C$5,$C$6,0,0,$C$4),1,2) -> -1057.812133 | M80: =INDEX(coordonnées_cadran_plat($D80,M$10,$C$3,$C$2,$C$5,$C$6,0,0,$C$4),1,1) -> 1283.536801 | N80: =INDEX(coordonnées_cadran_plat($D80,M$10,$C$3,$C$2,$C$5,$C$6,0,0,$C$4),1,2) -> -511.3233409 | O80: =INDEX(coordonnées_cadran_plat($D80,O$10,$C$3,$C$2,$C$5,$C$6,0,0,$C$4),1,1) -> 1219.879019 | P80: =INDEX(coordonnées_cadran_plat($D80,O$10,$C$3,$C$2,$C$5,$C$6,0,0,$C$4),1,2) -> -149.9412856 | Q80: =INDEX(coordonnées_cadran_plat($D80,Q$10,$C$3,$C$2,$C$5,$C$6,0,0,$C$4),1,1) -> 1244.027319 | R80: =INDEX(coordonnées_cadran_plat($D80,Q$10,$C$3,$C$2,$C$5,$C$6,0,0,$C$4),1,2) -> 175.628233 | S80: =INDEX(coordonnées_cadran_plat($D80,S$10,$C$3,$C$2,$C$5,$C$6,0,0,$C$4),1,1) -> 1369.10274 | T80: =INDEX(coordonnées_cadran_plat($D80,S$10,$C$3,$C$2,$C$5,$C$6,0,0,$C$4),1,2) -> 565.8600757 | U80: =INDEX(coordonnées_cadran_plat($D80,U$10,$C$3,$C$2,$C$5,$C$6,0,0,$C$4),1,1) -> 1709.259817 | V80: =INDEX(coordonnées_cadran_plat($D80,U$10,$C$3,$C$2,$C$5,$C$6,0,0,$C$4),1,2) -> 1223.367206 | W80: =INDEX(coordonnées_cadran_plat($D80,W$10,$C$3,$C$2,$C$5,$C$6,0,0,$C$4),1,1) -> 3016.97973 | X80: =INDEX(coordonnées_cadran_plat($D80,W$10,$C$3,$C$2,$C$5,$C$6,0,0,$C$4),1,2) -> 3266.119125
B81: 19 | C81: 6 | D81: 2010-06-19 | E81: =INDEX(heures_limites_cadran($D81,$C$3,$C$2,$C$5),1,1)/24 -> 09:00:00 | F81: =INDEX(heures_limites_cadran($D81,$C$3,$C$2,$C$5),1,2)/24 -> 17:30:00 | G81: =INDEX(coordonnées_cadran_plat($D81,$G$10,$C$3,$C$2,$C$5,$C$6,0,0,$C$4),1,1) -> 16419.51076 | H81: =INDEX(coordonnées_cadran_plat($D81,$G$10,$C$3,$C$2,$C$5,$C$6,0,0,$C$4),1,2) -> -26545.99141 | I81: =INDEX(coordonnées_cadran_plat($D81,I$10,$C$3,$C$2,$C$5,$C$6,0,0,$C$4),1,1) -> 2191.599069 | J81: =INDEX(coordonnées_cadran_plat($D81,I$10,$C$3,$C$2,$C$5,$C$6,0,0,$C$4),1,2) -> -2390.233261 | K81: =INDEX(coordonnées_cadran_plat($D81,K$10,$C$3,$C$2,$C$5,$C$6,0,0,$C$4),1,1) -> 1496.237583 | L81: =INDEX(coordonnées_cadran_plat($D81,K$10,$C$3,$C$2,$C$5,$C$6,0,0,$C$4),1,2) -> -1061.379825 | M81: =INDEX(coordonnées_cadran_plat($D81,M$10,$C$3,$C$2,$C$5,$C$6,0,0,$C$4),1,1) -> 1285.099874 | N81: =INDEX(coordonnées_cadran_plat($D81,M$10,$C$3,$C$2,$C$5,$C$6,0,0,$C$4),1,2) -> -513.1648213 | O81: =INDEX(coordonnées_cadran_plat($D81,O$10,$C$3,$C$2,$C$5,$C$6,0,0,$C$4),1,1) -> 1220.914748 | P81: =INDEX(coordonnées_cadran_plat($D81,O$10,$C$3,$C$2,$C$5,$C$6,0,0,$C$4),1,2) -> -151.226382 | Q81: =INDEX(coordonnées_cadran_plat($D81,Q$10,$C$3,$C$2,$C$5,$C$6,0,0,$C$4),1,1) -> 1244.768403 | R81: =INDEX(coordonnées_cadran_plat($D81,Q$10,$C$3,$C$2,$C$5,$C$6,0,0,$C$4),1,2) -> 174.4741073 | S81: =INDEX(coordonnées_cadran_plat($D81,S$10,$C$3,$C$2,$C$5,$C$6,0,0,$C$4),1,1) -> 1369.572974 | T81: =INDEX(coordonnées_cadran_plat($D81,S$10,$C$3,$C$2,$C$5,$C$6,0,0,$C$4),1,2) -> 564.4780319 | U81: =INDEX(coordonnées_cadran_plat($D81,U$10,$C$3,$C$2,$C$5,$C$6,0,0,$C$4),1,1) -> 1709.115498 | V81: =INDEX(coordonnées_cadran_plat($D81,U$10,$C$3,$C$2,$C$5,$C$6,0,0,$C$4),1,2) -> 1220.855267 | W81: =INDEX(coordonnées_cadran_plat($D81,W$10,$C$3,$C$2,$C$5,$C$6,0,0,$C$4),1,1) -> 3012.036079 | X81: =INDEX(coordonnées_cadran_plat($D81,W$10,$C$3,$C$2,$C$5,$C$6,0,0,$C$4),1,2) -> 3255.079488
B82: 20 | C82: 6 | D82: 2010-06-20 | E82: =INDEX(heures_limites_cadran($D82,$C$3,$C$2,$C$5),1,1)/24 -> 09:00:00 | F82: =INDEX(heures_limites_cadran($D82,$C$3,$C$2,$C$5),1,2)/24 -> 17:30:00 | G82: =INDEX(coordonnées_cadran_plat($D82,$G$10,$C$3,$C$2,$C$5,$C$6,0,0,$C$4),1,1) -> 17119.32585 | H82: =INDEX(coordonnées_cadran_plat($D82,$G$10,$C$3,$C$2,$C$5,$C$6,0,0,$C$4),1,2) -> -27709.50626 | I82: =INDEX(coordonnées_cadran_plat($D82,I$10,$C$3,$C$2,$C$5,$C$6,0,0,$C$4),1,1) -> 2198.951213 | J82: =INDEX(coordonnées_cadran_plat($D82,I$10,$C$3,$C$2,$C$5,$C$6,0,0,$C$4),1,2) -> -2401.216619 | K82: =INDEX(coordonnées_cadran_plat($D82,K$10,$C$3,$C$2,$C$5,$C$6,0,0,$C$4),1,1) -> 1498.491818 | L82: =INDEX(coordonnées_cadran_plat($D82,K$10,$C$3,$C$2,$C$5,$C$6,0,0,$C$4),1,2) -> -1064.632131 | M82: =INDEX(coordonnées_cadran_plat($D82,M$10,$C$3,$C$2,$C$5,$C$6,0,0,$C$4),1,1) -> 1286.216336 | N82: =INDEX(coordonnées_cadran_plat($D82,M$10,$C$3,$C$2,$C$5,$C$6,0,0,$C$4),1,2) -> -514.8845761 | O82: =INDEX(coordonnées_cadran_plat($D82,O$10,$C$3,$C$2,$C$5,$C$6,0,0,$C$4),1,1) -> 1221.558139 | P82: =INDEX(coordonnées_cadran_plat($D82,O$10,$C$3,$C$2,$C$5,$C$6,0,0,$C$4),1,2) -> -152.4770233 | Q82: =INDEX(coordonnées_cadran_plat($D82,Q$10,$C$3,$C$2,$C$5,$C$6,0,0,$C$4),1,1) -> 1245.103745 | R82: =INDEX(coordonnées_cadran_plat($D82,Q$10,$C$3,$C$2,$C$5,$C$6,0,0,$C$4),1,2) -> 173.2847753 | S82: =INDEX(coordonnées_cadran_plat($D82,S$10,$C$3,$C$2,$C$5,$C$6,0,0,$C$4),1,1) -> 1369.543764 | T82: =INDEX(coordonnées_cadran_plat($D82,S$10,$C$3,$C$2,$C$5,$C$6,0,0,$C$4),1,2) -> 562.958053 | U82: =INDEX(coordonnées_cadran_plat($D82,U$10,$C$3,$C$2,$C$5,$C$6,0,0,$C$4),1,1) -> 1708.167731 | V82: =INDEX(coordonnées_cadran_plat($D82,U$10,$C$3,$C$2,$C$5,$C$6,0,0,$C$4),1,2) -> 1217.929535 | W82: =INDEX(coordonnées_cadran_plat($D82,W$10,$C$3,$C$2,$C$5,$C$6,0,0,$C$4),1,1) -> 3004.539795 | X82: =INDEX(coordonnées_cadran_plat($D82,W$10,$C$3,$C$2,$C$5,$C$6,0,0,$C$4),1,2) -> 3241.792256
B83: 21 | C83: 6 | D83: 2010-06-21 | E83: =INDEX(heures_limites_cadran($D83,$C$3,$C$2,$C$5),1,1)/24 -> 09:00:00 | F83: =INDEX(heures_limites_cadran($D83,$C$3,$C$2,$C$5),1,2)/24 -> 17:30:00 | G83: =INDEX(coordonnées_cadran_plat($D83,$G$10,$C$3,$C$2,$C$5,$C$6,0,0,$C$4),1,1) -> 17781.98763 | H83: =INDEX(coordonnées_cadran_plat($D83,$G$10,$C$3,$C$2,$C$5,$C$6,0,0,$C$4),1,2) -> -28820.65633 | I83: =INDEX(coordonnées_cadran_plat($D83,I$10,$C$3,$C$2,$C$5,$C$6,0,0,$C$4),1,1) -> 2204.865918 | J83: =INDEX(coordonnées_cadran_plat($D83,I$10,$C$3,$C$2,$C$5,$C$6,0,0,$C$4),1,2) -> -2410.987911 | K83: =INDEX(coordonnées_cadran_plat($D83,K$10,$C$3,$C$2,$C$5,$C$6,0,0,$C$4),1,1) -> 1500.105757 | L83: =INDEX(coordonnées_cadran_plat($D83,K$10,$C$3,$C$2,$C$5,$C$6,0,0,$C$4),1,2) -> -1067.559192 | M83: =INDEX(coordonnées_cadran_plat($D83,M$10,$C$3,$C$2,$C$5,$C$6,0,0,$C$4),1,1) -> 1286.883018 | N83: =INDEX(coordonnées_cadran_plat($D83,M$10,$C$3,$C$2,$C$5,$C$6,0,0,$C$4),1,2) -> -516.4781783 | O83: =INDEX(coordonnées_cadran_plat($D83,O$10,$C$3,$C$2,$C$5,$C$6,0,0,$C$4),1,1) -> 1221.807877 | P83: =INDEX(coordonnées_cadran_plat($D83,O$10,$C$3,$C$2,$C$5,$C$6,0,0,$C$4),1,2) -> -153.6901685 | Q83: =INDEX(coordonnées_cadran_plat($D83,Q$10,$C$3,$C$2,$C$5,$C$6,0,0,$C$4),1,1) -> 1245.033285 | R83: =INDEX(coordonnées_cadran_plat($D83,Q$10,$C$3,$C$2,$C$5,$C$6,0,0,$C$4),1,2) -> 172.0632313 | S83: =INDEX(coordonnées_cadran_plat($D83,S$10,$C$3,$C$2,$C$5,$C$6,0,0,$C$4),1,1) -> 1369.016804 | T83: =INDEX(coordonnées_cadran_plat($D83,S$10,$C$3,$C$2,$C$5,$C$6,0,0,$C$4),1,2) -> 561.3044791 | U83: =INDEX(coordonnées_cadran_plat($D83,U$10,$C$3,$C$2,$C$5,$C$6,0,0,$C$4),1,1) -> 1706.423551 | V83: =INDEX(coordonnées_cadran_plat($D83,U$10,$C$3,$C$2,$C$5,$C$6,0,0,$C$4),1,2) -> 1214.600563 | W83: =INDEX(coordonnées_cadran_plat($D83,W$10,$C$3,$C$2,$C$5,$C$6,0,0,$C$4),1,1) -> 2994.550672 | X83: =INDEX(coordonnées_cadran_plat($D83,W$10,$C$3,$C$2,$C$5,$C$6,0,0,$C$4),1,2) -> 3226.336357
B84: 22 | C84: 6 | D84: 2010-06-22 | E84: =INDEX(heures_limites_cadran($D84,$C$3,$C$2,$C$5),1,1)/24 -> 09:00:00 | F84: =INDEX(heures_limites_cadran($D84,$C$3,$C$2,$C$5),1,2)/24 -> 17:30:00 | G84: =INDEX(coordonnées_cadran_plat($D84,$G$10,$C$3,$C$2,$C$5,$C$6,0,0,$C$4),1,1) -> 18390.49223 | H84: =INDEX(coordonnées_cadran_plat($D84,$G$10,$C$3,$C$2,$C$5,$C$6,0,0,$C$4),1,2) -> -29852.14049 | I84: =INDEX(coordonnées_cadran_plat($D84,I$10,$C$3,$C$2,$C$5,$C$6,0,0,$C$4),1,1) -> 2209.310191 | J84: =INDEX(coordonnées_cadran_plat($D84,I$10,$C$3,$C$2,$C$5,$C$6,0,0,$C$4),1,2) -> -2419.502962 | K84: =INDEX(coordonnées_cadran_plat($D84,K$10,$C$3,$C$2,$C$5,$C$6,0,0,$C$4),1,1) -> 1501.0728 | L84: =INDEX(coordonnées_cadran_plat($D84,K$10,$C$3,$C$2,$C$5,$C$6,0,0,$C$4),1,2) -> -1070.151884 | M84: =INDEX(coordonnées_cadran_plat($D84,M$10,$C$3,$C$2,$C$5,$C$6,0,0,$C$4),1,1) -> 1287.097689 | N84: =INDEX(coordonnées_cadran_plat($D84,M$10,$C$3,$C$2,$C$5,$C$6,0,0,$C$4),1,2) -> -517.9414456 | O84: =INDEX(coordonnées_cadran_plat($D84,O$10,$C$3,$C$2,$C$5,$C$6,0,0,$C$4),1,1) -> 1221.663425 | P84: =INDEX(coordonnées_cadran_plat($D84,O$10,$C$3,$C$2,$C$5,$C$6,0,0,$C$4),1,2) -> -154.8628441 | Q84: =INDEX(coordonnées_cadran_plat($D84,Q$10,$C$3,$C$2,$C$5,$C$6,0,0,$C$4),1,1) -> 1244.557774 | R84: =INDEX(coordonnées_cadran_plat($D84,Q$10,$C$3,$C$2,$C$5,$C$6,0,0,$C$4),1,2) -> 170.8125325 | S84: =INDEX(coordonnées_cadran_plat($D84,S$10,$C$3,$C$2,$C$5,$C$6,0,0,$C$4),1,1) -> 1367.994876 | T84: =INDEX(coordonnées_cadran_plat($D84,S$10,$C$3,$C$2,$C$5,$C$6,0,0,$C$4),1,2) -> 559.5219284 | U84: =INDEX(coordonnées_cadran_plat($D84,U$10,$C$3,$C$2,$C$5,$C$6,0,0,$C$4),1,1) -> 1703.892135 | V84: =INDEX(coordonnées_cadran_plat($D84,U$10,$C$3,$C$2,$C$5,$C$6,0,0,$C$4),1,2) -> 1210.879929 | W84: =INDEX(coordonnées_cadran_plat($D84,W$10,$C$3,$C$2,$C$5,$C$6,0,0,$C$4),1,1) -> 2982.139599 | X84: =INDEX(coordonnées_cadran_plat($D84,W$10,$C$3,$C$2,$C$5,$C$6,0,0,$C$4),1,2) -> 3208.799813
B85: 23 | C85: 6 | D85: 2010-06-23 | E85: =INDEX(heures_limites_cadran($D85,$C$3,$C$2,$C$5),1,1)/24 -> 09:00:00 | F85: =INDEX(heures_limites_cadran($D85,$C$3,$C$2,$C$5),1,2)/24 -> 17:30:00 | G85: =INDEX(coordonnées_cadran_plat($D85,$G$10,$C$3,$C$2,$C$5,$C$6,0,0,$C$4),1,1) -> 18926.97091 | H85: =INDEX(coordonnées_cadran_plat($D85,$G$10,$C$3,$C$2,$C$5,$C$6,0,0,$C$4),1,2) -> -30774.99545 | I85: =INDEX(coordonnées_cadran_plat($D85,I$10,$C$3,$C$2,$C$5,$C$6,0,0,$C$4),1,1) -> 2212.256333 | J85: =INDEX(coordonnées_cadran_plat($D85,I$10,$C$3,$C$2,$C$5,$C$6,0,0,$C$4),1,2) -> -2426.721844 | K85: =INDEX(coordonnées_cadran_plat($D85,K$10,$C$3,$C$2,$C$5,$C$6,0,0,$C$4),1,1) -> 1501.38796 | L85: =INDEX(coordonnées_cadran_plat($D85,K$10,$C$3,$C$2,$C$5,$C$6,0,0,$C$4),1,2) -> -1072.401869 | M85: =INDEX(coordonnées_cadran_plat($D85,M$10,$C$3,$C$2,$C$5,$C$6,0,0,$C$4),1,1) -> 1286.859078 | N85: =INDEX(coordonnées_cadran_plat($D85,M$10,$C$3,$C$2,$C$5,$C$6,0,0,$C$4),1,2) -> -519.2704593 | O85: =INDEX(coordonnées_cadran_plat($D85,O$10,$C$3,$C$2,$C$5,$C$6,0,0,$C$4),1,1) -> 1221.125028 | P85: =INDEX(coordonnées_cadran_plat($D85,O$10,$C$3,$C$2,$C$5,$C$6,0,0,$C$4),1,2) -> -155.9921552 | Q85: =INDEX(coordonnées_cadran_plat($D85,Q$10,$C$3,$C$2,$C$5,$C$6,0,0,$C$4),1,1) -> 1243.678772 | R85: =INDEX(coordonnées_cadran_plat($D85,Q$10,$C$3,$C$2,$C$5,$C$6,0,0,$C$4),1,2) -> 169.535788 | S85: =INDEX(coordonnées_cadran_plat($D85,S$10,$C$3,$C$2,$C$5,$C$6,0,0,$C$4),1,1) -> 1366.481829 | T85: =INDEX(coordonnées_cadran_plat($D85,S$10,$C$3,$C$2,$C$5,$C$6,0,0,$C$4),1,2) -> 557.6152764 | U85: =INDEX(coordonnées_cadran_plat($D85,U$10,$C$3,$C$2,$C$5,$C$6,0,0,$C$4),1,1) -> 1700.584719 | V85: =INDEX(coordonnées_cadran_plat($D85,U$10,$C$3,$C$2,$C$5,$C$6,0,0,$C$4),1,2) -> 1206.780164 | W85: =INDEX(coordonnées_cadran_plat($D85,W$10,$C$3,$C$2,$C$5,$C$6,0,0,$C$4),1,1) -> 2967.387597 | X85: =INDEX(coordonnées_cadran_plat($D85,W$10,$C$3,$C$2,$C$5,$C$6,0,0,$C$4),1,2) -> 3189.278691
B86: 24 | C86: 6 | D86: 2010-06-24 | E86: =INDEX(heures_limites_cadran($D86,$C$3,$C$2,$C$5),1,1)/24 -> 09:00:00 | F86: =INDEX(heures_limites_cadran($D86,$C$3,$C$2,$C$5),1,2)/24 -> 17:30:00 | G86: =INDEX(coordonnées_cadran_plat($D86,$G$10,$C$3,$C$2,$C$5,$C$6,0,0,$C$4),1,1) -> 19373.66909 | H86: =INDEX(coordonnées_cadran_plat($D86,$G$10,$C$3,$C$2,$C$5,$C$6,0,0,$C$4),1,2) -> -31560.1298 | I86: =INDEX(coordonnées_cadran_plat($D86,I$10,$C$3,$C$2,$C$5,$C$6,0,0,$C$4),1,1) -> 2213.682264 | J86: =INDEX(coordonnées_cadran_plat($D86,I$10,$C$3,$C$2,$C$5,$C$6,0,0,$C$4),1,2) -> -2432.609265 | K86: =INDEX(coordonnées_cadran_plat($D86,K$10,$C$3,$C$2,$C$5,$C$6,0,0,$C$4),1,1) -> 1501.047904 | L86: =INDEX(coordonnées_cadran_plat($D86,K$10,$C$3,$C$2,$C$5,$C$6,0,0,$C$4),1,2) -> -1074.30165 | M86: =INDEX(coordonnées_cadran_plat($D86,M$10,$C$3,$C$2,$C$5,$C$6,0,0,$C$4),1,1) -> 1286.166878 | N86: =INDEX(coordonnées_cadran_plat($D86,M$10,$C$3,$C$2,$C$5,$C$6,0,0,$C$4),1,2) -> -520.4615806 | O86: =INDEX(coordonnées_cadran_plat($D86,O$10,$C$3,$C$2,$C$5,$C$6,0,0,$C$4),1,1) -> 1220.193711 | P86: =INDEX(coordonnées_cadran_plat($D86,O$10,$C$3,$C$2,$C$5,$C$6,0,0,$C$4),1,2) -> -157.0752965 | Q86: =INDEX(coordonnées_cadran_plat($D86,Q$10,$C$3,$C$2,$C$5,$C$6,0,0,$C$4),1,1) -> 1242.398636 | R86: =INDEX(coordonnées_cadran_plat($D86,Q$10,$C$3,$C$2,$C$5,$C$6,0,0,$C$4),1,2) -> 168.2361462 | S86: =INDEX(coordonnées_cadran_plat($D86,S$10,$C$3,$C$2,$C$5,$C$6,0,0,$C$4),1,1) -> 1364.482554 | T86: =INDEX(coordonnées_cadran_plat($D86,S$10,$C$3,$C$2,$C$5,$C$6,0,0,$C$4),1,2) -> 555.5896332 | U86: =INDEX(coordonnées_cadran_plat($D86,U$10,$C$3,$C$2,$C$5,$C$6,0,0,$C$4),1,1) -> 1696.514507 | V86: =INDEX(coordonnées_cadran_plat($D86,U$10,$C$3,$C$2,$C$5,$C$6,0,0,$C$4),1,2) -> 1202.314668 | W86: =INDEX(coordonnées_cadran_plat($D86,W$10,$C$3,$C$2,$C$5,$C$6,0,0,$C$4),1,1) -> 2950.384765 | X86: =INDEX(coordonnées_cadran_plat($D86,W$10,$C$3,$C$2,$C$5,$C$6,0,0,$C$4),1,2) -> 3167.876001
B87: 25 | C87: 6 | D87: 2010-06-25 | E87: =INDEX(heures_limites_cadran($D87,$C$3,$C$2,$C$5),1,1)/24 -> 09:00:00 | F87: =INDEX(heures_limites_cadran($D87,$C$3,$C$2,$C$5),1,2)/24 -> 17:30:00 | G87: =INDEX(coordonnées_cadran_plat($D87,$G$10,$C$3,$C$2,$C$5,$C$6,0,0,$C$4),1,1) -> 19714.13897 | H87: =INDEX(coordonnées_cadran_plat($D87,$G$10,$C$3,$C$2,$C$5,$C$6,0,0,$C$4),1,2) -> -32180.22302 | I87: =INDEX(coordonnées_cadran_plat($D87,I$10,$C$3,$C$2,$C$5,$C$6,0,0,$C$4),1,1) -> 2213.571792 | J87: =INDEX(coordonnées_cadran_plat($D87,I$10,$C$3,$C$2,$C$5,$C$6,0,0,$C$4),1,2) -> -2437.13491 | K87: =INDEX(coordonnées_cadran_plat($D87,K$10,$C$3,$C$2,$C$5,$C$6,0,0,$C$4),1,1) -> 1500.050983 | L87: =INDEX(coordonnées_cadran_plat($D87,K$10,$C$3,$C$2,$C$5,$C$6,0,0,$C$4),1,2) -> -1075.844608 | M87: =INDEX(coordonnées_cadran_plat($D87,M$10,$C$3,$C$2,$C$5,$C$6,0,0,$C$4),1,1) -> 1285.021755 | N87: =INDEX(coordonnées_cadran_plat($D87,M$10,$C$3,$C$2,$C$5,$C$6,0,0,$C$4),1,2) -> -521.5114672 | O87: =INDEX(coordonnées_cadran_plat($D87,O$10,$C$3,$C$2,$C$5,$C$6,0,0,$C$4),1,1) -> 1218.871277 | P87: =INDEX(coordonnées_cadran_plat($D87,O$10,$C$3,$C$2,$C$5,$C$6,0,0,$C$4),1,2) -> -158.1095626 | Q87: =INDEX(coordonnées_cadran_plat($D87,Q$10,$C$3,$C$2,$C$5,$C$6,0,0,$C$4),1,1) -> 1240.720507 | R87: =INDEX(coordonnées_cadran_plat($D87,Q$10,$C$3,$C$2,$C$5,$C$6,0,0,$C$4),1,2) -> 166.916783 | S87: =INDEX(coordonnées_cadran_plat($D87,S$10,$C$3,$C$2,$C$5,$C$6,0,0,$C$4),1,1) -> 1362.002949 | T87: =INDEX(coordonnées_cadran_plat($D87,S$10,$C$3,$C$2,$C$5,$C$6,0,0,$C$4),1,2) -> 553.4503197 | U87: =INDEX(coordonnées_cadran_plat($D87,U$10,$C$3,$C$2,$C$5,$C$6,0,0,$C$4),1,1) -> 1691.696565 | V87: =INDEX(coordonnées_cadran_plat($D87,U$10,$C$3,$C$2,$C$5,$C$6,0,0,$C$4),1,2) -> 1197.497632 | W87: =INDEX(coordonnées_cadran_plat($D87,W$10,$C$3,$C$2,$C$5,$C$6,0,0,$C$4),1,1) -> 2931.229171 | X87: =INDEX(coordonnées_cadran_plat($D87,W$10,$C$3,$C$2,$C$5,$C$6,0,0,$C$4),1,2) -> 3144.700555
B88: 26 | C88: 6 | D88: 2010-06-26 | E88: =INDEX(heures_limites_cadran($D88,$C$3,$C$2,$C$5),1,1)/24 -> 09:00:00 | F88: =INDEX(heures_limites_cadran($D88,$C$3,$C$2,$C$5),1,2)/24 -> 17:30:00 | G88: =INDEX(coordonnées_cadran_plat($D88,$G$10,$C$3,$C$2,$C$5,$C$6,0,0,$C$4),1,1) -> 19934.53088 | H88: =INDEX(coordonnées_cadran_plat($D88,$G$10,$C$3,$C$2,$C$5,$C$6,0,0,$C$4),1,2) -> -32611.81295 | I88: =INDEX(coordonnées_cadran_plat($D88,I$10,$C$3,$C$2,$C$5,$C$6,0,0,$C$4),1,1) -> 2211.914833 | J88: =INDEX(coordonnées_cadran_plat($D88,I$10,$C$3,$C$2,$C$5,$C$6,0,0,$C$4),1,2) -> -2440.273751 | K88: =INDEX(coordonnées_cadran_plat($D88,K$10,$C$3,$C$2,$C$5,$C$6,0,0,$C$4),1,1) -> 1498.397257 | L88: =INDEX(coordonnées_cadran_plat($D88,K$10,$C$3,$C$2,$C$5,$C$6,0,0,$C$4),1,2) -> -1077.025044 | M88: =INDEX(coordonnées_cadran_plat($D88,M$10,$C$3,$C$2,$C$5,$C$6,0,0,$C$4),1,1) -> 1283.425346 | N88: =INDEX(coordonnées_cadran_plat($D88,M$10,$C$3,$C$2,$C$5,$C$6,0,0,$C$4),1,2) -> -522.4170869 | O88: =INDEX(coordonnées_cadran_plat($D88,O$10,$C$3,$C$2,$C$5,$C$6,0,0,$C$4),1,1) -> 1217.160295 | P88: =INDEX(coordonnées_cadran_plat($D88,O$10,$C$3,$C$2,$C$5,$C$6,0,0,$C$4),1,2) -> -159.092358 | Q88: =INDEX(coordonnées_cadran_plat($D88,Q$10,$C$3,$C$2,$C$5,$C$6,0,0,$C$4),1,1) -> 1238.648293 | R88: =INDEX(coordonnées_cadran_plat($D88,Q$10,$C$3,$C$2,$C$5,$C$6,0,0,$C$4),1,2) -> 165.5808898 | S88: =INDEX(coordonnées_cadran_plat($D88,S$10,$C$3,$C$2,$C$5,$C$6,0,0,$C$4),1,1) -> 1359.049886 | T88: =INDEX(coordonnées_cadran_plat($D88,S$10,$C$3,$C$2,$C$5,$C$6,0,0,$C$4),1,2) -> 551.2028437 | U88: =INDEX(coordonnées_cadran_plat($D88,U$10,$C$3,$C$2,$C$5,$C$6,0,0,$C$4),1,1) -> 1686.147709 | V88: =INDEX(coordonnées_cadran_plat($D88,U$10,$C$3,$C$2,$C$5,$C$6,0,0,$C$4),1,2) -> 1192.343946 | W88: =INDEX(coordonnées_cadran_plat($D88,W$10,$C$3,$C$2,$C$5,$C$6,0,0,$C$4),1,1) -> 2910.025691 | X88: =INDEX(coordonnées_cadran_plat($D88,W$10,$C$3,$C$2,$C$5,$C$6,0,0,$C$4),1,2) -> 3119.865819
B89: 27 | C89: 6 | D89: 2010-06-27 | E89: =INDEX(heures_limites_cadran($D89,$C$3,$C$2,$C$5),1,1)/24 -> 09:00:00 | F89: =INDEX(heures_limites_cadran($D89,$C$3,$C$2,$C$5),1,2)/24 -> 17:30:00 | G89: =INDEX(coordonnées_cadran_plat($D89,$G$10,$C$3,$C$2,$C$5,$C$6,0,0,$C$4),1,1) -> 20024.8199 | H89: =INDEX(coordonnées_cadran_plat($D89,$G$10,$C$3,$C$2,$C$5,$C$6,0,0,$C$4),1,2) -> -32837.31333 | I89: =INDEX(coordonnées_cadran_plat($D89,I$10,$C$3,$C$2,$C$5,$C$6,0,0,$C$4),1,1) -> 2208.707567 | J89: =INDEX(coordonnées_cadran_plat($D89,I$10,$C$3,$C$2,$C$5,$C$6,0,0,$C$4),1,2) -> -2442.006293 | K89: =INDEX(coordonnées_cadran_plat($D89,K$10,$C$3,$C$2,$C$5,$C$6,0,0,$C$4),1,1) -> 1496.088504 | L89: =INDEX(coordonnées_cadran_plat($D89,K$10,$C$3,$C$2,$C$5,$C$6,0,0,$C$4),1,2) -> -1077.83821 | M89: =INDEX(coordonnées_cadran_plat($D89,M$10,$C$3,$C$2,$C$5,$C$6,0,0,$C$4),1,1) -> 1281.380252 | N89: =INDEX(coordonnées_cadran_plat($D89,M$10,$C$3,$C$2,$C$5,$C$6,0,0,$C$4),1,2) -> -523.17573 | O89: =INDEX(coordonnées_cadran_plat($D89,O$10,$C$3,$C$2,$C$5,$C$6,0,0,$C$4),1,1) -> 1215.064089 | P89: =INDEX(coordonnées_cadran_plat($D89,O$10,$C$3,$C$2,$C$5,$C$6,0,0,$C$4),1,2) -> -160.0212065 | Q89: =INDEX(coordonnées_cadran_plat($D89,Q$10,$C$3,$C$2,$C$5,$C$6,0,0,$C$4),1,1) -> 1236.186647 | R89: =INDEX(coordonnées_cadran_plat($D89,Q$10,$C$3,$C$2,$C$5,$C$6,0,0,$C$4),1,2) -> 164.2316608 | S89: =INDEX(coordonnées_cadran_plat($D89,S$10,$C$3,$C$2,$C$5,$C$6,0,0,$C$4),1,1) -> 1355.631166 | T89: =INDEX(coordonnées_cadran_plat($D89,S$10,$C$3,$C$2,$C$5,$C$6,0,0,$C$4),1,2) -> 548.8528744 | U89: =INDEX(coordonnées_cadran_plat($D89,U$10,$C$3,$C$2,$C$5,$C$6,0,0,$C$4),1,1) -> 1679.886379 | V89: =INDEX(coordonnées_cadran_plat($D89,U$10,$C$3,$C$2,$C$5,$C$6,0,0,$C$4),1,2) -> 1186.869112 | W89: =INDEX(coordonnées_cadran_plat($D89,W$10,$C$3,$C$2,$C$5,$C$6,0,0,$C$4),1,1) -> 2886.884834 | X89: =INDEX(coordonnées_cadran_plat($D89,W$10,$C$3,$C$2,$C$5,$C$6,0,0,$C$4),1,2) -> 3093.488759
B90: 28 | C90: 6 | D90: 2010-06-28 | E90: =INDEX(heures_limites_cadran($D90,$C$3,$C$2,$C$5),1,1)/24 -> 09:00:00 | F90: =INDEX(heures_limites_cadran($D90,$C$3,$C$2,$C$5),1,2)/24 -> 17:30:00 | G90: =INDEX(coordonnées_cadran_plat($D90,$G$10,$C$3,$C$2,$C$5,$C$6,0,0,$C$4),1,1) -> 19979.7832 | H90: =INDEX(coordonnées_cadran_plat($D90,$G$10,$C$3,$C$2,$C$5,$C$6,0,0,$C$4),1,2) -> -32846.6633 | I90: =INDEX(coordonnées_cadran_plat($D90,I$10,$C$3,$C$2,$C$5,$C$6,0,0,$C$4),1,1) -> 2203.952533 | J90: =INDEX(coordonnées_cadran_plat($D90,I$10,$C$3,$C$2,$C$5,$C$6,0,0,$C$4),1,2) -> -2442.318777 | K90: =INDEX(coordonnées_cadran_plat($D90,K$10,$C$3,$C$2,$C$5,$C$6,0,0,$C$4),1,1) -> 1493.128215 | L90: =INDEX(coordonnées_cadran_plat($D90,K$10,$C$3,$C$2,$C$5,$C$6,0,0,$C$4),1,2) -> -1078.280339 | M90: =INDEX(coordonnées_cadran_plat($D90,M$10,$C$3,$C$2,$C$5,$C$6,0,0,$C$4),1,1) -> 1278.890031 | N90: =INDEX(coordonnées_cadran_plat($D90,M$10,$C$3,$C$2,$C$5,$C$6,0,0,$C$4),1,2) -> -523.78502 | O90: =INDEX(coordonnées_cadran_plat($D90,O$10,$C$3,$C$2,$C$5,$C$6,0,0,$C$4),1,1) -> 1212.586723 | P90: =INDEX(coordonnées_cadran_plat($D90,O$10,$C$3,$C$2,$C$5,$C$6,0,0,$C$4),1,2) -> -160.8937595 | Q90: =INDEX(coordonnées_cadran_plat($D90,Q$10,$C$3,$C$2,$C$5,$C$6,0,0,$C$4),1,1) -> 1233.340941 | R90: =INDEX(coordonnées_cadran_plat($D90,Q$10,$C$3,$C$2,$C$5,$C$6,0,0,$C$4),1,2) -> 162.8722819 | S90: =INDEX(coordonnées_cadran_plat($D90,S$10,$C$3,$C$2,$C$5,$C$6,0,0,$C$4),1,1) -> 1351.755472 | T90: =INDEX(coordonnées_cadran_plat($D90,S$10,$C$3,$C$2,$C$5,$C$6,0,0,$C$4),1,2) -> 546.4062176 | U90: =INDEX(coordonnées_cadran_plat($D90,U$10,$C$3,$C$2,$C$5,$C$6,0,0,$C$4),1,1) -> 1672.932507 | V90: =INDEX(coordonnées_cadran_plat($D90,U$10,$C$3,$C$2,$C$5,$C$6,0,0,$C$4),1,2) -> 1181.089152 | W90: =INDEX(coordonnées_cadran_plat($D90,W$10,$C$3,$C$2,$C$5,$C$6,0,0,$C$4),1,1) -> 2861.921571 | X90: =INDEX(coordonnées_cadran_plat($D90,W$10,$C$3,$C$2,$C$5,$C$6,0,0,$C$4),1,2) -> 3065.688726
B91: 29 | C91: 6 | D91: 2010-06-29 | E91: =INDEX(heures_limites_cadran($D91,$C$3,$C$2,$C$5),1,1)/24 -> 09:00:00 | F91: =INDEX(heures_limites_cadran($D91,$C$3,$C$2,$C$5),1,2)/24 -> 17:30:00 | G91: =INDEX(coordonnées_cadran_plat($D91,$G$10,$C$3,$C$2,$C$5,$C$6,0,0,$C$4),1,1) -> 19799.56234 | H91: =INDEX(coordonnées_cadran_plat($D91,$G$10,$C$3,$C$2,$C$5,$C$6,0,0,$C$4),1,2) -> -32638.33534 | I91: =INDEX(coordonnées_cadran_plat($D91,I$10,$C$3,$C$2,$C$5,$C$6,0,0,$C$4),1,1) -> 2197.658659 | J91: =INDEX(coordonnées_cadran_plat($D91,I$10,$C$3,$C$2,$C$5,$C$6,0,0,$C$4),1,2) -> -2441.203322 | K91: =INDEX(coordonnées_cadran_plat($D91,K$10,$C$3,$C$2,$C$5,$C$6,0,0,$C$4),1,1) -> 1489.521586 | L91: =INDEX(coordonnées_cadran_plat($D91,K$10,$C$3,$C$2,$C$5,$C$6,0,0,$C$4),1,2) -> -1078.348659 | M91: =INDEX(coordonnées_cadran_plat($D91,M$10,$C$3,$C$2,$C$5,$C$6,0,0,$C$4),1,1) -> 1275.959178 | N91: =INDEX(coordonnées_cadran_plat($D91,M$10,$C$3,$C$2,$C$5,$C$6,0,0,$C$4),1,2) -> -524.2429223 | O91: =INDEX(coordonnées_cadran_plat($D91,O$10,$C$3,$C$2,$C$5,$C$6,0,0,$C$4),1,1) -> 1209.732978 | P91: =INDEX(coordonnées_cadran_plat($D91,O$10,$C$3,$C$2,$C$5,$C$6,0,0,$C$4),1,2) -> -161.7078042 | Q91: =INDEX(coordonnées_cadran_plat($D91,Q$10,$C$3,$C$2,$C$5,$C$6,0,0,$C$4),1,1) -> 1230.117241 | R91: =INDEX(coordonnées_cadran_plat($D91,Q$10,$C$3,$C$2,$C$5,$C$6,0,0,$C$4),1,2) -> 161.5059183 | S91: =INDEX(coordonnées_cadran_plat($D91,S$10,$C$3,$C$2,$C$5,$C$6,0,0,$C$4),1,1) -> 1347.432321 | T91: =INDEX(coordonnées_cadran_plat($D91,S$10,$C$3,$C$2,$C$5,$C$6,0,0,$C$4),1,2) -> 543.8687897 | U91: =INDEX(coordonnées_cadran_plat($D91,U$10,$C$3,$C$2,$C$5,$C$6,0,0,$C$4),1,1) -> 1665.307381 | V91: =INDEX(coordonnées_cadran_plat($D91,U$10,$C$3,$C$2,$C$5,$C$6,0,0,$C$4),1,2) -> 1175.02052 | W91: =INDEX(coordonnées_cadran_plat($D91,W$10,$C$3,$C$2,$C$5,$C$6,0,0,$C$4),1,1) -> 2835.254179 | X91: =INDEX(coordonnées_cadran_plat($D91,W$10,$C$3,$C$2,$C$5,$C$6,0,0,$C$4),1,2) -> 3036.586377
B92: 30 | C92: 6 | D92: 2010-06-30 | E92: =INDEX(heures_limites_cadran($D92,$C$3,$C$2,$C$5),1,1)/24 -> 09:00:00 | F92: =INDEX(heures_limites_cadran($D92,$C$3,$C$2,$C$5),1,2)/24 -> 17:30:00 | G92: =INDEX(coordonnées_cadran_plat($D92,$G$10,$C$3,$C$2,$C$5,$C$6,0,0,$C$4),1,1) -> 19489.70685 | H92: =INDEX(coordonnées_cadran_plat($D92,$G$10,$C$3,$C$2,$C$5,$C$6,0,0,$C$4),1,2) -> -32219.52148 | I92: =INDEX(coordonnées_cadran_plat($D92,I$10,$C$3,$C$2,$C$5,$C$6,0,0,$C$4),1,1) -> 2189.841224 | J92: =INDEX(coordonnées_cadran_plat($D92,I$10,$C$3,$C$2,$C$5,$C$6,0,0,$C$4),1,2) -> -2438.658 | K92: =INDEX(coordonnées_cadran_plat($D92,K$10,$C$3,$C$2,$C$5,$C$6,0,0,$C$4),1,1) -> 1485.275493 | L92: =INDEX(coordonnées_cadran_plat($D92,K$10,$C$3,$C$2,$C$5,$C$6,0,0,$C$4),1,2) -> -1078.041412 | M92: =INDEX(coordonnées_cadran_plat($D92,M$10,$C$3,$C$2,$C$5,$C$6,0,0,$C$4),1,1) -> 1272.593104 | N92: =INDEX(coordonnées_cadran_plat($D92,M$10,$C$3,$C$2,$C$5,$C$6,0,0,$C$4),1,2) -> -524.547751 | O92: =INDEX(coordonnées_cadran_plat($D92,O$10,$C$3,$C$2,$C$5,$C$6,0,0,$C$4),1,1) -> 1206.508333 | P92: =INDEX(coordonnées_cadran_plat($D92,O$10,$C$3,$C$2,$C$5,$C$6,0,0,$C$4),1,2) -> -162.4612704 | Q92: =INDEX(coordonnées_cadran_plat($D92,Q$10,$C$3,$C$2,$C$5,$C$6,0,0,$C$4),1,1) -> 1226.522272 | R92: =INDEX(coordonnées_cadran_plat($D92,Q$10,$C$3,$C$2,$C$5,$C$6,0,0,$C$4),1,2) -> 160.1357033 | S92: =INDEX(coordonnées_cadran_plat($D92,S$10,$C$3,$C$2,$C$5,$C$6,0,0,$C$4),1,1) -> 1342.672009 | T92: =INDEX(coordonnées_cadran_plat($D92,S$10,$C$3,$C$2,$C$5,$C$6,0,0,$C$4),1,2) -> 541.2465925 | U92: =INDEX(coordonnées_cadran_plat($D92,U$10,$C$3,$C$2,$C$5,$C$6,0,0,$C$4),1,1) -> 1657.033507 | V92: =INDEX(coordonnées_cadran_plat($D92,U$10,$C$3,$C$2,$C$5,$C$6,0,0,$C$4),1,2) -> 1168.680004 | W92: =INDEX(coordonnées_cadran_plat($D92,W$10,$C$3,$C$2,$C$5,$C$6,0,0,$C$4),1,1) -> 2807.003131 | X92: =INDEX(coordonnées_cadran_plat($D92,W$10,$C$3,$C$2,$C$5,$C$6,0,0,$C$4),1,2) -> 3006.30265
B93: 1 | C93: 7 | D93: 2010-07-01 | E93: =INDEX(heures_limites_cadran($D93,$C$3,$C$2,$C$5),1,1)/24 -> 09:00:00 | F93: =INDEX(heures_limites_cadran($D93,$C$3,$C$2,$C$5),1,2)/24 -> 17:30:00 | G93: =INDEX(coordonnées_cadran_plat($D93,$G$10,$C$3,$C$2,$C$5,$C$6,0,0,$C$4),1,1) -> 19060.68599 | H93: =INDEX(coordonnées_cadran_plat($D93,$G$10,$C$3,$C$2,$C$5,$C$6,0,0,$C$4),1,2) -> -31605.46114 | I93: =INDEX(coordonnées_cadran_plat($D93,I$10,$C$3,$C$2,$C$5,$C$6,0,0,$C$4),1,1) -> 2180.521751 | J93: =INDEX(coordonnées_cadran_plat($D93,I$10,$C$3,$C$2,$C$5,$C$6,0,0,$C$4),1,2) -> -2434.686859 | K93: =INDEX(coordonnées_cadran_plat($D93,K$10,$C$3,$C$2,$C$5,$C$6,0,0,$C$4),1,1) -> 1480.39845 | L93: =INDEX(coordonnées_cadran_plat($D93,K$10,$C$3,$C$2,$C$5,$C$6,0,0,$C$4),1,2) -> -1077.357856 | M93: =INDEX(coordonnées_cadran_plat($D93,M$10,$C$3,$C$2,$C$5,$C$6,0,0,$C$4),1,1) -> 1268.79811 | N93: =INDEX(coordonnées_cadran_plat($D93,M$10,$C$3,$C$2,$C$5,$C$6,0,0,$C$4),1,2) -> -524.6981732 | O93: =INDEX(coordonnées_cadran_plat($D93,O$10,$C$3,$C$2,$C$5,$C$6,0,0,$C$4),1,1) -> 1202.918931 | P93: =INDEX(coordonnées_cadran_plat($D93,O$10,$C$3,$C$2,$C$5,$C$6,0,0,$C$4),1,2) -> -163.1522369 | Q93: =INDEX(coordonnées_cadran_plat($D93,Q$10,$C$3,$C$2,$C$5,$C$6,0,0,$C$4),1,1) -> 1222.563387 | R93: =INDEX(coordonnées_cadran_plat($D93,Q$10,$C$3,$C$2,$C$5,$C$6,0,0,$C$4),1,2) -> 158.7647275 | S93: =INDEX(coordonnées_cadran_plat($D93,S$10,$C$3,$C$2,$C$5,$C$6,0,0,$C$4),1,1) -> 1337.485556 | T93: =INDEX(coordonnées_cadran_plat($D93,S$10,$C$3,$C$2,$C$5,$C$6,0,0,$C$4),1,2) -> 538.5456876 | U93: =INDEX(coordonnées_cadran_plat($D93,U$10,$C$3,$C$2,$C$5,$C$6,0,0,$C$4),1,1) -> 1648.134461 | V93: =INDEX(coordonnées_cadran_plat($D93,U$10,$C$3,$C$2,$C$5,$C$6,0,0,$C$4),1,2) -> 1162.084645 | W93: =INDEX(coordonnées_cadran_plat($D93,W$10,$C$3,$C$2,$C$5,$C$6,0,0,$C$4),1,1) -> 2777.29003 | X93: =INDEX(coordonnées_cadran_plat($D93,W$10,$C$3,$C$2,$C$5,$C$6,0,0,$C$4),1,2) -> 2974.957816
B94: 2 | C94: 7 | D94: 2010-07-02 | E94: =INDEX(heures_limites_cadran($D94,$C$3,$C$2,$C$5),1,1)/24 -> 09:00:00 | F94: =INDEX(heures_limites_cadran($D94,$C$3,$C$2,$C$5),1,2)/24 -> 17:30:00 | G94: =INDEX(coordonnées_cadran_plat($D94,$G$10,$C$3,$C$2,$C$5,$C$6,0,0,$C$4),1,1) -> 18526.95095 | H94: =INDEX(coordonnées_cadran_plat($D94,$G$10,$C$3,$C$2,$C$5,$C$6,0,0,$C$4),1,2) -> -30818.0278 | I94: =INDEX(coordonnées_cadran_plat($D94,I$10,$C$3,$C$2,$C$5,$C$6,0,0,$C$4),1,1) -> 2169.727845 | J94: =INDEX(coordonnées_cadran_plat($D94,I$10,$C$3,$C$2,$C$5,$C$6,0,0,$C$4),1,2) -> -2429.299879 | K94: =INDEX(coordonnées_cadran_plat($D94,K$10,$C$3,$C$2,$C$5,$C$6,0,0,$C$4),1,1) -> 1474.900572 | L94: =INDEX(coordonnées_cadran_plat($D94,K$10,$C$3,$C$2,$C$5,$C$6,0,0,$C$4),1,2) -> -1076.298266 | M94: =INDEX(coordonnées_cadran_plat($D94,M$10,$C$3,$C$2,$C$5,$C$6,0,0,$C$4),1,1) -> 1264.581358 | N94: =INDEX(coordonnées_cadran_plat($D94,M$10,$C$3,$C$2,$C$5,$C$6,0,0,$C$4),1,2) -> -524.6932125 | O94: =INDEX(coordonnées_cadran_plat($D94,O$10,$C$3,$C$2,$C$5,$C$6,0,0,$C$4),1,1) -> 1198.971557 | P94: =INDEX(coordonnées_cadran_plat($D94,O$10,$C$3,$C$2,$C$5,$C$6,0,0,$C$4),1,2) -> -163.7789371 | Q94: =INDEX(coordonnées_cadran_plat($D94,Q$10,$C$3,$C$2,$C$5,$C$6,0,0,$C$4),1,1) -> 1218.248528 | R94: =INDEX(coordonnées_cadran_plat($D94,Q$10,$C$3,$C$2,$C$5,$C$6,0,0,$C$4),1,2) -> 157.3960278 | S94: =INDEX(coordonnées_cadran_plat($D94,S$10,$C$3,$C$2,$C$5,$C$6,0,0,$C$4),1,1) -> 1331.884646 | T94: =INDEX(coordonnées_cadran_plat($D94,S$10,$C$3,$C$2,$C$5,$C$6,0,0,$C$4),1,2) -> 535.7721716 | U94: =INDEX(coordonnées_cadran_plat($D94,U$10,$C$3,$C$2,$C$5,$C$6,0,0,$C$4),1,1) -> 1638.634744 | V94: =INDEX(coordonnées_cadran_plat($D94,U$10,$C$3,$C$2,$C$5,$C$6,0,0,$C$4),1,2) -> 1155.251641 | W94: =INDEX(coordonnées_cadran_plat($D94,W$10,$C$3,$C$2,$C$5,$C$6,0,0,$C$4),1,1) -> 2746.236621 | X94: =INDEX(coordonnées_cadran_plat($D94,W$10,$C$3,$C$2,$C$5,$C$6,0,0,$C$4),1,2) -> 2942.6706
B95: 3 | C95: 7 | D95: 2010-07-03 | E95: =INDEX(heures_limites_cadran($D95,$C$3,$C$2,$C$5),1,1)/24 -> 09:00:00 | F95: =INDEX(heures_limites_cadran($D95,$C$3,$C$2,$C$5),1,2)/24 -> 17:30:00 | G95: =INDEX(coordonnées_cadran_plat($D95,$G$10,$C$3,$C$2,$C$5,$C$6,0,0,$C$4),1,1) -> 17905.7032 | H95: =INDEX(coordonnées_cadran_plat($D95,$G$10,$C$3,$C$2,$C$5,$C$6,0,0,$C$4),1,2) -> -29883.81388 | I95: =INDEX(coordonnées_cadran_plat($D95,I$10,$C$3,$C$2,$C$5,$C$6,0,0,$C$4),1,1) -> 2157.492956 | J95: =INDEX(coordonnées_cadran_plat($D95,I$10,$C$3,$C$2,$C$5,$C$6,0,0,$C$4),1,2) -> -2422.512863 | K95: =INDEX(coordonnées_cadran_plat($D95,K$10,$C$3,$C$2,$C$5,$C$6,0,0,$C$4),1,1) -> 1468.79351 | L95: =INDEX(coordonnées_cadran_plat($D95,K$10,$C$3,$C$2,$C$5,$C$6,0,0,$C$4),1,2) -> -1074.863928 | M95: =INDEX(coordonnées_cadran_plat($D95,M$10,$C$3,$C$2,$C$5,$C$6,0,0,$C$4),1,1) -> 1259.95083 | N95: =INDEX(coordonnées_cadran_plat($D95,M$10,$C$3,$C$2,$C$5,$C$6,0,0,$C$4),1,2) -> -524.5322492 | O95: =INDEX(coordonnées_cadran_plat($D95,O$10,$C$3,$C$2,$C$5,$C$6,0,0,$C$4),1,1) -> 1194.673603 | P95: =INDEX(coordonnées_cadran_plat($D95,O$10,$C$3,$C$2,$C$5,$C$6,0,0,$C$4),1,2) -> -164.3397632 | Q95: =INDEX(coordonnées_cadran_plat($D95,Q$10,$C$3,$C$2,$C$5,$C$6,0,0,$C$4),1,1) -> 1213.586188 | R95: =INDEX(coordonnées_cadran_plat($D95,Q$10,$C$3,$C$2,$C$5,$C$6,0,0,$C$4),1,2) -> 156.0325775 | S95: =INDEX(coordonnées_cadran_plat($D95,S$10,$C$3,$C$2,$C$5,$C$6,0,0,$C$4),1,1) -> 1325.881567 | T95: =INDEX(coordonnées_cadran_plat($D95,S$10,$C$3,$C$2,$C$5,$C$6,0,0,$C$4),1,2) -> 532.9321519 | U95: =INDEX(coordonnées_cadran_plat($D95,U$10,$C$3,$C$2,$C$5,$C$6,0,0,$C$4),1,1) -> 1628.559642 | V95: =INDEX(coordonnées_cadran_plat($D95,U$10,$C$3,$C$2,$C$5,$C$6,0,0,$C$4),1,2) -> 1148.198268 | W95: =INDEX(coordonnées_cadran_plat($D95,W$10,$C$3,$C$2,$C$5,$C$6,0,0,$C$4),1,1) -> 2713.963867 | X95: =INDEX(coordonnées_cadran_plat($D95,W$10,$C$3,$C$2,$C$5,$C$6,0,0,$C$4),1,2) -> 2909.557395
B96: 4 | C96: 7 | D96: 2010-07-04 | E96: =INDEX(heures_limites_cadran($D96,$C$3,$C$2,$C$5),1,1)/24 -> 09:00:00 | F96: =INDEX(heures_limites_cadran($D96,$C$3,$C$2,$C$5),1,2)/24 -> 17:30:00 | G96: =INDEX(coordonnées_cadran_plat($D96,$G$10,$C$3,$C$2,$C$5,$C$6,0,0,$C$4),1,1) -> 17215.5574 | H96: =INDEX(coordonnées_cadran_plat($D96,$G$10,$C$3,$C$2,$C$5,$C$6,0,0,$C$4),1,2) -> -28832.01176 | I96: =INDEX(coordonnées_cadran_plat($D96,I$10,$C$3,$C$2,$C$5,$C$6,0,0,$C$4),1,1) -> 2143.856089 | J96: =INDEX(coordonnées_cadran_plat($D96,I$10,$C$3,$C$2,$C$5,$C$6,0,0,$C$4),1,2) -> -2414.347276 | K96: =INDEX(coordonnées_cadran_plat($D96,K$10,$C$3,$C$2,$C$5,$C$6,0,0,$C$4),1,1) -> 1462.09039 | L96: =INDEX(coordonnées_cadran_plat($D96,K$10,$C$3,$C$2,$C$5,$C$6,0,0,$C$4),1,2) -> -1073.057122 | M96: =INDEX(coordonnées_cadran_plat($D96,M$10,$C$3,$C$2,$C$5,$C$6,0,0,$C$4),1,1) -> 1254.915296 | N96: =INDEX(coordonnées_cadran_plat($D96,M$10,$C$3,$C$2,$C$5,$C$6,0,0,$C$4),1,2) -> -524.2150191 | O96: =INDEX(coordonnées_cadran_plat($D96,O$10,$C$3,$C$2,$C$5,$C$6,0,0,$C$4),1,1) -> 1190.03303 | P96: =INDEX(coordonnées_cadran_plat($D96,O$10,$C$3,$C$2,$C$5,$C$6,0,0,$C$4),1,2) -> -164.8332702 | Q96: =INDEX(coordonnées_cadran_plat($D96,Q$10,$C$3,$C$2,$C$5,$C$6,0,0,$C$4),1,1) -> 1208.585375 | R96: =INDEX(coordonnées_cadran_plat($D96,Q$10,$C$3,$C$2,$C$5,$C$6,0,0,$C$4),1,2) -> 154.6772768 | S96: =INDEX(coordonnées_cadran_plat($D96,S$10,$C$3,$C$2,$C$5,$C$6,0,0,$C$4),1,1) -> 1319.489147 | T96: =INDEX(coordonnées_cadran_plat($D96,S$10,$C$3,$C$2,$C$5,$C$6,0,0,$C$4),1,2) -> 530.0317227 | U96: =INDEX(coordonnées_cadran_plat($D96,U$10,$C$3,$C$2,$C$5,$C$6,0,0,$C$4),1,1) -> 1617.935078 | V96: =INDEX(coordonnées_cadran_plat($D96,U$10,$C$3,$C$2,$C$5,$C$6,0,0,$C$4),1,2) -> 1140.941797 | W96: =INDEX(coordonnées_cadran_plat($D96,W$10,$C$3,$C$2,$C$5,$C$6,0,0,$C$4),1,1) -> 2680.591116 | X96: =INDEX(coordonnées_cadran_plat($D96,W$10,$C$3,$C$2,$C$5,$C$6,0,0,$C$4),1,2) -> 2875.73156
B97: 5 | C97: 7 | D97: 2010-07-05 | E97: =INDEX(heures_limites_cadran($D97,$C$3,$C$2,$C$5),1,1)/24 -> 09:00:00 | F97: =INDEX(heures_limites_cadran($D97,$C$3,$C$2,$C$5),1,2)/24 -> 17:30:00 | G97: =INDEX(coordonnées_cadran_plat($D97,$G$10,$C$3,$C$2,$C$5,$C$6,0,0,$C$4),1,1) -> 16475.27653 | H97: =INDEX(coordonnées_cadran_plat($D97,$G$10,$C$3,$C$2,$C$5,$C$6,0,0,$C$4),1,2) -> -27692.37817 | I97: =INDEX(coordonnées_cadran_plat($D97,I$10,$C$3,$C$2,$C$5,$C$6,0,0,$C$4),1,1) -> 2128.861468 | J97: =INDEX(coordonnées_cadran_plat($D97,I$10,$C$3,$C$2,$C$5,$C$6,0,0,$C$4),1,2) -> -2404.830022 | K97: =INDEX(coordonnées_cadran_plat($D97,K$10,$C$3,$C$2,$C$5,$C$6,0,0,$C$4),1,1) -> 1454.805733 | L97: =INDEX(coordonnées_cadran_plat($D97,K$10,$C$3,$C$2,$C$5,$C$6,0,0,$C$4),1,2) -> -1070.881103 | M97: =INDEX(coordonnées_cadran_plat($D97,M$10,$C$3,$C$2,$C$5,$C$6,0,0,$C$4),1,1) -> 1249.484265 | N97: =INDEX(coordonnées_cadran_plat($D97,M$10,$C$3,$C$2,$C$5,$C$6,0,0,$C$4),1,2) -> -523.7416106 | O97: =INDEX(coordonnées_cadran_plat($D97,O$10,$C$3,$C$2,$C$5,$C$6,0,0,$C$4),1,1) -> 1185.058334 | P97: =INDEX(coordonnées_cadran_plat($D97,O$10,$C$3,$C$2,$C$5,$C$6,0,0,$C$4),1,2) -> -165.2581783 | Q97: =INDEX(coordonnées_cadran_plat($D97,Q$10,$C$3,$C$2,$C$5,$C$6,0,0,$C$4),1,1) -> 1203.255561 | R97: =INDEX(coordonnées_cadran_plat($D97,Q$10,$C$3,$C$2,$C$5,$C$6,0,0,$C$4),1,2) -> 153.3329439 | S97: =INDEX(coordonnées_cadran_plat($D97,S$10,$C$3,$C$2,$C$5,$C$6,0,0,$C$4),1,1) -> 1312.720696 | T97: =INDEX(coordonnées_cadran_plat($D97,S$10,$C$3,$C$2,$C$5,$C$6,0,0,$C$4),1,2) -> 527.0769428 | U97: =INDEX(coordonnées_cadran_plat($D97,U$10,$C$3,$C$2,$C$5,$C$6,0,0,$C$4),1,1) -> 1606.787475 | V97: =INDEX(coordonnées_cadran_plat($D97,U$10,$C$3,$C$2,$C$5,$C$6,0,0,$C$4),1,2) -> 1133.499417 | W97: =INDEX(coordonnées_cadran_plat($D97,W$10,$C$3,$C$2,$C$5,$C$6,0,0,$C$4),1,1) -> 2646.235349 | X97: =INDEX(coordonnées_cadran_plat($D97,W$10,$C$3,$C$2,$C$5,$C$6,0,0,$C$4),1,2) -> 2841.302814
B98: 6 | C98: 7 | D98: 2010-07-06 | E98: =INDEX(heures_limites_cadran($D98,$C$3,$C$2,$C$5),1,1)/24 -> 09:00:00 | F98: =INDEX(heures_limites_cadran($D98,$C$3,$C$2,$C$5),1,2)/24 -> 17:30:00 | G98: =INDEX(coordonnées_cadran_plat($D98,$G$10,$C$3,$C$2,$C$5,$C$6,0,0,$C$4),1,1) -> 15702.71273 | H98: =INDEX(coordonnées_cadran_plat($D98,$G$10,$C$3,$C$2,$C$5,$C$6,0,0,$C$4),1,2) -> -26493.50266 | I98: =INDEX(coordonnées_cadran_plat($D98,I$10,$C$3,$C$2,$C$5,$C$6,0,0,$C$4),1,1) -> 2112.558138 | J98: =INDEX(coordonnées_cadran_plat($D98,I$10,$C$3,$C$2,$C$5,$C$6,0,0,$C$4),1,2) -> -2393.993168 | K98: =INDEX(coordonnées_cadran_plat($D98,K$10,$C$3,$C$2,$C$5,$C$6,0,0,$C$4),1,1) -> 1446.955376 | L98: =INDEX(coordonnées_cadran_plat($D98,K$10,$C$3,$C$2,$C$5,$C$6,0,0,$C$4),1,2) -> -1068.340074 | M98: =INDEX(coordonnées_cadran_plat($D98,M$10,$C$3,$C$2,$C$5,$C$6,0,0,$C$4),1,1) -> 1243.66794 | N98: =INDEX(coordonnées_cadran_plat($D98,M$10,$C$3,$C$2,$C$5,$C$6,0,0,$C$4),1,2) -> -523.1124598 | O98: =INDEX(coordonnées_cadran_plat($D98,O$10,$C$3,$C$2,$C$5,$C$6,0,0,$C$4),1,1) -> 1179.758507 | P98: =INDEX(coordonnées_cadran_plat($D98,O$10,$C$3,$C$2,$C$5,$C$6,0,0,$C$4),1,2) -> -165.6133751 | Q98: =INDEX(coordonnées_cadran_plat($D98,Q$10,$C$3,$C$2,$C$5,$C$6,0,0,$C$4),1,1) -> 1197.606649 | R98: =INDEX(coordonnées_cadran_plat($D98,Q$10,$C$3,$C$2,$C$5,$C$6,0,0,$C$4),1,2) -> 152.0023066 | S98: =INDEX(coordonnées_cadran_plat($D98,S$10,$C$3,$C$2,$C$5,$C$6,0,0,$C$4),1,1) -> 1305.589942 | T98: =INDEX(coordonnées_cadran_plat($D98,S$10,$C$3,$C$2,$C$5,$C$6,0,0,$C$4),1,2) -> 524.0738134 | U98: =INDEX(coordonnées_cadran_plat($D98,U$10,$C$3,$C$2,$C$5,$C$6,0,0,$C$4),1,1) -> 1595.143618 | V98: =INDEX(coordonnées_cadran_plat($D98,U$10,$C$3,$C$2,$C$5,$C$6,0,0,$C$4),1,2) -> 1125.888158 | W98: =INDEX(coordonnées_cadran_plat($D98,W$10,$C$3,$C$2,$C$5,$C$6,0,0,$C$4),1,1) -> 2611.010527 | X98: =INDEX(coordonnées_cadran_plat($D98,W$10,$C$3,$C$2,$C$5,$C$6,0,0,$C$4),1,2) -> 2806.376715
B99: 7 | C99: 7 | D99: 2010-07-07 | E99: =INDEX(heures_limites_cadran($D99,$C$3,$C$2,$C$5),1,1)/24 -> 09:00:00 | F99: =INDEX(heures_limites_cadran($D99,$C$3,$C$2,$C$5),1,2)/24 -> 17:30:00 | G99: =INDEX(coordonnées_cadran_plat($D99,$G$10,$C$3,$C$2,$C$5,$C$6,0,0,$C$4),1,1) -> 14914.02781 | H99: =INDEX(coordonnées_cadran_plat($D99,$G$10,$C$3,$C$2,$C$5,$C$6,0,0,$C$4),1,2) -> -25261.50784 | I99: =INDEX(coordonnées_cadran_plat($D99,I$10,$C$3,$C$2,$C$5,$C$6,0,0,$C$4),1,1) -> 2094.999538 | J99: =INDEX(coordonnées_cadran_plat($D99,I$10,$C$3,$C$2,$C$5,$C$6,0,0,$C$4),1,2) -> -2381.873633 | K99: =INDEX(coordonnées_cadran_plat($D99,K$10,$C$3,$C$2,$C$5,$C$6,0,0,$C$4),1,1) -> 1438.556378 | L99: =INDEX(coordonnées_cadran_plat($D99,K$10,$C$3,$C$2,$C$5,$C$6,0,0,$C$4),1,2) -> -1065.439156 | M99: =INDEX(coordonnées_cadran_plat($D99,M$10,$C$3,$C$2,$C$5,$C$6,0,0,$C$4),1,1) -> 1237.477172 | N99: =INDEX(coordonnées_cadran_plat($D99,M$10,$C$3,$C$2,$C$5,$C$6,0,0,$C$4),1,2) -> -522.3283432 | O99: =INDEX(coordonnées_cadran_plat($D99,O$10,$C$3,$C$2,$C$5,$C$6,0,0,$C$4),1,1) -> 1174.142998 | P99: =INDEX(coordonnées_cadran_plat($D99,O$10,$C$3,$C$2,$C$5,$C$6,0,0,$C$4),1,2) -> -165.8979166 | Q99: =INDEX(coordonnées_cadran_plat($D99,Q$10,$C$3,$C$2,$C$5,$C$6,0,0,$C$4),1,1) -> 1191.648921 | R99: =INDEX(coordonnées_cadran_plat($D99,Q$10,$C$3,$C$2,$C$5,$C$6,0,0,$C$4),1,2) -> 150.6879949 | S99: =INDEX(coordonnées_cadran_plat($D99,S$10,$C$3,$C$2,$C$5,$C$6,0,0,$C$4),1,1) -> 1298.110964 | T99: =INDEX(coordonnées_cadran_plat($D99,S$10,$C$3,$C$2,$C$5,$C$6,0,0,$C$4),1,2) -> 521.028258 | U99: =INDEX(coordonnées_cadran_plat($D99,U$10,$C$3,$C$2,$C$5,$C$6,0,0,$C$4),1,1) -> 1583.030523 | V99: =INDEX(coordonnées_cadran_plat($D99,U$10,$C$3,$C$2,$C$5,$C$6,0,0,$C$4),1,2) -> 1118.124829 | W99: =INDEX(coordonnées_cadran_plat($D99,W$10,$C$3,$C$2,$C$5,$C$6,0,0,$C$4),1,1) -> 2575.027023 | X99: =INDEX(coordonnées_cadran_plat($D99,W$10,$C$3,$C$2,$C$5,$C$6,0,0,$C$4),1,2) -> 2771.054238
B100: 8 | C100: 7 | D100: 2010-07-08 | E100: =INDEX(heures_limites_cadran($D100,$C$3,$C$2,$C$5),1,1)/24 -> 09:00:00 | F100: =INDEX(heures_limites_cadran($D100,$C$3,$C$2,$C$5),1,2)/24 -> 17:30:00 | G100: =INDEX(coordonnées_cadran_plat($D100,$G$10,$C$3,$C$2,$C$5,$C$6,0,0,$C$4),1,1) -> 14123.20961 | H100: =INDEX(coordonnées_cadran_plat($D100,$G$10,$C$3,$C$2,$C$5,$C$6,0,0,$C$4),1,2) -> -24019.21646 | I100: =INDEX(coordonnées_cadran_plat($D100,I$10,$C$3,$C$2,$C$5,$C$6,0,0,$C$4),1,1) -> 2076.24304 | J100: =INDEX(coordonnées_cadran_plat($D100,I$10,$C$3,$C$2,$C$5,$C$6,0,0,$C$4),1,2) -> -2368.512816 | K100: =INDEX(coordonnées_cadran_plat($D100,K$10,$C$3,$C$2,$C$5,$C$6,0,0,$C$4),1,1) -> 1429.626925 | L100: =INDEX(coordonnées_cadran_plat($D100,K$10,$C$3,$C$2,$C$5,$C$6,0,0,$C$4),1,2) -> -1062.184345 | M100: =INDEX(coordonnées_cadran_plat($D100,M$10,$C$3,$C$2,$C$5,$C$6,0,0,$C$4),1,1) -> 1230.923403 | N100: =INDEX(coordonnées_cadran_plat($D100,M$10,$C$3,$C$2,$C$5,$C$6,0,0,$C$4),1,2) -> -521.3903697 | O100: =INDEX(coordonnées_cadran_plat($D100,O$10,$C$3,$C$2,$C$5,$C$6,0,0,$C$4),1,1) -> 1168.221666 | P100: =INDEX(coordonnées_cadran_plat($D100,O$10,$C$3,$C$2,$C$5,$C$6,0,0,$C$4),1,2) -> -166.1110272 | Q100: =INDEX(coordonnées_cadran_plat($D100,Q$10,$C$3,$C$2,$C$5,$C$6,0,0,$C$4),1,1) -> 1185.393 | R100: =INDEX(coordonnées_cadran_plat($D100,Q$10,$C$3,$C$2,$C$5,$C$6,0,0,$C$4),1,2) -> 149.3925341 | S100: =INDEX(coordonnées_cadran_plat($D100,S$10,$C$3,$C$2,$C$5,$C$6,0,0,$C$4),1,1) -> 1290.298136 | T100: =INDEX(coordonnées_cadran_plat($D100,S$10,$C$3,$C$2,$C$5,$C$6,0,0,$C$4),1,2) -> 517.9461026 | U100: =INDEX(coordonnées_cadran_plat($D100,U$10,$C$3,$C$2,$C$5,$C$6,0,0,$C$4),1,1) -> 1570.475311 | V100: =INDEX(coordonnées_cadran_plat($D100,U$10,$C$3,$C$2,$C$5,$C$6,0,0,$C$4),1,2) -> 1110.225952 | W100: =INDEX(coordonnées_cadran_plat($D100,W$10,$C$3,$C$2,$C$5,$C$6,0,0,$C$4),1,1) -> 2538.391139 | X100: =INDEX(coordonnées_cadran_plat($D100,W$10,$C$3,$C$2,$C$5,$C$6,0,0,$C$4),1,2) -> 2735.431433
B101: 9 | C101: 7 | D101: 2010-07-09 | E101: =INDEX(heures_limites_cadran($D101,$C$3,$C$2,$C$5),1,1)/24 -> 09:00:00 | F101: =INDEX(heures_limites_cadran($D101,$C$3,$C$2,$C$5),1,2)/24 -> 17:30:00 | G101: =INDEX(coordonnées_cadran_plat($D101,$G$10,$C$3,$C$2,$C$5,$C$6,0,0,$C$4),1,1) -> 13341.85672 | H101: =INDEX(coordonnées_cadran_plat($D101,$G$10,$C$3,$C$2,$C$5,$C$6,0,0,$C$4),1,2) -> -22785.74903 | I101: =INDEX(coordonnées_cadran_plat($D101,I$10,$C$3,$C$2,$C$5,$C$6,0,0,$C$4),1,1) -> 2056.349452 | J101: =INDEX(coordonnées_cadran_plat($D101,I$10,$C$3,$C$2,$C$5,$C$6,0,0,$C$4),1,2) -> -2353.956211 | K101: =INDEX(coordonnées_cadran_plat($D101,K$10,$C$3,$C$2,$C$5,$C$6,0,0,$C$4),1,1) -> 1420.186224 | L101: =INDEX(coordonnées_cadran_plat($D101,K$10,$C$3,$C$2,$C$5,$C$6,0,0,$C$4),1,2) -> -1058.582474 | M101: =INDEX(coordonnées_cadran_plat($D101,M$10,$C$3,$C$2,$C$5,$C$6,0,0,$C$4),1,1) -> 1224.018618 | N101: =INDEX(coordonnées_cadran_plat($D101,M$10,$C$3,$C$2,$C$5,$C$6,0,0,$C$4),1,2) -> -520.2999703 | O101: =INDEX(coordonnées_cadran_plat($D101,O$10,$C$3,$C$2,$C$5,$C$6,0,0,$C$4),1,1) -> 1162.004746 | P101: =INDEX(coordonnées_cadran_plat($D101,O$10,$C$3,$C$2,$C$5,$C$6,0,0,$C$4),1,2) -> -166.2520988 | Q101: =INDEX(coordonnées_cadran_plat($D101,Q$10,$C$3,$C$2,$C$5,$C$6,0,0,$C$4),1,1) -> 1178.849803 | R101: =INDEX(coordonnées_cadran_plat($D101,Q$10,$C$3,$C$2,$C$5,$C$6,0,0,$C$4),1,2) -> 148.1183387 | S101: =INDEX(coordonnées_cadran_plat($D101,S$10,$C$3,$C$2,$C$5,$C$6,0,0,$C$4),1,1) -> 1282.166065 | T101: =INDEX(coordonnées_cadran_plat($D101,S$10,$C$3,$C$2,$C$5,$C$6,0,0,$C$4),1,2) -> 514.8330582 | U101: =INDEX(coordonnées_cadran_plat($D101,U$10,$C$3,$C$2,$C$5,$C$6,0,0,$C$4),1,1) -> 1557.505089 | V101: =INDEX(coordonnées_cadran_plat($D101,U$10,$C$3,$C$2,$C$5,$C$6,0,0,$C$4),1,2) -> 1102.207703 | W101: =INDEX(coordonnées_cadran_plat($D101,W$10,$C$3,$C$2,$C$5,$C$6,0,0,$C$4),1,1) -> 2501.204722 | X101: =INDEX(coordonnées_cadran_plat($D101,W$10,$C$3,$C$2,$C$5,$C$6,0,0,$C$4),1,2) -> 2699.599164
B102: 10 | C102: 7 | D102: 2010-07-10 | E102: =INDEX(heures_limites_cadran($D102,$C$3,$C$2,$C$5),1,1)/24 -> 09:00:00 | F102: =INDEX(heures_limites_cadran($D102,$C$3,$C$2,$C$5),1,2)/24 -> 17:30:00 | G102: =INDEX(coordonnées_cadran_plat($D102,$G$10,$C$3,$C$2,$C$5,$C$6,0,0,$C$4),1,1) -> 12579.17816 | H102: =INDEX(coordonnées_cadran_plat($D102,$G$10,$C$3,$C$2,$C$5,$C$6,0,0,$C$4),1,2) -> -21576.47165 | I102: =INDEX(coordonnées_cadran_plat($D102,I$10,$C$3,$C$2,$C$5,$C$6,0,0,$C$4),1,1) -> 2035.382515 | J102: =INDEX(coordonnées_cadran_plat($D102,I$10,$C$3,$C$2,$C$5,$C$6,0,0,$C$4),1,2) -> -2338.252976 | K102: =INDEX(coordonnées_cadran_plat($D102,K$10,$C$3,$C$2,$C$5,$C$6,0,0,$C$4),1,1) -> 1410.254405 | L102: =INDEX(coordonnées_cadran_plat($D102,K$10,$C$3,$C$2,$C$5,$C$6,0,0,$C$4),1,2) -> -1054.641164 | M102: =INDEX(coordonnées_cadran_plat($D102,M$10,$C$3,$C$2,$C$5,$C$6,0,0,$C$4),1,1) -> 1216.775287 | N102: =INDEX(coordonnées_cadran_plat($D102,M$10,$C$3,$C$2,$C$5,$C$6,0,0,$C$4),1,2) -> -519.0588867 | O102: =INDEX(coordonnées_cadran_plat($D102,O$10,$C$3,$C$2,$C$5,$C$6,0,0,$C$4),1,1) -> 1155.502796 | P102: =INDEX(coordonnées_cadran_plat($D102,O$10,$C$3,$C$2,$C$5,$C$6,0,0,$C$4),1,2) -> -166.3206901 | Q102: =INDEX(coordonnées_cadran_plat($D102,Q$10,$C$3,$C$2,$C$5,$C$6,0,0,$C$4),1,1) -> 1172.030494 | R102: =INDEX(coordonnées_cadran_plat($D102,Q$10,$C$3,$C$2,$C$5,$C$6,0,0,$C$4),1,2) -> 146.8677069 | S102: =INDEX(coordonnées_cadran_plat($D102,S$10,$C$3,$C$2,$C$5,$C$6,0,0,$C$4),1,1) -> 1273.729528 | T102: =INDEX(coordonnées_cadran_plat($D102,S$10,$C$3,$C$2,$C$5,$C$6,0,0,$C$4),1,2) -> 511.6947038 | U102: =INDEX(coordonnées_cadran_plat($D102,U$10,$C$3,$C$2,$C$5,$C$6,0,0,$C$4),1,1) -> 1544.14684 | V102: =INDEX(coordonnées_cadran_plat($D102,U$10,$C$3,$C$2,$C$5,$C$6,0,0,$C$4),1,2) -> 1094.085863 | W102: =INDEX(coordonnées_cadran_plat($D102,W$10,$C$3,$C$2,$C$5,$C$6,0,0,$C$4),1,1) -> 2463.564854 | X102: =INDEX(coordonnées_cadran_plat($D102,W$10,$C$3,$C$2,$C$5,$C$6,0,0,$C$4),1,2) -> 2663.642933
B103: 11 | C103: 7 | D103: 2010-07-11 | E103: =INDEX(heures_limites_cadran($D103,$C$3,$C$2,$C$5),1,1)/24 -> 09:00:00 | F103: =INDEX(heures_limites_cadran($D103,$C$3,$C$2,$C$5),1,2)/24 -> 17:30:00 | G103: =INDEX(coordonnées_cadran_plat($D103,$G$10,$C$3,$C$2,$C$5,$C$6,0,0,$C$4),1,1) -> 11842.14598 | H103: =INDEX(coordonnées_cadran_plat($D103,$G$10,$C$3,$C$2,$C$5,$C$6,0,0,$C$4),1,2) -> -20403.19747 | I103: =INDEX(coordonnées_cadran_plat($D103,I$10,$C$3,$C$2,$C$5,$C$6,0,0,$C$4),1,1) -> 2013.408384 | J103: =INDEX(coordonnées_cadran_plat($D103,I$10,$C$3,$C$2,$C$5,$C$6,0,0,$C$4),1,2) -> -2321.455494 | K103: =INDEX(coordonnées_cadran_plat($D103,K$10,$C$3,$C$2,$C$5,$C$6,0,0,$C$4),1,1) -> 1399.852404 | L103: =INDEX(coordonnées_cadran_plat($D103,K$10,$C$3,$C$2,$C$5,$C$6,0,0,$C$4),1,2) -> -1050.368773 | M103: =INDEX(coordonnées_cadran_plat($D103,M$10,$C$3,$C$2,$C$5,$C$6,0,0,$C$4),1,1) -> 1209.206309 | N103: =INDEX(coordonnées_cadran_plat($D103,M$10,$C$3,$C$2,$C$5,$C$6,0,0,$C$4),1,2) -> -517.6691585 | O103: =INDEX(coordonnées_cadran_plat($D103,O$10,$C$3,$C$2,$C$5,$C$6,0,0,$C$4),1,1) -> 1148.726665 | P103: =INDEX(coordonnées_cadran_plat($D103,O$10,$C$3,$C$2,$C$5,$C$6,0,0,$C$4),1,2) -> -166.3165235 | Q103: =INDEX(coordonnées_cadran_plat($D103,Q$10,$C$3,$C$2,$C$5,$C$6,0,0,$C$4),1,1) -> 1164.946447 | R103: =INDEX(coordonnées_cadran_plat($D103,Q$10,$C$3,$C$2,$C$5,$C$6,0,0,$C$4),1,2) -> 145.6428163 | S103: =INDEX(coordonnées_cadran_plat($D103,S$10,$C$3,$C$2,$C$5,$C$6,0,0,$C$4),1,1) -> 1265.00342 | T103: =INDEX(coordonnées_cadran_plat($D103,S$10,$C$3,$C$2,$C$5,$C$6,0,0,$C$4),1,2) -> 508.5364712 | U103: =INDEX(coordonnées_cadran_plat($D103,U$10,$C$3,$C$2,$C$5,$C$6,0,0,$C$4),1,1) -> 1530.427315 | V103: =INDEX(coordonnées_cadran_plat($D103,U$10,$C$3,$C$2,$C$5,$C$6,0,0,$C$4),1,2) -> 1085.875769 | W103: =INDEX(coordonnées_cadran_plat($D103,W$10,$C$3,$C$2,$C$5,$C$6,0,0,$C$4),1,1) -> 2425.563615 | X103: =INDEX(coordonnées_cadran_plat($D103,W$10,$C$3,$C$2,$C$5,$C$6,0,0,$C$4),1,2) -> 2627.642766
B104: 12 | C104: 7 | D104: 2010-07-12 | E104: =INDEX(heures_limites_cadran($D104,$C$3,$C$2,$C$5),1,1)/24 -> 09:00:00 | F104: =INDEX(heures_limites_cadran($D104,$C$3,$C$2,$C$5),1,2)/24 -> 17:30:00 | G104: =INDEX(coordonnées_cadran_plat($D104,$G$10,$C$3,$C$2,$C$5,$C$6,0,0,$C$4),1,1) -> 11135.74156 | H104: =INDEX(coordonnées_cadran_plat($D104,$G$10,$C$3,$C$2,$C$5,$C$6,0,0,$C$4),1,2) -> -19274.5482 | I104: =INDEX(coordonnées_cadran_plat($D104,I$10,$C$3,$C$2,$C$5,$C$6,0,0,$C$4),1,1) -> 1990.495107 | J104: =INDEX(coordonnées_cadran_plat($D104,I$10,$C$3,$C$2,$C$5,$C$6,0,0,$C$4),1,2) -> -2303.618916 | K104: =INDEX(coordonnées_cadran_plat($D104,K$10,$C$3,$C$2,$C$5,$C$6,0,0,$C$4),1,1) -> 1389.001856 | L104: =INDEX(coordonnées_cadran_plat($D104,K$10,$C$3,$C$2,$C$5,$C$6,0,0,$C$4),1,2) -> -1045.774341 | M104: =INDEX(coordonnées_cadran_plat($D104,M$10,$C$3,$C$2,$C$5,$C$6,0,0,$C$4),1,1) -> 1201.324956 | N104: =INDEX(coordonnées_cadran_plat($D104,M$10,$C$3,$C$2,$C$5,$C$6,0,0,$C$4),1,2) -> -516.1331088 | O104: =INDEX(coordonnées_cadran_plat($D104,O$10,$C$3,$C$2,$C$5,$C$6,0,0,$C$4),1,1) -> 1141.68744 | P104: =INDEX(coordonnées_cadran_plat($D104,O$10,$C$3,$C$2,$C$5,$C$6,0,0,$C$4),1,2) -> -166.2394827 | Q104: =INDEX(coordonnées_cadran_plat($D104,Q$10,$C$3,$C$2,$C$5,$C$6,0,0,$C$4),1,1) -> 1157.609197 | R104: =INDEX(coordonnées_cadran_plat($D104,Q$10,$C$3,$C$2,$C$5,$C$6,0,0,$C$4),1,2) -> 144.4457197 | S104: =INDEX(coordonnées_cadran_plat($D104,S$10,$C$3,$C$2,$C$5,$C$6,0,0,$C$4),1,1) -> 1256.002696 | T104: =INDEX(coordonnées_cadran_plat($D104,S$10,$C$3,$C$2,$C$5,$C$6,0,0,$C$4),1,2) -> 505.3636316 | U104: =INDEX(coordonnées_cadran_plat($D104,U$10,$C$3,$C$2,$C$5,$C$6,0,0,$C$4),1,1) -> 1516.372941 | V104: =INDEX(coordonnées_cadran_plat($D104,U$10,$C$3,$C$2,$C$5,$C$6,0,0,$C$4),1,2) -> 1077.592275 | W104: =INDEX(coordonnées_cadran_plat($D104,W$10,$C$3,$C$2,$C$5,$C$6,0,0,$C$4),1,1) -> 2387.287931 | X104: =INDEX(coordonnées_cadran_plat($D104,W$10,$C$3,$C$2,$C$5,$C$6,0,0,$C$4),1,2) -> 2591.673165
B105: 13 | C105: 7 | D105: 2010-07-13 | E105: =INDEX(heures_limites_cadran($D105,$C$3,$C$2,$C$5),1,1)/24 -> 09:00:00 | F105: =INDEX(heures_limites_cadran($D105,$C$3,$C$2,$C$5),1,2)/24 -> 17:30:00 | G105: =INDEX(coordonnées_cadran_plat($D105,$G$10,$C$3,$C$2,$C$5,$C$6,0,0,$C$4),1,1) -> 10463.24692 | H105: =INDEX(coordonnées_cadran_plat($D105,$G$10,$C$3,$C$2,$C$5,$C$6,0,0,$C$4),1,2) -> -18196.39698 | I105: =INDEX(coordonnées_cadran_plat($D105,I$10,$C$3,$C$2,$C$5,$C$6,0,0,$C$4),1,1) -> 1966.71211 | J105: =INDEX(coordonnées_cadran_plat($D105,I$10,$C$3,$C$2,$C$5,$C$6,0,0,$C$4),1,2) -> -2284.800693 | K105: =INDEX(coordonnées_cadran_plat($D105,K$10,$C$3,$C$2,$C$5,$C$6,0,0,$C$4),1,1) -> 1377.724982 | L105: =INDEX(coordonnées_cadran_plat($D105,K$10,$C$3,$C$2,$C$5,$C$6,0,0,$C$4),1,2) -> -1040.867536 | M105: =INDEX(coordonnées_cadran_plat($D105,M$10,$C$3,$C$2,$C$5,$C$6,0,0,$C$4),1,1) -> 1193.144817 | N105: =INDEX(coordonnées_cadran_plat($D105,M$10,$C$3,$C$2,$C$5,$C$6,0,0,$C$4),1,2) -> -514.4533298 | O105: =INDEX(coordonnées_cadran_plat($D105,O$10,$C$3,$C$2,$C$5,$C$6,0,0,$C$4),1,1) -> 1134.39641 | P105: =INDEX(coordonnées_cadran_plat($D105,O$10,$C$3,$C$2,$C$5,$C$6,0,0,$C$4),1,2) -> -166.0896088 | Q105: =INDEX(coordonnées_cadran_plat($D105,Q$10,$C$3,$C$2,$C$5,$C$6,0,0,$C$4),1,1) -> 1150.0304 | R105: =INDEX(coordonnées_cadran_plat($D105,Q$10,$C$3,$C$2,$C$5,$C$6,0,0,$C$4),1,2) -> 143.2783422 | S105: =INDEX(coordonnées_cadran_plat($D105,S$10,$C$3,$C$2,$C$5,$C$6,0,0,$C$4),1,1) -> 1246.74232 | T105: =INDEX(coordonnées_cadran_plat($D105,S$10,$C$3,$C$2,$C$5,$C$6,0,0,$C$4),1,2) -> 502.1812829 | U105: =INDEX(coordonnées_cadran_plat($D105,U$10,$C$3,$C$2,$C$5,$C$6,0,0,$C$4),1,1) -> 1502.009728 | V105: =INDEX(coordonnées_cadran_plat($D105,U$10,$C$3,$C$2,$C$5,$C$6,0,0,$C$4),1,2) -> 1069.249713 | W105: =INDEX(coordonnées_cadran_plat($D105,W$10,$C$3,$C$2,$C$5,$C$6,0,0,$C$4),1,1) -> 2348.819477 | X105: =INDEX(coordonnées_cadran_plat($D105,W$10,$C$3,$C$2,$C$5,$C$6,0,0,$C$4),1,2) -> 2555.803121
B106: 14 | C106: 7 | D106: 2010-07-14 | E106: =INDEX(heures_limites_cadran($D106,$C$3,$C$2,$C$5),1,1)/24 -> 09:00:00 | F106: =INDEX(heures_limites_cadran($D106,$C$3,$C$2,$C$5),1,2)/24 -> 18:00:00 | G106: =INDEX(coordonnées_cadran_plat($D106,$G$10,$C$3,$C$2,$C$5,$C$6,0,0,$C$4),1,1) -> 9826.544679 | H106: =INDEX(coordonnées_cadran_plat($D106,$G$10,$C$3,$C$2,$C$5,$C$6,0,0,$C$4),1,2) -> -17172.33325 | I106: =INDEX(coordonnées_cadran_plat($D106,I$10,$C$3,$C$2,$C$5,$C$6,0,0,$C$4),1,1) -> 1942.12969 | J106: =INDEX(coordonnées_cadran_plat($D106,I$10,$C$3,$C$2,$C$5,$C$6,0,0,$C$4),1,2) -> -2265.060117 | K106: =INDEX(coordonnées_cadran_plat($D106,K$10,$C$3,$C$2,$C$5,$C$6,0,0,$C$4),1,1) -> 1366.044479 | L106: =INDEX(coordonnées_cadran_plat($D106,K$10,$C$3,$C$2,$C$5,$C$6,0,0,$C$4),1,2) -> -1035.658595 | M106: =INDEX(coordonnées_cadran_plat($D106,M$10,$C$3,$C$2,$C$5,$C$6,0,0,$C$4),1,1) -> 1184.679742 | N106: =INDEX(coordonnées_cadran_plat($D106,M$10,$C$3,$C$2,$C$5,$C$6,0,0,$C$4),1,2) -> -512.6326663 | O106: =INDEX(coordonnées_cadran_plat($D106,O$10,$C$3,$C$2,$C$5,$C$6,0,0,$C$4),1,1) -> 1126.86502 | P106: =INDEX(coordonnées_cadran_plat($D106,O$10,$C$3,$C$2,$C$5,$C$6,0,0,$C$4),1,2) -> -165.8670962 | Q106: =INDEX(coordonnées_cadran_plat($D106,Q$10,$C$3,$C$2,$C$5,$C$6,0,0,$C$4),1,1) -> 1142.221795 | R106: =INDEX(coordonnées_cadran_plat($D106,Q$10,$C$3,$C$2,$C$5,$C$6,0,0,$C$4),1,2) -> 142.1424787 | S106: =INDEX(coordonnées_cadran_plat($D106,S$10,$C$3,$C$2,$C$5,$C$6,0,0,$C$4),1,1) -> 1237.237212 | T106: =INDEX(coordonnées_cadran_plat($D106,S$10,$C$3,$C$2,$C$5,$C$6,0,0,$C$4),1,2) -> 498.9943395 | U106: =INDEX(coordonnées_cadran_plat($D106,U$10,$C$3,$C$2,$C$5,$C$6,0,0,$C$4),1,1) -> 1487.363193 | V106: =INDEX(coordonnées_cadran_plat($D106,U$10,$C$3,$C$2,$C$5,$C$6,0,0,$C$4),1,2) -> 1060.86187 | W106: =INDEX(coordonnées_cadran_plat($D106,W$10,$C$3,$C$2,$C$5,$C$6,0,0,$C$4),1,1) -> 2310.234637 | X106: =INDEX(coordonnées_cadran_plat($D106,W$10,$C$3,$C$2,$C$5,$C$6,0,0,$C$4),1,2) -> 2520.096168
B107: 15 | C107: 7 | D107: 2010-07-15 | E107: =INDEX(heures_limites_cadran($D107,$C$3,$C$2,$C$5),1,1)/24 -> 09:00:00 | F107: =INDEX(heures_limites_cadran($D107,$C$3,$C$2,$C$5),1,2)/24 -> 18:00:00 | G107: =INDEX(coordonnées_cadran_plat($D107,$G$10,$C$3,$C$2,$C$5,$C$6,0,0,$C$4),1,1) -> 9226.402532 | H107: =INDEX(coordonnées_cadran_plat($D107,$G$10,$C$3,$C$2,$C$5,$C$6,0,0,$C$4),1,2) -> -16204.10952 | I107: =INDEX(coordonnées_cadran_plat($D107,I$10,$C$3,$C$2,$C$5,$C$6,0,0,$C$4),1,1) -> 1916.818534 | J107: =INDEX(coordonnées_cadran_plat($D107,I$10,$C$3,$C$2,$C$5,$C$6,0,0,$C$4),1,2) -> -2244.457859 | K107: =INDEX(coordonnées_cadran_plat($D107,K$10,$C$3,$C$2,$C$5,$C$6,0,0,$C$4),1,1) -> 1353.983408 | L107: =INDEX(coordonnées_cadran_plat($D107,K$10,$C$3,$C$2,$C$5,$C$6,0,0,$C$4),1,2) -> -1030.15826 | M107: =INDEX(coordonnées_cadran_plat($D107,M$10,$C$3,$C$2,$C$5,$C$6,0,0,$C$4),1,1) -> 1175.943783 | N107: =INDEX(coordonnées_cadran_plat($D107,M$10,$C$3,$C$2,$C$5,$C$6,0,0,$C$4),1,2) -> -510.6741992 | O107: =INDEX(coordonnées_cadran_plat($D107,O$10,$C$3,$C$2,$C$5,$C$6,0,0,$C$4),1,1) -> 1119.104833 | P107: =INDEX(coordonnées_cadran_plat($D107,O$10,$C$3,$C$2,$C$5,$C$6,0,0,$C$4),1,2) -> -165.5722879 | Q107: =INDEX(coordonnées_cadran_plat($D107,Q$10,$C$3,$C$2,$C$5,$C$6,0,0,$C$4),1,1) -> 1134.195159 | R107: =INDEX(coordonnées_cadran_plat($D107,Q$10,$C$3,$C$2,$C$5,$C$6,0,0,$C$4),1,2) -> 141.0397922 | S107: =INDEX(coordonnées_cadran_plat($D107,S$10,$C$3,$C$2,$C$5,$C$6,0,0,$C$4),1,1) -> 1227.502203 | T107: =INDEX(coordonnées_cadran_plat($D107,S$10,$C$3,$C$2,$C$5,$C$6,0,0,$C$4),1,2) -> 495.8075222 | U107: =INDEX(coordonnées_cadran_plat($D107,U$10,$C$3,$C$2,$C$5,$C$6,0,0,$C$4),1,1) -> 1472.458288 | V107: =INDEX(coordonnées_cadran_plat($D107,U$10,$C$3,$C$2,$C$5,$C$6,0,0,$C$4),1,2) -> 1052.441954 | W107: =INDEX(coordonnées_cadran_plat($D107,W$10,$C$3,$C$2,$C$5,$C$6,0,0,$C$4),1,1) -> 2271.604527 | X107: =INDEX(coordonnées_cadran_plat($D107,W$10,$C$3,$C$2,$C$5,$C$6,0,0,$C$4),1,2) -> 2484.610494
B108: 16 | C108: 7 | D108: 2010-07-16 | E108: =INDEX(heures_limites_cadran($D108,$C$3,$C$2,$C$5),1,1)/24 -> 09:00:00 | F108: =INDEX(heures_limites_cadran($D108,$C$3,$C$2,$C$5),1,2)/24 -> 18:00:00 | G108: =INDEX(coordonnées_cadran_plat($D108,$G$10,$C$3,$C$2,$C$5,$C$6,0,0,$C$4),1,1) -> 8662.728248 | H108: =INDEX(coordonnées_cadran_plat($D108,$G$10,$C$3,$C$2,$C$5,$C$6,0,0,$C$4),1,2) -> -15292.04595 | I108: =INDEX(coordonnées_cadran_plat($D108,I$10,$C$3,$C$2,$C$5,$C$6,0,0,$C$4),1,1) -> 1890.849246 | J108: =INDEX(coordonnées_cadran_plat($D108,I$10,$C$3,$C$2,$C$5,$C$6,0,0,$C$4),1,2) -> -2223.055527 | K108: =INDEX(coordonnées_cadran_plat($D108,K$10,$C$3,$C$2,$C$5,$C$6,0,0,$C$4),1,1) -> 1341.565087 | L108: =INDEX(coordonnées_cadran_plat($D108,K$10,$C$3,$C$2,$C$5,$C$6,0,0,$C$4),1,2) -> -1024.377724 | M108: =INDEX(coordonnées_cadran_plat($D108,M$10,$C$3,$C$2,$C$5,$C$6,0,0,$C$4),1,1) -> 1166.951144 | N108: =INDEX(coordonnées_cadran_plat($D108,M$10,$C$3,$C$2,$C$5,$C$6,0,0,$C$4),1,2) -> -508.5812284 | O108: =INDEX(coordonnées_cadran_plat($D108,O$10,$C$3,$C$2,$C$5,$C$6,0,0,$C$4),1,1) -> 1111.127487 | P108: =INDEX(coordonnées_cadran_plat($D108,O$10,$C$3,$C$2,$C$5,$C$6,0,0,$C$4),1,2) -> -165.2056701 | Q108: =INDEX(coordonnées_cadran_plat($D108,Q$10,$C$3,$C$2,$C$5,$C$6,0,0,$C$4),1,1) -> 1125.962276 | R108: =INDEX(coordonnées_cadran_plat($D108,Q$10,$C$3,$C$2,$C$5,$C$6,0,0,$C$4),1,2) -> 139.9718129 | S108: =INDEX(coordonnées_cadran_plat($D108,S$10,$C$3,$C$2,$C$5,$C$6,0,0,$C$4),1,1) -> 1217.551992 | T108: =INDEX(coordonnées_cadran_plat($D108,S$10,$C$3,$C$2,$C$5,$C$6,0,0,$C$4),1,2) -> 492.625351 | U108: =INDEX(coordonnées_cadran_plat($D108,U$10,$C$3,$C$2,$C$5,$C$6,0,0,$C$4),1,1) -> 1457.319334 | V108: =INDEX(coordonnées_cadran_plat($D108,U$10,$C$3,$C$2,$C$5,$C$6,0,0,$C$4),1,2) -> 1044.002583 | W108: =INDEX(coordonnées_cadran_plat($D108,W$10,$C$3,$C$2,$C$5,$C$6,0,0,$C$4),1,1) -> 2232.995051 | X108: =INDEX(coordonnées_cadran_plat($D108,W$10,$C$3,$C$2,$C$5,$C$6,0,0,$C$4),1,2) -> 2449.399071
B109: 17 | C109: 7 | D109: =DATE($C$7,C109,B109) -> 2010-07-17 | E109: =INDEX(heures_limites_cadran($D109,$C$3,$C$2,$C$5),1,1)/24 -> 09:00:00 | F109: =INDEX(heures_limites_cadran($D109,$C$3,$C$2,$C$5),1,2)/24 -> 18:00:00 | G109: =INDEX(coordonnées_cadran_plat($D109,$G$10,$C$3,$C$2,$C$5,$C$6,0,0,$C$4),1,1) -> 8134.788865 | H109: =INDEX(coordonnées_cadran_plat($D109,$G$10,$C$3,$C$2,$C$5,$C$6,0,0,$C$4),1,2) -> -14435.38119 | I109: =INDEX(coordonnées_cadran_plat($D109,I$10,$C$3,$C$2,$C$5,$C$6,0,0,$C$4),1,1) -> 1864.291919 | J109: =INDEX(coordonnées_cadran_plat($D109,I$10,$C$3,$C$2,$C$5,$C$6,0,0,$C$4),1,2) -> -2200.915233 | K109: =INDEX(coordonnées_cadran_plat($D109,K$10,$C$3,$C$2,$C$5,$C$6,0,0,$C$4),1,1) -> 1328.812986 | L109: =INDEX(coordonnées_cadran_plat($D109,K$10,$C$3,$C$2,$C$5,$C$6,0,0,$C$4),1,2) -> -1018.328562 | M109: =INDEX(coordonnées_cadran_plat($D109,M$10,$C$3,$C$2,$C$5,$C$6,0,0,$C$4),1,1) -> 1157.716125 | N109: =INDEX(coordonnées_cadran_plat($D109,M$10,$C$3,$C$2,$C$5,$C$6,0,0,$C$4),1,2) -> -506.3572549 | O109: =INDEX(coordonnées_cadran_plat($D109,O$10,$C$3,$C$2,$C$5,$C$6,0,0,$C$4),1,1) -> 1102.944658 | P109: =INDEX(coordonnées_cadran_plat($D109,O$10,$C$3,$C$2,$C$5,$C$6,0,0,$C$4),1,2) -> -164.7678665 | Q109: =INDEX(coordonnées_cadran_plat($D109,Q$10,$C$3,$C$2,$C$5,$C$6,0,0,$C$4),1,1) -> 1117.534895 | R109: =INDEX(coordonnées_cadran_plat($D109,Q$10,$C$3,$C$2,$C$5,$C$6,0,0,$C$4),1,2) -> 138.9399377 | S109: =INDEX(coordonnées_cadran_plat($D109,S$10,$C$3,$C$2,$C$5,$C$6,0,0,$C$4),1,1) -> 1207.401103 | T109: =INDEX(coordonnées_cadran_plat($D109,S$10,$C$3,$C$2,$C$5,$C$6,0,0,$C$4),1,2) -> 489.4521381 | U109: =INDEX(coordonnées_cadran_plat($D109,U$10,$C$3,$C$2,$C$5,$C$6,0,0,$C$4),1,1) -> 1441.969969 | V109: =INDEX(coordonnées_cadran_plat($D109,U$10,$C$3,$C$2,$C$5,$C$6,0,0,$C$4),1,2) -> 1035.555765 | W109: =INDEX(coordonnées_cadran_plat($D109,W$10,$C$3,$C$2,$C$5,$C$6,0,0,$C$4),1,1) -> 2194.467004 | X109: =INDEX(coordonnées_cadran_plat($D109,W$10,$C$3,$C$2,$C$5,$C$6,0,0,$C$4),1,2) -> 2414.509832
B110: 18 | C110: 7 | D110: 2010-07-18 | E110: =INDEX(heures_limites_cadran($D110,$C$3,$C$2,$C$5),1,1)/24 -> 09:00:00 | F110: =INDEX(heures_limites_cadran($D110,$C$3,$C$2,$C$5),1,2)/24 -> 18:00:00 | G110: =INDEX(coordonnées_cadran_plat($D110,$G$10,$C$3,$C$2,$C$5,$C$6,0,0,$C$4),1,1) -> 7641.39285 | H110: =INDEX(coordonnées_cadran_plat($D110,$G$10,$C$3,$C$2,$C$5,$C$6,0,0,$C$4),1,2) -> -13632.5663 | I110: =INDEX(coordonnées_cadran_plat($D110,I$10,$C$3,$C$2,$C$5,$C$6,0,0,$C$4),1,1) -> 1837.215726 | J110: =INDEX(coordonnées_cadran_plat($D110,I$10,$C$3,$C$2,$C$5,$C$6,0,0,$C$4),1,2) -> -2178.099191 | K110: =INDEX(coordonnées_cadran_plat($D110,K$10,$C$3,$C$2,$C$5,$C$6,0,0,$C$4),1,1) -> 1315.750624 | L110: =INDEX(coordonnées_cadran_plat($D110,K$10,$C$3,$C$2,$C$5,$C$6,0,0,$C$4),1,2) -> -1012.022677 | M110: =INDEX(coordonnées_cadran_plat($D110,M$10,$C$3,$C$2,$C$5,$C$6,0,0,$C$4),1,1) -> 1148.253071 | N110: =INDEX(coordonnées_cadran_plat($D110,M$10,$C$3,$C$2,$C$5,$C$6,0,0,$C$4),1,2) -> -504.0059629 | O110: =INDEX(coordonnées_cadran_plat($D110,O$10,$C$3,$C$2,$C$5,$C$6,0,0,$C$4),1,1) -> 1094.568023 | P110: =INDEX(coordonnées_cadran_plat($D110,O$10,$C$3,$C$2,$C$5,$C$6,0,0,$C$4),1,2) -> -164.2596323 | Q110: =INDEX(coordonnées_cadran_plat($D110,Q$10,$C$3,$C$2,$C$5,$C$6,0,0,$C$4),1,1) -> 1108.924698 | R110: =INDEX(coordonnées_cadran_plat($D110,Q$10,$C$3,$C$2,$C$5,$C$6,0,0,$C$4),1,2) -> 137.9454305 | S110: =INDEX(coordonnées_cadran_plat($D110,S$10,$C$3,$C$2,$C$5,$C$6,0,0,$C$4),1,1) -> 1197.063846 | T110: =INDEX(coordonnées_cadran_plat($D110,S$10,$C$3,$C$2,$C$5,$C$6,0,0,$C$4),1,2) -> 486.2919831 | U110: =INDEX(coordonnées_cadran_plat($D110,U$10,$C$3,$C$2,$C$5,$C$6,0,0,$C$4),1,1) -> 1426.433099 | V110: =INDEX(coordonnées_cadran_plat($D110,U$10,$C$3,$C$2,$C$5,$C$6,0,0,$C$4),1,2) -> 1027.112886 | W110: =INDEX(coordonnées_cadran_plat($D110,W$10,$C$3,$C$2,$C$5,$C$6,0,0,$C$4),1,1) -> 2156.076204 | X110: =INDEX(coordonnées_cadran_plat($D110,W$10,$C$3,$C$2,$C$5,$C$6,0,0,$C$4),1,2) -> 2379.98586
B111: 19 | C111: 7 | D111: 2010-07-19 | E111: =INDEX(heures_limites_cadran($D111,$C$3,$C$2,$C$5),1,1)/24 -> 09:00:00 | F111: =INDEX(heures_limites_cadran($D111,$C$3,$C$2,$C$5),1,2)/24 -> 18:00:00 | G111: =INDEX(coordonnées_cadran_plat($D111,$G$10,$C$3,$C$2,$C$5,$C$6,0,0,$C$4),1,1) -> 7181.0373 | H111: =INDEX(coordonnées_cadran_plat($D111,$G$10,$C$3,$C$2,$C$5,$C$6,0,0,$C$4),1,2) -> -12881.50424 | I111: =INDEX(coordonnées_cadran_plat($D111,I$10,$C$3,$C$2,$C$5,$C$6,0,0,$C$4),1,1) -> 1809.688549 | J111: =INDEX(coordonnées_cadran_plat($D111,I$10,$C$3,$C$2,$C$5,$C$6,0,0,$C$4),1,2) -> -2154.669327 | K111: =INDEX(coordonnées_cadran_plat($D111,K$10,$C$3,$C$2,$C$5,$C$6,0,0,$C$4),1,1) -> 1302.401472 | L111: =INDEX(coordonnées_cadran_plat($D111,K$10,$C$3,$C$2,$C$5,$C$6,0,0,$C$4),1,2) -> -1005.472238 | M111: =INDEX(coordonnées_cadran_plat($D111,M$10,$C$3,$C$2,$C$5,$C$6,0,0,$C$4),1,1) -> 1138.576322 | N111: =INDEX(coordonnées_cadran_plat($D111,M$10,$C$3,$C$2,$C$5,$C$6,0,0,$C$4),1,2) -> -501.5312017 | O111: =INDEX(coordonnées_cadran_plat($D111,O$10,$C$3,$C$2,$C$5,$C$6,0,0,$C$4),1,1) -> 1086.009223 | P111: =INDEX(coordonnées_cadran_plat($D111,O$10,$C$3,$C$2,$C$5,$C$6,0,0,$C$4),1,2) -> -163.6818474 | Q111: =INDEX(coordonnées_cadran_plat($D111,Q$10,$C$3,$C$2,$C$5,$C$6,0,0,$C$4),1,1) -> 1100.143272 | R111: =INDEX(coordonnées_cadran_plat($D111,Q$10,$C$3,$C$2,$C$5,$C$6,0,0,$C$4),1,2) -> 136.9894228 | S111: =INDEX(coordonnées_cadran_plat($D111,S$10,$C$3,$C$2,$C$5,$C$6,0,0,$C$4),1,1) -> 1186.554286 | T111: =INDEX(coordonnées_cadran_plat($D111,S$10,$C$3,$C$2,$C$5,$C$6,0,0,$C$4),1,2) -> 483.1487692 | U111: =INDEX(coordonnées_cadran_plat($D111,U$10,$C$3,$C$2,$C$5,$C$6,0,0,$C$4),1,1) -> 1410.73086 | V111: =INDEX(coordonnées_cadran_plat($D111,U$10,$C$3,$C$2,$C$5,$C$6,0,0,$C$4),1,2) -> 1018.684711 | W111: =INDEX(coordonnées_cadran_plat($D111,W$10,$C$3,$C$2,$C$5,$C$6,0,0,$C$4),1,1) -> 2117.873653 | X111: =INDEX(coordonnées_cadran_plat($D111,W$10,$C$3,$C$2,$C$5,$C$6,0,0,$C$4),1,2) -> 2345.865604
B112: 20 | C112: 7 | D112: 2010-07-20 | E112: =INDEX(heures_limites_cadran($D112,$C$3,$C$2,$C$5),1,1)/24 -> 09:00:00 | F112: =INDEX(heures_limites_cadran($D112,$C$3,$C$2,$C$5),1,2)/24 -> 18:00:00 | G112: =INDEX(coordonnées_cadran_plat($D112,$G$10,$C$3,$C$2,$C$5,$C$6,0,0,$C$4),1,1) -> 6752.023946 | H112: =INDEX(coordonnées_cadran_plat($D112,$G$10,$C$3,$C$2,$C$5,$C$6,0,0,$C$4),1,2) -> -12179.74013 | I112: =INDEX(coordonnées_cadran_plat($D112,I$10,$C$3,$C$2,$C$5,$C$6,0,0,$C$4),1,1) -> 1781.776644 | J112: =INDEX(coordonnées_cadran_plat($D112,I$10,$C$3,$C$2,$C$5,$C$6,0,0,$C$4),1,2) -> -2130.68693 | K112: =INDEX(coordonnées_cadran_plat($D112,K$10,$C$3,$C$2,$C$5,$C$6,0,0,$C$4),1,1) -> 1288.788862 | L112: =INDEX(coordonnées_cadran_plat($D112,K$10,$C$3,$C$2,$C$5,$C$6,0,0,$C$4),1,2) -> -998.6896172 | M112: =INDEX(coordonnées_cadran_plat($D112,M$10,$C$3,$C$2,$C$5,$C$6,0,0,$C$4),1,1) -> 1128.700167 | N112: =INDEX(coordonnées_cadran_plat($D112,M$10,$C$3,$C$2,$C$5,$C$6,0,0,$C$4),1,2) -> -498.9369675 | O112: =INDEX(coordonnées_cadran_plat($D112,O$10,$C$3,$C$2,$C$5,$C$6,0,0,$C$4),1,1) -> 1077.279831 | P112: =INDEX(coordonnées_cadran_plat($D112,O$10,$C$3,$C$2,$C$5,$C$6,0,0,$C$4),1,2) -> -163.0355103 | Q112: =INDEX(coordonnées_cadran_plat($D112,Q$10,$C$3,$C$2,$C$5,$C$6,0,0,$C$4),1,1) -> 1091.202072 | R112: =INDEX(coordonnées_cadran_plat($D112,Q$10,$C$3,$C$2,$C$5,$C$6,0,0,$C$4),1,2) -> 136.0729157 | S112: =INDEX(coordonnées_cadran_plat($D112,S$10,$C$3,$C$2,$C$5,$C$6,0,0,$C$4),1,1) -> 1175.886209 | T112: =INDEX(coordonnées_cadran_plat($D112,S$10,$C$3,$C$2,$C$5,$C$6,0,0,$C$4),1,2) -> 480.0261603 | U112: =INDEX(coordonnées_cadran_plat($D112,U$10,$C$3,$C$2,$C$5,$C$6,0,0,$C$4),1,1) -> 1394.884583 | V112: =INDEX(coordonnées_cadran_plat($D112,U$10,$C$3,$C$2,$C$5,$C$6,0,0,$C$4),1,2) -> 1010.281373 | W112: =INDEX(coordonnées_cadran_plat($D112,W$10,$C$3,$C$2,$C$5,$C$6,0,0,$C$4),1,1) -> 2079.905716 | X112: =INDEX(coordonnées_cadran_plat($D112,W$10,$C$3,$C$2,$C$5,$C$6,0,0,$C$4),1,2) -> 2312.183102
B113: 21 | C113: 7 | D113: 2010-07-21 | E113: =INDEX(heures_limites_cadran($D113,$C$3,$C$2,$C$5),1,1)/24 -> 09:00:00 | F113: =INDEX(heures_limites_cadran($D113,$C$3,$C$2,$C$5),1,2)/24 -> 18:00:00 | G113: =INDEX(coordonnées_cadran_plat($D113,$G$10,$C$3,$C$2,$C$5,$C$6,0,0,$C$4),1,1) -> 6352.548446 | H113: =INDEX(coordonnées_cadran_plat($D113,$G$10,$C$3,$C$2,$C$5,$C$6,0,0,$C$4),1,2) -> -11524.60908 | I113: =INDEX(coordonnées_cadran_plat($D113,I$10,$C$3,$C$2,$C$5,$C$6,0,0,$C$4),1,1) -> 1753.544346 | J113: =INDEX(coordonnées_cadran_plat($D113,I$10,$C$3,$C$2,$C$5,$C$6,0,0,$C$4),1,2) -> -2106.212327 | K113: =INDEX(coordonnées_cadran_plat($D113,K$10,$C$3,$C$2,$C$5,$C$6,0,0,$C$4),1,1) -> 1274.935899 | L113: =INDEX(coordonnées_cadran_plat($D113,K$10,$C$3,$C$2,$C$5,$C$6,0,0,$C$4),1,2) -> -991.6873404 | M113: =INDEX(coordonnées_cadran_plat($D113,M$10,$C$3,$C$2,$C$5,$C$6,0,0,$C$4),1,1) -> 1118.6388 | N113: =INDEX(coordonnées_cadran_plat($D113,M$10,$C$3,$C$2,$C$5,$C$6,0,0,$C$4),1,2) -> -496.2273855 | O113: =INDEX(coordonnées_cadran_plat($D113,O$10,$C$3,$C$2,$C$5,$C$6,0,0,$C$4),1,1) -> 1068.391318 | P113: =INDEX(coordonnées_cadran_plat($D113,O$10,$C$3,$C$2,$C$5,$C$6,0,0,$C$4),1,2) -> -162.3217308 | Q113: =INDEX(coordonnées_cadran_plat($D113,Q$10,$C$3,$C$2,$C$5,$C$6,0,0,$C$4),1,1) -> 1082.112399 | R113: =INDEX(coordonnées_cadran_plat($D113,Q$10,$C$3,$C$2,$C$5,$C$6,0,0,$C$4),1,2) -> 135.1967809 | S113: =INDEX(coordonnées_cadran_plat($D113,S$10,$C$3,$C$2,$C$5,$C$6,0,0,$C$4),1,1) -> 1165.073094 | T113: =INDEX(coordonnées_cadran_plat($D113,S$10,$C$3,$C$2,$C$5,$C$6,0,0,$C$4),1,2) -> 476.9275995 | U113: =INDEX(coordonnées_cadran_plat($D113,U$10,$C$3,$C$2,$C$5,$C$6,0,0,$C$4),1,1) -> 1378.91477 | V113: =INDEX(coordonnées_cadran_plat($D113,U$10,$C$3,$C$2,$C$5,$C$6,0,0,$C$4),1,2) -> 1001.912381 | W113: =INDEX(coordonnées_cadran_plat($D113,W$10,$C$3,$C$2,$C$5,$C$6,0,0,$C$4),1,1) -> 2042.214324 | X113: =INDEX(coordonnées_cadran_plat($D113,W$10,$C$3,$C$2,$C$5,$C$6,0,0,$C$4),1,2) -> 2278.968221
B114: 22 | C114: 7 | D114: 2010-07-22 | E114: =INDEX(heures_limites_cadran($D114,$C$3,$C$2,$C$5),1,1)/24 -> 09:00:00 | F114: =INDEX(heures_limites_cadran($D114,$C$3,$C$2,$C$5),1,2)/24 -> 18:00:00 | G114: =INDEX(coordonnées_cadran_plat($D114,$G$10,$C$3,$C$2,$C$5,$C$6,0,0,$C$4),1,1) -> 5980.767494 | H114: =INDEX(coordonnées_cadran_plat($D114,$G$10,$C$3,$C$2,$C$5,$C$6,0,0,$C$4),1,2) -> -10913.34848 | I114: =INDEX(coordonnées_cadran_plat($D114,I$10,$C$3,$C$2,$C$5,$C$6,0,0,$C$4),1,1) -> 1725.053809 | J114: =INDEX(coordonnées_cadran_plat($D114,I$10,$C$3,$C$2,$C$5,$C$6,0,0,$C$4),1,2) -> -2081.304589 | K114: =INDEX(coordonnées_cadran_plat($D114,K$10,$C$3,$C$2,$C$5,$C$6,0,0,$C$4),1,1) -> 1260.865381 | L114: =INDEX(coordonnées_cadran_plat($D114,K$10,$C$3,$C$2,$C$5,$C$6,0,0,$C$4),1,2) -> -984.4780263 | M114: =INDEX(coordonnées_cadran_plat($D114,M$10,$C$3,$C$2,$C$5,$C$6,0,0,$C$4),1,1) -> 1108.406273 | N114: =INDEX(coordonnées_cadran_plat($D114,M$10,$C$3,$C$2,$C$5,$C$6,0,0,$C$4),1,2) -> -493.406692 | O114: =INDEX(coordonnées_cadran_plat($D114,O$10,$C$3,$C$2,$C$5,$C$6,0,0,$C$4),1,1) -> 1059.355027 | P114: =INDEX(coordonnées_cadran_plat($D114,O$10,$C$3,$C$2,$C$5,$C$6,0,0,$C$4),1,2) -> -161.541723 | Q114: =INDEX(coordonnées_cadran_plat($D114,Q$10,$C$3,$C$2,$C$5,$C$6,0,0,$C$4),1,1) -> 1072.88537 | R114: =INDEX(coordonnées_cadran_plat($D114,Q$10,$C$3,$C$2,$C$5,$C$6,0,0,$C$4),1,2) -> 134.3617637 | S114: =INDEX(coordonnées_cadran_plat($D114,S$10,$C$3,$C$2,$C$5,$C$6,0,0,$C$4),1,1) -> 1154.128088 | T114: =INDEX(coordonnées_cadran_plat($D114,S$10,$C$3,$C$2,$C$5,$C$6,0,0,$C$4),1,2) -> 473.8563092 | U114: =INDEX(coordonnées_cadran_plat($D114,U$10,$C$3,$C$2,$C$5,$C$6,0,0,$C$4),1,1) -> 1362.841076 | V114: =INDEX(coordonnées_cadran_plat($D114,U$10,$C$3,$C$2,$C$5,$C$6,0,0,$C$4),1,2) -> 993.5866211 | W114: =INDEX(coordonnées_cadran_plat($D114,W$10,$C$3,$C$2,$C$5,$C$6,0,0,$C$4),1,1) -> 2004.83718 | X114: =INDEX(coordonnées_cadran_plat($D114,W$10,$C$3,$C$2,$C$5,$C$6,0,0,$C$4),1,2) -> 2246.2469
B115: 23 | C115: 7 | D115: 2010-07-23 | E115: =INDEX(heures_limites_cadran($D115,$C$3,$C$2,$C$5),1,1)/24 -> 09:00:00 | F115: =INDEX(heures_limites_cadran($D115,$C$3,$C$2,$C$5),1,2)/24 -> 18:00:00 | G115: =INDEX(coordonnées_cadran_plat($D115,$G$10,$C$3,$C$2,$C$5,$C$6,0,0,$C$4),1,1) -> 5634.847964 | H115: =INDEX(coordonnées_cadran_plat($D115,$G$10,$C$3,$C$2,$C$5,$C$6,0,0,$C$4),1,2) -> -10343.18122 | I115: =INDEX(coordonnées_cadran_plat($D115,I$10,$C$3,$C$2,$C$5,$C$6,0,0,$C$4),1,1) -> 1696.364783 | J115: =INDEX(coordonnées_cadran_plat($D115,I$10,$C$3,$C$2,$C$5,$C$6,0,0,$C$4),1,2) -> -2056.02127 | K115: =INDEX(coordonnées_cadran_plat($D115,K$10,$C$3,$C$2,$C$5,$C$6,0,0,$C$4),1,1) -> 1246.599723 | L115: =INDEX(coordonnées_cadran_plat($D115,K$10,$C$3,$C$2,$C$5,$C$6,0,0,$C$4),1,2) -> -977.0743362 | M115: =INDEX(coordonnées_cadran_plat($D115,M$10,$C$3,$C$2,$C$5,$C$6,0,0,$C$4),1,1) -> 1098.016463 | N115: =INDEX(coordonnées_cadran_plat($D115,M$10,$C$3,$C$2,$C$5,$C$6,0,0,$C$4),1,2) -> -490.4792172 | O115: =INDEX(coordonnées_cadran_plat($D115,O$10,$C$3,$C$2,$C$5,$C$6,0,0,$C$4),1,1) -> 1050.182142 | P115: =INDEX(coordonnées_cadran_plat($D115,O$10,$C$3,$C$2,$C$5,$C$6,0,0,$C$4),1,2) -> -160.6967982 | Q115: =INDEX(coordonnées_cadran_plat($D115,Q$10,$C$3,$C$2,$C$5,$C$6,0,0,$C$4),1,1) -> 1063.531899 | R115: =INDEX(coordonnées_cadran_plat($D115,Q$10,$C$3,$C$2,$C$5,$C$6,0,0,$C$4),1,2) -> 133.5684853 | S115: =INDEX(coordonnées_cadran_plat($D115,S$10,$C$3,$C$2,$C$5,$C$6,0,0,$C$4),1,1) -> 1143.063986 | T115: =INDEX(coordonnées_cadran_plat($D115,S$10,$C$3,$C$2,$C$5,$C$6,0,0,$C$4),1,2) -> 470.8152915 | U115: =INDEX(coordonnées_cadran_plat($D115,U$10,$C$3,$C$2,$C$5,$C$6,0,0,$C$4),1,1) -> 1346.682294 | V115: =INDEX(coordonnées_cadran_plat($D115,U$10,$C$3,$C$2,$C$5,$C$6,0,0,$C$4),1,2) -> 985.312364 | W115: =INDEX(coordonnées_cadran_plat($D115,W$10,$C$3,$C$2,$C$5,$C$6,0,0,$C$4),1,1) -> 1967.807983 | X115: =INDEX(coordonnées_cadran_plat($D115,W$10,$C$3,$C$2,$C$5,$C$6,0,0,$C$4),1,2) -> 2214.041388
B116: 24 | C116: 7 | D116: 2010-07-24 | E116: =INDEX(heures_limites_cadran($D116,$C$3,$C$2,$C$5),1,1)/24 -> 09:00:00 | F116: =INDEX(heures_limites_cadran($D116,$C$3,$C$2,$C$5),1,2)/24 -> 18:00:00 | G116: =INDEX(coordonnées_cadran_plat($D116,$G$10,$C$3,$C$2,$C$5,$C$6,0,0,$C$4),1,1) -> 5313.001805 | H116: =INDEX(coordonnées_cadran_plat($D116,$G$10,$C$3,$C$2,$C$5,$C$6,0,0,$C$4),1,2) -> -9811.375798 | I116: =INDEX(coordonnées_cadran_plat($D116,I$10,$C$3,$C$2,$C$5,$C$6,0,0,$C$4),1,1) -> 1667.534437 | J116: =INDEX(coordonnées_cadran_plat($D116,I$10,$C$3,$C$2,$C$5,$C$6,0,0,$C$4),1,2) -> -2030.418182 | K116: =INDEX(coordonnées_cadran_plat($D116,K$10,$C$3,$C$2,$C$5,$C$6,0,0,$C$4),1,1) -> 1232.16089 | L116: =INDEX(coordonnées_cadran_plat($D116,K$10,$C$3,$C$2,$C$5,$C$6,0,0,$C$4),1,2) -> -969.4889239 | M116: =INDEX(coordonnées_cadran_plat($D116,M$10,$C$3,$C$2,$C$5,$C$6,0,0,$C$4),1,1) -> 1087.483031 | N116: =INDEX(coordonnées_cadran_plat($D116,M$10,$C$3,$C$2,$C$5,$C$6,0,0,$C$4),1,2) -> -487.4493678 | O116: =INDEX(coordonnées_cadran_plat($D116,O$10,$C$3,$C$2,$C$5,$C$6,0,0,$C$4),1,1) -> 1040.883661 | P116: =INDEX(coordonnées_cadran_plat($D116,O$10,$C$3,$C$2,$C$5,$C$6,0,0,$C$4),1,2) -> -159.7883578 | Q116: =INDEX(coordonnées_cadran_plat($D116,Q$10,$C$3,$C$2,$C$5,$C$6,0,0,$C$4),1,1) -> 1054.062672 | R116: =INDEX(coordonnées_cadran_plat($D116,Q$10,$C$3,$C$2,$C$5,$C$6,0,0,$C$4),1,2) -> 132.8174461 | S116: =INDEX(coordonnées_cadran_plat($D116,S$10,$C$3,$C$2,$C$5,$C$6,0,0,$C$4),1,1) -> 1131.893211 | T116: =INDEX(coordonnées_cadran_plat($D116,S$10,$C$3,$C$2,$C$5,$C$6,0,0,$C$4),1,2) -> 467.8073297 | U116: =INDEX(coordonnées_cadran_plat($D116,U$10,$C$3,$C$2,$C$5,$C$6,0,0,$C$4),1,1) -> 1330.456351 | V116: =INDEX(coordonnées_cadran_plat($D116,U$10,$C$3,$C$2,$C$5,$C$6,0,0,$C$4),1,2) -> 977.0972761 | W116: =INDEX(coordonnées_cadran_plat($D116,W$10,$C$3,$C$2,$C$5,$C$6,0,0,$C$4),1,1) -> 1931.156649 | X116: =INDEX(coordonnées_cadran_plat($D116,W$10,$C$3,$C$2,$C$5,$C$6,0,0,$C$4),1,2) -> 2182.370497
B117: 25 | C117: 7 | D117: 2010-07-25 | E117: =INDEX(heures_limites_cadran($D117,$C$3,$C$2,$C$5),1,1)/24 -> 09:00:00 | F117: =INDEX(heures_limites_cadran($D117,$C$3,$C$2,$C$5),1,2)/24 -> 18:00:00 | G117: =INDEX(coordonnées_cadran_plat($D117,$G$10,$C$3,$C$2,$C$5,$C$6,0,0,$C$4),1,1) -> 5013.509836 | H117: =INDEX(coordonnées_cadran_plat($D117,$G$10,$C$3,$C$2,$C$5,$C$6,0,0,$C$4),1,2) -> -9315.288229 | I117: =INDEX(coordonnées_cadran_plat($D117,I$10,$C$3,$C$2,$C$5,$C$6,0,0,$C$4),1,1) -> 1638.617204 | J117: =INDEX(coordonnées_cadran_plat($D117,I$10,$C$3,$C$2,$C$5,$C$6,0,0,$C$4),1,2) -> -2004.5492 | K117: =INDEX(coordonnées_cadran_plat($D117,K$10,$C$3,$C$2,$C$5,$C$6,0,0,$C$4),1,1) -> 1217.570334 | L117: =INDEX(coordonnées_cadran_plat($D117,K$10,$C$3,$C$2,$C$5,$C$6,0,0,$C$4),1,2) -> -961.7343887 | M117: =INDEX(coordonnées_cadran_plat($D117,M$10,$C$3,$C$2,$C$5,$C$6,0,0,$C$4),1,1) -> 1076.81939 | N117: =INDEX(coordonnées_cadran_plat($D117,M$10,$C$3,$C$2,$C$5,$C$6,0,0,$C$4),1,2) -> -484.3216108 | O117: =INDEX(coordonnées_cadran_plat($D117,O$10,$C$3,$C$2,$C$5,$C$6,0,0,$C$4),1,1) -> 1031.470379 | P117: =INDEX(coordonnées_cadran_plat($D117,O$10,$C$3,$C$2,$C$5,$C$6,0,0,$C$4),1,2) -> -158.8178858 | Q117: =INDEX(coordonnées_cadran_plat($D117,Q$10,$C$3,$C$2,$C$5,$C$6,0,0,$C$4),1,1) -> 1044.488131 | R117: =INDEX(coordonnées_cadran_plat($D117,Q$10,$C$3,$C$2,$C$5,$C$6,0,0,$C$4),1,2) -> 132.1090292 | S117: =INDEX(coordonnées_cadran_plat($D117,S$10,$C$3,$C$2,$C$5,$C$6,0,0,$C$4),1,1) -> 1120.627794 | T117: =INDEX(coordonnées_cadran_plat($D117,S$10,$C$3,$C$2,$C$5,$C$6,0,0,$C$4),1,2) -> 464.834991 | U117: =INDEX(coordonnées_cadran_plat($D117,U$10,$C$3,$C$2,$C$5,$C$6,0,0,$C$4),1,1) -> 1314.180298 | V117: =INDEX(coordonnées_cadran_plat($D117,U$10,$C$3,$C$2,$C$5,$C$6,0,0,$C$4),1,2) -> 968.9484316 | W117: =INDEX(coordonnées_cadran_plat($D117,W$10,$C$3,$C$2,$C$5,$C$6,0,0,$C$4),1,1) -> 1894.909537 | X117: =INDEX(coordonnées_cadran_plat($D117,W$10,$C$3,$C$2,$C$5,$C$6,0,0,$C$4),1,2) -> 2151.249837
B118: 26 | C118: 7 | D118: 2010-07-26 | E118: =INDEX(heures_limites_cadran($D118,$C$3,$C$2,$C$5),1,1)/24 -> 09:00:00 | F118: =INDEX(heures_limites_cadran($D118,$C$3,$C$2,$C$5),1,2)/24 -> 18:00:00 | G118: =INDEX(coordonnées_cadran_plat($D118,$G$10,$C$3,$C$2,$C$5,$C$6,0,0,$C$4),1,1) -> 4734.737042 | H118: =INDEX(coordonnées_cadran_plat($D118,$G$10,$C$3,$C$2,$C$5,$C$6,0,0,$C$4),1,2) -> -8852.389911 | I118: =INDEX(coordonnées_cadran_plat($D118,I$10,$C$3,$C$2,$C$5,$C$6,0,0,$C$4),1,1) -> 1609.664675 | J118: =INDEX(coordonnées_cadran_plat($D118,I$10,$C$3,$C$2,$C$5,$C$6,0,0,$C$4),1,2) -> -1978.4661 | K118: =INDEX(coordonnées_cadran_plat($D118,K$10,$C$3,$C$2,$C$5,$C$6,0,0,$C$4),1,1) -> 1202.848939 | L118: =INDEX(coordonnées_cadran_plat($D118,K$10,$C$3,$C$2,$C$5,$C$6,0,0,$C$4),1,2) -> -953.8232315 | M118: =INDEX(coordonnées_cadran_plat($D118,M$10,$C$3,$C$2,$C$5,$C$6,0,0,$C$4),1,1) -> 1066.038675 | N118: =INDEX(coordonnées_cadran_plat($D118,M$10,$C$3,$C$2,$C$5,$C$6,0,0,$C$4),1,2) -> -481.1004577 | O118: =INDEX(coordonnées_cadran_plat($D118,O$10,$C$3,$C$2,$C$5,$C$6,0,0,$C$4),1,1) -> 1021.952859 | P118: =INDEX(coordonnées_cadran_plat($D118,O$10,$C$3,$C$2,$C$5,$C$6,0,0,$C$4),1,2) -> -157.786942 | Q118: =INDEX(coordonnées_cadran_plat($D118,Q$10,$C$3,$C$2,$C$5,$C$6,0,0,$C$4),1,1) -> 1034.818453 | R118: =INDEX(coordonnées_cadran_plat($D118,Q$10,$C$3,$C$2,$C$5,$C$6,0,0,$C$4),1,2) -> 131.4435039 | S118: =INDEX(coordonnées_cadran_plat($D118,S$10,$C$3,$C$2,$C$5,$C$6,0,0,$C$4),1,1) -> 1109.27937 | T118: =INDEX(coordonnées_cadran_plat($D118,S$10,$C$3,$C$2,$C$5,$C$6,0,0,$C$4),1,2) -> 461.9006295 | U118: =INDEX(coordonnées_cadran_plat($D118,U$10,$C$3,$C$2,$C$5,$C$6,0,0,$C$4),1,1) -> 1297.870323 | V118: =INDEX(coordonnées_cadran_plat($D118,U$10,$C$3,$C$2,$C$5,$C$6,0,0,$C$4),1,2) -> 960.8723263 | W118: =INDEX(coordonnées_cadran_plat($D118,W$10,$C$3,$C$2,$C$5,$C$6,0,0,$C$4),1,1) -> 1859.08968 | X118: =INDEX(coordonnées_cadran_plat($D118,W$10,$C$3,$C$2,$C$5,$C$6,0,0,$C$4),1,2) -> 2120.692055
B119: 27 | C119: 7 | D119: 2010-07-27 | E119: =INDEX(heures_limites_cadran($D119,$C$3,$C$2,$C$5),1,1)/24 -> 09:00:00 | F119: =INDEX(heures_limites_cadran($D119,$C$3,$C$2,$C$5),1,2)/24 -> 18:00:00 | G119: =INDEX(coordonnées_cadran_plat($D119,$G$10,$C$3,$C$2,$C$5,$C$6,0,0,$C$4),1,1) -> 4475.14149 | H119: =INDEX(coordonnées_cadran_plat($D119,$G$10,$C$3,$C$2,$C$5,$C$6,0,0,$C$4),1,2) -> -8420.284852 | I119: =INDEX(coordonnées_cadran_plat($D119,I$10,$C$3,$C$2,$C$5,$C$6,0,0,$C$4),1,1) -> 1580.725516 | J119: =INDEX(coordonnées_cadran_plat($D119,I$10,$C$3,$C$2,$C$5,$C$6,0,0,$C$4),1,2) -> -1952.218422 | K119: =INDEX(coordonnées_cadran_plat($D119,K$10,$C$3,$C$2,$C$5,$C$6,0,0,$C$4),1,1) -> 1188.016971 | L119: =INDEX(coordonnées_cadran_plat($D119,K$10,$C$3,$C$2,$C$5,$C$6,0,0,$C$4),1,2) -> -945.7678141 | M119: =INDEX(coordonnées_cadran_plat($D119,M$10,$C$3,$C$2,$C$5,$C$6,0,0,$C$4),1,1) -> 1055.153712 | N119: =INDEX(coordonnées_cadran_plat($D119,M$10,$C$3,$C$2,$C$5,$C$6,0,0,$C$4),1,2) -> -477.7904491 | O119: =INDEX(coordonnées_cadran_plat($D119,O$10,$C$3,$C$2,$C$5,$C$6,0,0,$C$4),1,1) -> 1012.341421 | P119: =INDEX(coordonnées_cadran_plat($D119,O$10,$C$3,$C$2,$C$5,$C$6,0,0,$C$4),1,2) -> -156.6971547 | Q119: =INDEX(coordonnées_cadran_plat($D119,Q$10,$C$3,$C$2,$C$5,$C$6,0,0,$C$4),1,1) -> 1025.063542 | R119: =INDEX(coordonnées_cadran_plat($D119,Q$10,$C$3,$C$2,$C$5,$C$6,0,0,$C$4),1,2) -> 130.8210298 | S119: =INDEX(coordonnées_cadran_plat($D119,S$10,$C$3,$C$2,$C$5,$C$6,0,0,$C$4),1,1) -> 1097.859158 | T119: =INDEX(coordonnées_cadran_plat($D119,S$10,$C$3,$C$2,$C$5,$C$6,0,0,$C$4),1,2) -> 459.0063902 | U119: =INDEX(coordonnées_cadran_plat($D119,U$10,$C$3,$C$2,$C$5,$C$6,0,0,$C$4),1,1) -> 1281.54175 | V119: =INDEX(coordonnées_cadran_plat($D119,U$10,$C$3,$C$2,$C$5,$C$6,0,0,$C$4),1,2) -> 952.8748942 | W119: =INDEX(coordonnées_cadran_plat($D119,W$10,$C$3,$C$2,$C$5,$C$6,0,0,$C$4),1,1) -> 1823.717002 | X119: =INDEX(coordonnées_cadran_plat($D119,W$10,$C$3,$C$2,$C$5,$C$6,0,0,$C$4),1,2) -> 2090.707065
B120: 28 | C120: 7 | D120: 2010-07-28 | E120: =INDEX(heures_limites_cadran($D120,$C$3,$C$2,$C$5),1,1)/24 -> 09:00:00 | F120: =INDEX(heures_limites_cadran($D120,$C$3,$C$2,$C$5),1,2)/24 -> 18:00:00 | G120: =INDEX(coordonnées_cadran_plat($D120,$G$10,$C$3,$C$2,$C$5,$C$6,0,0,$C$4),1,1) -> 4233.278513 | H120: =INDEX(coordonnées_cadran_plat($D120,$G$10,$C$3,$C$2,$C$5,$C$6,0,0,$C$4),1,2) -> -8016.718934 | I120: =INDEX(coordonnées_cadran_plat($D120,I$10,$C$3,$C$2,$C$5,$C$6,0,0,$C$4),1,1) -> 1551.845419 | J120: =INDEX(coordonnées_cadran_plat($D120,I$10,$C$3,$C$2,$C$5,$C$6,0,0,$C$4),1,2) -> -1925.853374 | K120: =INDEX(coordonnées_cadran_plat($D120,K$10,$C$3,$C$2,$C$5,$C$6,0,0,$C$4),1,1) -> 1173.094038 | L120: =INDEX(coordonnées_cadran_plat($D120,K$10,$C$3,$C$2,$C$5,$C$6,0,0,$C$4),1,2) -> -937.5803217 | M120: =INDEX(coordonnées_cadran_plat($D120,M$10,$C$3,$C$2,$C$5,$C$6,0,0,$C$4),1,1) -> 1044.176998 | N120: =INDEX(coordonnées_cadran_plat($D120,M$10,$C$3,$C$2,$C$5,$C$6,0,0,$C$4),1,2) -> -474.3961403 | O120: =INDEX(coordonnées_cadran_plat($D120,O$10,$C$3,$C$2,$C$5,$C$6,0,0,$C$4),1,1) -> 1002.646118 | P120: =INDEX(coordonnées_cadran_plat($D120,O$10,$C$3,$C$2,$C$5,$C$6,0,0,$C$4),1,2) -> -155.5502136 | Q120: =INDEX(coordonnées_cadran_plat($D120,Q$10,$C$3,$C$2,$C$5,$C$6,0,0,$C$4),1,1) -> 1015.233008 | R120: =INDEX(coordonnées_cadran_plat($D120,Q$10,$C$3,$C$2,$C$5,$C$6,0,0,$C$4),1,2) -> 130.2416608 | S120: =INDEX(coordonnées_cadran_plat($D120,S$10,$C$3,$C$2,$C$5,$C$6,0,0,$C$4),1,1) -> 1086.377959 | T120: =INDEX(coordonnées_cadran_plat($D120,S$10,$C$3,$C$2,$C$5,$C$6,0,0,$C$4),1,2) -> 456.154214 | U120: =INDEX(coordonnées_cadran_plat($D120,U$10,$C$3,$C$2,$C$5,$C$6,0,0,$C$4),1,1) -> 1265.20905 | V120: =INDEX(coordonnées_cadran_plat($D120,U$10,$C$3,$C$2,$C$5,$C$6,0,0,$C$4),1,2) -> 944.9615248 | W120: =INDEX(coordonnées_cadran_plat($D120,W$10,$C$3,$C$2,$C$5,$C$6,0,0,$C$4),1,1) -> 1788.80854 | X120: =INDEX(coordonnées_cadran_plat($D120,W$10,$C$3,$C$2,$C$5,$C$6,0,0,$C$4),1,2) -> 2061.302266
B121: 29 | C121: 7 | D121: 2010-07-29 | E121: =INDEX(heures_limites_cadran($D121,$C$3,$C$2,$C$5),1,1)/24 -> 09:00:00 | F121: =INDEX(heures_limites_cadran($D121,$C$3,$C$2,$C$5),1,2)/24 -> 18:00:00 | G121: =INDEX(coordonnées_cadran_plat($D121,$G$10,$C$3,$C$2,$C$5,$C$6,0,0,$C$4),1,1) -> 4007.801478 | H121: =INDEX(coordonnées_cadran_plat($D121,$G$10,$C$3,$C$2,$C$5,$C$6,0,0,$C$4),1,2) -> -7639.583362 | I121: =INDEX(coordonnées_cadran_plat($D121,I$10,$C$3,$C$2,$C$5,$C$6,0,0,$C$4),1,1) -> 1523.067082 | J121: =INDEX(coordonnées_cadran_plat($D121,I$10,$C$3,$C$2,$C$5,$C$6,0,0,$C$4),1,2) -> -1899.415754 | K121: =INDEX(coordonnées_cadran_plat($D121,K$10,$C$3,$C$2,$C$5,$C$6,0,0,$C$4),1,1) -> 1158.099053 | L121: =INDEX(coordonnées_cadran_plat($D121,K$10,$C$3,$C$2,$C$5,$C$6,0,0,$C$4),1,2) -> -929.2727291 | M121: =INDEX(coordonnées_cadran_plat($D121,M$10,$C$3,$C$2,$C$5,$C$6,0,0,$C$4),1,1) -> 1033.120678 | N121: =INDEX(coordonnées_cadran_plat($D121,M$10,$C$3,$C$2,$C$5,$C$6,0,0,$C$4),1,2) -> -470.9220876 | O121: =INDEX(coordonnées_cadran_plat($D121,O$10,$C$3,$C$2,$C$5,$C$6,0,0,$C$4),1,1) -> 992.8767243 | P121: =INDEX(coordonnées_cadran_plat($D121,O$10,$C$3,$C$2,$C$5,$C$6,0,0,$C$4),1,2) -> -154.3478634 | Q121: =INDEX(coordonnées_cadran_plat($D121,Q$10,$C$3,$C$2,$C$5,$C$6,0,0,$C$4),1,1) -> 1005.336164 | R121: =INDEX(coordonnées_cadran_plat($D121,Q$10,$C$3,$C$2,$C$5,$C$6,0,0,$C$4),1,2) -> 129.7053498 | S121: =INDEX(coordonnées_cadran_plat($D121,S$10,$C$3,$C$2,$C$5,$C$6,0,0,$C$4),1,1) -> 1074.846148 | T121: =INDEX(coordonnées_cadran_plat($D121,S$10,$C$3,$C$2,$C$5,$C$6,0,0,$C$4),1,2) -> 453.345842 | U121: =INDEX(coordonnées_cadran_plat($D121,U$10,$C$3,$C$2,$C$5,$C$6,0,0,$C$4),1,1) -> 1248.885859 | V121: =INDEX(coordonnées_cadran_plat($D121,U$10,$C$3,$C$2,$C$5,$C$6,0,0,$C$4),1,2) -> 937.1370821 | W121: =INDEX(coordonnées_cadran_plat($D121,W$10,$C$3,$C$2,$C$5,$C$6,0,0,$C$4),1,1) -> 1754.378658 | X121: =INDEX(coordonnées_cadran_plat($D121,W$10,$C$3,$C$2,$C$5,$C$6,0,0,$C$4),1,2) -> 2032.482759
B122: 30 | C122: 7 | D122: 2010-07-30 | E122: =INDEX(heures_limites_cadran($D122,$C$3,$C$2,$C$5),1,1)/24 -> 09:00:00 | F122: =INDEX(heures_limites_cadran($D122,$C$3,$C$2,$C$5),1,2)/24 -> 18:00:00 | G122: =INDEX(coordonnées_cadran_plat($D122,$G$10,$C$3,$C$2,$C$5,$C$6,0,0,$C$4),1,1) -> 3797.460151 | H122: =INDEX(coordonnées_cadran_plat($D122,$G$10,$C$3,$C$2,$C$5,$C$6,0,0,$C$4),1,2) -> -7286.913923 | I122: =INDEX(coordonnées_cadran_plat($D122,I$10,$C$3,$C$2,$C$5,$C$6,0,0,$C$4),1,1) -> 1494.430209 | J122: =INDEX(coordonnées_cadran_plat($D122,I$10,$C$3,$C$2,$C$5,$C$6,0,0,$C$4),1,2) -> -1872.947896 | K122: =INDEX(coordonnées_cadran_plat($D122,K$10,$C$3,$C$2,$C$5,$C$6,0,0,$C$4),1,1) -> 1143.050202 | L122: =INDEX(coordonnées_cadran_plat($D122,K$10,$C$3,$C$2,$C$5,$C$6,0,0,$C$4),1,2) -> -920.8567697 | M122: =INDEX(coordonnées_cadran_plat($D122,M$10,$C$3,$C$2,$C$5,$C$6,0,0,$C$4),1,1) -> 1021.996523 | N122: =INDEX(coordonnées_cadran_plat($D122,M$10,$C$3,$C$2,$C$5,$C$6,0,0,$C$4),1,2) -> -467.3728355 | O122: =INDEX(coordonnées_cadran_plat($D122,O$10,$C$3,$C$2,$C$5,$C$6,0,0,$C$4),1,1) -> 983.0427234 | P122: =INDEX(coordonnées_cadran_plat($D122,O$10,$C$3,$C$2,$C$5,$C$6,0,0,$C$4),1,2) -> -153.0918968 | Q122: =INDEX(coordonnées_cadran_plat($D122,Q$10,$C$3,$C$2,$C$5,$C$6,0,0,$C$4),1,1) -> 995.3820128 | R122: =INDEX(coordonnées_cadran_plat($D122,Q$10,$C$3,$C$2,$C$5,$C$6,0,0,$C$4),1,2) -> 129.2119526 | S122: =INDEX(coordonnées_cadran_plat($D122,S$10,$C$3,$C$2,$C$5,$C$6,0,0,$C$4),1,1) -> 1063.273672 | T122: =INDEX(coordonnées_cadran_plat($D122,S$10,$C$3,$C$2,$C$5,$C$6,0,0,$C$4),1,2) -> 450.5828218 | U122: =INDEX(coordonnées_cadran_plat($D122,U$10,$C$3,$C$2,$C$5,$C$6,0,0,$C$4),1,1) -> 1232.584991 | V122: =INDEX(coordonnées_cadran_plat($D122,U$10,$C$3,$C$2,$C$5,$C$6,0,0,$C$4),1,2) -> 929.4059237 | W122: =INDEX(coordonnées_cadran_plat($D122,W$10,$C$3,$C$2,$C$5,$C$6,0,0,$C$4),1,1) -> 1720.439248 | X122: =INDEX(coordonnées_cadran_plat($D122,W$10,$C$3,$C$2,$C$5,$C$6,0,0,$C$4),1,2) -> 2004.251548
B123: 31 | C123: 7 | D123: 2010-07-31 | E123: =INDEX(heures_limites_cadran($D123,$C$3,$C$2,$C$5),1,1)/24 -> 09:00:00 | F123: =INDEX(heures_limites_cadran($D123,$C$3,$C$2,$C$5),1,2)/24 -> 18:00:00 | G123: =INDEX(coordonnées_cadran_plat($D123,$G$10,$C$3,$C$2,$C$5,$C$6,0,0,$C$4),1,1) -> 3601.097407 | H123: =INDEX(coordonnées_cadran_plat($D123,$G$10,$C$3,$C$2,$C$5,$C$6,0,0,$C$4),1,2) -> -6956.887336 | I123: =INDEX(coordonnées_cadran_plat($D123,I$10,$C$3,$C$2,$C$5,$C$6,0,0,$C$4),1,1) -> 1465.97154 | J123: =INDEX(coordonnées_cadran_plat($D123,I$10,$C$3,$C$2,$C$5,$C$6,0,0,$C$4),1,2) -> -1846.48965 | K123: =INDEX(coordonnées_cadran_plat($D123,K$10,$C$3,$C$2,$C$5,$C$6,0,0,$C$4),1,1) -> 1127.964923 | L123: =INDEX(coordonnées_cadran_plat($D123,K$10,$C$3,$C$2,$C$5,$C$6,0,0,$C$4),1,2) -> -912.3439086 | M123: =INDEX(coordonnées_cadran_plat($D123,M$10,$C$3,$C$2,$C$5,$C$6,0,0,$C$4),1,1) -> 1010.815917 | N123: =INDEX(coordonnées_cadran_plat($D123,M$10,$C$3,$C$2,$C$5,$C$6,0,0,$C$4),1,2) -> -463.7529046 | O123: =INDEX(coordonnées_cadran_plat($D123,O$10,$C$3,$C$2,$C$5,$C$6,0,0,$C$4),1,1) -> 973.1532961 | P123: =INDEX(coordonnées_cadran_plat($D123,O$10,$C$3,$C$2,$C$5,$C$6,0,0,$C$4),1,2) -> -151.7841482 | Q123: =INDEX(coordonnées_cadran_plat($D123,Q$10,$C$3,$C$2,$C$5,$C$6,0,0,$C$4),1,1) -> 985.3792402 | R123: =INDEX(coordonnées_cadran_plat($D123,Q$10,$C$3,$C$2,$C$5,$C$6,0,0,$C$4),1,2) -> 128.761233 | S123: =INDEX(coordonnées_cadran_plat($D123,S$10,$C$3,$C$2,$C$5,$C$6,0,0,$C$4),1,1) -> 1051.670046 | T123: =INDEX(coordonnées_cadran_plat($D123,S$10,$C$3,$C$2,$C$5,$C$6,0,0,$C$4),1,2) -> 447.8665132 | U123: =INDEX(coordonnées_cadran_plat($D123,U$10,$C$3,$C$2,$C$5,$C$6,0,0,$C$4),1,1) -> 1216.318458 | V123: =INDEX(coordonnées_cadran_plat($D123,U$10,$C$3,$C$2,$C$5,$C$6,0,0,$C$4),1,2) -> 921.7719217 | W123: =INDEX(coordonnées_cadran_plat($D123,W$10,$C$3,$C$2,$C$5,$C$6,0,0,$C$4),1,1) -> 1686.999933 | X123: =INDEX(coordonnées_cadran_plat($D123,W$10,$C$3,$C$2,$C$5,$C$6,0,0,$C$4),1,2) -> 1976.609731
B124: 1 | C124: 8 | D124: 2010-08-01 | E124: =INDEX(heures_limites_cadran($D124,$C$3,$C$2,$C$5),1,1)/24 -> 09:00:00 | F124: =INDEX(heures_limites_cadran($D124,$C$3,$C$2,$C$5),1,2)/24 -> 18:00:00 | G124: =INDEX(coordonnées_cadran_plat($D124,$G$10,$C$3,$C$2,$C$5,$C$6,0,0,$C$4),1,1) -> 3417.644882 | H124: =INDEX(coordonnées_cadran_plat($D124,$G$10,$C$3,$C$2,$C$5,$C$6,0,0,$C$4),1,2) -> -6647.815655 | I124: =INDEX(coordonnées_cadran_plat($D124,I$10,$C$3,$C$2,$C$5,$C$6,0,0,$C$4),1,1) -> 1437.724895 | J124: =INDEX(coordonnées_cadran_plat($D124,I$10,$C$3,$C$2,$C$5,$C$6,0,0,$C$4),1,2) -> -1820.078372 | K124: =INDEX(coordonnées_cadran_plat($D124,K$10,$C$3,$C$2,$C$5,$C$6,0,0,$C$4),1,1) -> 1112.859887 | L124: =INDEX(coordonnées_cadran_plat($D124,K$10,$C$3,$C$2,$C$5,$C$6,0,0,$C$4),1,2) -> -903.745318 | M124: =INDEX(coordonnées_cadran_plat($D124,M$10,$C$3,$C$2,$C$5,$C$6,0,0,$C$4),1,1) -> 999.5898436 | N124: =INDEX(coordonnées_cadran_plat($D124,M$10,$C$3,$C$2,$C$5,$C$6,0,0,$C$4),1,2) -> -460.0667801 | O124: =INDEX(coordonnées_cadran_plat($D124,O$10,$C$3,$C$2,$C$5,$C$6,0,0,$C$4),1,1) -> 963.2173118 | P124: =INDEX(coordonnées_cadran_plat($D124,O$10,$C$3,$C$2,$C$5,$C$6,0,0,$C$4),1,2) -> -150.4264876 | Q124: =INDEX(coordonnées_cadran_plat($D124,Q$10,$C$3,$C$2,$C$5,$C$6,0,0,$C$4),1,1) -> 975.3362115 | R124: =INDEX(coordonnées_cadran_plat($D124,Q$10,$C$3,$C$2,$C$5,$C$6,0,0,$C$4),1,2) -> 128.352867 | S124: =INDEX(coordonnées_cadran_plat($D124,S$10,$C$3,$C$2,$C$5,$C$6,0,0,$C$4),1,1) -> 1040.044358 | T124: =INDEX(coordonnées_cadran_plat($D124,S$10,$C$3,$C$2,$C$5,$C$6,0,0,$C$4),1,2) -> 445.1980943 | U124: =INDEX(coordonnées_cadran_plat($D124,U$10,$C$3,$C$2,$C$5,$C$6,0,0,$C$4),1,1) -> 1200.097492 | V124: =INDEX(coordonnées_cadran_plat($D124,U$10,$C$3,$C$2,$C$5,$C$6,0,0,$C$4),1,2) -> 914.2384834 | W124: =INDEX(coordonnées_cadran_plat($D124,W$10,$C$3,$C$2,$C$5,$C$6,0,0,$C$4),1,1) -> 1654.068251 | X124: =INDEX(coordonnées_cadran_plat($D124,W$10,$C$3,$C$2,$C$5,$C$6,0,0,$C$4),1,2) -> 1949.556686
B125: 2 | C125: 8 | D125: 2010-08-02 | E125: =INDEX(heures_limites_cadran($D125,$C$3,$C$2,$C$5),1,1)/24 -> 09:00:00 | F125: =INDEX(heures_limites_cadran($D125,$C$3,$C$2,$C$5),1,2)/24 -> 18:00:00 | G125: =INDEX(coordonnées_cadran_plat($D125,$G$10,$C$3,$C$2,$C$5,$C$6,0,0,$C$4),1,1) -> 3246.117983 | H125: =INDEX(coordonnées_cadran_plat($D125,$G$10,$C$3,$C$2,$C$5,$C$6,0,0,$C$4),1,2) -> -6358.139427 | I125: =INDEX(coordonnées_cadran_plat($D125,I$10,$C$3,$C$2,$C$5,$C$6,0,0,$C$4),1,1) -> 1409.721238 | J125: =INDEX(coordonnées_cadran_plat($D125,I$10,$C$3,$C$2,$C$5,$C$6,0,0,$C$4),1,2) -> -1793.748939 | K125: =INDEX(coordonnées_cadran_plat($D125,K$10,$C$3,$C$2,$C$5,$C$6,0,0,$C$4),1,1) -> 1097.750982 | L125: =INDEX(coordonnées_cadran_plat($D125,K$10,$C$3,$C$2,$C$5,$C$6,0,0,$C$4),1,2) -> -895.0718566 | M125: =INDEX(coordonnées_cadran_plat($D125,M$10,$C$3,$C$2,$C$5,$C$6,0,0,$C$4),1,1) -> 988.3288747 | N125: =INDEX(coordonnées_cadran_plat($D125,M$10,$C$3,$C$2,$C$5,$C$6,0,0,$C$4),1,2) -> -456.3189019 | O125: =INDEX(coordonnées_cadran_plat($D125,O$10,$C$3,$C$2,$C$5,$C$6,0,0,$C$4),1,1) -> 953.2433213 | P125: =INDEX(coordonnées_cadran_plat($D125,O$10,$C$3,$C$2,$C$5,$C$6,0,0,$C$4),1,2) -> -149.0208144 | Q125: =INDEX(coordonnées_cadran_plat($D125,Q$10,$C$3,$C$2,$C$5,$C$6,0,0,$C$4),1,1) -> 965.2609667 | R125: =INDEX(coordonnées_cadran_plat($D125,Q$10,$C$3,$C$2,$C$5,$C$6,0,0,$C$4),1,2) -> 127.986448 | S125: =INDEX(coordonnées_cadran_plat($D125,S$10,$C$3,$C$2,$C$5,$C$6,0,0,$C$4),1,1) -> 1028.405267 | T125: =INDEX(coordonnées_cadran_plat($D125,S$10,$C$3,$C$2,$C$5,$C$6,0,0,$C$4),1,2) -> 442.5785686 | U125: =INDEX(coordonnées_cadran_plat($D125,U$10,$C$3,$C$2,$C$5,$C$6,0,0,$C$4),1,1) -> 1183.932567 | V125: =INDEX(coordonnées_cadran_plat($D125,U$10,$C$3,$C$2,$C$5,$C$6,0,0,$C$4),1,2) -> 906.8085725 | W125: =INDEX(coordonnées_cadran_plat($D125,W$10,$C$3,$C$2,$C$5,$C$6,0,0,$C$4),1,1) -> 1621.649838 | X125: =INDEX(coordonnées_cadran_plat($D125,W$10,$C$3,$C$2,$C$5,$C$6,0,0,$C$4),1,2) -> 1923.090237
B126: 3 | C126: 8 | D126: 2010-08-03 | E126: =INDEX(heures_limites_cadran($D126,$C$3,$C$2,$C$5),1,1)/24 -> 09:00:00 | F126: =INDEX(heures_limites_cadran($D126,$C$3,$C$2,$C$5),1,2)/24 -> 18:00:00 | G126: =INDEX(coordonnées_cadran_plat($D126,$G$10,$C$3,$C$2,$C$5,$C$6,0,0,$C$4),1,1) -> 3085.610566 | H126: =INDEX(coordonnées_cadran_plat($D126,$G$10,$C$3,$C$2,$C$5,$C$6,0,0,$C$4),1,2) -> -6086.420148 | I126: =INDEX(coordonnées_cadran_plat($D126,I$10,$C$3,$C$2,$C$5,$C$6,0,0,$C$4),1,1) -> 1381.988756 | J126: =INDEX(coordonnées_cadran_plat($D126,I$10,$C$3,$C$2,$C$5,$C$6,0,0,$C$4),1,2) -> -1767.53378 | K126: =INDEX(coordonnées_cadran_plat($D126,K$10,$C$3,$C$2,$C$5,$C$6,0,0,$C$4),1,1) -> 1082.65331 | L126: =INDEX(coordonnées_cadran_plat($D126,K$10,$C$3,$C$2,$C$5,$C$6,0,0,$C$4),1,2) -> -886.3340519 | M126: =INDEX(coordonnées_cadran_plat($D126,M$10,$C$3,$C$2,$C$5,$C$6,0,0,$C$4),1,1) -> 977.0431619 | N126: =INDEX(coordonnées_cadran_plat($D126,M$10,$C$3,$C$2,$C$5,$C$6,0,0,$C$4),1,2) -> -452.513655 | O126: =INDEX(coordonnées_cadran_plat($D126,O$10,$C$3,$C$2,$C$5,$C$6,0,0,$C$4),1,1) -> 943.2395517 | P126: =INDEX(coordonnées_cadran_plat($D126,O$10,$C$3,$C$2,$C$5,$C$6,0,0,$C$4),1,2) -> -147.569052 | Q126: =INDEX(coordonnées_cadran_plat($D126,Q$10,$C$3,$C$2,$C$5,$C$6,0,0,$C$4),1,1) -> 955.1612189 | R126: =INDEX(coordonnées_cadran_plat($D126,Q$10,$C$3,$C$2,$C$5,$C$6,0,0,$C$4),1,2) -> 127.6614906 | S126: =INDEX(coordonnées_cadran_plat($D126,S$10,$C$3,$C$2,$C$5,$C$6,0,0,$C$4),1,1) -> 1016.761009 | T126: =INDEX(coordonnées_cadran_plat($D126,S$10,$C$3,$C$2,$C$5,$C$6,0,0,$C$4),1,2) -> 440.0087715 | U126: =INDEX(coordonnées_cadran_plat($D126,U$10,$C$3,$C$2,$C$5,$C$6,0,0,$C$4),1,1) -> 1167.833426 | V126: =INDEX(coordonnées_cadran_plat($D126,U$10,$C$3,$C$2,$C$5,$C$6,0,0,$C$4),1,2) -> 899.4847308 | W126: =INDEX(coordonnées_cadran_plat($D126,W$10,$C$3,$C$2,$C$5,$C$6,0,0,$C$4),1,1) -> 1589.748598 | X126: =INDEX(coordonnées_cadran_plat($D126,W$10,$C$3,$C$2,$C$5,$C$6,0,0,$C$4),1,2) -> 1897.206818
B127: 4 | C127: 8 | D127: 2010-08-04 | E127: =INDEX(heures_limites_cadran($D127,$C$3,$C$2,$C$5),1,1)/24 -> 09:00:00 | F127: =INDEX(heures_limites_cadran($D127,$C$3,$C$2,$C$5),1,2)/24 -> 18:00:00 | G127: =INDEX(coordonnées_cadran_plat($D127,$G$10,$C$3,$C$2,$C$5,$C$6,0,0,$C$4),1,1) -> 2935.289518 | H127: =INDEX(coordonnées_cadran_plat($D127,$G$10,$C$3,$C$2,$C$5,$C$6,0,0,$C$4),1,2) -> -5831.332413 | I127: =INDEX(coordonnées_cadran_plat($D127,I$10,$C$3,$C$2,$C$5,$C$6,0,0,$C$4),1,1) -> 1354.55295 | J127: =INDEX(coordonnées_cadran_plat($D127,I$10,$C$3,$C$2,$C$5,$C$6,0,0,$C$4),1,2) -> -1741.462919 | K127: =INDEX(coordonnées_cadran_plat($D127,K$10,$C$3,$C$2,$C$5,$C$6,0,0,$C$4),1,1) -> 1067.581177 | L127: =INDEX(coordonnées_cadran_plat($D127,K$10,$C$3,$C$2,$C$5,$C$6,0,0,$C$4),1,2) -> -877.5420852 | M127: =INDEX(coordonnées_cadran_plat($D127,M$10,$C$3,$C$2,$C$5,$C$6,0,0,$C$4),1,1) -> 965.7424311 | N127: =INDEX(coordonnées_cadran_plat($D127,M$10,$C$3,$C$2,$C$5,$C$6,0,0,$C$4),1,2) -> -448.6553603 | O127: =INDEX(coordonnées_cadran_plat($D127,O$10,$C$3,$C$2,$C$5,$C$6,0,0,$C$4),1,1) -> 933.2139028 | P127: =INDEX(coordonnées_cadran_plat($D127,O$10,$C$3,$C$2,$C$5,$C$6,0,0,$C$4),1,2) -> -146.0731421 | Q127: =INDEX(coordonnées_cadran_plat($D127,Q$10,$C$3,$C$2,$C$5,$C$6,0,0,$C$4),1,1) -> 945.0443529 | R127: =INDEX(coordonnées_cadran_plat($D127,Q$10,$C$3,$C$2,$C$5,$C$6,0,0,$C$4),1,2) -> 127.3774362 | S127: =INDEX(coordonnées_cadran_plat($D127,S$10,$C$3,$C$2,$C$5,$C$6,0,0,$C$4),1,1) -> 1005.119402 | T127: =INDEX(coordonnées_cadran_plat($D127,S$10,$C$3,$C$2,$C$5,$C$6,0,0,$C$4),1,2) -> 437.4893773 | U127: =INDEX(coordonnées_cadran_plat($D127,U$10,$C$3,$C$2,$C$5,$C$6,0,0,$C$4),1,1) -> 1151.809105 | V127: =INDEX(coordonnées_cadran_plat($D127,U$10,$C$3,$C$2,$C$5,$C$6,0,0,$C$4),1,2) -> 892.2690995 | W127: =INDEX(coordonnées_cadran_plat($D127,W$10,$C$3,$C$2,$C$5,$C$6,0,0,$C$4),1,1) -> 1558.366862 | X127: =INDEX(coordonnées_cadran_plat($D127,W$10,$C$3,$C$2,$C$5,$C$6,0,0,$C$4),1,2) -> 1871.901622
B128: 5 | C128: 8 | D128: 2010-08-05 | E128: =INDEX(heures_limites_cadran($D128,$C$3,$C$2,$C$5),1,1)/24 -> 09:00:00 | F128: =INDEX(heures_limites_cadran($D128,$C$3,$C$2,$C$5),1,2)/24 -> 18:00:00 | G128: =INDEX(coordonnées_cadran_plat($D128,$G$10,$C$3,$C$2,$C$5,$C$6,0,0,$C$4),1,1) -> 2794.389399 | H128: =INDEX(coordonnées_cadran_plat($D128,$G$10,$C$3,$C$2,$C$5,$C$6,0,0,$C$4),1,2) -> -5591.656004 | I128: =INDEX(coordonnées_cadran_plat($D128,I$10,$C$3,$C$2,$C$5,$C$6,0,0,$C$4),1,1) -> 1327.436732 | J128: =INDEX(coordonnées_cadran_plat($D128,I$10,$C$3,$C$2,$C$5,$C$6,0,0,$C$4),1,2) -> -1715.564034 | K128: =INDEX(coordonnées_cadran_plat($D128,K$10,$C$3,$C$2,$C$5,$C$6,0,0,$C$4),1,1) -> 1052.5481 | L128: =INDEX(coordonnées_cadran_plat($D128,K$10,$C$3,$C$2,$C$5,$C$6,0,0,$C$4),1,2) -> -868.7057796 | M128: =INDEX(coordonnées_cadran_plat($D128,M$10,$C$3,$C$2,$C$5,$C$6,0,0,$C$4),1,1) -> 954.4359788 | N128: =INDEX(coordonnées_cadran_plat($D128,M$10,$C$3,$C$2,$C$5,$C$6,0,0,$C$4),1,2) -> -444.7482677 | O128: =INDEX(coordonnées_cadran_plat($D128,O$10,$C$3,$C$2,$C$5,$C$6,0,0,$C$4),1,1) -> 923.1739444 | P128: =INDEX(coordonnées_cadran_plat($D128,O$10,$C$3,$C$2,$C$5,$C$6,0,0,$C$4),1,2) -> -144.5350397 | Q128: =INDEX(coordonnées_cadran_plat($D128,Q$10,$C$3,$C$2,$C$5,$C$6,0,0,$C$4),1,1) -> 934.9174266 | R128: =INDEX(coordonnées_cadran_plat($D128,Q$10,$C$3,$C$2,$C$5,$C$6,0,0,$C$4),1,2) -> 127.133657 | S128: =INDEX(coordonnées_cadran_plat($D128,S$10,$C$3,$C$2,$C$5,$C$6,0,0,$C$4),1,1) -> 993.4878519 | T128: =INDEX(coordonnées_cadran_plat($D128,S$10,$C$3,$C$2,$C$5,$C$6,0,0,$C$4),1,2) -> 435.0209062 | U128: =INDEX(coordonnées_cadran_plat($D128,U$10,$C$3,$C$2,$C$5,$C$6,0,0,$C$4),1,1) -> 1135.867959 | V128: =INDEX(coordonnées_cadran_plat($D128,U$10,$C$3,$C$2,$C$5,$C$6,0,0,$C$4),1,2) -> 885.1634403 | W128: =INDEX(coordonnées_cadran_plat($D128,W$10,$C$3,$C$2,$C$5,$C$6,0,0,$C$4),1,1) -> 1527.50554 | X128: =INDEX(coordonnées_cadran_plat($D128,W$10,$C$3,$C$2,$C$5,$C$6,0,0,$C$4),1,2) -> 1847.16874
B129: 6 | C129: 8 | D129: 2010-08-06 | E129: =INDEX(heures_limites_cadran($D129,$C$3,$C$2,$C$5),1,1)/24 -> 08:30:00 | F129: =INDEX(heures_limites_cadran($D129,$C$3,$C$2,$C$5),1,2)/24 -> 18:00:00 | G129: =INDEX(coordonnées_cadran_plat($D129,$G$10,$C$3,$C$2,$C$5,$C$6,0,0,$C$4),1,1) -> 2662.207232 | H129: =INDEX(coordonnées_cadran_plat($D129,$G$10,$C$3,$C$2,$C$5,$C$6,0,0,$C$4),1,2) -> -5366.26815 | I129: =INDEX(coordonnées_cadran_plat($D129,I$10,$C$3,$C$2,$C$5,$C$6,0,0,$C$4),1,1) -> 1300.66054 | J129: =INDEX(coordonnées_cadran_plat($D129,I$10,$C$3,$C$2,$C$5,$C$6,0,0,$C$4),1,2) -> -1689.862526 | K129: =INDEX(coordonnées_cadran_plat($D129,K$10,$C$3,$C$2,$C$5,$C$6,0,0,$C$4),1,1) -> 1037.566807 | L129: =INDEX(coordonnées_cadran_plat($D129,K$10,$C$3,$C$2,$C$5,$C$6,0,0,$C$4),1,2) -> -859.8345909 | M129: =INDEX(coordonnées_cadran_plat($D129,M$10,$C$3,$C$2,$C$5,$C$6,0,0,$C$4),1,1) -> 943.1326703 | N129: =INDEX(coordonnées_cadran_plat($D129,M$10,$C$3,$C$2,$C$5,$C$6,0,0,$C$4),1,2) -> -440.7965483 | O129: =INDEX(coordonnées_cadran_plat($D129,O$10,$C$3,$C$2,$C$5,$C$6,0,0,$C$4),1,1) -> 913.1269158 | P129: =INDEX(coordonnées_cadran_plat($D129,O$10,$C$3,$C$2,$C$5,$C$6,0,0,$C$4),1,2) -> -142.9567083 | Q129: =INDEX(coordonnées_cadran_plat($D129,Q$10,$C$3,$C$2,$C$5,$C$6,0,0,$C$4),1,1) -> 924.7871723 | R129: =INDEX(coordonnées_cadran_plat($D129,Q$10,$C$3,$C$2,$C$5,$C$6,0,0,$C$4),1,2) -> 126.9294607 | S129: =INDEX(coordonnées_cadran_plat($D129,S$10,$C$3,$C$2,$C$5,$C$6,0,0,$C$4),1,1) -> 981.8733625 | T129: =INDEX(coordonnées_cadran_plat($D129,S$10,$C$3,$C$2,$C$5,$C$6,0,0,$C$4),1,2) -> 432.6037317 | U129: =INDEX(coordonnées_cadran_plat($D129,U$10,$C$3,$C$2,$C$5,$C$6,0,0,$C$4),1,1) -> 1120.017693 | V129: =INDEX(coordonnées_cadran_plat($D129,U$10,$C$3,$C$2,$C$5,$C$6,0,0,$C$4),1,2) -> 878.1691573 | W129: =INDEX(coordonnées_cadran_plat($D129,W$10,$C$3,$C$2,$C$5,$C$6,0,0,$C$4),1,1) -> 1497.164263 | X129: =INDEX(coordonnées_cadran_plat($D129,W$10,$C$3,$C$2,$C$5,$C$6,0,0,$C$4),1,2) -> 1823.001293
B130: 7 | C130: 8 | D130: 2010-08-07 | E130: =INDEX(heures_limites_cadran($D130,$C$3,$C$2,$C$5),1,1)/24 -> 08:30:00 | F130: =INDEX(heures_limites_cadran($D130,$C$3,$C$2,$C$5),1,2)/24 -> 18:00:00 | G130: =INDEX(coordonnées_cadran_plat($D130,$G$10,$C$3,$C$2,$C$5,$C$6,0,0,$C$4),1,1) -> 2538.097549 | H130: =INDEX(coordonnées_cadran_plat($D130,$G$10,$C$3,$C$2,$C$5,$C$6,0,0,$C$4),1,2) -> -5154.136052 | I130: =INDEX(coordonnées_cadran_plat($D130,I$10,$C$3,$C$2,$C$5,$C$6,0,0,$C$4),1,1) -> 1274.24245 | J130: =INDEX(coordonnées_cadran_plat($D130,I$10,$C$3,$C$2,$C$5,$C$6,0,0,$C$4),1,2) -> -1664.381595 | K130: =INDEX(coordonnées_cadran_plat($D130,K$10,$C$3,$C$2,$C$5,$C$6,0,0,$C$4),1,1) -> 1022.64925 | L130: =INDEX(coordonnées_cadran_plat($D130,K$10,$C$3,$C$2,$C$5,$C$6,0,0,$C$4),1,2) -> -850.9376004 | M130: =INDEX(coordonnées_cadran_plat($D130,M$10,$C$3,$C$2,$C$5,$C$6,0,0,$C$4),1,1) -> 931.8409402 | N130: =INDEX(coordonnées_cadran_plat($D130,M$10,$C$3,$C$2,$C$5,$C$6,0,0,$C$4),1,2) -> -436.8042888 | O130: =INDEX(coordonnées_cadran_plat($D130,O$10,$C$3,$C$2,$C$5,$C$6,0,0,$C$4),1,1) -> 903.0797266 | P130: =INDEX(coordonnées_cadran_plat($D130,O$10,$C$3,$C$2,$C$5,$C$6,0,0,$C$4),1,2) -> -141.3401154 | Q130: =INDEX(coordonnées_cadran_plat($D130,Q$10,$C$3,$C$2,$C$5,$C$6,0,0,$C$4),1,1) -> 914.66 | R130: =INDEX(coordonnées_cadran_plat($D130,Q$10,$C$3,$C$2,$C$5,$C$6,0,0,$C$4),1,2) -> 126.7640949 | S130: =INDEX(coordonnées_cadran_plat($D130,S$10,$C$3,$C$2,$C$5,$C$6,0,0,$C$4),1,1) -> 970.2825413 | T130: =INDEX(coordonnées_cadran_plat($D130,S$10,$C$3,$C$2,$C$5,$C$6,0,0,$C$4),1,2) -> 430.2380876 | U130: =INDEX(coordonnées_cadran_plat($D130,U$10,$C$3,$C$2,$C$5,$C$6,0,0,$C$4),1,1) -> 1104.265386 | V130: =INDEX(coordonnées_cadran_plat($D130,U$10,$C$3,$C$2,$C$5,$C$6,0,0,$C$4),1,2) -> 871.2873169 | W130: =INDEX(coordonnées_cadran_plat($D130,W$10,$C$3,$C$2,$C$5,$C$6,0,0,$C$4),1,1) -> 1467.341514 | X130: =INDEX(coordonnées_cadran_plat($D130,W$10,$C$3,$C$2,$C$5,$C$6,0,0,$C$4),1,2) -> 1799.391546
B131: 8 | C131: 8 | D131: 2010-08-08 | E131: =INDEX(heures_limites_cadran($D131,$C$3,$C$2,$C$5),1,1)/24 -> 08:30:00 | F131: =INDEX(heures_limites_cadran($D131,$C$3,$C$2,$C$5),1,2)/24 -> 18:00:00 | G131: =INDEX(coordonnées_cadran_plat($D131,$G$10,$C$3,$C$2,$C$5,$C$6,0,0,$C$4),1,1) -> 2421.467694 | H131: =INDEX(coordonnées_cadran_plat($D131,$G$10,$C$3,$C$2,$C$5,$C$6,0,0,$C$4),1,2) -> -4954.309781 | I131: =INDEX(coordonnées_cadran_plat($D131,I$10,$C$3,$C$2,$C$5,$C$6,0,0,$C$4),1,1) -> 1248.198294 | J131: =INDEX(coordonnées_cadran_plat($D131,I$10,$C$3,$C$2,$C$5,$C$6,0,0,$C$4),1,2) -> -1639.142322 | K131: =INDEX(coordonnées_cadran_plat($D131,K$10,$C$3,$C$2,$C$5,$C$6,0,0,$C$4),1,1) -> 1007.806609 | L131: =INDEX(coordonnées_cadran_plat($D131,K$10,$C$3,$C$2,$C$5,$C$6,0,0,$C$4),1,2) -> -842.0235108 | M131: =INDEX(coordonnées_cadran_plat($D131,M$10,$C$3,$C$2,$C$5,$C$6,0,0,$C$4),1,1) -> 920.5687944 | N131: =INDEX(coordonnées_cadran_plat($D131,M$10,$C$3,$C$2,$C$5,$C$6,0,0,$C$4),1,2) -> -432.7754858 | O131: =INDEX(coordonnées_cadran_plat($D131,O$10,$C$3,$C$2,$C$5,$C$6,0,0,$C$4),1,1) -> 893.0389578 | P131: =INDEX(coordonnées_cadran_plat($D131,O$10,$C$3,$C$2,$C$5,$C$6,0,0,$C$4),1,2) -> -139.687228 | Q131: =INDEX(coordonnées_cadran_plat($D131,Q$10,$C$3,$C$2,$C$5,$C$6,0,0,$C$4),1,1) -> 904.5420009 | R131: =INDEX(coordonnées_cadran_plat($D131,Q$10,$C$3,$C$2,$C$5,$C$6,0,0,$C$4),1,2) -> 126.6367519 | S131: =INDEX(coordonnées_cadran_plat($D131,S$10,$C$3,$C$2,$C$5,$C$6,0,0,$C$4),1,1) -> 958.7216106 | T131: =INDEX(coordonnées_cadran_plat($D131,S$10,$C$3,$C$2,$C$5,$C$6,0,0,$C$4),1,2) -> 427.9240751 | U131: =INDEX(coordonnées_cadran_plat($D131,U$10,$C$3,$C$2,$C$5,$C$6,0,0,$C$4),1,1) -> 1088.617522 | V131: =INDEX(coordonnées_cadran_plat($D131,U$10,$C$3,$C$2,$C$5,$C$6,0,0,$C$4),1,2) -> 864.5186689 | W131: =INDEX(coordonnées_cadran_plat($D131,W$10,$C$3,$C$2,$C$5,$C$6,0,0,$C$4),1,1) -> 1438.034751 | X131: =INDEX(coordonnées_cadran_plat($D131,W$10,$C$3,$C$2,$C$5,$C$6,0,0,$C$4),1,2) -> 1776.331025
B132: 9 | C132: 8 | D132: 2010-08-09 | E132: =INDEX(heures_limites_cadran($D132,$C$3,$C$2,$C$5),1,1)/24 -> 08:30:00 | F132: =INDEX(heures_limites_cadran($D132,$C$3,$C$2,$C$5),1,2)/24 -> 18:00:00 | G132: =INDEX(coordonnées_cadran_plat($D132,$G$10,$C$3,$C$2,$C$5,$C$6,0,0,$C$4),1,1) -> 2311.773434 | H132: =INDEX(coordonnées_cadran_plat($D132,$G$10,$C$3,$C$2,$C$5,$C$6,0,0,$C$4),1,2) -> -4765.915584 | I132: =INDEX(coordonnées_cadran_plat($D132,I$10,$C$3,$C$2,$C$5,$C$6,0,0,$C$4),1,1) -> 1222.541784 | J132: =INDEX(coordonnées_cadran_plat($D132,I$10,$C$3,$C$2,$C$5,$C$6,0,0,$C$4),1,2) -> -1614.163761 | K132: =INDEX(coordonnées_cadran_plat($D132,K$10,$C$3,$C$2,$C$5,$C$6,0,0,$C$4),1,1) -> 993.0493146 | L132: =INDEX(coordonnées_cadran_plat($D132,K$10,$C$3,$C$2,$C$5,$C$6,0,0,$C$4),1,2) -> -833.1006437 | M132: =INDEX(coordonnées_cadran_plat($D132,M$10,$C$3,$C$2,$C$5,$C$6,0,0,$C$4),1,1) -> 909.3238136 | N132: =INDEX(coordonnées_cadran_plat($D132,M$10,$C$3,$C$2,$C$5,$C$6,0,0,$C$4),1,2) -> -428.7140411 | O132: =INDEX(coordonnées_cadran_plat($D132,O$10,$C$3,$C$2,$C$5,$C$6,0,0,$C$4),1,1) -> 883.0108656 | P132: =INDEX(coordonnées_cadran_plat($D132,O$10,$C$3,$C$2,$C$5,$C$6,0,0,$C$4),1,2) -> -138.0000088 | Q132: =INDEX(coordonnées_cadran_plat($D132,Q$10,$C$3,$C$2,$C$5,$C$6,0,0,$C$4),1,1) -> 894.4389526 | R132: =INDEX(coordonnées_cadran_plat($D132,Q$10,$C$3,$C$2,$C$5,$C$6,0,0,$C$4),1,2) -> 126.5465722 | S132: =INDEX(coordonnées_cadran_plat($D132,S$10,$C$3,$C$2,$C$5,$C$6,0,0,$C$4),1,1) -> 947.1964179 | T132: =INDEX(coordonnées_cadran_plat($D132,S$10,$C$3,$C$2,$C$5,$C$6,0,0,$C$4),1,2) -> 425.6616701 | U132: =INDEX(coordonnées_cadran_plat($D132,U$10,$C$3,$C$2,$C$5,$C$6,0,0,$C$4),1,1) -> 1073.080016 | V132: =INDEX(coordonnées_cadran_plat($D132,U$10,$C$3,$C$2,$C$5,$C$6,0,0,$C$4),1,2) -> 857.8636662 | W132: =INDEX(coordonnées_cadran_plat($D132,W$10,$C$3,$C$2,$C$5,$C$6,0,0,$C$4),1,1) -> 1409.240524 | X132: =INDEX(coordonnées_cadran_plat($D132,W$10,$C$3,$C$2,$C$5,$C$6,0,0,$C$4),1,2) -> 1753.810613
B133: 10 | C133: 8 | D133: 2010-08-10 | E133: =INDEX(heures_limites_cadran($D133,$C$3,$C$2,$C$5),1,1)/24 -> 08:30:00 | F133: =INDEX(heures_limites_cadran($D133,$C$3,$C$2,$C$5),1,2)/24 -> 18:00:00 | G133: =INDEX(coordonnées_cadran_plat($D133,$G$10,$C$3,$C$2,$C$5,$C$6,0,0,$C$4),1,1) -> 2208.514884 | H133: =INDEX(coordonnées_cadran_plat($D133,$G$10,$C$3,$C$2,$C$5,$C$6,0,0,$C$4),1,2) -> -4588.149629 | I133: =INDEX(coordonnées_cadran_plat($D133,I$10,$C$3,$C$2,$C$5,$C$6,0,0,$C$4),1,1) -> 1197.284635 | J133: =INDEX(coordonnées_cadran_plat($D133,I$10,$C$3,$C$2,$C$5,$C$6,0,0,$C$4),1,2) -> -1589.463034 | K133: =INDEX(coordonnées_cadran_plat($D133,K$10,$C$3,$C$2,$C$5,$C$6,0,0,$C$4),1,1) -> 978.3870582 | L133: =INDEX(coordonnées_cadran_plat($D133,K$10,$C$3,$C$2,$C$5,$C$6,0,0,$C$4),1,2) -> -824.176939 | M133: =INDEX(coordonnées_cadran_plat($D133,M$10,$C$3,$C$2,$C$5,$C$6,0,0,$C$4),1,1) -> 898.1131585 | N133: =INDEX(coordonnées_cadran_plat($D133,M$10,$C$3,$C$2,$C$5,$C$6,0,0,$C$4),1,2) -> -424.6237578 | O133: =INDEX(coordonnées_cadran_plat($D133,O$10,$C$3,$C$2,$C$5,$C$6,0,0,$C$4),1,1) -> 873.0013844 | P133: =INDEX(coordonnées_cadran_plat($D133,O$10,$C$3,$C$2,$C$5,$C$6,0,0,$C$4),1,2) -> -136.2804124 | Q133: =INDEX(coordonnées_cadran_plat($D133,Q$10,$C$3,$C$2,$C$5,$C$6,0,0,$C$4),1,1) -> 884.3563243 | R133: =INDEX(coordonnées_cadran_plat($D133,Q$10,$C$3,$C$2,$C$5,$C$6,0,0,$C$4),1,2) -> 126.4926494 | S133: =INDEX(coordonnées_cadran_plat($D133,S$10,$C$3,$C$2,$C$5,$C$6,0,0,$C$4),1,1) -> 935.7124463 | T133: =INDEX(coordonnées_cadran_plat($D133,S$10,$C$3,$C$2,$C$5,$C$6,0,0,$C$4),1,2) -> 423.4507299 | U133: =INDEX(coordonnées_cadran_plat($D133,U$10,$C$3,$C$2,$C$5,$C$6,0,0,$C$4),1,1) -> 1057.658246 | V133: =INDEX(coordonnées_cadran_plat($D133,U$10,$C$3,$C$2,$C$5,$C$6,0,0,$C$4),1,2) -> 851.3224843 | W133: =INDEX(coordonnées_cadran_plat($D133,W$10,$C$3,$C$2,$C$5,$C$6,0,0,$C$4),1,1) -> 1380.954579 | X133: =INDEX(coordonnées_cadran_plat($D133,W$10,$C$3,$C$2,$C$5,$C$6,0,0,$C$4),1,2) -> 1731.820647
B134: 11 | C134: 8 | D134: 2010-08-11 | E134: =INDEX(heures_limites_cadran($D134,$C$3,$C$2,$C$5),1,1)/24 -> 08:30:00 | F134: =INDEX(heures_limites_cadran($D134,$C$3,$C$2,$C$5),1,2)/24 -> 18:00:00 | G134: =INDEX(coordonnées_cadran_plat($D134,$G$10,$C$3,$C$2,$C$5,$C$6,0,0,$C$4),1,1) -> 2111.232723 | H134: =INDEX(coordonnées_cadran_plat($D134,$G$10,$C$3,$C$2,$C$5,$C$6,0,0,$C$4),1,2) -> -4420.27219 | I134: =INDEX(coordonnées_cadran_plat($D134,I$10,$C$3,$C$2,$C$5,$C$6,0,0,$C$4),1,1) -> 1172.436686 | J134: =INDEX(coordonnées_cadran_plat($D134,I$10,$C$3,$C$2,$C$5,$C$6,0,0,$C$4),1,2) -> -1565.05542 | K134: =INDEX(coordonnées_cadran_plat($D134,K$10,$C$3,$C$2,$C$5,$C$6,0,0,$C$4),1,1) -> 963.8288141 | L134: =INDEX(coordonnées_cadran_plat($D134,K$10,$C$3,$C$2,$C$5,$C$6,0,0,$C$4),1,2) -> -815.2599569 | M134: =INDEX(coordonnées_cadran_plat($D134,M$10,$C$3,$C$2,$C$5,$C$6,0,0,$C$4),1,1) -> 886.9435765 | N134: =INDEX(coordonnées_cadran_plat($D134,M$10,$C$3,$C$2,$C$5,$C$6,0,0,$C$4),1,2) -> -420.5083371 | O134: =INDEX(coordonnées_cadran_plat($D134,O$10,$C$3,$C$2,$C$5,$C$6,0,0,$C$4),1,1) -> 863.0161325 | P134: =INDEX(coordonnées_cadran_plat($D134,O$10,$C$3,$C$2,$C$5,$C$6,0,0,$C$4),1,2) -> -134.5303822 | Q134: =INDEX(coordonnées_cadran_plat($D134,Q$10,$C$3,$C$2,$C$5,$C$6,0,0,$C$4),1,1) -> 874.2992837 | R134: =INDEX(coordonnées_cadran_plat($D134,Q$10,$C$3,$C$2,$C$5,$C$6,0,0,$C$4),1,2) -> 126.4740338 | S134: =INDEX(coordonnées_cadran_plat($D134,S$10,$C$3,$C$2,$C$5,$C$6,0,0,$C$4),1,1) -> 924.2748264 | T134: =INDEX(coordonnées_cadran_plat($D134,S$10,$C$3,$C$2,$C$5,$C$6,0,0,$C$4),1,2) -> 421.2910004 | U134: =INDEX(coordonnées_cadran_plat($D134,U$10,$C$3,$C$2,$C$5,$C$6,0,0,$C$4),1,1) -> 1042.357074 | V134: =INDEX(coordonnées_cadran_plat($D134,U$10,$C$3,$C$2,$C$5,$C$6,0,0,$C$4),1,2) -> 844.8950398 | W134: =INDEX(coordonnées_cadran_plat($D134,W$10,$C$3,$C$2,$C$5,$C$6,0,0,$C$4),1,1) -> 1353.171955 | X134: =INDEX(coordonnées_cadran_plat($D134,W$10,$C$3,$C$2,$C$5,$C$6,0,0,$C$4),1,2) -> 1710.351002
B135: 12 | C135: 8 | D135: 2010-08-12 | E135: =INDEX(heures_limites_cadran($D135,$C$3,$C$2,$C$5),1,1)/24 -> 08:30:00 | F135: =INDEX(heures_limites_cadran($D135,$C$3,$C$2,$C$5),1,2)/24 -> 18:00:00 | G135: =INDEX(coordonnées_cadran_plat($D135,$G$10,$C$3,$C$2,$C$5,$C$6,0,0,$C$4),1,1) -> 2019.504718 | H135: =INDEX(coordonnées_cadran_plat($D135,$G$10,$C$3,$C$2,$C$5,$C$6,0,0,$C$4),1,2) -> -4261.602274 | I135: =INDEX(coordonnées_cadran_plat($D135,I$10,$C$3,$C$2,$C$5,$C$6,0,0,$C$4),1,1) -> 1148.006026 | J135: =INDEX(coordonnées_cadran_plat($D135,I$10,$C$3,$C$2,$C$5,$C$6,0,0,$C$4),1,2) -> -1540.954462 | K135: =INDEX(coordonnées_cadran_plat($D135,K$10,$C$3,$C$2,$C$5,$C$6,0,0,$C$4),1,1) -> 949.3828589 | L135: =INDEX(coordonnées_cadran_plat($D135,K$10,$C$3,$C$2,$C$5,$C$6,0,0,$C$4),1,2) -> -806.3568808 | M135: =INDEX(coordonnées_cadran_plat($D135,M$10,$C$3,$C$2,$C$5,$C$6,0,0,$C$4),1,1) -> 875.821409 | N135: =INDEX(coordonnées_cadran_plat($D135,M$10,$C$3,$C$2,$C$5,$C$6,0,0,$C$4),1,2) -> -416.3713756 | O135: =INDEX(coordonnées_cadran_plat($D135,O$10,$C$3,$C$2,$C$5,$C$6,0,0,$C$4),1,1) -> 853.0604168 | P135: =INDEX(coordonnées_cadran_plat($D135,O$10,$C$3,$C$2,$C$5,$C$6,0,0,$C$4),1,2) -> -132.7518469 | Q135: =INDEX(coordonnées_cadran_plat($D135,Q$10,$C$3,$C$2,$C$5,$C$6,0,0,$C$4),1,1) -> 864.2727036 | R135: =INDEX(coordonnées_cadran_plat($D135,Q$10,$C$3,$C$2,$C$5,$C$6,0,0,$C$4),1,2) -> 126.4897363 | S135: =INDEX(coordonnées_cadran_plat($D135,S$10,$C$3,$C$2,$C$5,$C$6,0,0,$C$4),1,1) -> 912.8883481 | T135: =INDEX(coordonnées_cadran_plat($D135,S$10,$C$3,$C$2,$C$5,$C$6,0,0,$C$4),1,2) -> 419.1821229 | U135: =INDEX(coordonnées_cadran_plat($D135,U$10,$C$3,$C$2,$C$5,$C$6,0,0,$C$4),1,1) -> 1027.180881 | V135: =INDEX(coordonnées_cadran_plat($D135,U$10,$C$3,$C$2,$C$5,$C$6,0,0,$C$4),1,2) -> 838.5810089 | W135: =INDEX(coordonnées_cadran_plat($D135,W$10,$C$3,$C$2,$C$5,$C$6,0,0,$C$4),1,1) -> 1325.887076 | X135: =INDEX(coordonnées_cadran_plat($D135,W$10,$C$3,$C$2,$C$5,$C$6,0,0,$C$4),1,2) -> 1689.391165
B136: 13 | C136: 8 | D136: 2010-08-13 | E136: =INDEX(heures_limites_cadran($D136,$C$3,$C$2,$C$5),1,1)/24 -> 08:30:00 | F136: =INDEX(heures_limites_cadran($D136,$C$3,$C$2,$C$5),1,2)/24 -> 18:00:00 | G136: =INDEX(coordonnées_cadran_plat($D136,$G$10,$C$3,$C$2,$C$5,$C$6,0,0,$C$4),1,1) -> 1932.942532 | H136: =INDEX(coordonnées_cadran_plat($D136,$G$10,$C$3,$C$2,$C$5,$C$6,0,0,$C$4),1,2) -> -4111.512662 | I136: =INDEX(coordonnées_cadran_plat($D136,I$10,$C$3,$C$2,$C$5,$C$6,0,0,$C$4),1,1) -> 1123.999113 | J136: =INDEX(coordonnées_cadran_plat($D136,I$10,$C$3,$C$2,$C$5,$C$6,0,0,$C$4),1,2) -> -1517.172057 | K136: =INDEX(coordonnées_cadran_plat($D136,K$10,$C$3,$C$2,$C$5,$C$6,0,0,$C$4),1,1) -> 935.0567943 | L136: =INDEX(coordonnées_cadran_plat($D136,K$10,$C$3,$C$2,$C$5,$C$6,0,0,$C$4),1,2) -> -797.4745216 | M136: =INDEX(coordonnées_cadran_plat($D136,M$10,$C$3,$C$2,$C$5,$C$6,0,0,$C$4),1,1) -> 864.7526002 | N136: =INDEX(coordonnées_cadran_plat($D136,M$10,$C$3,$C$2,$C$5,$C$6,0,0,$C$4),1,2) -> -412.216363 | O136: =INDEX(coordonnées_cadran_plat($D136,O$10,$C$3,$C$2,$C$5,$C$6,0,0,$C$4),1,1) -> 843.1392403 | P136: =INDEX(coordonnées_cadran_plat($D136,O$10,$C$3,$C$2,$C$5,$C$6,0,0,$C$4),1,2) -> -130.946718 | Q136: =INDEX(coordonnées_cadran_plat($D136,Q$10,$C$3,$C$2,$C$5,$C$6,0,0,$C$4),1,1) -> 854.2811694 | R136: =INDEX(coordonnées_cadran_plat($D136,Q$10,$C$3,$C$2,$C$5,$C$6,0,0,$C$4),1,2) -> 126.5387323 | S136: =INDEX(coordonnées_cadran_plat($D136,S$10,$C$3,$C$2,$C$5,$C$6,0,0,$C$4),1,1) -> 901.5574727 | T136: =INDEX(coordonnées_cadran_plat($D136,S$10,$C$3,$C$2,$C$5,$C$6,0,0,$C$4),1,2) -> 417.1236403 | U136: =INDEX(coordonnées_cadran_plat($D136,U$10,$C$3,$C$2,$C$5,$C$6,0,0,$C$4),1,1) -> 1012.133588 | V136: =INDEX(coordonnées_cadran_plat($D136,U$10,$C$3,$C$2,$C$5,$C$6,0,0,$C$4),1,2) -> 832.3798448 | W136: =INDEX(coordonnées_cadran_plat($D136,W$10,$C$3,$C$2,$C$5,$C$6,0,0,$C$4),1,1) -> 1299.093832 | X136: =INDEX(coordonnées_cadran_plat($D136,W$10,$C$3,$C$2,$C$5,$C$6,0,0,$C$4),1,2) -> 1668.930313
B137: 14 | C137: 8 | D137: 2010-08-14 | E137: =INDEX(heures_limites_cadran($D137,$C$3,$C$2,$C$5),1,1)/24 -> 08:30:00 | F137: =INDEX(heures_limites_cadran($D137,$C$3,$C$2,$C$5),1,2)/24 -> 18:00:00 | G137: =INDEX(coordonnées_cadran_plat($D137,$G$10,$C$3,$C$2,$C$5,$C$6,0,0,$C$4),1,1) -> 1851.188795 | H137: =INDEX(coordonnées_cadran_plat($D137,$G$10,$C$3,$C$2,$C$5,$C$6,0,0,$C$4),1,2) -> -3969.425359 | I137: =INDEX(coordonnées_cadran_plat($D137,I$10,$C$3,$C$2,$C$5,$C$6,0,0,$C$4),1,1) -> 1100.42089 | J137: =INDEX(coordonnées_cadran_plat($D137,I$10,$C$3,$C$2,$C$5,$C$6,0,0,$C$4),1,2) -> -1493.718559 | K137: =INDEX(coordonnées_cadran_plat($D137,K$10,$C$3,$C$2,$C$5,$C$6,0,0,$C$4),1,1) -> 920.8575701 | L137: =INDEX(coordonnées_cadran_plat($D137,K$10,$C$3,$C$2,$C$5,$C$6,0,0,$C$4),1,2) -> -788.6193239 | M137: =INDEX(coordonnées_cadran_plat($D137,M$10,$C$3,$C$2,$C$5,$C$6,0,0,$C$4),1,1) -> 853.7427067 | N137: =INDEX(coordonnées_cadran_plat($D137,M$10,$C$3,$C$2,$C$5,$C$6,0,0,$C$4),1,2) -> -408.046681 | O137: =INDEX(coordonnées_cadran_plat($D137,O$10,$C$3,$C$2,$C$5,$C$6,0,0,$C$4),1,1) -> 833.2573079 | P137: =INDEX(coordonnées_cadran_plat($D137,O$10,$C$3,$C$2,$C$5,$C$6,0,0,$C$4),1,2) -> -129.116887 | Q137: =INDEX(coordonnées_cadran_plat($D137,Q$10,$C$3,$C$2,$C$5,$C$6,0,0,$C$4),1,1) -> 844.3289873 | R137: =INDEX(coordonnées_cadran_plat($D137,Q$10,$C$3,$C$2,$C$5,$C$6,0,0,$C$4),1,2) -> 126.6199651 | S137: =INDEX(coordonnées_cadran_plat($D137,S$10,$C$3,$C$2,$C$5,$C$6,0,0,$C$4),1,1) -> 890.2863454 | T137: =INDEX(coordonnées_cadran_plat($D137,S$10,$C$3,$C$2,$C$5,$C$6,0,0,$C$4),1,2) -> 415.1150041 | U137: =INDEX(coordonnées_cadran_plat($D137,U$10,$C$3,$C$2,$C$5,$C$6,0,0,$C$4),1,1) -> 997.2186876 | V137: =INDEX(coordonnées_cadran_plat($D137,U$10,$C$3,$C$2,$C$5,$C$6,0,0,$C$4),1,2) -> 826.2907945 | W137: =INDEX(coordonnées_cadran_plat($D137,W$10,$C$3,$C$2,$C$5,$C$6,0,0,$C$4),1,1) -> 1272.785659 | X137: =INDEX(coordonnées_cadran_plat($D137,W$10,$C$3,$C$2,$C$5,$C$6,0,0,$C$4),1,2) -> 1648.95737
B138: 15 | C138: 8 | D138: 2010-08-15 | E138: =INDEX(heures_limites_cadran($D138,$C$3,$C$2,$C$5),1,1)/24 -> 08:30:00 | F138: =INDEX(heures_limites_cadran($D138,$C$3,$C$2,$C$5),1,2)/24 -> 18:30:00 | G138: =INDEX(coordonnées_cadran_plat($D138,$G$10,$C$3,$C$2,$C$5,$C$6,0,0,$C$4),1,1) -> 1773.914434 | H138: =INDEX(coordonnées_cadran_plat($D138,$G$10,$C$3,$C$2,$C$5,$C$6,0,0,$C$4),1,2) -> -3834.80742 | I138: =INDEX(coordonnées_cadran_plat($D138,I$10,$C$3,$C$2,$C$5,$C$6,0,0,$C$4),1,1) -> 1077.274901 | J138: =INDEX(coordonnées_cadran_plat($D138,I$10,$C$3,$C$2,$C$5,$C$6,0,0,$C$4),1,2) -> -1470.602872 | K138: =INDEX(coordonnées_cadran_plat($D138,K$10,$C$3,$C$2,$C$5,$C$6,0,0,$C$4),1,1) -> 906.7915086 | L138: =INDEX(coordonnées_cadran_plat($D138,K$10,$C$3,$C$2,$C$5,$C$6,0,0,$C$4),1,2) -> -779.7973729 | M138: =INDEX(coordonnées_cadran_plat($D138,M$10,$C$3,$C$2,$C$5,$C$6,0,0,$C$4),1,1) -> 842.7969078 | N138: =INDEX(coordonnées_cadran_plat($D138,M$10,$C$3,$C$2,$C$5,$C$6,0,0,$C$4),1,2) -> -403.8656022 | O138: =INDEX(coordonnées_cadran_plat($D138,O$10,$C$3,$C$2,$C$5,$C$6,0,0,$C$4),1,1) -> 823.4190351 | P138: =INDEX(coordonnées_cadran_plat($D138,O$10,$C$3,$C$2,$C$5,$C$6,0,0,$C$4),1,2) -> -127.264223 | Q138: =INDEX(coordonnées_cadran_plat($D138,Q$10,$C$3,$C$2,$C$5,$C$6,0,0,$C$4),1,1) -> 834.4201924 | R138: =INDEX(coordonnées_cadran_plat($D138,Q$10,$C$3,$C$2,$C$5,$C$6,0,0,$C$4),1,2) -> 126.7323496 | S138: =INDEX(coordonnées_cadran_plat($D138,S$10,$C$3,$C$2,$C$5,$C$6,0,0,$C$4),1,1) -> 879.0788079 | T138: =INDEX(coordonnées_cadran_plat($D138,S$10,$C$3,$C$2,$C$5,$C$6,0,0,$C$4),1,2) -> 413.1555803 | U138: =INDEX(coordonnées_cadran_plat($D138,U$10,$C$3,$C$2,$C$5,$C$6,0,0,$C$4),1,1) -> 982.4392644 | V138: =INDEX(coordonnées_cadran_plat($D138,U$10,$C$3,$C$2,$C$5,$C$6,0,0,$C$4),1,2) -> 820.3129149 | W138: =INDEX(coordonnées_cadran_plat($D138,W$10,$C$3,$C$2,$C$5,$C$6,0,0,$C$4),1,1) -> 1246.955601 | X138: =INDEX(coordonnées_cadran_plat($D138,W$10,$C$3,$C$2,$C$5,$C$6,0,0,$C$4),1,2) -> 1629.461068
B139: 16 | C139: 8 | D139: 2010-08-16 | E139: =INDEX(heures_limites_cadran($D139,$C$3,$C$2,$C$5),1,1)/24 -> 08:30:00 | F139: =INDEX(heures_limites_cadran($D139,$C$3,$C$2,$C$5),1,2)/24 -> 18:30:00 | G139: =INDEX(coordonnées_cadran_plat($D139,$G$10,$C$3,$C$2,$C$5,$C$6,0,0,$C$4),1,1) -> 1700.816225 | H139: =INDEX(coordonnées_cadran_plat($D139,$G$10,$C$3,$C$2,$C$5,$C$6,0,0,$C$4),1,2) -> -3707.167132 | I139: =INDEX(coordonnées_cadran_plat($D139,I$10,$C$3,$C$2,$C$5,$C$6,0,0,$C$4),1,1) -> 1054.5634 | J139: =INDEX(coordonnées_cadran_plat($D139,I$10,$C$3,$C$2,$C$5,$C$6,0,0,$C$4),1,2) -> -1447.832551 | K139: =INDEX(coordonnées_cadran_plat($D139,K$10,$C$3,$C$2,$C$5,$C$6,0,0,$C$4),1,1) -> 892.86433 | L139: =INDEX(coordonnées_cadran_plat($D139,K$10,$C$3,$C$2,$C$5,$C$6,0,0,$C$4),1,2) -> -771.0144024 | M139: =INDEX(coordonnées_cadran_plat($D139,M$10,$C$3,$C$2,$C$5,$C$6,0,0,$C$4),1,1) -> 831.9200166 | N139: =INDEX(coordonnées_cadran_plat($D139,M$10,$C$3,$C$2,$C$5,$C$6,0,0,$C$4),1,2) -> -399.6762894 | O139: =INDEX(coordonnées_cadran_plat($D139,O$10,$C$3,$C$2,$C$5,$C$6,0,0,$C$4),1,1) -> 813.6285553 | P139: =INDEX(coordonnées_cadran_plat($D139,O$10,$C$3,$C$2,$C$5,$C$6,0,0,$C$4),1,2) -> -125.3905711 | Q139: =INDEX(coordonnées_cadran_plat($D139,Q$10,$C$3,$C$2,$C$5,$C$6,0,0,$C$4),1,1) -> 824.5585575 | R139: =INDEX(coordonnées_cadran_plat($D139,Q$10,$C$3,$C$2,$C$5,$C$6,0,0,$C$4),1,2) -> 126.8747752 | S139: =INDEX(coordonnées_cadran_plat($D139,S$10,$C$3,$C$2,$C$5,$C$6,0,0,$C$4),1,1) -> 867.9384112 | T139: =INDEX(coordonnées_cadran_plat($D139,S$10,$C$3,$C$2,$C$5,$C$6,0,0,$C$4),1,2) -> 411.2446557 | U139: =INDEX(coordonnées_cadran_plat($D139,U$10,$C$3,$C$2,$C$5,$C$6,0,0,$C$4),1,1) -> 967.798024 | V139: =INDEX(coordonnées_cadran_plat($D139,U$10,$C$3,$C$2,$C$5,$C$6,0,0,$C$4),1,2) -> 814.4450883 | W139: =INDEX(coordonnées_cadran_plat($D139,W$10,$C$3,$C$2,$C$5,$C$6,0,0,$C$4),1,1) -> 1221.596384 | X139: =INDEX(coordonnées_cadran_plat($D139,W$10,$C$3,$C$2,$C$5,$C$6,0,0,$C$4),1,2) -> 1610.43
B140: 17 | C140: 8 | D140: 2010-08-17 | E140: =INDEX(heures_limites_cadran($D140,$C$3,$C$2,$C$5),1,1)/24 -> 08:30:00 | F140: =INDEX(heures_limites_cadran($D140,$C$3,$C$2,$C$5),1,2)/24 -> 18:30:00 | G140: =INDEX(coordonnées_cadran_plat($D140,$G$10,$C$3,$C$2,$C$5,$C$6,0,0,$C$4),1,1) -> 1631.614574 | H140: =INDEX(coordonnées_cadran_plat($D140,$G$10,$C$3,$C$2,$C$5,$C$6,0,0,$C$4),1,2) -> -3586.050526 | I140: =INDEX(coordonnées_cadran_plat($D140,I$10,$C$3,$C$2,$C$5,$C$6,0,0,$C$4),1,1) -> 1032.287459 | J140: =INDEX(coordonnées_cadran_plat($D140,I$10,$C$3,$C$2,$C$5,$C$6,0,0,$C$4),1,2) -> -1425.413886 | K140: =INDEX(coordonnées_cadran_plat($D140,K$10,$C$3,$C$2,$C$5,$C$6,0,0,$C$4),1,1) -> 879.0811783 | L140: =INDEX(coordonnées_cadran_plat($D140,K$10,$C$3,$C$2,$C$5,$C$6,0,0,$C$4),1,2) -> -762.2758039 | M140: =INDEX(coordonnées_cadran_plat($D140,M$10,$C$3,$C$2,$C$5,$C$6,0,0,$C$4),1,1) -> 821.1164913 | N140: =INDEX(coordonnées_cadran_plat($D140,M$10,$C$3,$C$2,$C$5,$C$6,0,0,$C$4),1,2) -> -395.4817958 | O140: =INDEX(coordonnées_cadran_plat($D140,O$10,$C$3,$C$2,$C$5,$C$6,0,0,$C$4),1,1) -> 803.8897285 | P140: =INDEX(coordonnées_cadran_plat($D140,O$10,$C$3,$C$2,$C$5,$C$6,0,0,$C$4),1,2) -> -123.49775 | Q140: =INDEX(coordonnées_cadran_plat($D140,Q$10,$C$3,$C$2,$C$5,$C$6,0,0,$C$4),1,1) -> 814.7476023 | R140: =INDEX(coordonnées_cadran_plat($D140,Q$10,$C$3,$C$2,$C$5,$C$6,0,0,$C$4),1,2) -> 127.0461093 | S140: =INDEX(coordonnées_cadran_plat($D140,S$10,$C$3,$C$2,$C$5,$C$6,0,0,$C$4),1,1) -> 856.8684282 | T140: =INDEX(coordonnées_cadran_plat($D140,S$10,$C$3,$C$2,$C$5,$C$6,0,0,$C$4),1,2) -> 409.3814435 | U140: =INDEX(coordonnées_cadran_plat($D140,U$10,$C$3,$C$2,$C$5,$C$6,0,0,$C$4),1,1) -> 953.2973154 | V140: =INDEX(coordonnées_cadran_plat($D140,U$10,$C$3,$C$2,$C$5,$C$6,0,0,$C$4),1,2) -> 808.686037 | W140: =INDEX(coordonnées_cadran_plat($D140,W$10,$C$3,$C$2,$C$5,$C$6,0,0,$C$4),1,1) -> 1196.700465 | X140: =INDEX(coordonnées_cadran_plat($D140,W$10,$C$3,$C$2,$C$5,$C$6,0,0,$C$4),1,2) -> 1591.852666
B141: 18 | C141: 8 | D141: 2010-08-18 | E141: =INDEX(heures_limites_cadran($D141,$C$3,$C$2,$C$5),1,1)/24 -> 08:30:00 | F141: =INDEX(heures_limites_cadran($D141,$C$3,$C$2,$C$5),1,2)/24 -> 18:30:00 | G141: =INDEX(coordonnées_cadran_plat($D141,$G$10,$C$3,$C$2,$C$5,$C$6,0,0,$C$4),1,1) -> 1566.051488 | H141: =INDEX(coordonnées_cadran_plat($D141,$G$10,$C$3,$C$2,$C$5,$C$6,0,0,$C$4),1,2) -> -3471.038186 | I141: =INDEX(coordonnées_cadran_plat($D141,I$10,$C$3,$C$2,$C$5,$C$6,0,0,$C$4),1,1) -> 1010.447069 | J141: =INDEX(coordonnées_cadran_plat($D141,I$10,$C$3,$C$2,$C$5,$C$6,0,0,$C$4),1,2) -> -1403.351999 | K141: =INDEX(coordonnées_cadran_plat($D141,K$10,$C$3,$C$2,$C$5,$C$6,0,0,$C$4),1,1) -> 865.4466469 | L141: =INDEX(coordonnées_cadran_plat($D141,K$10,$C$3,$C$2,$C$5,$C$6,0,0,$C$4),1,2) -> -753.5866358 | M141: =INDEX(coordonnées_cadran_plat($D141,M$10,$C$3,$C$2,$C$5,$C$6,0,0,$C$4),1,1) -> 810.3904478 | N141: =INDEX(coordonnées_cadran_plat($D141,M$10,$C$3,$C$2,$C$5,$C$6,0,0,$C$4),1,2) -> -391.2850652 | O141: =INDEX(coordonnées_cadran_plat($D141,O$10,$C$3,$C$2,$C$5,$C$6,0,0,$C$4),1,1) -> 794.2061501 | P141: =INDEX(coordonnées_cadran_plat($D141,O$10,$C$3,$C$2,$C$5,$C$6,0,0,$C$4),1,2) -> -121.5875505 | Q141: =INDEX(coordonnées_cadran_plat($D141,Q$10,$C$3,$C$2,$C$5,$C$6,0,0,$C$4),1,1) -> 804.990602 | R141: =INDEX(coordonnées_cadran_plat($D141,Q$10,$C$3,$C$2,$C$5,$C$6,0,0,$C$4),1,2) -> 127.2452001 | S141: =INDEX(coordonnées_cadran_plat($D141,S$10,$C$3,$C$2,$C$5,$C$6,0,0,$C$4),1,1) -> 845.8718661 | T141: =INDEX(coordonnées_cadran_plat($D141,S$10,$C$3,$C$2,$C$5,$C$6,0,0,$C$4),1,2) -> 407.5650894 | U141: =INDEX(coordonnées_cadran_plat($D141,U$10,$C$3,$C$2,$C$5,$C$6,0,0,$C$4),1,1) -> 938.9391549 | V141: =INDEX(coordonnées_cadran_plat($D141,U$10,$C$3,$C$2,$C$5,$C$6,0,0,$C$4),1,2) -> 803.0343375 | W141: =INDEX(coordonnées_cadran_plat($D141,W$10,$C$3,$C$2,$C$5,$C$6,0,0,$C$4),1,1) -> 1172.260088 | X141: =INDEX(coordonnées_cadran_plat($D141,W$10,$C$3,$C$2,$C$5,$C$6,0,0,$C$4),1,2) -> 1573.717514
B142: 19 | C142: 8 | D142: 2010-08-19 | E142: =INDEX(heures_limites_cadran($D142,$C$3,$C$2,$C$5),1,1)/24 -> 08:30:00 | F142: =INDEX(heures_limites_cadran($D142,$C$3,$C$2,$C$5),1,2)/24 -> 18:30:00 | G142: =INDEX(coordonnées_cadran_plat($D142,$G$10,$C$3,$C$2,$C$5,$C$6,0,0,$C$4),1,1) -> 1503.888728 | H142: =INDEX(coordonnées_cadran_plat($D142,$G$10,$C$3,$C$2,$C$5,$C$6,0,0,$C$4),1,2) -> -3361.742348 | I142: =INDEX(coordonnées_cadran_plat($D142,I$10,$C$3,$C$2,$C$5,$C$6,0,0,$C$4),1,1) -> 989.0412353 | J142: =INDEX(coordonnées_cadran_plat($D142,I$10,$C$3,$C$2,$C$5,$C$6,0,0,$C$4),1,2) -> -1381.650928 | K142: =INDEX(coordonnées_cadran_plat($D142,K$10,$C$3,$C$2,$C$5,$C$6,0,0,$C$4),1,1) -> 851.9648049 | L142: =INDEX(coordonnées_cadran_plat($D142,K$10,$C$3,$C$2,$C$5,$C$6,0,0,$C$4),1,2) -> -744.951634 | M142: =INDEX(coordonnées_cadran_plat($D142,M$10,$C$3,$C$2,$C$5,$C$6,0,0,$C$4),1,1) -> 799.7456713 | N142: =INDEX(coordonnées_cadran_plat($D142,M$10,$C$3,$C$2,$C$5,$C$6,0,0,$C$4),1,2) -> -387.0889328 | O142: =INDEX(coordonnées_cadran_plat($D142,O$10,$C$3,$C$2,$C$5,$C$6,0,0,$C$4),1,1) -> 784.5811601 | P142: =INDEX(coordonnées_cadran_plat($D142,O$10,$C$3,$C$2,$C$5,$C$6,0,0,$C$4),1,2) -> -119.6617343 | Q142: =INDEX(coordonnées_cadran_plat($D142,Q$10,$C$3,$C$2,$C$5,$C$6,0,0,$C$4),1,1) -> 795.290597 | R142: =INDEX(coordonnées_cadran_plat($D142,Q$10,$C$3,$C$2,$C$5,$C$6,0,0,$C$4),1,2) -> 127.4708792 | S142: =INDEX(coordonnées_cadran_plat($D142,S$10,$C$3,$C$2,$C$5,$C$6,0,0,$C$4),1,1) -> 834.9514795 | T142: =INDEX(coordonnées_cadran_plat($D142,S$10,$C$3,$C$2,$C$5,$C$6,0,0,$C$4),1,2) -> 405.7946765 | U142: =INDEX(coordonnées_cadran_plat($D142,U$10,$C$3,$C$2,$C$5,$C$6,0,0,$C$4),1,1) -> 924.7252485 | V142: =INDEX(coordonnées_cadran_plat($D142,U$10,$C$3,$C$2,$C$5,$C$6,0,0,$C$4),1,2) -> 797.4884335 | W142: =INDEX(coordonnées_cadran_plat($D142,W$10,$C$3,$C$2,$C$5,$C$6,0,0,$C$4),1,1) -> 1148.267333 | X142: =INDEX(coordonnées_cadran_plat($D142,W$10,$C$3,$C$2,$C$5,$C$6,0,0,$C$4),1,2) -> 1556.012981
B143: 20 | C143: 8 | D143: 2010-08-20 | E143: =INDEX(heures_limites_cadran($D143,$C$3,$C$2,$C$5),1,1)/24 -> 08:30:00 | F143: =INDEX(heures_limites_cadran($D143,$C$3,$C$2,$C$5),1,2)/24 -> 18:30:00 | G143: =INDEX(coordonnées_cadran_plat($D143,$G$10,$C$3,$C$2,$C$5,$C$6,0,0,$C$4),1,1) -> 1444.906132 | H143: =INDEX(coordonnées_cadran_plat($D143,$G$10,$C$3,$C$2,$C$5,$C$6,0,0,$C$4),1,2) -> -3257.804245 | I143: =INDEX(coordonnées_cadran_plat($D143,I$10,$C$3,$C$2,$C$5,$C$6,0,0,$C$4),1,1) -> 968.0680708 | J143: =INDEX(coordonnées_cadran_plat($D143,I$10,$C$3,$C$2,$C$5,$C$6,0,0,$C$4),1,2) -> -1360.313709 | K143: =INDEX(coordonnées_cadran_plat($D143,K$10,$C$3,$C$2,$C$5,$C$6,0,0,$C$4),1,1) -> 838.6392236 | L143: =INDEX(coordonnées_cadran_plat($D143,K$10,$C$3,$C$2,$C$5,$C$6,0,0,$C$4),1,2) -> -736.3752223 | M143: =INDEX(coordonnées_cadran_plat($D143,M$10,$C$3,$C$2,$C$5,$C$6,0,0,$C$4),1,1) -> 789.1856297 | N143: =INDEX(coordonnées_cadran_plat($D143,M$10,$C$3,$C$2,$C$5,$C$6,0,0,$C$4),1,2) -> -382.8961263 | O143: =INDEX(coordonnées_cadran_plat($D143,O$10,$C$3,$C$2,$C$5,$C$6,0,0,$C$4),1,1) -> 775.0178519 | P143: =INDEX(coordonnées_cadran_plat($D143,O$10,$C$3,$C$2,$C$5,$C$6,0,0,$C$4),1,2) -> -117.7220328 | Q143: =INDEX(coordonnées_cadran_plat($D143,Q$10,$C$3,$C$2,$C$5,$C$6,0,0,$C$4),1,1) -> 785.6504018 | R143: =INDEX(coordonnées_cadran_plat($D143,Q$10,$C$3,$C$2,$C$5,$C$6,0,0,$C$4),1,2) -> 127.7219648 | S143: =INDEX(coordonnées_cadran_plat($D143,S$10,$C$3,$C$2,$C$5,$C$6,0,0,$C$4),1,1) -> 824.1097823 | T143: =INDEX(coordonnées_cadran_plat($D143,S$10,$C$3,$C$2,$C$5,$C$6,0,0,$C$4),1,2) -> 404.0692311 | U143: =INDEX(coordonnées_cadran_plat($D143,U$10,$C$3,$C$2,$C$5,$C$6,0,0,$C$4),1,1) -> 910.6570136 | V143: =INDEX(coordonnées_cadran_plat($D143,U$10,$C$3,$C$2,$C$5,$C$6,0,0,$C$4),1,2) -> 792.0466488 | W143: =INDEX(coordonnées_cadran_plat($D143,W$10,$C$3,$C$2,$C$5,$C$6,0,0,$C$4),1,1) -> 1124.714156 | X143: =INDEX(coordonnées_cadran_plat($D143,W$10,$C$3,$C$2,$C$5,$C$6,0,0,$C$4),1,2) -> 1538.727525
B144: 21 | C144: 8 | D144: 2010-08-21 | E144: =INDEX(heures_limites_cadran($D144,$C$3,$C$2,$C$5),1,1)/24 -> 08:30:00 | F144: =INDEX(heures_limites_cadran($D144,$C$3,$C$2,$C$5),1,2)/24 -> 18:30:00 | G144: =INDEX(coordonnées_cadran_plat($D144,$G$10,$C$3,$C$2,$C$5,$C$6,0,0,$C$4),1,1) -> 1388.900086 | H144: =INDEX(coordonnées_cadran_plat($D144,$G$10,$C$3,$C$2,$C$5,$C$6,0,0,$C$4),1,2) -> -3158.891697 | I144: =INDEX(coordonnées_cadran_plat($D144,I$10,$C$3,$C$2,$C$5,$C$6,0,0,$C$4),1,1) -> 947.5248823 | J144: =INDEX(coordonnées_cadran_plat($D144,I$10,$C$3,$C$2,$C$5,$C$6,0,0,$C$4),1,2) -> -1339.342461 | K144: =INDEX(coordonnées_cadran_plat($D144,K$10,$C$3,$C$2,$C$5,$C$6,0,0,$C$4),1,1) -> 825.4730023 | L144: =INDEX(coordonnées_cadran_plat($D144,K$10,$C$3,$C$2,$C$5,$C$6,0,0,$C$4),1,2) -> -727.8615236 | M144: =INDEX(coordonnées_cadran_plat($D144,M$10,$C$3,$C$2,$C$5,$C$6,0,0,$C$4),1,1) -> 778.7134858 | N144: =INDEX(coordonnées_cadran_plat($D144,M$10,$C$3,$C$2,$C$5,$C$6,0,0,$C$4),1,2) -> -378.709267 | O144: =INDEX(coordonnées_cadran_plat($D144,O$10,$C$3,$C$2,$C$5,$C$6,0,0,$C$4),1,1) -> 765.519082 | P144: =INDEX(coordonnées_cadran_plat($D144,O$10,$C$3,$C$2,$C$5,$C$6,0,0,$C$4),1,2) -> -115.7701458 | Q144: =INDEX(coordonnées_cadran_plat($D144,Q$10,$C$3,$C$2,$C$5,$C$6,0,0,$C$4),1,1) -> 776.0726151 | R144: =INDEX(coordonnées_cadran_plat($D144,Q$10,$C$3,$C$2,$C$5,$C$6,0,0,$C$4),1,2) -> 127.9972635 | S144: =INDEX(coordonnées_cadran_plat($D144,S$10,$C$3,$C$2,$C$5,$C$6,0,0,$C$4),1,1) -> 813.3490605 | T144: =INDEX(coordonnées_cadran_plat($D144,S$10,$C$3,$C$2,$C$5,$C$6,0,0,$C$4),1,2) -> 402.3877272 | U144: =INDEX(coordonnées_cadran_plat($D144,U$10,$C$3,$C$2,$C$5,$C$6,0,0,$C$4),1,1) -> 896.7355998 | V144: =INDEX(coordonnées_cadran_plat($D144,U$10,$C$3,$C$2,$C$5,$C$6,0,0,$C$4),1,2) -> 786.7071992 | W144: =INDEX(coordonnées_cadran_plat($D144,W$10,$C$3,$C$2,$C$5,$C$6,0,0,$C$4),1,1) -> 1101.592432 | X144: =INDEX(coordonnées_cadran_plat($D144,W$10,$C$3,$C$2,$C$5,$C$6,0,0,$C$4),1,2) -> 1521.849652
B145: 22 | C145: 8 | D145: 2010-08-22 | E145: =INDEX(heures_limites_cadran($D145,$C$3,$C$2,$C$5),1,1)/24 -> 08:30:00 | F145: =INDEX(heures_limites_cadran($D145,$C$3,$C$2,$C$5),1,2)/24 -> 18:30:00 | G145: =INDEX(coordonnées_cadran_plat($D145,$G$10,$C$3,$C$2,$C$5,$C$6,0,0,$C$4),1,1) -> 1335.682135 | H145: =INDEX(coordonnées_cadran_plat($D145,$G$10,$C$3,$C$2,$C$5,$C$6,0,0,$C$4),1,2) -> -3064.696908 | I145: =INDEX(coordonnées_cadran_plat($D145,I$10,$C$3,$C$2,$C$5,$C$6,0,0,$C$4),1,1) -> 927.4082523 | J145: =INDEX(coordonnées_cadran_plat($D145,I$10,$C$3,$C$2,$C$5,$C$6,0,0,$C$4),1,2) -> -1318.738456 | K145: =INDEX(coordonnées_cadran_plat($D145,K$10,$C$3,$C$2,$C$5,$C$6,0,0,$C$4),1,1) -> 812.4687942 | L145: =INDEX(coordonnées_cadran_plat($D145,K$10,$C$3,$C$2,$C$5,$C$6,0,0,$C$4),1,2) -> -719.4143712 | M145: =INDEX(coordonnées_cadran_plat($D145,M$10,$C$3,$C$2,$C$5,$C$6,0,0,$C$4),1,1) -> 768.3321106 | N145: =INDEX(coordonnées_cadran_plat($D145,M$10,$C$3,$C$2,$C$5,$C$6,0,0,$C$4),1,2) -> -374.5308718 | O145: =INDEX(coordonnées_cadran_plat($D145,O$10,$C$3,$C$2,$C$5,$C$6,0,0,$C$4),1,1) -> 756.0874795 | P145: =INDEX(coordonnées_cadran_plat($D145,O$10,$C$3,$C$2,$C$5,$C$6,0,0,$C$4),1,2) -> -113.8077406 | Q145: =INDEX(coordonnées_cadran_plat($D145,Q$10,$C$3,$C$2,$C$5,$C$6,0,0,$C$4),1,1) -> 766.5596283 | R145: =INDEX(coordonnées_cadran_plat($D145,Q$10,$C$3,$C$2,$C$5,$C$6,0,0,$C$4),1,2) -> 128.2955735 | S145: =INDEX(coordonnées_cadran_plat($D145,S$10,$C$3,$C$2,$C$5,$C$6,0,0,$C$4),1,1) -> 802.6713834 | T145: =INDEX(coordonnées_cadran_plat($D145,S$10,$C$3,$C$2,$C$5,$C$6,0,0,$C$4),1,2) -> 400.7490917 | U145: =INDEX(coordonnées_cadran_plat($D145,U$10,$C$3,$C$2,$C$5,$C$6,0,0,$C$4),1,1) -> 882.9619089 | V145: =INDEX(coordonnées_cadran_plat($D145,U$10,$C$3,$C$2,$C$5,$C$6,0,0,$C$4),1,2) -> 781.4682034 | W145: =INDEX(coordonnées_cadran_plat($D145,W$10,$C$3,$C$2,$C$5,$C$6,0,0,$C$4),1,1) -> 1078.893986 | X145: =INDEX(coordonnées_cadran_plat($D145,W$10,$C$3,$C$2,$C$5,$C$6,0,0,$C$4),1,2) -> 1505.36795
B146: 23 | C146: 8 | D146: 2010-08-23 | E146: =INDEX(heures_limites_cadran($D146,$C$3,$C$2,$C$5),1,1)/24 -> 08:30:00 | F146: =INDEX(heures_limites_cadran($D146,$C$3,$C$2,$C$5),1,2)/24 -> 18:30:00 | G146: =INDEX(coordonnées_cadran_plat($D146,$G$10,$C$3,$C$2,$C$5,$C$6,0,0,$C$4),1,1) -> 1285.077717 | H146: =INDEX(coordonnées_cadran_plat($D146,$G$10,$C$3,$C$2,$C$5,$C$6,0,0,$C$4),1,2) -> -2974.934457 | I146: =INDEX(coordonnées_cadran_plat($D146,I$10,$C$3,$C$2,$C$5,$C$6,0,0,$C$4),1,1) -> 907.7141162 | J146: =INDEX(coordonnées_cadran_plat($D146,I$10,$C$3,$C$2,$C$5,$C$6,0,0,$C$4),1,2) -> -1298.502195 | K146: =INDEX(coordonnées_cadran_plat($D146,K$10,$C$3,$C$2,$C$5,$C$6,0,0,$C$4),1,1) -> 799.6288315 | L146: =INDEX(coordonnées_cadran_plat($D146,K$10,$C$3,$C$2,$C$5,$C$6,0,0,$C$4),1,2) -> -711.0373203 | M146: =INDEX(coordonnées_cadran_plat($D146,M$10,$C$3,$C$2,$C$5,$C$6,0,0,$C$4),1,1) -> 758.044096 | N146: =INDEX(coordonnées_cadran_plat($D146,M$10,$C$3,$C$2,$C$5,$C$6,0,0,$C$4),1,2) -> -370.3633548 | O146: =INDEX(coordonnées_cadran_plat($D146,O$10,$C$3,$C$2,$C$5,$C$6,0,0,$C$4),1,1) -> 746.7254554 | P146: =INDEX(coordonnées_cadran_plat($D146,O$10,$C$3,$C$2,$C$5,$C$6,0,0,$C$4),1,2) -> -111.8364517 | Q146: =INDEX(coordonnées_cadran_plat($D146,Q$10,$C$3,$C$2,$C$5,$C$6,0,0,$C$4),1,1) -> 757.1136355 | R146: =INDEX(coordonnées_cadran_plat($D146,Q$10,$C$3,$C$2,$C$5,$C$6,0,0,$C$4),1,2) -> 128.6156859 | S146: =INDEX(coordonnées_cadran_plat($D146,S$10,$C$3,$C$2,$C$5,$C$6,0,0,$C$4),1,1) -> 792.0786164 | T146: =INDEX(coordonnées_cadran_plat($D146,S$10,$C$3,$C$2,$C$5,$C$6,0,0,$C$4),1,2) -> 399.1522088 | U146: =INDEX(coordonnées_cadran_plat($D146,U$10,$C$3,$C$2,$C$5,$C$6,0,0,$C$4),1,1) -> 869.3366138 | V146: =INDEX(coordonnées_cadran_plat($D146,U$10,$C$3,$C$2,$C$5,$C$6,0,0,$C$4),1,2) -> 776.3276942 | W146: =INDEX(coordonnées_cadran_plat($D146,W$10,$C$3,$C$2,$C$5,$C$6,0,0,$C$4),1,1) -> 1056.610626 | X146: =INDEX(coordonnées_cadran_plat($D146,W$10,$C$3,$C$2,$C$5,$C$6,0,0,$C$4),1,2) -> 1489.271103
B147: 24 | C147: 8 | D147: 2010-08-24 | E147: =INDEX(heures_limites_cadran($D147,$C$3,$C$2,$C$5),1,1)/24 -> 08:30:00 | F147: =INDEX(heures_limites_cadran($D147,$C$3,$C$2,$C$5),1,2)/24 -> 18:30:00 | G147: =INDEX(coordonnées_cadran_plat($D147,$G$10,$C$3,$C$2,$C$5,$C$6,0,0,$C$4),1,1) -> 1236.925013 | H147: =INDEX(coordonnées_cadran_plat($D147,$G$10,$C$3,$C$2,$C$5,$C$6,0,0,$C$4),1,2) -> -2889.339473 | I147: =INDEX(coordonnées_cadran_plat($D147,I$10,$C$3,$C$2,$C$5,$C$6,0,0,$C$4),1,1) -> 888.4378334 | J147: =INDEX(coordonnées_cadran_plat($D147,I$10,$C$3,$C$2,$C$5,$C$6,0,0,$C$4),1,2) -> -1278.633477 | K147: =INDEX(coordonnées_cadran_plat($D147,K$10,$C$3,$C$2,$C$5,$C$6,0,0,$C$4),1,1) -> 786.9549506 | L147: =INDEX(coordonnées_cadran_plat($D147,K$10,$C$3,$C$2,$C$5,$C$6,0,0,$C$4),1,2) -> -702.7336596 | M147: =INDEX(coordonnées_cadran_plat($D147,M$10,$C$3,$C$2,$C$5,$C$6,0,0,$C$4),1,1) -> 747.8517679 | N147: =INDEX(coordonnées_cadran_plat($D147,M$10,$C$3,$C$2,$C$5,$C$6,0,0,$C$4),1,2) -> -366.2090293 | O147: =INDEX(coordonnées_cadran_plat($D147,O$10,$C$3,$C$2,$C$5,$C$6,0,0,$C$4),1,1) -> 737.4352124 | P147: =INDEX(coordonnées_cadran_plat($D147,O$10,$C$3,$C$2,$C$5,$C$6,0,0,$C$4),1,2) -> -109.8578799 | Q147: =INDEX(coordonnées_cadran_plat($D147,Q$10,$C$3,$C$2,$C$5,$C$6,0,0,$C$4),1,1) -> 747.7366425 | R147: =INDEX(coordonnées_cadran_plat($D147,Q$10,$C$3,$C$2,$C$5,$C$6,0,0,$C$4),1,2) -> 128.9563878 | S147: =INDEX(coordonnées_cadran_plat($D147,S$10,$C$3,$C$2,$C$5,$C$6,0,0,$C$4),1,1) -> 781.5724315 | T147: =INDEX(coordonnées_cadran_plat($D147,S$10,$C$3,$C$2,$C$5,$C$6,0,0,$C$4),1,2) -> 397.5959245 | U147: =INDEX(coordonnées_cadran_plat($D147,U$10,$C$3,$C$2,$C$5,$C$6,0,0,$C$4),1,1) -> 855.8601765 | V147: =INDEX(coordonnées_cadran_plat($D147,U$10,$C$3,$C$2,$C$5,$C$6,0,0,$C$4),1,2) -> 771.2836284 | W147: =INDEX(coordonnées_cadran_plat($D147,W$10,$C$3,$C$2,$C$5,$C$6,0,0,$C$4),1,1) -> 1034.734172 | X147: =INDEX(coordonnées_cadran_plat($D147,W$10,$C$3,$C$2,$C$5,$C$6,0,0,$C$4),1,2) -> 1473.547919
B148: 25 | C148: 8 | D148: 2010-08-25 | E148: =INDEX(heures_limites_cadran($D148,$C$3,$C$2,$C$5),1,1)/24 -> 08:30:00 | F148: =INDEX(heures_limites_cadran($D148,$C$3,$C$2,$C$5),1,2)/24 -> 18:30:00 | G148: =INDEX(coordonnées_cadran_plat($D148,$G$10,$C$3,$C$2,$C$5,$C$6,0,0,$C$4),1,1) -> 1191.0739 | H148: =INDEX(coordonnées_cadran_plat($D148,$G$10,$C$3,$C$2,$C$5,$C$6,0,0,$C$4),1,2) -> -2807.665969 | I148: =INDEX(coordonnées_cadran_plat($D148,I$10,$C$3,$C$2,$C$5,$C$6,0,0,$C$4),1,1) -> 869.5742553 | J148: =INDEX(coordonnées_cadran_plat($D148,I$10,$C$3,$C$2,$C$5,$C$6,0,0,$C$4),1,2) -> -1259.131461 | K148: =INDEX(coordonnées_cadran_plat($D148,K$10,$C$3,$C$2,$C$5,$C$6,0,0,$C$4),1,1) -> 774.448616 | L148: =INDEX(coordonnées_cadran_plat($D148,K$10,$C$3,$C$2,$C$5,$C$6,0,0,$C$4),1,2) -> -694.506423 | M148: =INDEX(coordonnées_cadran_plat($D148,M$10,$C$3,$C$2,$C$5,$C$6,0,0,$C$4),1,1) -> 737.7571989 | N148: =INDEX(coordonnées_cadran_plat($D148,M$10,$C$3,$C$2,$C$5,$C$6,0,0,$C$4),1,2) -> -362.0701105 | O148: =INDEX(coordonnées_cadran_plat($D148,O$10,$C$3,$C$2,$C$5,$C$6,0,0,$C$4),1,1) -> 728.2187539 | P148: =INDEX(coordonnées_cadran_plat($D148,O$10,$C$3,$C$2,$C$5,$C$6,0,0,$C$4),1,2) -> -107.8735922 | Q148: =INDEX(coordonnées_cadran_plat($D148,Q$10,$C$3,$C$2,$C$5,$C$6,0,0,$C$4),1,1) -> 738.430476 | R148: =INDEX(coordonnées_cadran_plat($D148,Q$10,$C$3,$C$2,$C$5,$C$6,0,0,$C$4),1,2) -> 129.3164632 | S148: =INDEX(coordonnées_cadran_plat($D148,S$10,$C$3,$C$2,$C$5,$C$6,0,0,$C$4),1,1) -> 771.1543194 | T148: =INDEX(coordonnées_cadran_plat($D148,S$10,$C$3,$C$2,$C$5,$C$6,0,0,$C$4),1,2) -> 396.0790504 | U148: =INDEX(coordonnées_cadran_plat($D148,U$10,$C$3,$C$2,$C$5,$C$6,0,0,$C$4),1,1) -> 842.5328657 | V148: =INDEX(coordonnées_cadran_plat($D148,U$10,$C$3,$C$2,$C$5,$C$6,0,0,$C$4),1,2) -> 766.3338958 | W148: =INDEX(coordonnées_cadran_plat($D148,W$10,$C$3,$C$2,$C$5,$C$6,0,0,$C$4),1,1) -> 1013.256481 | X148: =INDEX(coordonnées_cadran_plat($D148,W$10,$C$3,$C$2,$C$5,$C$6,0,0,$C$4),1,2) -> 1458.187344
B149: 26 | C149: 8 | D149: 2010-08-26 | E149: =INDEX(heures_limites_cadran($D149,$C$3,$C$2,$C$5),1,1)/24 -> 08:30:00 | F149: =INDEX(heures_limites_cadran($D149,$C$3,$C$2,$C$5),1,2)/24 -> 18:30:00 | G149: =INDEX(coordonnées_cadran_plat($D149,$G$10,$C$3,$C$2,$C$5,$C$6,0,0,$C$4),1,1) -> 1147.384995 | H149: =INDEX(coordonnées_cadran_plat($D149,$G$10,$C$3,$C$2,$C$5,$C$6,0,0,$C$4),1,2) -> -2729.685319 | I149: =INDEX(coordonnées_cadran_plat($D149,I$10,$C$3,$C$2,$C$5,$C$6,0,0,$C$4),1,1) -> 851.1177871 | J149: =INDEX(coordonnées_cadran_plat($D149,I$10,$C$3,$C$2,$C$5,$C$6,0,0,$C$4),1,2) -> -1239.994729 | K149: =INDEX(coordonnées_cadran_plat($D149,K$10,$C$3,$C$2,$C$5,$C$6,0,0,$C$4),1,1) -> 762.1109444 | L149: =INDEX(coordonnées_cadran_plat($D149,K$10,$C$3,$C$2,$C$5,$C$6,0,0,$C$4),1,2) -> -686.3584014 | M149: =INDEX(coordonnées_cadran_plat($D149,M$10,$C$3,$C$2,$C$5,$C$6,0,0,$C$4),1,1) -> 727.762221 | N149: =INDEX(coordonnées_cadran_plat($D149,M$10,$C$3,$C$2,$C$5,$C$6,0,0,$C$4),1,2) -> -357.9487171 | O149: =INDEX(coordonnées_cadran_plat($D149,O$10,$C$3,$C$2,$C$5,$C$6,0,0,$C$4),1,1) -> 719.0778939 | P149: =INDEX(coordonnées_cadran_plat($D149,O$10,$C$3,$C$2,$C$5,$C$6,0,0,$C$4),1,2) -> -105.8851212 | Q149: =INDEX(coordonnées_cadran_plat($D149,Q$10,$C$3,$C$2,$C$5,$C$6,0,0,$C$4),1,1) -> 729.1967924 | R149: =INDEX(coordonnées_cadran_plat($D149,Q$10,$C$3,$C$2,$C$5,$C$6,0,0,$C$4),1,2) -> 129.6946957 | S149: =INDEX(coordonnées_cadran_plat($D149,S$10,$C$3,$C$2,$C$5,$C$6,0,0,$C$4),1,1) -> 760.8255996 | T149: =INDEX(coordonnées_cadran_plat($D149,S$10,$C$3,$C$2,$C$5,$C$6,0,0,$C$4),1,2) -> 394.6003681 | U149: =INDEX(coordonnées_cadran_plat($D149,U$10,$C$3,$C$2,$C$5,$C$6,0,0,$C$4),1,1) -> 829.3547731 | V149: =INDEX(coordonnées_cadran_plat($D149,U$10,$C$3,$C$2,$C$5,$C$6,0,0,$C$4),1,2) -> 761.4763287 | W149: =INDEX(coordonnées_cadran_plat($D149,W$10,$C$3,$C$2,$C$5,$C$6,0,0,$C$4),1,1) -> 992.169466 | X149: =INDEX(coordonnées_cadran_plat($D149,W$10,$C$3,$C$2,$C$5,$C$6,0,0,$C$4),1,2) -> 1443.178481
B150: 27 | C150: 8 | D150: 2010-08-27 | E150: =INDEX(heures_limites_cadran($D150,$C$3,$C$2,$C$5),1,1)/24 -> 08:00:00 | F150: =INDEX(heures_limites_cadran($D150,$C$3,$C$2,$C$5),1,2)/24 -> 18:30:00 | G150: =INDEX(coordonnées_cadran_plat($D150,$G$10,$C$3,$C$2,$C$5,$C$6,0,0,$C$4),1,1) -> 1105.728788 | H150: =INDEX(coordonnées_cadran_plat($D150,$G$10,$C$3,$C$2,$C$5,$C$6,0,0,$C$4),1,2) -> -2655.18487 | I150: =INDEX(coordonnées_cadran_plat($D150,I$10,$C$3,$C$2,$C$5,$C$6,0,0,$C$4),1,1) -> 833.0624463 | J150: =INDEX(coordonnées_cadran_plat($D150,I$10,$C$3,$C$2,$C$5,$C$6,0,0,$C$4),1,2) -> -1221.221345 | K150: =INDEX(coordonnées_cadran_plat($D150,K$10,$C$3,$C$2,$C$5,$C$6,0,0,$C$4),1,1) -> 749.9427273 | L150: =INDEX(coordonnées_cadran_plat($D150,K$10,$C$3,$C$2,$C$5,$C$6,0,0,$C$4),1,2) -> -678.2921538 | M150: =INDEX(coordonnées_cadran_plat($D150,M$10,$C$3,$C$2,$C$5,$C$6,0,0,$C$4),1,1) -> 717.8684381 | N150: =INDEX(coordonnées_cadran_plat($D150,M$10,$C$3,$C$2,$C$5,$C$6,0,0,$C$4),1,2) -> -353.8468745 | O150: =INDEX(coordonnées_cadran_plat($D150,O$10,$C$3,$C$2,$C$5,$C$6,0,0,$C$4),1,1) -> 710.014266 | P150: =INDEX(coordonnées_cadran_plat($D150,O$10,$C$3,$C$2,$C$5,$C$6,0,0,$C$4),1,2) -> -103.893965 | Q150: =INDEX(coordonnées_cadran_plat($D150,Q$10,$C$3,$C$2,$C$5,$C$6,0,0,$C$4),1,1) -> 720.0370871 | R150: =INDEX(coordonnées_cadran_plat($D150,Q$10,$C$3,$C$2,$C$5,$C$6,0,0,$C$4),1,2) -> 130.0898697 | S150: =INDEX(coordonnées_cadran_plat($D150,S$10,$C$3,$C$2,$C$5,$C$6,0,0,$C$4),1,1) -> 750.5874315 | T150: =INDEX(coordonnées_cadran_plat($D150,S$10,$C$3,$C$2,$C$5,$C$6,0,0,$C$4),1,2) -> 393.1586327 | U150: =INDEX(coordonnées_cadran_plat($D150,U$10,$C$3,$C$2,$C$5,$C$6,0,0,$C$4),1,1) -> 816.3258288 | V150: =INDEX(coordonnées_cadran_plat($D150,U$10,$C$3,$C$2,$C$5,$C$6,0,0,$C$4),1,2) -> 756.7087097 | W150: =INDEX(coordonnées_cadran_plat($D150,W$10,$C$3,$C$2,$C$5,$C$6,0,0,$C$4),1,1) -> 971.4651204 | X150: =INDEX(coordonnées_cadran_plat($D150,W$10,$C$3,$C$2,$C$5,$C$6,0,0,$C$4),1,2) -> 1428.510599
B151: 28 | C151: 8 | D151: 2010-08-28 | E151: =INDEX(heures_limites_cadran($D151,$C$3,$C$2,$C$5),1,1)/24 -> 08:00:00 | F151: =INDEX(heures_limites_cadran($D151,$C$3,$C$2,$C$5),1,2)/24 -> 18:30:00 | G151: =INDEX(coordonnées_cadran_plat($D151,$G$10,$C$3,$C$2,$C$5,$C$6,0,0,$C$4),1,1) -> 1065.984848 | H151: =INDEX(coordonnées_cadran_plat($D151,$G$10,$C$3,$C$2,$C$5,$C$6,0,0,$C$4),1,2) -> -2583.966682 | I151: =INDEX(coordonnées_cadran_plat($D151,I$10,$C$3,$C$2,$C$5,$C$6,0,0,$C$4),1,1) -> 815.4019157 | J151: =INDEX(coordonnées_cadran_plat($D151,I$10,$C$3,$C$2,$C$5,$C$6,0,0,$C$4),1,2) -> -1202.808903 | K151: =INDEX(coordonnées_cadran_plat($D151,K$10,$C$3,$C$2,$C$5,$C$6,0,0,$C$4),1,1) -> 737.9444533 | L151: =INDEX(coordonnées_cadran_plat($D151,K$10,$C$3,$C$2,$C$5,$C$6,0,0,$C$4),1,2) -> -670.3100193 | M151: =INDEX(coordonnées_cadran_plat($D151,M$10,$C$3,$C$2,$C$5,$C$6,0,0,$C$4),1,1) -> 708.0772384 | N151: =INDEX(coordonnées_cadran_plat($D151,M$10,$C$3,$C$2,$C$5,$C$6,0,0,$C$4),1,2) -> -349.766517 | O151: =INDEX(coordonnées_cadran_plat($D151,O$10,$C$3,$C$2,$C$5,$C$6,0,0,$C$4),1,1) -> 701.0293326 | P151: =INDEX(coordonnées_cadran_plat($D151,O$10,$C$3,$C$2,$C$5,$C$6,0,0,$C$4),1,2) -> -101.9015874 | Q151: =INDEX(coordonnées_cadran_plat($D151,Q$10,$C$3,$C$2,$C$5,$C$6,0,0,$C$4),1,1) -> 710.9527029 | R151: =INDEX(coordonnées_cadran_plat($D151,Q$10,$C$3,$C$2,$C$5,$C$6,0,0,$C$4),1,2) -> 130.5007722 | S151: =INDEX(coordonnées_cadran_plat($D151,S$10,$C$3,$C$2,$C$5,$C$6,0,0,$C$4),1,1) -> 740.4408245 | T151: =INDEX(coordonnées_cadran_plat($D151,S$10,$C$3,$C$2,$C$5,$C$6,0,0,$C$4),1,2) -> 391.7525764 | U151: =INDEX(coordonnées_cadran_plat($D151,U$10,$C$3,$C$2,$C$5,$C$6,0,0,$C$4),1,1) -> 803.445816 | V151: =INDEX(coordonnées_cadran_plat($D151,U$10,$C$3,$C$2,$C$5,$C$6,0,0,$C$4),1,2) -> 752.02878 | W151: =INDEX(coordonnées_cadran_plat($D151,W$10,$C$3,$C$2,$C$5,$C$6,0,0,$C$4),1,1) -> 951.1355321 | X151: =INDEX(coordonnées_cadran_plat($D151,W$10,$C$3,$C$2,$C$5,$C$6,0,0,$C$4),1,2) -> 1414.173147
B152: 29 | C152: 8 | D152: 2010-08-29 | E152: =INDEX(heures_limites_cadran($D152,$C$3,$C$2,$C$5),1,1)/24 -> 08:00:00 | F152: =INDEX(heures_limites_cadran($D152,$C$3,$C$2,$C$5),1,2)/24 -> 18:30:00 | G152: =INDEX(coordonnées_cadran_plat($D152,$G$10,$C$3,$C$2,$C$5,$C$6,0,0,$C$4),1,1) -> 1028.041103 | H152: =INDEX(coordonnées_cadran_plat($D152,$G$10,$C$3,$C$2,$C$5,$C$6,0,0,$C$4),1,2) -> -2515.846369 | I152: =INDEX(coordonnées_cadran_plat($D152,I$10,$C$3,$C$2,$C$5,$C$6,0,0,$C$4),1,1) -> 798.1295939 | J152: =INDEX(coordonnées_cadran_plat($D152,I$10,$C$3,$C$2,$C$5,$C$6,0,0,$C$4),1,2) -> -1184.754582 | K152: =INDEX(coordonnées_cadran_plat($D152,K$10,$C$3,$C$2,$C$5,$C$6,0,0,$C$4),1,1) -> 726.1163295 | L152: =INDEX(coordonnées_cadran_plat($D152,K$10,$C$3,$C$2,$C$5,$C$6,0,0,$C$4),1,2) -> -662.4141277 | M152: =INDEX(coordonnées_cadran_plat($D152,M$10,$C$3,$C$2,$C$5,$C$6,0,0,$C$4),1,1) -> 698.3898065 | N152: =INDEX(coordonnées_cadran_plat($D152,M$10,$C$3,$C$2,$C$5,$C$6,0,0,$C$4),1,2) -> -345.7094909 | O152: =INDEX(coordonnées_cadran_plat($D152,O$10,$C$3,$C$2,$C$5,$C$6,0,0,$C$4),1,1) -> 692.1243937 | P152: =INDEX(coordonnées_cadran_plat($D152,O$10,$C$3,$C$2,$C$5,$C$6,0,0,$C$4),1,2) -> -99.9094177 | Q152: =INDEX(coordonnées_cadran_plat($D152,Q$10,$C$3,$C$2,$C$5,$C$6,0,0,$C$4),1,1) -> 701.9448383 | R152: =INDEX(coordonnées_cadran_plat($D152,Q$10,$C$3,$C$2,$C$5,$C$6,0,0,$C$4),1,2) -> 130.9261941 | S152: =INDEX(coordonnées_cadran_plat($D152,S$10,$C$3,$C$2,$C$5,$C$6,0,0,$C$4),1,1) -> 730.3866478 | T152: =INDEX(coordonnées_cadran_plat($D152,S$10,$C$3,$C$2,$C$5,$C$6,0,0,$C$4),1,2) -> 390.3809119 | U152: =INDEX(coordonnées_cadran_plat($D152,U$10,$C$3,$C$2,$C$5,$C$6,0,0,$C$4),1,1) -> 790.7143851 | V152: =INDEX(coordonnées_cadran_plat($D152,U$10,$C$3,$C$2,$C$5,$C$6,0,0,$C$4),1,2) -> 747.434246 | W152: =INDEX(coordonnées_cadran_plat($D152,W$10,$C$3,$C$2,$C$5,$C$6,0,0,$C$4),1,1) -> 931.1728995 | X152: =INDEX(coordonnées_cadran_plat($D152,W$10,$C$3,$C$2,$C$5,$C$6,0,0,$C$4),1,2) -> 1400.155765
B153: 30 | C153: 8 | D153: 2010-08-30 | E153: =INDEX(heures_limites_cadran($D153,$C$3,$C$2,$C$5),1,1)/24 -> 08:00:00 | F153: =INDEX(heures_limites_cadran($D153,$C$3,$C$2,$C$5),1,2)/24 -> 18:30:00 | G153: =INDEX(coordonnées_cadran_plat($D153,$G$10,$C$3,$C$2,$C$5,$C$6,0,0,$C$4),1,1) -> 991.7931769 | H153: =INDEX(coordonnées_cadran_plat($D153,$G$10,$C$3,$C$2,$C$5,$C$6,0,0,$C$4),1,2) -> -2450.652043 | I153: =INDEX(coordonnées_cadran_plat($D153,I$10,$C$3,$C$2,$C$5,$C$6,0,0,$C$4),1,1) -> 781.2386397 | J153: =INDEX(coordonnées_cadran_plat($D153,I$10,$C$3,$C$2,$C$5,$C$6,0,0,$C$4),1,2) -> -1167.055193 | K153: =INDEX(coordonnées_cadran_plat($D153,K$10,$C$3,$C$2,$C$5,$C$6,0,0,$C$4),1,1) -> 714.4583021 | L153: =INDEX(coordonnées_cadran_plat($D153,K$10,$C$3,$C$2,$C$5,$C$6,0,0,$C$4),1,2) -> -654.6064111 | M153: =INDEX(coordonnées_cadran_plat($D153,M$10,$C$3,$C$2,$C$5,$C$6,0,0,$C$4),1,1) -> 688.8071347 | N153: =INDEX(coordonnées_cadran_plat($D153,M$10,$C$3,$C$2,$C$5,$C$6,0,0,$C$4),1,2) -> -341.6775567 | O153: =INDEX(coordonnées_cadran_plat($D153,O$10,$C$3,$C$2,$C$5,$C$6,0,0,$C$4),1,1) -> 683.3005962 | P153: =INDEX(coordonnées_cadran_plat($D153,O$10,$C$3,$C$2,$C$5,$C$6,0,0,$C$4),1,2) -> -97.91885088 | Q153: =INDEX(coordonnées_cadran_plat($D153,Q$10,$C$3,$C$2,$C$5,$C$6,0,0,$C$4),1,1) -> 693.0145561 | R153: =INDEX(coordonnées_cadran_plat($D153,Q$10,$C$3,$C$2,$C$5,$C$6,0,0,$C$4),1,2) -> 131.3649317 | S153: =INDEX(coordonnées_cadran_plat($D153,S$10,$C$3,$C$2,$C$5,$C$6,0,0,$C$4),1,1) -> 720.4256397 | T153: =INDEX(coordonnées_cadran_plat($D153,S$10,$C$3,$C$2,$C$5,$C$6,0,0,$C$4),1,2) -> 389.0423356 | U153: =INDEX(coordonnées_cadran_plat($D153,U$10,$C$3,$C$2,$C$5,$C$6,0,0,$C$4),1,1) -> 778.1310669 | V153: =INDEX(coordonnées_cadran_plat($D153,U$10,$C$3,$C$2,$C$5,$C$6,0,0,$C$4),1,2) -> 742.9227869 | W153: =INDEX(coordonnées_cadran_plat($D153,W$10,$C$3,$C$2,$C$5,$C$6,0,0,$C$4),1,1) -> 911.569545 | X153: =INDEX(coordonnées_cadran_plat($D153,W$10,$C$3,$C$2,$C$5,$C$6,0,0,$C$4),1,2) -> 1386.448289
B154: 31 | C154: 8 | D154: 2010-08-31 | E154: =INDEX(heures_limites_cadran($D154,$C$3,$C$2,$C$5),1,1)/24 -> 08:00:00 | F154: =INDEX(heures_limites_cadran($D154,$C$3,$C$2,$C$5),1,2)/24 -> 18:30:00 | G154: =INDEX(coordonnées_cadran_plat($D154,$G$10,$C$3,$C$2,$C$5,$C$6,0,0,$C$4),1,1) -> 957.1437922 | H154: =INDEX(coordonnées_cadran_plat($D154,$G$10,$C$3,$C$2,$C$5,$C$6,0,0,$C$4),1,2) -> -2388.223349 | I154: =INDEX(coordonnées_cadran_plat($D154,I$10,$C$3,$C$2,$C$5,$C$6,0,0,$C$4),1,1) -> 764.7220151 | J154: =INDEX(coordonnées_cadran_plat($D154,I$10,$C$3,$C$2,$C$5,$C$6,0,0,$C$4),1,2) -> -1149.707218 | K154: =INDEX(coordonnées_cadran_plat($D154,K$10,$C$3,$C$2,$C$5,$C$6,0,0,$C$4),1,1) -> 702.970076 | L154: =INDEX(coordonnées_cadran_plat($D154,K$10,$C$3,$C$2,$C$5,$C$6,0,0,$C$4),1,2) -> -646.8886142 | M154: =INDEX(coordonnées_cadran_plat($D154,M$10,$C$3,$C$2,$C$5,$C$6,0,0,$C$4),1,1) -> 679.3300351 | N154: =INDEX(coordonnées_cadran_plat($D154,M$10,$C$3,$C$2,$C$5,$C$6,0,0,$C$4),1,2) -> -337.6723924 | O154: =INDEX(coordonnées_cadran_plat($D154,O$10,$C$3,$C$2,$C$5,$C$6,0,0,$C$4),1,1) -> 674.558942 | P154: =INDEX(coordonnées_cadran_plat($D154,O$10,$C$3,$C$2,$C$5,$C$6,0,0,$C$4),1,2) -> -95.93124784 | Q154: =INDEX(coordonnées_cadran_plat($D154,Q$10,$C$3,$C$2,$C$5,$C$6,0,0,$C$4),1,1) -> 684.1627914 | R154: =INDEX(coordonnées_cadran_plat($D154,Q$10,$C$3,$C$2,$C$5,$C$6,0,0,$C$4),1,2) -> 131.8157882 | S154: =INDEX(coordonnées_cadran_plat($D154,S$10,$C$3,$C$2,$C$5,$C$6,0,0,$C$4),1,1) -> 710.5584174 | T154: =INDEX(coordonnées_cadran_plat($D154,S$10,$C$3,$C$2,$C$5,$C$6,0,0,$C$4),1,2) -> 387.7355306 | U154: =INDEX(coordonnées_cadran_plat($D154,U$10,$C$3,$C$2,$C$5,$C$6,0,0,$C$4),1,1) -> 765.6952847 | V154: =INDEX(coordonnées_cadran_plat($D154,U$10,$C$3,$C$2,$C$5,$C$6,0,0,$C$4),1,2) -> 738.4920606 | W154: =INDEX(coordonnées_cadran_plat($D154,W$10,$C$3,$C$2,$C$5,$C$6,0,0,$C$4),1,1) -> 892.3179262 | X154: =INDEX(coordonnées_cadran_plat($D154,W$10,$C$3,$C$2,$C$5,$C$6,0,0,$C$4),1,2) -> 1373.040761
B155: 1 | C155: 9 | D155: 2010-09-01 | E155: =INDEX(heures_limites_cadran($D155,$C$3,$C$2,$C$5),1,1)/24 -> 08:00:00 | F155: =INDEX(heures_limites_cadran($D155,$C$3,$C$2,$C$5),1,2)/24 -> 18:30:00 | G155: =INDEX(coordonnées_cadran_plat($D155,$G$10,$C$3,$C$2,$C$5,$C$6,0,0,$C$4),1,1) -> 924.0022173 | H155: =INDEX(coordonnées_cadran_plat($D155,$G$10,$C$3,$C$2,$C$5,$C$6,0,0,$C$4),1,2) -> -2328.410585 | I155: =INDEX(coordonnées_cadran_plat($D155,I$10,$C$3,$C$2,$C$5,$C$6,0,0,$C$4),1,1) -> 748.5725229 | J155: =INDEX(coordonnées_cadran_plat($D155,I$10,$C$3,$C$2,$C$5,$C$6,0,0,$C$4),1,2) -> -1132.706853 | K155: =INDEX(coordonnées_cadran_plat($D155,K$10,$C$3,$C$2,$C$5,$C$6,0,0,$C$4),1,1) -> 691.6511341 | L155: =INDEX(coordonnées_cadran_plat($D155,K$10,$C$3,$C$2,$C$5,$C$6,0,0,$C$4),1,2) -> -639.2623051 | M155: =INDEX(coordonnées_cadran_plat($D155,M$10,$C$3,$C$2,$C$5,$C$6,0,0,$C$4),1,1) -> 669.9591502 | N155: =INDEX(coordonnées_cadran_plat($D155,M$10,$C$3,$C$2,$C$5,$C$6,0,0,$C$4),1,2) -> -333.6955959 | O155: =INDEX(coordonnées_cadran_plat($D155,O$10,$C$3,$C$2,$C$5,$C$6,0,0,$C$4),1,1) -> 665.9002966 | P155: =INDEX(coordonnées_cadran_plat($D155,O$10,$C$3,$C$2,$C$5,$C$6,0,0,$C$4),1,2) -> -93.94793568 | Q155: =INDEX(coordonnées_cadran_plat($D155,Q$10,$C$3,$C$2,$C$5,$C$6,0,0,$C$4),1,1) -> 675.3903594 | R155: =INDEX(coordonnées_cadran_plat($D155,Q$10,$C$3,$C$2,$C$5,$C$6,0,0,$C$4),1,2) -> 132.2775742 | S155: =INDEX(coordonnées_cadran_plat($D155,S$10,$C$3,$C$2,$C$5,$C$6,0,0,$C$4),1,1) -> 700.7854852 | T155: =INDEX(coordonnées_cadran_plat($D155,S$10,$C$3,$C$2,$C$5,$C$6,0,0,$C$4),1,2) -> 386.4591695 | U155: =INDEX(coordonnées_cadran_plat($D155,U$10,$C$3,$C$2,$C$5,$C$6,0,0,$C$4),1,1) -> 753.4063663 | V155: =INDEX(coordonnées_cadran_plat($D155,U$10,$C$3,$C$2,$C$5,$C$6,0,0,$C$4),1,2) -> 734.1397098 | W155: =INDEX(coordonnées_cadran_plat($D155,W$10,$C$3,$C$2,$C$5,$C$6,0,0,$C$4),1,1) -> 873.4106454 | X155: =INDEX(coordonnées_cadran_plat($D155,W$10,$C$3,$C$2,$C$5,$C$6,0,0,$C$4),1,2) -> 1359.923434
B156: 2 | C156: 9 | D156: 2010-09-02 | E156: =INDEX(heures_limites_cadran($D156,$C$3,$C$2,$C$5),1,1)/24 -> 08:00:00 | F156: =INDEX(heures_limites_cadran($D156,$C$3,$C$2,$C$5),1,2)/24 -> 18:30:00 | G156: =INDEX(coordonnées_cadran_plat($D156,$G$10,$C$3,$C$2,$C$5,$C$6,0,0,$C$4),1,1) -> 892.2837647 | H156: =INDEX(coordonnées_cadran_plat($D156,$G$10,$C$3,$C$2,$C$5,$C$6,0,0,$C$4),1,2) -> -2271.07389 | I156: =INDEX(coordonnées_cadran_plat($D156,I$10,$C$3,$C$2,$C$5,$C$6,0,0,$C$4),1,1) -> 732.7828419 | J156: =INDEX(coordonnées_cadran_plat($D156,I$10,$C$3,$C$2,$C$5,$C$6,0,0,$C$4),1,2) -> -1116.050048 | K156: =INDEX(coordonnées_cadran_plat($D156,K$10,$C$3,$C$2,$C$5,$C$6,0,0,$C$4),1,1) -> 680.5007551 | L156: =INDEX(coordonnées_cadran_plat($D156,K$10,$C$3,$C$2,$C$5,$C$6,0,0,$C$4),1,2) -> -631.7288852 | M156: =INDEX(coordonnées_cadran_plat($D156,M$10,$C$3,$C$2,$C$5,$C$6,0,0,$C$4),1,1) -> 660.6949642 | N156: =INDEX(coordonnées_cadran_plat($D156,M$10,$C$3,$C$2,$C$5,$C$6,0,0,$C$4),1,2) -> -329.7486883 | O156: =INDEX(coordonnées_cadran_plat($D156,O$10,$C$3,$C$2,$C$5,$C$6,0,0,$C$4),1,1) -> 657.3253973 | P156: =INDEX(coordonnées_cadran_plat($D156,O$10,$C$3,$C$2,$C$5,$C$6,0,0,$C$4),1,2) -> -91.97020802 | Q156: =INDEX(coordonnées_cadran_plat($D156,Q$10,$C$3,$C$2,$C$5,$C$6,0,0,$C$4),1,1) -> 666.6979627 | R156: =INDEX(coordonnées_cadran_plat($D156,Q$10,$C$3,$C$2,$C$5,$C$6,0,0,$C$4),1,2) -> 132.7491094 | S156: =INDEX(coordonnées_cadran_plat($D156,S$10,$C$3,$C$2,$C$5,$C$6,0,0,$C$4),1,1) -> 691.1072431 | T156: =INDEX(coordonnées_cadran_plat($D156,S$10,$C$3,$C$2,$C$5,$C$6,0,0,$C$4),1,2) -> 385.211917 | U156: =INDEX(coordonnées_cadran_plat($D156,U$10,$C$3,$C$2,$C$5,$C$6,0,0,$C$4),1,1) -> 741.2635546 | V156: =INDEX(coordonnées_cadran_plat($D156,U$10,$C$3,$C$2,$C$5,$C$6,0,0,$C$4),1,2) -> 729.8633675 | W156: =INDEX(coordonnées_cadran_plat($D156,W$10,$C$3,$C$2,$C$5,$C$6,0,0,$C$4),1,1) -> 854.8404585 | X156: =INDEX(coordonnées_cadran_plat($D156,W$10,$C$3,$C$2,$C$5,$C$6,0,0,$C$4),1,2) -> 1347.086774
B157: 3 | C157: 9 | D157: 2010-09-03 | E157: =INDEX(heures_limites_cadran($D157,$C$3,$C$2,$C$5),1,1)/24 -> 08:00:00 | F157: =INDEX(heures_limites_cadran($D157,$C$3,$C$2,$C$5),1,2)/24 -> 18:30:00 | G157: =INDEX(coordonnées_cadran_plat($D157,$G$10,$C$3,$C$2,$C$5,$C$6,0,0,$C$4),1,1) -> 861.9093315 | H157: =INDEX(coordonnées_cadran_plat($D157,$G$10,$C$3,$C$2,$C$5,$C$6,0,0,$C$4),1,2) -> -2216.082507 | I157: =INDEX(coordonnées_cadran_plat($D157,I$10,$C$3,$C$2,$C$5,$C$6,0,0,$C$4),1,1) -> 717.3455593 | J157: =INDEX(coordonnées_cadran_plat($D157,I$10,$C$3,$C$2,$C$5,$C$6,0,0,$C$4),1,2) -> -1099.732534 | K157: =INDEX(coordonnées_cadran_plat($D157,K$10,$C$3,$C$2,$C$5,$C$6,0,0,$C$4),1,1) -> 669.5180306 | L157: =INDEX(coordonnées_cadran_plat($D157,K$10,$C$3,$C$2,$C$5,$C$6,0,0,$C$4),1,2) -> -624.2895995 | M157: =INDEX(coordonnées_cadran_plat($D157,M$10,$C$3,$C$2,$C$5,$C$6,0,0,$C$4),1,1) -> 651.5378129 | N157: =INDEX(coordonnées_cadran_plat($D157,M$10,$C$3,$C$2,$C$5,$C$6,0,0,$C$4),1,2) -> -325.8331163 | O157: =INDEX(coordonnées_cadran_plat($D157,O$10,$C$3,$C$2,$C$5,$C$6,0,0,$C$4),1,1) -> 648.834861 | P157: =INDEX(coordonnées_cadran_plat($D157,O$10,$C$3,$C$2,$C$5,$C$6,0,0,$C$4),1,2) -> -89.99932538 | Q157: =INDEX(coordonnées_cadran_plat($D157,Q$10,$C$3,$C$2,$C$5,$C$6,0,0,$C$4),1,1) -> 658.0861991 | R157: =INDEX(coordonnées_cadran_plat($D157,Q$10,$C$3,$C$2,$C$5,$C$6,0,0,$C$4),1,2) -> 133.2292235 | S157: =INDEX(coordonnées_cadran_plat($D157,S$10,$C$3,$C$2,$C$5,$C$6,0,0,$C$4),1,1) -> 681.523995 | T157: =INDEX(coordonnées_cadran_plat($D157,S$10,$C$3,$C$2,$C$5,$C$6,0,0,$C$4),1,2) -> 383.9924328 | U157: =INDEX(coordonnées_cadran_plat($D157,U$10,$C$3,$C$2,$C$5,$C$6,0,0,$C$4),1,1) -> 729.2660182 | V157: =INDEX(coordonnées_cadran_plat($D157,U$10,$C$3,$C$2,$C$5,$C$6,0,0,$C$4),1,2) -> 725.6606621 | W157: =INDEX(coordonnées_cadran_plat($D157,W$10,$C$3,$C$2,$C$5,$C$6,0,0,$C$4),1,1) -> 836.6002813 | X157: =INDEX(coordonnées_cadran_plat($D157,W$10,$C$3,$C$2,$C$5,$C$6,0,0,$C$4),1,2) -> 1334.521466
B158: 4 | C158: 9 | D158: 2010-09-04 | E158: =INDEX(heures_limites_cadran($D158,$C$3,$C$2,$C$5),1,1)/24 -> 08:00:00 | F158: =INDEX(heures_limites_cadran($D158,$C$3,$C$2,$C$5),1,2)/24 -> 18:30:00 | G158: =INDEX(coordonnées_cadran_plat($D158,$G$10,$C$3,$C$2,$C$5,$C$6,0,0,$C$4),1,1) -> 832.8049778 | H158: =INDEX(coordonnées_cadran_plat($D158,$G$10,$C$3,$C$2,$C$5,$C$6,0,0,$C$4),1,2) -> -2163.314107 | I158: =INDEX(coordonnées_cadran_plat($D158,I$10,$C$3,$C$2,$C$5,$C$6,0,0,$C$4),1,1) -> 702.2531987 | J158: =INDEX(coordonnées_cadran_plat($D158,I$10,$C$3,$C$2,$C$5,$C$6,0,0,$C$4),1,2) -> -1083.749862 | K158: =INDEX(coordonnées_cadran_plat($D158,K$10,$C$3,$C$2,$C$5,$C$6,0,0,$C$4),1,1) -> 658.7018817 | L158: =INDEX(coordonnées_cadran_plat($D158,K$10,$C$3,$C$2,$C$5,$C$6,0,0,$C$4),1,2) -> -616.9455454 | M158: =INDEX(coordonnées_cadran_plat($D158,M$10,$C$3,$C$2,$C$5,$C$6,0,0,$C$4),1,1) -> 642.4878942 | N158: =INDEX(coordonnées_cadran_plat($D158,M$10,$C$3,$C$2,$C$5,$C$6,0,0,$C$4),1,2) -> -321.9502553 | O158: =INDEX(coordonnées_cadran_plat($D158,O$10,$C$3,$C$2,$C$5,$C$6,0,0,$C$4),1,1) -> 640.4291919 | P158: =INDEX(coordonnées_cadran_plat($D158,O$10,$C$3,$C$2,$C$5,$C$6,0,0,$C$4),1,2) -> -88.03651564 | Q158: =INDEX(coordonnées_cadran_plat($D158,Q$10,$C$3,$C$2,$C$5,$C$6,0,0,$C$4),1,1) -> 649.5555683 | R158: =INDEX(coordonnées_cadran_plat($D158,Q$10,$C$3,$C$2,$C$5,$C$6,0,0,$C$4),1,2) -> 133.7167569 | S158: =INDEX(coordonnées_cadran_plat($D158,S$10,$C$3,$C$2,$C$5,$C$6,0,0,$C$4),1,1) -> 672.0359564 | T158: =INDEX(coordonnées_cadran_plat($D158,S$10,$C$3,$C$2,$C$5,$C$6,0,0,$C$4),1,2) -> 382.7993735 | U158: =INDEX(coordonnées_cadran_plat($D158,U$10,$C$3,$C$2,$C$5,$C$6,0,0,$C$4),1,1) -> 717.412861 | V158: =INDEX(coordonnées_cadran_plat($D158,U$10,$C$3,$C$2,$C$5,$C$6,0,0,$C$4),1,2) -> 721.5292225 | W158: =INDEX(coordonnées_cadran_plat($D158,W$10,$C$3,$C$2,$C$5,$C$6,0,0,$C$4),1,1) -> 818.6831956 | X158: =INDEX(coordonnées_cadran_plat($D158,W$10,$C$3,$C$2,$C$5,$C$6,0,0,$C$4),1,2) -> 1322.218416
B159: 5 | C159: 9 | D159: 2010-09-05 | E159: =INDEX(heures_limites_cadran($D159,$C$3,$C$2,$C$5),1,1)/24 -> 08:00:00 | F159: =INDEX(heures_limites_cadran($D159,$C$3,$C$2,$C$5),1,2)/24 -> 18:30:00 | G159: =INDEX(coordonnées_cadran_plat($D159,$G$10,$C$3,$C$2,$C$5,$C$6,0,0,$C$4),1,1) -> 804.9015419 | H159: =INDEX(coordonnées_cadran_plat($D159,$G$10,$C$3,$C$2,$C$5,$C$6,0,0,$C$4),1,2) -> -2112.654162 | I159: =INDEX(coordonnées_cadran_plat($D159,I$10,$C$3,$C$2,$C$5,$C$6,0,0,$C$4),1,1) -> 687.4982473 | J159: =INDEX(coordonnées_cadran_plat($D159,I$10,$C$3,$C$2,$C$5,$C$6,0,0,$C$4),1,2) -> -1068.097428 | K159: =INDEX(coordonnées_cadran_plat($D159,K$10,$C$3,$C$2,$C$5,$C$6,0,0,$C$4),1,1) -> 648.0510748 | L159: =INDEX(coordonnées_cadran_plat($D159,K$10,$C$3,$C$2,$C$5,$C$6,0,0,$C$4),1,2) -> -609.6976827 | M159: =INDEX(coordonnées_cadran_plat($D159,M$10,$C$3,$C$2,$C$5,$C$6,0,0,$C$4),1,1) -> 633.5452777 | N159: =INDEX(coordonnées_cadran_plat($D159,M$10,$C$3,$C$2,$C$5,$C$6,0,0,$C$4),1,2) -> -318.1014121 | O159: =INDEX(coordonnées_cadran_plat($D159,O$10,$C$3,$C$2,$C$5,$C$6,0,0,$C$4),1,1) -> 632.1087893 | P159: =INDEX(coordonnées_cadran_plat($D159,O$10,$C$3,$C$2,$C$5,$C$6,0,0,$C$4),1,2) -> -86.08297454 | Q159: =INDEX(coordonnées_cadran_plat($D159,Q$10,$C$3,$C$2,$C$5,$C$6,0,0,$C$4),1,1) -> 641.1064788 | R159: =INDEX(coordonnées_cadran_plat($D159,Q$10,$C$3,$C$2,$C$5,$C$6,0,0,$C$4),1,2) -> 134.2105615 | S159: =INDEX(coordonnées_cadran_plat($D159,S$10,$C$3,$C$2,$C$5,$C$6,0,0,$C$4),1,1) -> 662.6432616 | T159: =INDEX(coordonnées_cadran_plat($D159,S$10,$C$3,$C$2,$C$5,$C$6,0,0,$C$4),1,2) -> 381.6313952 | U159: =INDEX(coordonnées_cadran_plat($D159,U$10,$C$3,$C$2,$C$5,$C$6,0,0,$C$4),1,1) -> 705.7031308 | V159: =INDEX(coordonnées_cadran_plat($D159,U$10,$C$3,$C$2,$C$5,$C$6,0,0,$C$4),1,2) -> 717.4666821 | W159: =INDEX(coordonnées_cadran_plat($D159,W$10,$C$3,$C$2,$C$5,$C$6,0,0,$C$4),1,1) -> 801.0824537 | X159: =INDEX(coordonnées_cadran_plat($D159,W$10,$C$3,$C$2,$C$5,$C$6,0,0,$C$4),1,2) -> 1310.168752
B160: 6 | C160: 9 | D160: 2010-09-06 | E160: =INDEX(heures_limites_cadran($D160,$C$3,$C$2,$C$5),1,1)/24 -> 08:00:00 | F160: =INDEX(heures_limites_cadran($D160,$C$3,$C$2,$C$5),1,2)/24 -> 18:30:00 | G160: =INDEX(coordonnées_cadran_plat($D160,$G$10,$C$3,$C$2,$C$5,$C$6,0,0,$C$4),1,1) -> 778.1342863 | H160: =INDEX(coordonnées_cadran_plat($D160,$G$10,$C$3,$C$2,$C$5,$C$6,0,0,$C$4),1,2) -> -2063.995378 | I160: =INDEX(coordonnées_cadran_plat($D160,I$10,$C$3,$C$2,$C$5,$C$6,0,0,$C$4),1,1) -> 673.0731792 | J160: =INDEX(coordonnées_cadran_plat($D160,I$10,$C$3,$C$2,$C$5,$C$6,0,0,$C$4),1,2) -> -1052.770503 | K160: =INDEX(coordonnées_cadran_plat($D160,K$10,$C$3,$C$2,$C$5,$C$6,0,0,$C$4),1,1) -> 637.5642357 | L160: =INDEX(coordonnées_cadran_plat($D160,K$10,$C$3,$C$2,$C$5,$C$6,0,0,$C$4),1,2) -> -602.546842 | M160: =INDEX(coordonnées_cadran_plat($D160,M$10,$C$3,$C$2,$C$5,$C$6,0,0,$C$4),1,1) -> 624.7099139 | N160: =INDEX(coordonnées_cadran_plat($D160,M$10,$C$3,$C$2,$C$5,$C$6,0,0,$C$4),1,2) -> -314.2878277 | O160: =INDEX(coordonnées_cadran_plat($D160,O$10,$C$3,$C$2,$C$5,$C$6,0,0,$C$4),1,1) -> 623.873954 | P160: =INDEX(coordonnées_cadran_plat($D160,O$10,$C$3,$C$2,$C$5,$C$6,0,0,$C$4),1,2) -> -84.13986611 | Q160: =INDEX(coordonnées_cadran_plat($D160,Q$10,$C$3,$C$2,$C$5,$C$6,0,0,$C$4),1,1) -> 632.7392547 | R160: =INDEX(coordonnées_cadran_plat($D160,Q$10,$C$3,$C$2,$C$5,$C$6,0,0,$C$4),1,2) -> 134.709502 | S160: =INDEX(coordonnées_cadran_plat($D160,S$10,$C$3,$C$2,$C$5,$C$6,0,0,$C$4),1,1) -> 653.3459712 | T160: =INDEX(coordonnées_cadran_plat($D160,S$10,$C$3,$C$2,$C$5,$C$6,0,0,$C$4),1,2) -> 380.4871555 | U160: =INDEX(coordonnées_cadran_plat($D160,U$10,$C$3,$C$2,$C$5,$C$6,0,0,$C$4),1,1) -> 694.1358283 | V160: =INDEX(coordonnées_cadran_plat($D160,U$10,$C$3,$C$2,$C$5,$C$6,0,0,$C$4),1,2) -> 713.4706836 | W160: =INDEX(coordonnées_cadran_plat($D160,W$10,$C$3,$C$2,$C$5,$C$6,0,0,$C$4),1,1) -> 783.7914821 | X160: =INDEX(coordonnées_cadran_plat($D160,W$10,$C$3,$C$2,$C$5,$C$6,0,0,$C$4),1,2) -> 1298.363826
B161: 7 | C161: 9 | D161: 2010-09-07 | E161: =INDEX(heures_limites_cadran($D161,$C$3,$C$2,$C$5),1,1)/24 -> 08:00:00 | F161: =INDEX(heures_limites_cadran($D161,$C$3,$C$2,$C$5),1,2)/24 -> 18:30:00 | G161: =INDEX(coordonnées_cadran_plat($D161,$G$10,$C$3,$C$2,$C$5,$C$6,0,0,$C$4),1,1) -> 752.4425739 | H161: =INDEX(coordonnées_cadran_plat($D161,$G$10,$C$3,$C$2,$C$5,$C$6,0,0,$C$4),1,2) -> -2017.237172 | I161: =INDEX(coordonnées_cadran_plat($D161,I$10,$C$3,$C$2,$C$5,$C$6,0,0,$C$4),1,1) -> 658.9704765 | J161: =INDEX(coordonnées_cadran_plat($D161,I$10,$C$3,$C$2,$C$5,$C$6,0,0,$C$4),1,2) -> -1037.764252 | K161: =INDEX(coordonnées_cadran_plat($D161,K$10,$C$3,$C$2,$C$5,$C$6,0,0,$C$4),1,1) -> 627.2398641 | L161: =INDEX(coordonnées_cadran_plat($D161,K$10,$C$3,$C$2,$C$5,$C$6,0,0,$C$4),1,2) -> -595.493733 | M161: =INDEX(coordonnées_cadran_plat($D161,M$10,$C$3,$C$2,$C$5,$C$6,0,0,$C$4),1,1) -> 615.9816436 | N161: =INDEX(coordonnées_cadran_plat($D161,M$10,$C$3,$C$2,$C$5,$C$6,0,0,$C$4),1,2) -> -310.51068 | O161: =INDEX(coordonnées_cadran_plat($D161,O$10,$C$3,$C$2,$C$5,$C$6,0,0,$C$4),1,1) -> 615.724896 | P161: =INDEX(coordonnées_cadran_plat($D161,O$10,$C$3,$C$2,$C$5,$C$6,0,0,$C$4),1,2) -> -82.20832331 | Q161: =INDEX(coordonnées_cadran_plat($D161,Q$10,$C$3,$C$2,$C$5,$C$6,0,0,$C$4),1,1) -> 624.4541418 | R161: =INDEX(coordonnées_cadran_plat($D161,Q$10,$C$3,$C$2,$C$5,$C$6,0,0,$C$4),1,2) -> 135.212456 | S161: =INDEX(coordonnées_cadran_plat($D161,S$10,$C$3,$C$2,$C$5,$C$6,0,0,$C$4),1,1) -> 644.1440782 | T161: =INDEX(coordonnées_cadran_plat($D161,S$10,$C$3,$C$2,$C$5,$C$6,0,0,$C$4),1,2) -> 379.3653155 | U161: =INDEX(coordonnées_cadran_plat($D161,U$10,$C$3,$C$2,$C$5,$C$6,0,0,$C$4),1,1) -> 682.7099147 | V161: =INDEX(coordonnées_cadran_plat($D161,U$10,$C$3,$C$2,$C$5,$C$6,0,0,$C$4),1,2) -> 709.5388822 | W161: =INDEX(coordonnées_cadran_plat($D161,W$10,$C$3,$C$2,$C$5,$C$6,0,0,$C$4),1,1) -> 766.8038839 | X161: =INDEX(coordonnées_cadran_plat($D161,W$10,$C$3,$C$2,$C$5,$C$6,0,0,$C$4),1,2) -> 1286.795214
B162: 8 | C162: 9 | D162: 2010-09-08 | E162: =INDEX(heures_limites_cadran($D162,$C$3,$C$2,$C$5),1,1)/24 -> 08:00:00 | F162: =INDEX(heures_limites_cadran($D162,$C$3,$C$2,$C$5),1,2)/24 -> 18:30:00 | G162: =INDEX(coordonnées_cadran_plat($D162,$G$10,$C$3,$C$2,$C$5,$C$6,0,0,$C$4),1,1) -> 727.76957 | H162: =INDEX(coordonnées_cadran_plat($D162,$G$10,$C$3,$C$2,$C$5,$C$6,0,0,$C$4),1,2) -> -1972.285187 | I162: =INDEX(coordonnées_cadran_plat($D162,I$10,$C$3,$C$2,$C$5,$C$6,0,0,$C$4),1,1) -> 645.1826491 | J162: =INDEX(coordonnées_cadran_plat($D162,I$10,$C$3,$C$2,$C$5,$C$6,0,0,$C$4),1,2) -> -1023.073763 | K162: =INDEX(coordonnées_cadran_plat($D162,K$10,$C$3,$C$2,$C$5,$C$6,0,0,$C$4),1,1) -> 617.0763466 | L162: =INDEX(coordonnées_cadran_plat($D162,K$10,$C$3,$C$2,$C$5,$C$6,0,0,$C$4),1,2) -> -588.5389532 | M162: =INDEX(coordonnées_cadran_plat($D162,M$10,$C$3,$C$2,$C$5,$C$6,0,0,$C$4),1,1) -> 607.3602058 | N162: =INDEX(coordonnées_cadran_plat($D162,M$10,$C$3,$C$2,$C$5,$C$6,0,0,$C$4),1,2) -> -306.7710863 | O162: =INDEX(coordonnées_cadran_plat($D162,O$10,$C$3,$C$2,$C$5,$C$6,0,0,$C$4),1,1) -> 607.6617406 | P162: =INDEX(coordonnées_cadran_plat($D162,O$10,$C$3,$C$2,$C$5,$C$6,0,0,$C$4),1,2) -> -80.2894485 | Q162: =INDEX(coordonnées_cadran_plat($D162,Q$10,$C$3,$C$2,$C$5,$C$6,0,0,$C$4),1,1) -> 616.2513136 | R162: =INDEX(coordonnées_cadran_plat($D162,Q$10,$C$3,$C$2,$C$5,$C$6,0,0,$C$4),1,2) -> 135.7183149 | S162: =INDEX(coordonnées_cadran_plat($D162,S$10,$C$3,$C$2,$C$5,$C$6,0,0,$C$4),1,1) -> 635.0375148 | T162: =INDEX(coordonnées_cadran_plat($D162,S$10,$C$3,$C$2,$C$5,$C$6,0,0,$C$4),1,2) -> 378.2645415 | U162: =INDEX(coordonnées_cadran_plat($D162,U$10,$C$3,$C$2,$C$5,$C$6,0,0,$C$4),1,1) -> 671.4243187 | V162: =INDEX(coordonnées_cadran_plat($D162,U$10,$C$3,$C$2,$C$5,$C$6,0,0,$C$4),1,2) -> 705.6689496 | W162: =INDEX(coordonnées_cadran_plat($D162,W$10,$C$3,$C$2,$C$5,$C$6,0,0,$C$4),1,1) -> 750.1134414 | X162: =INDEX(coordonnées_cadran_plat($D162,W$10,$C$3,$C$2,$C$5,$C$6,0,0,$C$4),1,2) -> 1275.454717
